Workbook

Sheet START

Sheet Instructions
D2: 2020
X4: Yes
X5: No
W7: Type of Entities Range:
X8: Parent Municipality
X9: Consolidated Information
F14: START
F15: Instructions
F16: Template names
F17: Lookup and lists | W17: MTREF Range: | X17: 2013
F18: Org structure | X18: 2014
F19: Contacts | X19: 2015
F20: A1-Sum | X20: 2016
F21: A2-FinPerf SC | X21: 2017
F22: A2A | X22: 2018
F23: A3-FinPerf V | X23: 2019
F24: A3A | X24: 2020
F25: A4-FinPerf RE | X25: 2021
F26: A5-Capex | X26: 2022
F27: A5A | X27: 2023
F28: A6-FinPos | X28: 2024
F29: A7-CFlow | X29: 2025
F30: A8-ResRecon | X30: 2026
F31: A9-Asset | X31: 2027
F32: A10-SerDel
F33: SA1 | W33: MTREF Linked: | X33: 9
F34: SA2 | W34: MTREF: | X34: =INDEX(X17:X26,X33,1) -> 2021
F35: SA3
F36: SA4 | W36: Fin Year: | X36: =MTREF&"/"&RIGHT(MTREF,2)+1 -> 2021/22
F37: SA5
F38: SA6
F39: SA7
F40: SA8
F41: SA9
F42: SA10
F43: SA11
F44: SA12a
F45: SA12b
F46: SA13a
F47: SA13b
F48: SA14
F49: SA15
F50: SA16
F51: SA17
F52: SA18
F53: SA19
F54: SA20
F55: SA21
F56: SA22
F57: SA23
F58: SA24
F59: SA25
F60: SA26
F61: SA27
F62: SA28
F63: SA29
F64: SA30
F65: SA31
F66: SA32
F67: SA33
F68: SA34a
F69: SA34b
F70: SA34c
F71: SA34d
F72: SA34e
F73: SA35
F74: SA36
F75: SA37
F76: SA38
F77: LGDB_EXPORT

Sheet Template names (hidden)
A1: Common sheet headings
A2: Head1 | B2: =HLOOKUP(MTREF,Headings,2) -> 2019/20 | C2: Prior year -1
A3: Head1A | B3: =HLOOKUP(MTREF,Headings,3) -> 2018/19 | C3: Prior year -2
A4: Head1B | B4: =HLOOKUP(MTREF,Headings,4) -> 2017/18 | C4: Prior year -3
A5: Head2 | B5: =HLOOKUP(MTREF,Headings,5) -> Current Year 2020/21 | C5: Year in which budget is being prepared
A6: Head2A | B6: =HLOOKUP(MTREF,Headings,6) -> 2020/21 | C6: Year in which budget is being prepared
A7: Head3 | B7: =HLOOKUP(MTREF,Headings,7) -> 2021/22 Medium Term Revenue & Expenditure Framework | C7: MTREF name
A8: Head4 | B8: LTFS | C8: Long term financial strategy
A9: Head5 | B9: Audited Outcome
A10: Head5A | B10: Outcome
A11: Head5B | B11: Pre-audit outcome
A12: Head6 | B12: Original Budget
A13: Head7 | B13: Adjusted Budget
A14: Head8 | B14: Full Year Forecast
A15: Head9 | B15: =HLOOKUP(MTREF,Headings,8) -> Budget Year 2021/22 | C15: 1st year of MTREF | D15: Year1
A16: Head10 | B16: =HLOOKUP(MTREF,Headings,9) -> Budget Year +1 2022/23 | C16: 2nd year of MTREF | D16: Year2
A17: Head11 | B17: =HLOOKUP(MTREF,Headings,10) -> Budget Year +2 2023/24 | C17: 3rd year of MTREF | D17: Year3
A18: Head12 | B18: =HLOOKUP(MTREF,Headings,11) -> Forecast 2024/25 | C18: 1st yr of long term forecast | D18: Year4
A19: Head13 | B19: =HLOOKUP(MTREF,Headings,12) -> Forecast 2025/26 | C19: Next yr of long term forecast | D19: Year5
A20: Head14 | B20: =HLOOKUP(MTREF,Headings,13) -> Forecast 2026/27 | C20: Next yr of long term forecast | D20: Year6
A21: Head15 | B21: =HLOOKUP(MTREF,Headings,14) -> Forecast 2027/28 | C21: Next yr of long term forecast | D21: Year7
A22: Head16 | B22: =HLOOKUP(MTREF,Headings,15) -> Forecast 2028/29 | C22: Next yr of long term forecast | D22: Year8
A23: Head17 | B23: =HLOOKUP(MTREF,Headings,16) -> Forecast 2029/30 | C23: Next yr of long term forecast | D23: Year9
A24: Head18 | B24: =HLOOKUP(MTREF,Headings,17) -> Forecast 2030/31 | C24: Next yr of long term forecast | D24: Year10
A25: Head19 | B25: =HLOOKUP(MTREF,Headings,18) -> Forecast 2031/32 | C25: Next yr of long term forecast | D25: Year11
A26: Head20 | B26: =HLOOKUP(MTREF,Headings,19) -> Forecast 2032/33 | C26: Next yr of long term forecast | D26: Year12
A27: Head21 | B27: =HLOOKUP(MTREF,Headings,20) -> Forecast 2033/34 | C27: Next yr of long term forecast | D27: Year13
A28: Head22 | B28: =HLOOKUP(MTREF,Headings,21) -> Forecast 2034/35 | C28: Next yr of long term forecast | D28: Year14
A29: Head23 | B29: =HLOOKUP(MTREF,Headings,22) -> Forecast 2035/36 | C29: Next yr of long term forecast | D29: Year15
A30: Head24 | B30: Description
A31: Head25
A32: Head26 | B32: Vote Description
A33: Head27 | B33: Ref
A34: Head27a | B34: References
A35: Head28 | B35: Surplus/(Deficit) for the year | D35: Result
A36: Head29 | B36: =HLOOKUP(MTREF,Headings,23) -> Annual target 2021/22
A37: Head30 | B37: =HLOOKUP(MTREF,Headings,24) -> Revised target 2021/22
A38: Head31 | B38: Quarter ended 30 September
A39: Head32 | B39: Quarter ended 31 December
A40: Head33 | B40: Quarter ended 31 March
A41: Head34 | B41: Quarter ended 30 June
A42: Head35 | B42: Variance explanation
A43: Head36 | B43: YTD Actual 31 Dec
A44: Head37 | B44: YTD Budget 31 Dec
A45: Head38 | B45: Monthly actual
A46: Head39 | B46: YTD actual
A47: Head40 | B47: YTD budget
A48: Head41 | B48: YTD variance
A49: Head42 | B49: Surplus/ (Deficit) for the yr/period
A50: Head43 | B50: =Head3&" Summary" -> 2021/22 Medium Term Revenue & Expenditure Framework Summary
A51: Head44 | B51: 2001 Census
A52: Head45 | B52: 2011 Census
A53: Head46 | B53: - Adjustments Budget - January 2007
A54: Head47 | B54: Previous target year to complete
A55: Head48 | B55: Present value
A56: Head49
A57: Head50 | B57: Other Adjusts.
A58: Head51 | B58: Accum. Funds
A59: Head52 | B59: Multi-year capital
A60: Head53 | B60: Unfore. Unavoid.
A61: Head54 | B61: Prior Adjusted
A62: Head55 | B62: Nat. or Prov. Govt
A63: Head56 | B63: Total Adjusts.
A64: SFPerf1 | B64: Budgeted Financial Performance
A65: SFPerf2 | B65: Forecast Financial Performance
A66: SFPos1 | B66: Budgeted Financial Position
A67: SFPos2 | B67: Forecast Financial Position
A68: Cash1 | B68: Budget Cash Flow
A69: Cash2 | B69: Forecast Cash Flow
A70: RandM | B70: Expenditure includes repairs & maintenance of R'000
A71: Depart1 | B71: Department 1 - | D71: DEP1
A72: Depart2 | B72: Department 2 - | D72: DEP2
A73: Depart3 | B73: Department 3 - | D73: DEP3
A74: Depart4 | B74: Department 4 - | D74: DEP4
A75: Depart5 | B75: Department 5 - | D75: DEP5
A76: Depart6 | B76: Department 6 - | D76: DEP6
A77: Depart7 | B77: Department 7 - | D77: DEP7
A78: Depart8 | B78: Department 8 - | D78: DEP8
A79: Depart9 | B79: Department 9 - | D79: DEP9
A80: Depart10 | B80: Department 10 - | D80: DEP10
A81: Depart11 | B81: Department 11 - | D81: DEP11
A82: Depart12 | B82: Department 12 - | D82: DEP12
A83: Depart13 | B83: Department 13 - | D83: DEP13
A84: Depart14 | B84: Department 14 - | D84: DEP14
A87: Base year of forecast column selection names
A88: Choose | B88: ACT
B89: APP
B90: ADJ
A92: Standard nomenclature
A93: Muni | B93: ='Lookup and lists'!B28 -> Choose name from list
A94: Municipal Entities | B94: 2 | C94: Type of report: | D94: 1
A95: =IF((MuniEntities=1)*(MuniType=2),"YES","NO") -> NO | B95: Does this municipality have entities (consolidated budget and entity budgets required)? YES/NO
A96: Entity 1 | B96: (Pty) Ltd Example 1 - Municipal entity - | D96: Ent1
A97: Entity 2 | B97: (Pty) Ltd Example 2 - Municipal entity - | D97: Ent2
A98: Entity 3 | B98: Municipal Entity Example 3 | D98: Ent3
A99: Budget approval tables | C99: Chart x-ref | D99: Sch/Tab/Ch | E99: Alternative for municipalities without entities | F99: Alternative for municipalities without entities
B100: =IF(Consolques="YES",E100,F100) -> Table A1 Budget Summary | D100: Table A1 | E100: =D100&"Consolidated Budget Summary" -> Table A1 Consolidated Budget Summary | F100: =D100&"Budget Summary" -> Table A1 Budget Summary
B101: Table A2 Budgeted Financial Performance (revenue and expenditure by functional classification) | C101: Charts 5, 6 | D101: Table A2 | E101: =D101&"Consolidated Budgeted Financial Performance (revenue and expenditure by functional classification)" -> Table A2 Consolidated Budgeted Financial Performance (revenue and expenditure by functional classification) | F101: =D101&"Budgeted Financial Performance (revenue and expenditure by functional classification)" -> Table A2 Budgeted Financial Performance (revenue and expenditure by functional classification)
B102: Table A3 Budgeted Financial Performance (revenue and expenditure by municipal vote) | D102: Table A3 | E102: =D102&"Consolidated Budgeted Financial Performance (revenue and expenditure by municipal vote)" -> Table A3 Consolidated Budgeted Financial Performance (revenue and expenditure by municipal vote) | F102: =D102&"Budgeted Financial Performance (revenue and expenditure by municipal vote)" -> Table A3 Budgeted Financial Performance (revenue and expenditure by municipal vote)
B103: Table A4 Budgeted Financial Performance (revenue and expenditure) | C103: Charts 1, 2, 3, 4 | D103: Table A4 | E103: =D103&"Consolidated Budgeted Financial Performance (revenue and expenditure)" -> Table A4 Consolidated Budgeted Financial Performance (revenue and expenditure) | F103: =D103&"Budgeted Financial Performance (revenue and expenditure)" -> Table A4 Budgeted Financial Performance (revenue and expenditure)
B104: Table A5 Budgeted Capital Expenditure by vote, functional classification and funding | C104: Charts 7, 8, 9, 10, 20 | D104: Table A5 | E104: =D104&"Consolidated Budgeted Capital Expenditure by vote, functional classification and funding" -> Table A5 Consolidated Budgeted Capital Expenditure by vote, functional classification and funding | F104: =D104&"Budgeted Capital Expenditure by vote, functional classification and funding" -> Table A5 Budgeted Capital Expenditure by vote, functional classification and funding
B105: Table A6 Budgeted Financial Position | D105: Table A6 | E105: =D105&"Consolidated Budgeted Financial Position" -> Table A6 Consolidated Budgeted Financial Position | F105: =D105&"Budgeted Financial Position" -> Table A6 Budgeted Financial Position
B106: Table A7 Budgeted Cash Flows | D106: Table A7 | E106: =D106&"Consolidated Budgeted Cash Flows" -> Table A7 Consolidated Budgeted Cash Flows | F106: =D106&"Budgeted Cash Flows" -> Table A7 Budgeted Cash Flows
B107: Table A8 Cash backed reserves/accumulated surplus reconciliation | D107: Table A8 | E107: =D107&"Consolidated Cash backed reserves/accumulated surplus reconciliation" -> Table A8 Consolidated Cash backed reserves/accumulated surplus reconciliation | F107: =D107&"Cash backed reserves/accumulated surplus reconciliation" -> Table A8 Cash backed reserves/accumulated surplus reconciliation
B108: Table A9 Asset Management | D108: Table A9 | E108: =D108&"Consolidated Asset Management" -> Table A9 Consolidated Asset Management | F108: =D108&"Asset Management" -> Table A9 Asset Management
B109: Table A10 Basic service delivery measurement | D109: Table A10 | E109: =D109&"Consolidated basic service delivery measurement" -> Table A10 Consolidated basic service delivery measurement | F109: =D109&"Basic service delivery measurement" -> Table A10 Basic service delivery measurement
A110: Supportinging Tables to the Budget Approval Tables | C110: =$C$99 -> Chart x-ref | D110: =$D$99 -> Sch/Tab/Ch
A111: Supporting Table SA1 | B111: =A111&" Supportinging detail to 'Budgeted Financial Performance'" -> Supporting Table SA1 Supportinging detail to 'Budgeted Financial Performance'
A112: Supporting Table SA2 | B112: =IF(Consolques="YES",E112,F112) -> Supporting Table SA2 Matrix Financial Performance Budget (revenue source/expenditure type and dept.) | E112: =A112&"Consolidated Matrix Financial Performance Budget (revenue source/expenditure type & dept.)" -> Supporting Table SA2 Consolidated Matrix Financial Performance Budget (revenue source/expenditure type & dept.) | F112: =A112&"Matrix Financial Performance Budget (revenue source/expenditure type and dept.)" -> Supporting Table SA2 Matrix Financial Performance Budget (revenue source/expenditure type and dept.)
A113: Supporting Table SA3 | B113: =A113&"Supportinging detail to 'Budgeted Financial Position'" -> Supporting Table SA3 Supportinging detail to 'Budgeted Financial Position'
A114: Supporting Table SA4 | B114: =A114&"Reconciliation of IDP strategic objectives and budget (revenue)" -> Supporting Table SA4 Reconciliation of IDP strategic objectives and budget (revenue) | C114: Chart 11
A115: Supporting Table SA5 | B115: =A115&"Reconciliation of IDP strategic objectives and budget (operating expenditure)" -> Supporting Table SA5 Reconciliation of IDP strategic objectives and budget (operating expenditure) | C115: Chart 12
A116: Supporting Table SA6 | B116: =A116&"Reconciliation of IDP strategic objectives and budget (capital expenditure)" -> Supporting Table SA6 Reconciliation of IDP strategic objectives and budget (capital expenditure) | C116: Chart 13
A117: Supporting Table SA7 | B117: =A117&" Measureable performance objectives" -> Supporting Table SA7 Measureable performance objectives
A118: Supporting Table SA8 | B118: =A118&" Performance indicators and benchmarks" -> Supporting Table SA8 Performance indicators and benchmarks | C118: Chts 15-19
A119: Supporting Table SA9 | B119: =A119&" Social, economic and demographic statistics and assumptions" -> Supporting Table SA9 Social, economic and demographic statistics and assumptions
A120: Supporting Table SA10 | B120: =A120&" Funding measurement" -> Supporting Table SA10 Funding measurement | C120: Chart 14
A121: Supporting Table SA11 | B121: =A121&" Property rates summary" -> Supporting Table SA11 Property rates summary
A122: Supporting Table SA12a | B122: =A122&" Property rates by category (current year)" -> Supporting Table SA12a Property rates by category (current year)
A123: Supporting Table SA12b | B123: =A123&" Property rates by category (budget year)" -> Supporting Table SA12b Property rates by category (budget year)
A124: Supporting Table SA13a | B124: =A124&" Service Tariffs by category" -> Supporting Table SA13a Service Tariffs by category
A125: Supporting Table SA13b | B125: =A125&" Service Tariffs by category - explanatory" -> Supporting Table SA13b Service Tariffs by category - explanatory
A126: Supporting Table SA14 | B126: =A126&" Household bills" -> Supporting Table SA14 Household bills
A127: Supporting Table SA15 | B127: =A127&" Investment particulars by type" -> Supporting Table SA15 Investment particulars by type
A128: Supporting Table SA16 | B128: =A128&" Investment particulars by maturity" -> Supporting Table SA16 Investment particulars by maturity
A129: Supporting Table SA17 | B129: =A129&" Borrowing" -> Supporting Table SA17 Borrowing
A130: Supporting Table SA18 | B130: =A130&" Transfers and grant receipts" -> Supporting Table SA18 Transfers and grant receipts
A131: Supporting Table SA19 | B131: =A131&" Expenditure on transfers and grant programme" -> Supporting Table SA19 Expenditure on transfers and grant programme
A132: Supporting Table SA20 | B132: =A132&" Reconciliation of transfers, grant receipts and unspent funds" -> Supporting Table SA20 Reconciliation of transfers, grant receipts and unspent funds
A133: Supporting Table SA21 | B133: =A133&" Transfers and grants made by the municipality" -> Supporting Table SA21 Transfers and grants made by the municipality
A134: Supporting Table SA22 | B134: =A134&" Summary councillor and staff benefits" -> Supporting Table SA22 Summary councillor and staff benefits
A135: Supporting Table SA23 | B135: =A135&" Salaries, allowances & benefits (political office bearers/councillors/senior managers)" -> Supporting Table SA23 Salaries, allowances & benefits (political office bearers/councillors/senior managers)
A136: Supporting Table SA24 | B136: =A136&" Summary of personnel numbers" -> Supporting Table SA24 Summary of personnel numbers
A137: Supporting Table SA25 | B137: =IF(Consolques="YES",E137,F137) -> Supporting Table SA25 Budgeted monthly revenue and expenditure | E137: =A137&" Consolidated budgeted monthly revenue and expenditure" -> Supporting Table SA25 Consolidated budgeted monthly revenue and expenditure | F137: =A137&" Budgeted monthly revenue and expenditure" -> Supporting Table SA25 Budgeted monthly revenue and expenditure
A138: Supporting Table SA26 | B138: Supporting Table SA26 Budgeted monthly revenue and expenditure (municipal vote) | E138: =A138&" Consolidated budgeted monthly revenue and expenditure (municipal vote)" -> Supporting Table SA26 Consolidated budgeted monthly revenue and expenditure (municipal vote) | F138: =A138&" Budgeted monthly revenue and expenditure (municipal vote)" -> Supporting Table SA26 Budgeted monthly revenue and expenditure (municipal vote)
A139: Supporting Table SA27 | B139: Supporting Table SA27 Budgeted monthly revenue and expenditure (functional classification) | E139: =A139&" Consolidated budgeted monthly revenue and expenditure (functional classification)" -> Supporting Table SA27 Consolidated budgeted monthly revenue and expenditure (functional classification) | F139: =A139&" Budgeted monthly revenue and expenditure (functional classification)" -> Supporting Table SA27 Budgeted monthly revenue and expenditure (functional classification)
A140: Supporting Table SA28 | B140: Supporting Table SA28 Budgeted monthly capital expenditure (municipal vote) | E140: =A140&" Consolidated budgeted monthly capital expenditure (municipal vote)" -> Supporting Table SA28 Consolidated budgeted monthly capital expenditure (municipal vote) | F140: =A140&" Budgeted monthly capital expenditure (municipal vote)" -> Supporting Table SA28 Budgeted monthly capital expenditure (municipal vote)
A141: Supporting Table SA29 | B141: Supporting Table SA29 Budgeted monthly capital expenditure (functional classification) | E141: =A141&" Consolidated budgeted monthly capital expenditure (functional classification)" -> Supporting Table SA29 Consolidated budgeted monthly capital expenditure (functional classification) | F141: =A141&" Budgeted monthly capital expenditure (functional classification)" -> Supporting Table SA29 Budgeted monthly capital expenditure (functional classification)
A142: Supporting Table SA30 | B142: Supporting Table SA30 Budgeted monthly cash flow | E142: =A142&" Consolidated budgeted monthly cash flow" -> Supporting Table SA30 Consolidated budgeted monthly cash flow | F142: =A142&" Budgeted monthly cash flow" -> Supporting Table SA30 Budgeted monthly cash flow
A143: Supporting Table SA31 | B143: NOT REQUIRED - municipality does not have entities | E143: =A143&" Aggregated entity budget" -> Supporting Table SA31 Aggregated entity budget | F143: NOT REQUIRED - municipality does not have entities
A144: Supporting Table SA32 | B144: =A144&" List of external mechanisms" -> Supporting Table SA32 List of external mechanisms
A145: Supporting Table SA33 | B145: =A145&" Contracts having future budgetary implications" -> Supporting Table SA33 Contracts having future budgetary implications
A146: Supporting Table SA34a | B146: =IF(Consolques="YES",E146,F146) -> Supporting Table SA34a Capital expenditure on new assets by asset class | E146: =A146&" Consolidated capital expenditure on new assets by asset class" -> Supporting Table SA34a Consolidated capital expenditure on new assets by asset class | F146: =A146&" Capital expenditure on new assets by asset class" -> Supporting Table SA34a Capital expenditure on new assets by asset class
A147: Supporting Table SA34b | B147: Supporting Table SA34b Capital expenditure on the renewal of existing assets by asset class | E147: =A147&" Consolidated capital expenditure on the renewal of existing assets by asset class" -> Supporting Table SA34b Consolidated capital expenditure on the renewal of existing assets by asset class | F147: =A147&" Capital expenditure on the renewal of existing assets by asset class" -> Supporting Table SA34b Capital expenditure on the renewal of existing assets by asset class
A148: Supporting Table SA34c | B148: Supporting Table SA34c Repairs and maintenance expenditure by asset class | E148: =A148&" Consolidated repairs and maintenance by asset class" -> Supporting Table SA34c Consolidated repairs and maintenance by asset class | F148: =A148&" Repairs and maintenance expenditure by asset class" -> Supporting Table SA34c Repairs and maintenance expenditure by asset class
A149: Supporting Table SA34d | B149: =IF(Consolques="YES",E149,F149) -> Supporting Table SA34d Depreciation by asset class | E149: =A149&" Consolidated Depreciation by asset class" -> Supporting Table SA34d Consolidated Depreciation by asset class | F149: =A149&" Depreciation by asset class" -> Supporting Table SA34d Depreciation by asset class
A150: Supporting Table SA34e | B150: =IF(Consolques="YES",E150,F150) -> Supporting Table SA34e Capital expenditure on the upgrading of existing assets by asset class | E150: =A150&" Consolidated capital expenditure on the upgrading of existing assets by asset class" -> Supporting Table SA34e Consolidated capital expenditure on the upgrading of existing assets by asset class | F150: =A150&" Capital expenditure on the upgrading of existing assets by asset class" -> Supporting Table SA34e Capital expenditure on the upgrading of existing assets by asset class
A151: Supporting Table SA35 | B151: Supporting Table SA35 Future financial implications of the capital budget | E151: =A151&" Consolidated future financial implications of the capital budget" -> Supporting Table SA35 Consolidated future financial implications of the capital budget | F151: =A151& " Future financial implications of the capital budget" -> Supporting Table SA35 Future financial implications of the capital budget
A152: Supporting Table SA36 | B152: Supporting Table SA36 Detailed capital budget | E152: =A152&" Consolidated detailed capital budget" -> Supporting Table SA36 Consolidated detailed capital budget | F152: =A152& " Detailed capital budget" -> Supporting Table SA36 Detailed capital budget
A153: Supporting Table SA37 | B153: Supporting Table SA37 Projects delayed from previous financial year/s | E153: =A153&" Consolidated projects delayed from previous financial year/s" -> Supporting Table SA37 Consolidated projects delayed from previous financial year/s | F153: =A153& " Projects delayed from previous financial year/s" -> Supporting Table SA37 Projects delayed from previous financial year/s
A154: Supporting Table SA38 | B154: =IF(Consolques="YES",E154,F154) -> Supporting Table SA38 Detailed operational projects | E154: =A154&" Consolidated detailed operational projects" -> Supporting Table SA38 Consolidated detailed operational projects | F154: =A154& " Detailed operational projects" -> Supporting Table SA38 Detailed operational projects
A156: Budget Charts | B156: Charts | C156: Cross reference
A157: Chart A1 | B157: =A157&"Revenue by Municipal Vote" -> Chart A1 Revenue by Municipal Vote
A158: Chart A2 | B158: =A158&"Expenditure by Municipal Vote" -> Chart A2 Expenditure by Municipal Vote
A159: Chart A3 | B159: =A159&"Revenue by Standard Classification" -> Chart A3 Revenue by Standard Classification | C159: A2
A160: Chart A4 | B160: =A160&"Expenditure by Standard Classification" -> Chart A4 Expenditure by Standard Classification | C160: A2
A161: Chart A5 | B161: =A161&"Revenue by Major Source (refer 'Minor' source for 'Other Revenue' allocation" -> Chart A5 Revenue by Major Source (refer 'Minor' source for 'Other Revenue' allocation | C161: A3
A162: Chart A6 | B162: =A162&"Revenue by Minor Source (Other)" -> Chart A6 Revenue by Minor Source (Other) | C162: A3
A163: Chart A7 | B163: =A163&"Expenditure by Major Type" -> Chart A7 Expenditure by Major Type | C163: A3
A164: Chart A8 | B164: =A164&"Expenditure by Minor Type (Other)" -> Chart A8 Expenditure by Minor Type (Other) | C164: A3
A165: Chart A9 | B165: =A165&"Capital Expenditure by Municipal Vote/Appropriation (Major)" -> Chart A9 Capital Expenditure by Municipal Vote/Appropriation (Major) | C165: A5
A166: Chart A10 | B166: =A166&"Capital Expenditure by Municipal Vote/Appropriation (Minor)" -> Chart A10 Capital Expenditure by Municipal Vote/Appropriation (Minor) | C166: A5
A167: Chart A11 | B167: =A166&"Capital Expenditure by Standard Classification" -> Chart A10 Capital Expenditure by Standard Classification | C167: A5
A168: Chart A12 | B168: =A168&"Capital expenditure performance trend" -> Chart A12 Capital expenditure performance trend | C168: A5
A169: Chart A13 | B169: =A169&"Capital funding by Source" -> Chart A13 Capital funding by Source | C169: A5
A170: Chart A14 | B170: =A170&"Cash flow trend" -> Chart A14 Cash flow trend | C170: A7
A171: Chart A15 | B171: =A171&"IDP Strategic Objective - Revenue" -> Chart A15 IDP Strategic Objective - Revenue | C171: Table A4
A172: Chart A16 | B172: =A172&"IDP Strategic Objective - Expenditure" -> Chart A16 IDP Strategic Objective - Expenditure | C172: Table A5
A173: Chart A17 | B173: =A173&"IDP Strategic Objective - Capital Expenditure" -> Chart A17 IDP Strategic Objective - Capital Expenditure | C173: Table A6
A174: Chart A18 | B174: =A174&"Debt (borrowing to Total Revenue)" -> Chart A18 Debt (borrowing to Total Revenue) | C174: Table A8
A175: Chart A19 | B175: =A175&"Debtors' trend analysis" -> Chart A19 Debtors' trend analysis | C175: Table A8
A176: Chart A20 | B176: =A176&"Distribution losses" -> Chart A20 Distribution losses | C176: Table A8
A177: Chart A21 | B177: =A177&"Borrowed funding of capital expenditure" -> Chart A21 Borrowed funding of capital expenditure | C177: Table A8
A178: Chart A22 | B178: =A178&"Expenditure analysis (% of Revenue)" -> Chart A22 Expenditure analysis (% of Revenue) | C178: Table A8
A179: Chart A23 | B179: =A179&"Increases in service charges" -> Chart A23 Increases in service charges | C179: Table A10

Sheet Lookup and lists (hidden)
A1: Description | B1: 2013 | C1: 2014 | D1: 2015 | E1: 2016 | F1: 2017 | G1: 2018 | H1: 2019 | I1: 2020 | J1: 2021 | K1: 2022 | L1: 2023 | M1: 2024 | N1: 2025 | O1: 2026 | Q1: Lists | Y1: Grants: | Z1: National - opex | AA1: Provincial - opex | AB1: National - capex | AC1: Provincial - capex
A2: ='Template names'!C2 -> Prior year -1 | B2: =B1-2&"/"&RIGHT(B1,2)-1 -> 2011/12 | C2: 2012/13 | D2: 2013/14 | E2: 2014/15 | F2: 2015/16 | G2: 2016/17 | H2: 2017/18 | I2: 2018/19 | J2: =J1-2&"/"&RIGHT(J1,2)-1 -> 2019/20 | K2: 2020/21 | L2: 2021/22 | M2: 2022/23 | N2: 2023/24 | O2: 2024/25 | Q2: Yes | R2: <1 | S2: <4 | T2: Market | U2: Land & impr. | V2: Yes | W2: Uniform | X2: Yrs | Z2: Local Government Equitable Share | AA2: Health subsidy | AB2: Municipal Infrastructure Grant (MIG) | AC2: Agriculture
A3: ='Template names'!C3 -> Prior year -2 | B3: =B1-3&"/"&RIGHT(B1,2)-2 -> 2010/11 | C3: 2011/12 | D3: 2012/13 | E3: 2013/14 | F3: 2014/15 | G3: 2015/16 | H3: 2016/17 | I3: 2017/18 | J3: =J1-3&"/"&RIGHT(J1,2)-2 -> 2018/19 | K3: 2019/20 | L3: 2020/21 | M3: 2021/22 | N3: 2022/23 | O3: 2023/24 | Q3: No | R3: 1 | S3: 4 | T3: Dep.Replace | U3: Land only | V3: No | W3: Variable | X3: Mths | Z3: RSC Levy Replacement | AA3: Ambulance subsidy | AB3: Public Transport and Systems | AC3: Education
A4: ='Template names'!C4 -> Prior year -3 | B4: =B1-4&"/"&RIGHT(B1,2)-3 -> 2009/10 | C4: 2010/11 | D4: 2011/12 | E4: 2012/13 | F4: 2013/14 | G4: 2014/15 | H4: 2015/16 | I4: 2016/17 | J4: =J1-4&"/"&RIGHT(J1,2)-3 -> 2017/18 | K4: 2018/19 | L4: 2019/20 | M4: 2020/21 | N4: 2021/22 | O4: 2022/23 | R4: 2 | S4: 5 | T4: Other | U4: Other | Z4: Finance Management | AA4: Housing | AB4: Rural Transport Services and Infrastructure | AC4: Health
A5: ='Template names'!C5 -> Year in which budget is being prepared | B5: ="Current Year "& B1-1&"/"&RIGHT(B1,2) -> Current Year 2012/13 | C5: Current Year 2013/14 | D5: Current Year 2014/15 | E5: Current Year 2015/16 | F5: Current Year 2016/17 | G5: Current Year 2017/18 | H5: Current Year 2018/19 | I5: Current Year 2019/20 | J5: ="Current Year "& J1-1&"/"&RIGHT(J1,2) -> Current Year 2020/21 | K5: Current Year 2021/22 | L5: Current Year 2022/23 | M5: Current Year 2023/24 | N5: Current Year 2024/25 | O5: Current Year 2025/26 | R5: 3 | S5: 6 | Z5: Municipal Systems Improvement | AA5: Sport and Recreation | AB5: Regional Bulk Infrastructure | AC5: Housing and Local Government
A6: ='Template names'!C6 -> Year in which budget is being prepared | B6: =B1-1&"/"&RIGHT(B1,2) -> 2012/13 | C6: 2013/14 | D6: 2014/15 | E6: 2015/16 | F6: 2016/17 | G6: 2017/18 | H6: 2018/19 | I6: 2019/20 | J6: =J1-1&"/"&RIGHT(J1,2) -> 2020/21 | K6: 2021/22 | L6: 2022/23 | M6: 2023/24 | N6: 2024/25 | O6: 2025/26 | R6: 4 | S6: 6-10 | Z6: Water Services Operating Subsidy | AB6: Rural Households Infrastructure | AC6: Other Departments
A7: ='Template names'!C7 -> MTREF name | B7: =B1&"/"&RIGHT(B1,2)+1&" Medium Term Revenue & Expenditure Framework" -> 2013/14 Medium Term Revenue & Expenditure Framework | C7: 2014/15 Medium Term Revenue & Expenditure Framework | D7: 2015/16 Medium Term Revenue & Expenditure Framework | E7: 2016/17 Medium Term Revenue & Expenditure Framework | F7: 2017/18 Medium Term Revenue & Expenditure Framework | G7: 2018/19 Medium Term Revenue & Expenditure Framework | H7: 2019/20 Medium Term Revenue & Expenditure Framework | I7: 2020/21 Medium Term Revenue & Expenditure Framework | J7: =J1&"/"&RIGHT(J1,2)+1&" Medium Term Revenue & Expenditure Framework" -> 2021/22 Medium Term Revenue & Expenditure Framework | K7: 2022/23 Medium Term Revenue & Expenditure Framework | L7: 2023/24 Medium Term Revenue & Expenditure Framework | M7: 2024/25 Medium Term Revenue & Expenditure Framework | N7: 2025/26 Medium Term Revenue & Expenditure Framework | O7: 2026/27 Medium Term Revenue & Expenditure Framework | R7: 5 | S7: >10 | Z7: Energy Efficiency and Demand Management | AB7: Neighbourhood Development Partnership | AC7: Public Works, Roads, Transport
A8: ='Template names'!C15 -> 1st year of MTREF | B8: ="Budget Year "&B1&"/"&RIGHT(B1,2)+1 -> Budget Year 2013/14 | C8: Budget Year 2014/15 | D8: Budget Year 2015/16 | E8: Budget Year 2016/17 | F8: Budget Year 2017/18 | G8: Budget Year 2018/19 | H8: Budget Year 2019/20 | I8: Budget Year 2020/21 | J8: ="Budget Year "&J1&"/"&RIGHT(J1,2)+1 -> Budget Year 2021/22 | K8: Budget Year 2022/23 | L8: Budget Year 2023/24 | M8: Budget Year 2024/25 | N8: Budget Year 2025/26 | O8: Budget Year 2026/27 | R8: >5 | Z8: Integrated National Electrification Programme | AB8: 2010 FIFA World Cup Stadiums Development | AC8: Sport and Recreation
A9: ='Template names'!C16 -> 2nd year of MTREF | B9: ="Budget Year +1 "&B1+1&"/"&RIGHT(B1,2)+2 -> Budget Year +1 2014/15 | C9: Budget Year +1 2015/16 | D9: Budget Year +1 2016/17 | E9: Budget Year +1 2017/18 | F9: Budget Year +1 2018/19 | G9: Budget Year +1 2019/20 | H9: Budget Year +1 2020/21 | I9: Budget Year +1 2021/22 | J9: ="Budget Year +1 "&J1+1&"/"&RIGHT(J1,2)+2 -> Budget Year +1 2022/23 | K9: Budget Year +1 2023/24 | L9: Budget Year +1 2024/25 | M9: Budget Year +1 2025/26 | N9: Budget Year +1 2026/27 | O9: Budget Year +1 2027/28 | Z9: Municipal Drought Relief
A10: ='Template names'!C17 -> 3rd year of MTREF | B10: ="Budget Year +2 "&B1+2&"/"&RIGHT(B1,2)+3 -> Budget Year +2 2015/16 | C10: Budget Year +2 2016/17 | D10: Budget Year +2 2017/18 | E10: Budget Year +2 2018/19 | F10: Budget Year +2 2019/20 | G10: Budget Year +2 2020/21 | H10: Budget Year +2 2021/22 | I10: Budget Year +2 2022/23 | J10: ="Budget Year +2 "&J1+2&"/"&RIGHT(J1,2)+3 -> Budget Year +2 2023/24 | K10: Budget Year +2 2024/25 | L10: Budget Year +2 2025/26 | M10: Budget Year +2 2026/27 | N10: Budget Year +2 2027/28 | O10: Budget Year +2 2028/29 | Z10: 2010 FIFA World Cup Operating
A11: ='Template names'!C18 -> 1st yr of long term forecast | B11: ="Forecast "&B1+3&"/"&RIGHT(B1,2)+4 -> Forecast 2016/17 | C11: Forecast 2017/18 | D11: Forecast 2018/19 | E11: Forecast 2019/20 | F11: Forecast 2020/21 | G11: Forecast 2021/22 | H11: Forecast 2022/23 | I11: Forecast 2023/24 | J11: ="Forecast "&J1+3&"/"&RIGHT(J1,2)+4 -> Forecast 2024/25 | K11: Forecast 2025/26 | L11: Forecast 2026/27 | M11: Forecast 2027/28 | N11: Forecast 2028/29 | O11: Forecast 2029/30 | Z11: Electricity Demand Side Management
A12: ='Template names'!C19 -> Next yr of long term forecast | B12: ="Forecast "&B1+4&"/"&RIGHT(B1,2)+5 -> Forecast 2017/18 | C12: Forecast 2018/19 | D12: Forecast 2019/20 | E12: Forecast 2020/21 | F12: Forecast 2021/22 | G12: Forecast 2022/23 | H12: Forecast 2023/24 | I12: Forecast 2024/25 | J12: ="Forecast "&J1+4&"/"&RIGHT(J1,2)+5 -> Forecast 2025/26 | K12: Forecast 2026/27 | L12: Forecast 2027/28 | M12: Forecast 2028/29 | N12: Forecast 2029/30 | O12: Forecast 2030/31 | Z12: EPWP Incentive
A13: ='Template names'!C20 -> Next yr of long term forecast | B13: ="Forecast "&B1+5&"/"&RIGHT(B1,2)+6 -> Forecast 2018/19 | C13: Forecast 2019/20 | D13: Forecast 2020/21 | E13: Forecast 2021/22 | F13: Forecast 2022/23 | G13: Forecast 2023/24 | H13: Forecast 2024/25 | I13: Forecast 2025/26 | J13: ="Forecast "&J1+5&"/"&RIGHT(J1,2)+6 -> Forecast 2026/27 | K13: Forecast 2027/28 | L13: Forecast 2028/29 | M13: Forecast 2029/30 | N13: Forecast 2030/31 | O13: Forecast 2031/32
A14: ='Template names'!C21 -> Next yr of long term forecast | B14: ="Forecast "&B1+6&"/"&RIGHT(B1,2)+7 -> Forecast 2019/20 | C14: Forecast 2020/21 | D14: Forecast 2021/22 | E14: Forecast 2022/23 | F14: Forecast 2023/24 | G14: Forecast 2024/25 | H14: Forecast 2025/26 | I14: Forecast 2026/27 | J14: ="Forecast "&J1+6&"/"&RIGHT(J1,2)+7 -> Forecast 2027/28 | K14: Forecast 2028/29 | L14: Forecast 2029/30 | M14: Forecast 2030/31 | N14: Forecast 2031/32 | O14: Forecast 2032/33 | Z14: Asset Class | AA14: Asset sub-class old | AB14: Asset sub-class | AC14: IUDF | AD14: MTSF
A15: ='Template names'!C22 -> Next yr of long term forecast | B15: ="Forecast "&B1+7&"/"&RIGHT(B1,2)+8 -> Forecast 2020/21 | C15: Forecast 2021/22 | D15: Forecast 2022/23 | E15: Forecast 2023/24 | F15: Forecast 2024/25 | G15: Forecast 2025/26 | H15: Forecast 2026/27 | I15: Forecast 2027/28 | J15: ="Forecast "&J1+7&"/"&RIGHT(J1,2)+8 -> Forecast 2028/29 | K15: Forecast 2029/30 | L15: Forecast 2030/31 | M15: Forecast 2031/32 | N15: Forecast 2032/33 | O15: Forecast 2033/34
A16: ='Template names'!C23 -> Next yr of long term forecast | B16: ="Forecast "&B1+8&"/"&RIGHT(B1,2)+9 -> Forecast 2021/22 | C16: Forecast 2022/23 | D16: Forecast 2023/24 | E16: Forecast 2024/25 | F16: Forecast 2025/26 | G16: Forecast 2026/27 | H16: Forecast 2027/28 | I16: Forecast 2028/29 | J16: ="Forecast "&J1+8&"/"&RIGHT(J1,2)+9 -> Forecast 2029/30 | K16: Forecast 2030/31 | L16: Forecast 2031/32 | M16: Forecast 2032/33 | N16: Forecast 2033/34 | O16: Forecast 2034/35 | Z16: Roads Infrastructure | AA16: Roads, Pavements & Bridges | AB16: Roads | AC16: Spatial integration | AD16: Quality basic education
A17: ='Template names'!C24 -> Next yr of long term forecast | B17: ="Forecast "&B1+9&"/"&RIGHT(B1,2)+10 -> Forecast 2022/23 | C17: Forecast 2023/24 | D17: Forecast 2024/25 | E17: Forecast 2025/26 | F17: Forecast 2026/27 | G17: Forecast 2027/28 | H17: Forecast 2028/29 | I17: Forecast 2029/30 | J17: ="Forecast "&J1+9&"/"&RIGHT(J1,2)+10 -> Forecast 2030/31 | K17: Forecast 2031/32 | L17: Forecast 2032/33 | M17: Forecast 2033/34 | N17: Forecast 2034/35 | O17: Forecast 2035/36 | Z17: Storm water Infrastructure | AA17: Storm water | AB17: Road Structures | AC17: Inclusion and access | AD17: A long and healthy life for all South Africans
A18: ='Template names'!C25 -> Next yr of long term forecast | B18: ="Forecast "&B1+10&"/"&RIGHT(B1,2)+11 -> Forecast 2023/24 | C18: Forecast 2024/25 | D18: Forecast 2025/26 | E18: Forecast 2026/27 | F18: Forecast 2027/28 | G18: Forecast 2028/29 | H18: Forecast 2029/30 | I18: Forecast 2030/31 | J18: ="Forecast "&J1+10&"/"&RIGHT(J1,2)+11 -> Forecast 2031/32 | K18: Forecast 2032/33 | L18: Forecast 2033/34 | M18: Forecast 2034/35 | N18: Forecast 2035/36 | O18: Forecast 2036/37 | Z18: Electrical Infrastructure | AA18: Generation | AB18: Road Furniture | AC18: Growth | AD18: All people in South Africa are and feel safe
A19: ='Template names'!C26 -> Next yr of long term forecast | B19: ="Forecast "&B1+11&"/"&RIGHT(B1,2)+12 -> Forecast 2024/25 | C19: Forecast 2025/26 | D19: Forecast 2026/27 | E19: Forecast 2027/28 | F19: Forecast 2028/29 | G19: Forecast 2029/30 | H19: Forecast 2030/31 | I19: Forecast 2031/32 | J19: ="Forecast "&J1+11&"/"&RIGHT(J1,2)+12 -> Forecast 2032/33 | K19: Forecast 2033/34 | L19: Forecast 2034/35 | M19: Forecast 2035/36 | N19: Forecast 2036/37 | O19: Forecast 2037/38 | Z19: Water Supply Infrastructure | AA19: Transmission & Reticulation | AB19: Capital Spares | AC19: Governance | AD19: Decent employment through inclusive growth
A20: ='Template names'!C27 -> Next yr of long term forecast | B20: ="Forecast "&B1+12&"/"&RIGHT(B1,2)+13 -> Forecast 2025/26 | C20: Forecast 2026/27 | D20: Forecast 2027/28 | E20: Forecast 2028/29 | F20: Forecast 2029/30 | G20: Forecast 2030/31 | H20: Forecast 2031/32 | I20: Forecast 2032/33 | J20: ="Forecast "&J1+12&"/"&RIGHT(J1,2)+13 -> Forecast 2033/34 | K20: Forecast 2034/35 | L20: Forecast 2035/36 | M20: Forecast 2036/37 | N20: Forecast 2037/38 | O20: Forecast 2038/39 | Z20: Sanitation Infrastructure | AA20: Street Lighting | AB20: Drainage Collection | AD20: A skilled and capable workforce to support an inclusive growth path
A21: ='Template names'!C28 -> Next yr of long term forecast | B21: ="Forecast "&B1+13&"/"&RIGHT(B1,2)+14 -> Forecast 2026/27 | C21: Forecast 2027/28 | D21: Forecast 2028/29 | E21: Forecast 2029/30 | F21: Forecast 2030/31 | G21: Forecast 2031/32 | H21: Forecast 2032/33 | I21: Forecast 2033/34 | J21: ="Forecast "&J1+13&"/"&RIGHT(J1,2)+14 -> Forecast 2034/35 | K21: Forecast 2035/36 | L21: Forecast 2036/37 | M21: Forecast 2037/38 | N21: Forecast 2038/39 | O21: Forecast 2039/40 | Z21: Solid Waste Infrastructure | AA21: Dams & Reservoirs | AB21: Storm water Conveyance | AD21: An efficient, competitive and responsive economic infrastructure network
A22: ='Template names'!C29 -> Next yr of long term forecast | B22: ="Forecast "&B1+14&"/"&RIGHT(B1,2)+15 -> Forecast 2027/28 | C22: Forecast 2028/29 | D22: Forecast 2029/30 | E22: Forecast 2030/31 | F22: Forecast 2031/32 | G22: Forecast 2032/33 | H22: Forecast 2033/34 | I22: Forecast 2034/35 | J22: ="Forecast "&J1+14&"/"&RIGHT(J1,2)+15 -> Forecast 2035/36 | K22: Forecast 2036/37 | L22: Forecast 2037/38 | M22: Forecast 2038/39 | N22: Forecast 2039/40 | O22: Forecast 2040/41 | Z22: Rail Infrastructure | AA22: Water purification | AB22: Attenuation | AD22: Vibrant, equitable, sustainable rural communities contributing towards food security for all
A23: Adjustments Budget | B23: ="Annual target " & B1&"/"&RIGHT(B1,2)+1 -> Annual target 2013/14 | C23: Annual target 2014/15 | D23: Annual target 2015/16 | E23: Annual target 2016/17 | F23: Annual target 2017/18 | G23: Annual target 2018/19 | H23: Annual target 2019/20 | I23: Annual target 2020/21 | J23: ="Annual target " & J1&"/"&RIGHT(J1,2)+1 -> Annual target 2021/22 | K23: Annual target 2022/23 | L23: Annual target 2023/24 | M23: Annual target 2024/25 | N23: Annual target 2025/26 | O23: Annual target 2026/27 | Z23: Coastal Infrastructure | AA23: Reticulation | AB23: Power Plants | AD23: Sustainable human settlements and improved quality of household life
A24: =A23 -> Adjustments Budget | B24: ="Revised target "& B1&"/"&RIGHT(B1,2)+1 -> Revised target 2013/14 | C24: Revised target 2014/15 | D24: Revised target 2015/16 | E24: Revised target 2016/17 | F24: Revised target 2017/18 | G24: Revised target 2018/19 | H24: Revised target 2019/20 | I24: Revised target 2020/21 | J24: ="Revised target "& J1&"/"&RIGHT(J1,2)+1 -> Revised target 2021/22 | K24: Revised target 2022/23 | L24: Revised target 2023/24 | M24: Revised target 2024/25 | N24: Revised target 2025/26 | O24: Revised target 2026/27 | Z24: Information and Communication Infrastructure | AA24: Sewerage purification | AB24: HV Substations | AD24: Responsive, accountable, effective and efficient local government
A25: NOTE: This sheet should not be directly amended - select headings from sheet 'S' | Z25: Community Facilities | AA25: Waste Management | AB25: HV Switching Station | AD25: Protect and enhance our environmental assets and natural resources
Z26: Sport and Recreation Facilities | AA26: Transportation | AB26: HV Transmission Conductors | AD26: Create a better South Africa and contribute to a better Africa and a better world
A27: Name link | B27: 1 | Z27: Heritage assets | AA27: Gas | AB27: MV Substations | AD27: An efficient, effective and development-oriented public service
A28: Name of Muni | B28: =INDEX(B29:B307,B27,1) -> Choose name from list | Z28: Revenue Generating | AA28: Parks & gardens | AB28: MV Switching Stations | AD28: A comprehensive, responsive and sustainable social protection system
B29: Choose name from list | C29: Set name on 'Instructions' sheet | Z29: Non-revenue Generating | AA29: Sportsfields & stadia | AB29: MV Networks | AD29: A diverse, socially cohesive society with a common national identity
B30: BUF Buffalo City | C30: EC EASTERN CAPE | Z30: Operational Buildings | AA30: Swimming pools | AB30: LV Networks
B31: NMA Nelson Mandela Bay | C31: EC EASTERN CAPE | Z31: Housing | AA31: Community halls | AB31: Capital Spares
B32: EC101 Dr Beyers Naude | C32: EC EASTERN CAPE | Z32: Biological or Cultivated Assets | AA32: Libraries | AB32: Dams and Weirs
B33: EC102 Blue Crane Route | C33: EC EASTERN CAPE | Z33: Servitudes | AA33: Recreational facilities | AB33: Boreholes
B34: EC104 Makana | C34: EC EASTERN CAPE | Z34: Licences and Rights | AA34: Fire, safety & emergency | AB34: Reservoirs
B35: EC105 Ndlambe | C35: EC EASTERN CAPE | Z35: Computer Equipment | AA35: Security and policing | AB35: Pump Stations
B36: EC106 Sundays River Valley | C36: EC EASTERN CAPE | Z36: Furniture and Office Equipment | AA36: Buses | AB36: Water Treatment Works
B37: EC108 Kouga | C37: EC EASTERN CAPE | Z37: Machinery and Equipment | AA37: Clinics | AB37: Bulk Mains
B38: EC109 Kou-Kamma | C38: EC EASTERN CAPE | Z38: Transport Assets | AA38: Museums & Art Galleries | AB38: Distribution
B39: DC10 Sarah Baartman | C39: EC EASTERN CAPE | Z39: Land | AA39: Cemeteries | AB39: Distribution Points
B40: EC121 Mbhashe | C40: EC EASTERN CAPE | Z40: Zoo's, Marine and Non-biological Animals | AA40: Social rental housing | AB40: PRV Stations
B41: EC122 Mnquma | C41: EC EASTERN CAPE | AA41: Buildings | AB41: Capital Spares
B42: EC123 Great Kei | C42: EC EASTERN CAPE | AA42: Housing development | AB42: Pump Station
B43: EC124 Amahlathi | C43: EC EASTERN CAPE | AA43: General vehicles | AB43: Reticulation
B44: EC126 Ngqushwa | C44: EC EASTERN CAPE | AA44: Specialised vehicles - Refuse | AB44: Waste Water Treatment Works
B45: EC129 Raymond Mhlaba | C45: EC EASTERN CAPE | AA45: Specialised vehicles - Fire | AB45: Outfall Sewers
B46: DC12 Amathole | C46: EC EASTERN CAPE | AA46: Specialised vehicles - Conservancy | AB46: Toilet Facilities
B47: EC131 Inxuba Yethemba | C47: EC EASTERN CAPE | AA47: Specialised vehicles - Ambulances | AB47: Capital Spares
B48: EC135 Intsika Yethu | C48: EC EASTERN CAPE | AA48: Plant & equipment | AB48: Landfill Sites
B49: EC136 Emalahleni (Ec) | C49: EC EASTERN CAPE | AA49: Computers - hardware/equipment | AB49: Waste Transfer Stations
B50: EC137 Engcobo | C50: EC EASTERN CAPE | AA50: Furniture and other office equipment | AB50: Waste Processing Facilities
B51: EC138 Sakhisizwe | C51: EC EASTERN CAPE | AA51: Abattoirs | AB51: Waste Drop-off Points
B52: EC139 Enoch Mgijima | C52: EC EASTERN CAPE | AA52: Markets | AB52: Waste Separation Facilities
B53: DC13 Chris Hani | C53: EC EASTERN CAPE | AA53: Civic Land and Buildings | AB53: Electricity Generation Facilities
B54: EC141 Elundini | C54: EC EASTERN CAPE | AA54: Other Buildings | AB54: Capital Spares
B55: EC142 Senqu | C55: EC EASTERN CAPE | AA55: Other Land | AB55: Rail Lines
B56: EC145 Walter Sisulu | C56: EC EASTERN CAPE | AA56: Surplus Assets - (Investment or Inventory) | AB56: Rail Structures
B57: DC14 Joe Gqabi | C57: EC EASTERN CAPE | AA57: Computers - software & programming | AB57: Rail Furniture
B58: EC153 Ngquza Hills | C58: EC EASTERN CAPE | AA58: Other | AB58: Drainage Collection
B59: EC154 Port St Johns | C59: EC EASTERN CAPE | AB59: Storm water Conveyance
B60: EC155 Nyandeni | C60: EC EASTERN CAPE | Z60: SA16 - Investments | AB60: Attenuation
B61: EC156 Mhlontlo | C61: EC EASTERN CAPE | Z61: Security | AA61: Interest rate | AB61: MV Substations
B62: EC157 King Sabata Dalindyebo | C62: EC EASTERN CAPE | Z62: Yes | AA62: Fixed | AB62: LV Networks
B63: DC15 O .R. Tambo | C63: EC EASTERN CAPE | Z63: No | AA63: Variable | AB63: Capital Spares
B64: EC441 Matatiele | C64: EC EASTERN CAPE | AB64: Sand Pumps
B65: EC442 Umzimvubu | C65: EC EASTERN CAPE | AB65: Piers
B66: EC443 Mbizana | C66: EC EASTERN CAPE | Z66: SA36, SA37 - Capital projects | AB66: Revetments
B67: EC444 Ntabankulu | C67: EC EASTERN CAPE | Z67: Yes | AB67: Promenades
B68: DC44 Alfred Nzo | C68: EC EASTERN CAPE | Z68: No | AB68: Capital Spares
B69: MAN Mangaung | C69: FS FREE STATE | AB69: Data Centres
B70: FS161 Letsemeng | C70: FS FREE STATE | AB70: Core Layers
B71: FS162 Kopanong | C71: FS FREE STATE | AB71: Distribution Layers
B72: FS163 Mohokare | C72: FS FREE STATE | AB72: Capital Spares
B73: DC16 Xhariep | C73: FS FREE STATE | AB73: Halls
B74: FS181 Masilonyana | C74: FS FREE STATE | AB74: Centres
B75: FS182 Tokologo | C75: FS FREE STATE | AB75: Crèches
B76: FS183 Tswelopele | C76: FS FREE STATE | AB76: Clinics/Care Centres
B77: FS184 Matjhabeng | C77: FS FREE STATE | AB77: Fire/Ambulance Stations
B78: FS185 Nala | C78: FS FREE STATE | AB78: Testing Stations
B79: DC18 Lejweleputswa | C79: FS FREE STATE | AB79: Museums
B80: FS191 Setsoto | C80: FS FREE STATE | AB80: Galleries
B81: FS192 Dihlabeng | C81: FS FREE STATE | AB81: Theatres
B82: FS193 Nketoana | C82: FS FREE STATE | AB82: Libraries
B83: FS194 Maluti-a-Phofung | C83: FS FREE STATE | AB83: Cemeteries/Crematoria
B84: FS195 Phumelela | C84: FS FREE STATE | AB84: Police
B85: FS196 Mantsopa | C85: FS FREE STATE | AB85: Purls
B86: DC19 Thabo Mofutsanyana | C86: FS FREE STATE | AB86: Public Open Space
B87: FS201 Moqhaka | C87: FS FREE STATE | AB87: Nature Reserves
B88: FS203 Ngwathe | C88: FS FREE STATE | AB88: Public Ablution Facilities
B89: FS204 Metsimaholo | C89: FS FREE STATE | AB89: Markets
B90: FS205 Mafube | C90: FS FREE STATE | AB90: Stalls
B91: DC20 Fezile Dabi | C91: FS FREE STATE | AB91: Abattoirs
B92: EKU City of Ekurhuleni | C92: GT GAUTENG | AB92: Airports
B93: JHB City Of Johannesburg | C93: GT GAUTENG | AB93: Taxi Ranks/Bus Terminals
B94: TSH City Of Tshwane | C94: GT GAUTENG | AB94: Capital Spares
B95: GT421 Emfuleni | C95: GT GAUTENG | AB95: Indoor Facilities
B96: GT422 Midvaal | C96: GT GAUTENG | AB96: Outdoor Facilities
B97: GT423 Lesedi | C97: GT GAUTENG | AB97: Capital Spares
B98: DC42 Sedibeng | C98: GT GAUTENG | AB98: Monuments
B99: GT481 Mogale City | C99: GT GAUTENG | AB99: Historic Buildings
B100: GT484 Merafong City | C100: GT GAUTENG | AB100: Works of Art
B101: GT485 Rand West City | C101: GT GAUTENG | AB101: Conservation Areas
B102: DC48 West Rand | C102: GT GAUTENG | AB102: Other Heritage
B103: ETH eThekwini | C103: KZN KWAZULU-NATAL | AB103: Improved Property
B104: KZN212 Umdoni | C104: KZN KWAZULU-NATAL | AB104: Unimproved Property
B105: KZN213 Umzumbe | C105: KZN KWAZULU-NATAL | AB105: Municipal Offices
B106: KZN214 uMuziwabantu | C106: KZN KWAZULU-NATAL | AB106: Pay/Enquiry Points
B107: KZN216 Ray Nkonyeni | C107: KZN KWAZULU-NATAL | AB107: Building Plan Offices
B108: DC21 Ugu | C108: KZN KWAZULU-NATAL | AB108: Workshops
B109: KZN221 uMshwathi | C109: KZN KWAZULU-NATAL | AB109: Yards
B110: KZN222 uMngeni | C110: KZN KWAZULU-NATAL | AB110: Stores
B111: KZN223 Mpofana | C111: KZN KWAZULU-NATAL | AB111: Laboratories
B112: KZN224 Impendle | C112: KZN KWAZULU-NATAL | AB112: Training Centres
B113: KZN225 Msunduzi | C113: KZN KWAZULU-NATAL | AB113: Manufacturing Plant
B114: KZN226 Mkhambathini | C114: KZN KWAZULU-NATAL | AB114: Depots
B115: KZN227 Richmond | C115: KZN KWAZULU-NATAL | AB115: Capital Spares
B116: DC22 uMgungundlovu | C116: KZN KWAZULU-NATAL | AB116: Staff Housing
B117: KZN235 Okhahlamba | C117: KZN KWAZULU-NATAL | AB117: Social Housing
B118: KZN237 Inkosi Langalibalele | C118: KZN KWAZULU-NATAL | AB118: Capital Spares
B119: KZN238 Alfred Duma | C119: KZN KWAZULU-NATAL | AB119: Water Rights
B120: DC23 Uthukela | C120: KZN KWAZULU-NATAL | AB120: Effluent Licenses
B121: KZN241 Endumeni | C121: KZN KWAZULU-NATAL | AB121: Solid Waste Licenses
B122: KZN242 Nquthu | C122: KZN KWAZULU-NATAL | AB122: Computer Software and Applications
B123: KZN244 Msinga | C123: KZN KWAZULU-NATAL | AB123: Load Settlement Software Applications
B124: KZN245 Umvoti | C124: KZN KWAZULU-NATAL | AB124: Unspecified
B125: DC24 Umzinyathi | C125: KZN KWAZULU-NATAL
B126: KZN252 Newcastle | C126: KZN KWAZULU-NATAL
B127: KZN253 Emadlangeni | C127: KZN KWAZULU-NATAL
B128: KZN254 Dannhauser | C128: KZN KWAZULU-NATAL
B129: DC25 Amajuba | C129: KZN KWAZULU-NATAL
B130: KZN261 eDumbe | C130: KZN KWAZULU-NATAL
B131: KZN262 uPhongolo | C131: KZN KWAZULU-NATAL
B132: KZN263 Abaqulusi | C132: KZN KWAZULU-NATAL
B133: KZN265 Nongoma | C133: KZN KWAZULU-NATAL
B134: KZN266 Ulundi | C134: KZN KWAZULU-NATAL
B135: DC26 Zululand | C135: KZN KWAZULU-NATAL
B136: KZN271 Umhlabuyalingana | C136: KZN KWAZULU-NATAL
B137: KZN272 Jozini | C137: KZN KWAZULU-NATAL
B138: KZN275 Mtubatuba | C138: KZN KWAZULU-NATAL
B139: KZN276 Hlabisa Big Five | C139: KZN KWAZULU-NATAL
B140: DC27 Umkhanyakude | C140: KZN KWAZULU-NATAL
B141: KZN281 Mfolozi | C141: KZN KWAZULU-NATAL
B142: KZN282 uMhlathuze | C142: KZN KWAZULU-NATAL
B143: KZN284 uMlalazi | C143: KZN KWAZULU-NATAL
B144: KZN285 Mthonjaneni | C144: KZN KWAZULU-NATAL
B145: KZN286 Nkandla | C145: KZN KWAZULU-NATAL
B146: DC28 King Cetshwayo | C146: KZN KWAZULU-NATAL
B147: KZN291 Mandeni | C147: KZN KWAZULU-NATAL
B148: KZN292 KwaDukuza | C148: KZN KWAZULU-NATAL
B149: KZN293 Ndwedwe | C149: KZN KWAZULU-NATAL
B150: KZN294 Maphumulo | C150: KZN KWAZULU-NATAL
B151: DC29 iLembe | C151: KZN KWAZULU-NATAL
B152: KZN433 Greater Kokstad | C152: KZN KWAZULU-NATAL
B153: KZN434 Ubuhlebezwe | C153: KZN KWAZULU-NATAL
B154: KZN435 Umzimkhulu | C154: KZN KWAZULU-NATAL
B155: KZN436 Dr Nkosazana Dlamini Zuma | C155: KZN KWAZULU-NATAL
B156: DC43 Harry Gwala | C156: KZN KWAZULU-NATAL
B157: LIM331 Greater Giyani | C157: LIM LIMPOPO
B158: LIM332 Greater Letaba | C158: LIM LIMPOPO
B159: LIM333 Greater Tzaneen | C159: LIM LIMPOPO
B160: LIM334 Ba-Phalaborwa | C160: LIM LIMPOPO
B161: LIM335 Maruleng | C161: LIM LIMPOPO
B162: DC33 Mopani | C162: LIM LIMPOPO
B163: LIM341 Musina | C163: LIM LIMPOPO
B164: LIM343 Thulamela | C164: LIM LIMPOPO
B165: LIM344 Makhado | C165: LIM LIMPOPO
B166: LIM345 Collins Chabane | C166: LIM LIMPOPO
B167: DC34 Vhembe | C167: LIM LIMPOPO
B168: LIM351 Blouberg | C168: LIM LIMPOPO
B169: LIM353 Molemole | C169: LIM LIMPOPO
B170: LIM354 Polokwane | C170: LIM LIMPOPO
B171: LIM355 Lepelle-Nkumpi | C171: LIM LIMPOPO
B172: DC35 Capricorn | C172: LIM LIMPOPO
B173: LIM361 Thabazimbi | C173: LIM LIMPOPO
B174: LIM362 Lephalale | C174: LIM LIMPOPO
B175: LIM366 Bela Bela | C175: LIM LIMPOPO
B176: LIM367 Mogalakwena | C176: LIM LIMPOPO
B177: LIM368 Modimolle-Mookgopong | C177: LIM LIMPOPO
B178: DC36 Waterberg | C178: LIM LIMPOPO
B179: LIM471 Ephraim Mogale | C179: LIM LIMPOPO
B180: LIM472 Elias Motsoaledi | C180: LIM LIMPOPO
B181: LIM473 Makhuduthamaga | C181: LIM LIMPOPO
B182: LIM476 Tubatse Fetakgomo | C182: LIM LIMPOPO
B183: DC47 Sekhukhune | C183: LIM LIMPOPO
B184: MP301 Albert Luthuli | C184: MP MPUMALANGA
B185: MP302 Msukaligwa | C185: MP MPUMALANGA
B186: MP303 Mkhondo | C186: MP MPUMALANGA
B187: MP304 Pixley Ka Seme (MP) | C187: MP MPUMALANGA
B188: MP305 Lekwa | C188: MP MPUMALANGA
B189: MP306 Dipaleseng | C189: MP MPUMALANGA
B190: MP307 Govan Mbeki | C190: MP MPUMALANGA
B191: DC30 Gert Sibande | C191: MP MPUMALANGA
B192: MP311 Victor Khanye | C192: MP MPUMALANGA
B193: MP312 Emalahleni (Mp) | C193: MP MPUMALANGA
B194: MP313 Steve Tshwete | C194: MP MPUMALANGA
B195: MP314 Emakhazeni | C195: MP MPUMALANGA
B196: MP315 Thembisile Hani | C196: MP MPUMALANGA
B197: MP316 Dr J.S. Moroka | C197: MP MPUMALANGA
B198: DC31 Nkangala | C198: MP MPUMALANGA
B199: MP321 Thaba Chweu | C199: MP MPUMALANGA
B200: MP324 Nkomazi | C200: MP MPUMALANGA
... 87 more rows

Sheet Org structure
A1: Organisational Structure Votes | C1: Organisational Structure Sub-Votes | E1: Display Sub-Votes
A2: =B2&" - "&C2 -> Vote 1 - Executive and Council | B2: Vote 1 | C2: Executive and Council
A3: =B13&" - "& C13 -> Vote 2 - Budget and treasury | B3: 1.1 | C3: Mayor and Council | D3: =CONCATENATE(B3, " - ", C3) -> 1.1 - Mayor and Council | E3: 1.1 - [Name of sub-vote]
A4: =B24&" - "&C24 -> Vote 3 - Corporate Services | B4: 1.2 | C4: Municipal Manager | D4: 1.2 - Municipal Manager
A5: =B35&" - "&C35 -> Vote 4 - Planning and Development | B5: 1.3 | D5: 1.3 -
A6: =B46&" - "&C46 -> Vote 5 - Community and Social Services | B6: 1.4 | D6: 1.4 -
A7: =B57&" - "&C57 -> Vote 6 - Sports and Recreation | B7: 1.5 | D7: 1.5 -
A8: =B68&" - "&C68 -> Vote 7 - Waste Management | B8: 1.6 | D8: 1.6 -
A9: =B79&" - "&C79 -> Vote 8 - Waste water Management | B9: 1.7 | D9: 1.7 -
A10: =B90&" - "&C90 -> Vote 9 - Roads and Transport | B10: 1.8 | D10: 1.8 -
A11: =B101&" - "&C101 -> Vote 10 - Water | B11: 1.9 | D11: 1.9 -
A12: =B112&" - "&C112 -> Vote 11 - Public Safety | B12: 1.10 | D12: 1.10 -
A13: =B123&" - "&C123 -> Vote 12 - Electricity Distribution | B13: Vote 2 | C13: Budget and treasury
A14: =B134&" - "&C134 -> Vote 13 - | B14: 2.1 | C14: Cost to chief financial officer | D14: =CONCATENATE(B14, " - ", C14) -> 2.1 - Cost to chief financial officer | E14: 2.1 - [Name of sub-vote]
A15: =B145&" - "&C145 -> Vote 14 - | B15: 2.2 | C15: Professional fees | D15: 2.2 - Professional fees
A16: =B156&" - "&C156 -> Vote 15 - | B16: 2.3 | D16: 2.3 -
B17: 2.4 | D17: 2.4 -
B18: 2.5 | D18: 2.5 -
B19: 2.6 | D19: 2.6 -
B20: 2.7 | D20: 2.7 -
B21: 2.8 | D21: 2.8 -
B22: 2.9 | D22: 2.9 -
B23: 2.10 | D23: 2.10 -
B24: Vote 3 | C24: Corporate Services
B25: 3.1 | C25: Human resources | D25: =CONCATENATE(B25, " - ", C25) -> 3.1 - Human resources | E25: 3.1 - [Name of sub-vote]
B26: 3.2 | C26: Information Technology | D26: 3.2 - Information Technology
B27: 3.3 | C27: Property services | D27: 3.3 - Property services
B28: 3.4 | C28: Other Admin | D28: 3.4 - Other Admin
B29: 3.5 | D29: 3.5 -
B30: 3.6 | D30: 3.6 -
B31: 3.7 | D31: 3.7 -
B32: 3.8 | D32: 3.8 -
B33: 3.9 | D33: 3.9 -
B34: 3.10 | D34: 3.10 -
B35: Vote 4 | C35: Planning and Development
B36: 4.1 | C36: Economic | D36: =CONCATENATE(B36, " - ", C36) -> 4.1 - Economic | E36: 4.1 - [Name of sub-vote]
B37: 4.2 | C37: Development/ Planning | D37: 4.2 - Development/ Planning
B38: 4.3 | C38: Town Planning/ Building Enforcement | D38: 4.3 - Town Planning/ Building Enforcement
B39: 4.4 | C39: Licensing and Regulations | D39: 4.4 - Licensing and Regulations
B40: 4.5 | D40: 4.5 -
B41: 4.6 | D41: 4.6 -
B42: 4.7 | D42: 4.7 -
B43: 4.8 | D43: 4.8 -
B44: 4.9 | D44: 4.9 -
B45: 4.10 | D45: 4.10 -
B46: Vote 5 | C46: Community and Social Services
B47: 5.1 | C47: Libraries and Archivies | D47: =CONCATENATE(B47, " - ", C47) -> 5.1 - Libraries and Archivies | E47: 5.1 - [Name of sub-vote]
B48: 5.2 | C48: Museum and Arts Galleries | D48: 5.2 - Museum and Arts Galleries
B49: 5.3 | C49: Community Halls and facilities | D49: 5.3 - Community Halls and facilities
B50: 5.4 | C50: cemetries | D50: 5.4 - cemetries
B51: 5.5 | C51: child care | D51: 5.5 - child care
B52: 5.6 | C52: Aged Care | D52: 5.6 - Aged Care
B53: 5.7 | C53: Other Community | D53: 5.7 - Other Community
B54: 5.8 | C54: Other social | D54: 5.8 - Other social
B55: 5.9 | D55: 5.9 -
B56: 5.10 | D56: 5.10 -
B57: Vote 6 | C57: Sports and Recreation
B58: 6.1 | C58: Sports Ground | D58: =CONCATENATE(B58, " - ", C58) -> 6.1 - Sports Ground | E58: 6.1 - [Name of sub-vote]
B59: 6.2 | D59: 6.2 -
B60: 6.3 | D60: 6.3 -
B61: 6.4 | D61: 6.4 -
B62: 6.5 | D62: 6.5 -
B63: 6.6 | D63: 6.6 -
B64: 6.7 | D64: 6.7 -
B65: 6.8 | D65: 6.8 -
B66: 6.9 | D66: 6.9 -
B67: 6.10 | D67: 6.10 -
B68: Vote 7 | C68: Waste Management
B69: 7.1 | C69: Solid Waste | D69: =CONCATENATE(B69, " - ", C69) -> 7.1 - Solid Waste | E69: 7.1 - [Name of sub-vote]
B70: 7.2 | D70: 7.2 -
B71: 7.3 | D71: 7.3 -
B72: 7.4 | D72: 7.4 -
B73: 7.5 | D73: 7.5 -
B74: 7.6 | D74: 7.6 -
B75: 7.7 | D75: 7.7 -
B76: 7.8 | D76: 7.8 -
B77: 7.9 | D77: 7.9 -
B78: 7.10 | D78: 7.10 -
B79: Vote 8 | C79: Waste water Management
B80: 8.1 | C80: sewerage | D80: =CONCATENATE(B80, " - ", C80) -> 8.1 - sewerage | E80: 8.1 - [Name of sub-vote]
B81: 8.2 | C81: Storm water management | D81: 8.2 - Storm water management
B82: 8.3 | C82: Public toilets | D82: 8.3 - Public toilets
B83: 8.4 | D83: 8.4 -
B84: 8.5 | D84: 8.5 -
B85: 8.6 | D85: 8.6 -
B86: 8.7 | D86: 8.7 -
B87: 8.8 | D87: 8.8 -
B88: 8.9 | D88: 8.9 -
B89: 8.10 | D89: 8.10 -
B90: Vote 9 | C90: Roads and Transport
B91: 9.1 | C91: Roads | D91: =CONCATENATE(B91, " - ", C91) -> 9.1 - Roads | E91: 9.1 - [Name of sub-vote]
B92: 9.2 | C92: Public Buses | D92: 9.2 - Public Buses
B93: 9.3 | C93: Parking garages | D93: 9.3 - Parking garages
B94: 9.4 | C94: Licensing and Testing | D94: 9.4 - Licensing and Testing
B95: 9.5 | C95: Others | D95: 9.5 - Others
B96: 9.6 | D96: 9.6 -
B97: 9.7 | D97: 9.7 -
B98: 9.8 | D98: 9.8 -
B99: 9.9 | D99: 9.9 -
B100: 9.10 | D100: 9.10 -
B101: Vote 10 | C101: Water
B102: 10.1 | C102: Water Distribution | D102: =CONCATENATE(B102, " - ", C102) -> 10.1 - Water Distribution | E102: 10.1 - [Name of sub-vote]
B103: 10.2 | C103: water Storage | D103: 10.2 - water Storage
B104: 10.3 | D104: 10.3 -
B105: 10.4 | D105: 10.4 -
B106: 10.5 | D106: 10.5 -
B107: 10.6 | D107: 10.6 -
B108: 10.7 | D108: 10.7 -
B109: 10.8 | D109: 10.8 -
B110: 10.9 | D110: 10.9 -
B111: 10.10 | D111: 10.10 -
B112: Vote 11 | C112: Public Safety
B113: 11.1 | C113: Other | D113: =CONCATENATE(B113, " - ", C113) -> 11.1 - Other | E113: 11.1 - [Name of sub-vote]
B114: 11.2 | C114: Street lighting | D114: 11.2 - Street lighting
B115: 11.3 | D115: 11.3 -
B116: 11.4 | D116: 11.4 -
B117: 11.5 | D117: 11.5 -
B118: 11.6 | D118: 11.6 -
B119: 11.7 | D119: 11.7 -
B120: 11.8 | D120: 11.8 -
B121: 11.9 | D121: 11.9 -
B122: 11.10 | D122: 11.10 -
B123: Vote 12 | C123: Electricity Distribution
B124: 12.1 | C124: Electricity Distribution | D124: =CONCATENATE(B124, " - ", C124) -> 12.1 - Electricity Distribution | E124: 12.1 - [Name of sub-vote]
B125: 12.2 | D125: 12.2 -
B126: 12.3 | D126: 12.3 -
B127: 12.4 | D127: 12.4 -
B128: 12.5 | D128: 12.5 -
B129: 12.6 | D129: 12.6 -
B130: 12.7 | D130: 12.7 -
B131: 12.8 | D131: 12.8 -
B132: 12.9 | D132: 12.9 -
B133: 12.10 | D133: 12.10 -
B134: Vote 13
B135: 13.1 | D135: =CONCATENATE(B135, " - ", C135) -> 13.1 - | E135: 13.1 - [Name of sub-vote]
B136: 13.2 | D136: 13.2 -
B137: 13.3 | D137: 13.3 -
B138: 13.4 | D138: 13.4 -
B139: 13.5 | D139: 13.5 -
B140: 13.6 | D140: 13.6 -
B141: 13.7 | D141: 13.7 -
B142: 13.8 | D142: 13.8 -
B143: 13.9 | D143: 13.9 -
B144: 13.10 | D144: 13.10 -
B145: Vote 14
B146: 14.1 | D146: =CONCATENATE(B146, " - ", C146) -> 14.1 - | E146: 14.1 - [Name of sub-vote]
B147: 14.2 | D147: 14.2 -
B148: 14.3 | D148: 14.3 -
B149: 14.4 | D149: 14.4 -
B150: 14.5 | D150: 14.5 -
B151: 14.6 | D151: 14.6 -
B152: 14.7 | D152: 14.7 -
B153: 14.8 | D153: 14.8 -
B154: 14.9 | D154: 14.9 -
B155: 14.10 | D155: 14.10 -
B156: Vote 15
B157: 15.1 | D157: =CONCATENATE(B157, " - ", C157) -> 15.1 - | E157: 15.1 - [Name of sub-vote]
B158: 15.2 | D158: 15.2 -
B159: 15.3 | D159: 15.3 -
B160: 15.4 | D160: 15.4 -
B161: 15.5 | D161: 15.5 -
B162: 15.6 | D162: 15.6 -
B163: 15.7 | D163: 15.7 -
B164: 15.8 | D164: 15.8 -
B165: 15.9 | D165: 15.9 -
B166: 15.10 | D166: 15.10 -

Sheet Contacts
A1: =muni&" - "&" Contact Information" -> Choose name from list - Contact Information
A3: A. GENERAL INFORMATION
A4: Municipality | B4: Maruleng Municipality | C4: =IF(B4="Choose name from List","Set name on 'Instructions' sheet", "") -> 
A6: Grade | B6: 3 | C6: 1 Grade in terms of the Remuneration of Public Office Bearers Act.
A8: Province | B8: Limpopo
A10: Web Address | B10: www.maruleng.gov.za
A12: e-mail Address | B12: info@maruleng.gov.za
A14: B. CONTACT INFORMATION
A15: Postal address:
A16: P.O. Box | B16: 627
A17: City / Town | B17: Hoedspruit
A18: Postal Code | B18: 1380
A20: Street address
A21: Building | B21: 65
A22: Street No. & Name | B22: Springbok street
A23: City / Town | B23: Hoedspruit
A24: Postal Code | B24: 1380
A26: General Contacts
A27: Telephone number | B27: 015 793 2409
A28: Fax number | B28: 015 793 2341
A30: C. POLITICAL LEADERSHIP
A31: Speaker: | C31: Secretary/PA to the Speaker:
A32: ID Number | C32: ID Number
A33: Title | C33: Title
A34: Name | C34: Name
A35: Telephone number | C35: Telephone number
A36: Cell number | C36: Cell number
A37: Fax number | C37: Fax number
A38: E-mail address | C38: E-mail address
A40: Mayor/Executive Mayor: | C40: Secretary/PA to the Mayor/Executive Mayor:
A41: ID Number | C41: ID Number
A42: Title | C42: Title
A43: Name | C43: Name
A44: Telephone number | C44: Telephone number
A45: Cell number | C45: Cell number
A46: Fax number | C46: Fax number
A47: E-mail address | C47: E-mail address
A49: Deputy Mayor/Executive Mayor: | C49: Secretary/PA to the Deputy Mayor/Executive Mayor:
A50: ID Number | C50: ID Number
A51: Title | C51: Title
A52: Name | C52: Name
A53: Telephone number | C53: Telephone number
A54: Cell number | C54: Cell number
A55: Fax number | C55: Fax number
A56: E-mail address | C56: E-mail address
A58: D. MANAGEMENT LEADERSHIP
A59: Municipal Manager: | C59: Secretary/PA to the Municipal Manager:
A60: ID Number | C60: ID Number
A61: Title | C61: Title
A62: Name | C62: Name
A63: Telephone number | C63: Telephone number
A64: Cell number | C64: Cell number
A65: Fax number | C65: Fax number
A66: E-mail address | C66: E-mail address
A68: Chief Financial Officer | C68: Secretary/PA to the Chief Financial Officer
A69: ID Number | C69: ID Number
A70: Title | C70: Title
A71: Name | C71: Name
A72: Telephone number | C72: Telephone number
A73: Cell number | C73: Cell number
A74: Fax number | C74: Fax number
A75: E-mail address | C75: E-mail address
A77: Official responsible for submitting financial information | C77: Official responsible for submitting financial information
A78: ID Number | C78: ID Number
A79: Title | C79: Title
A80: Name | C80: Name
A81: Telephone number | C81: Telephone number
A82: Cell number | C82: Cell number
A83: Fax number | C83: Fax number
A84: E-mail address | C84: E-mail address
A85: Official responsible for submitting financial information | C85: Official responsible for submitting financial information
A86: ID Number | C86: ID Number
A87: Title | C87: Title
A88: Name | C88: Name
A89: Telephone number | C89: Telephone number
A90: Cell number | C90: Cell number
A91: Fax number | C91: Fax number
A92: E-mail address | C92: E-mail address
A93: Official responsible for submitting financial information | C93: Official responsible for submitting financial information
A94: ID Number | C94: ID Number
A95: Title | C95: Title
A96: Name | C96: Name
A97: Telephone number | C97: Telephone number
A98: Cell number | C98: Cell number
A99: Fax number | C99: Fax number
A100: E-mail address | C100: E-mail address
A101: Official responsible for submitting financial information | C101: Official responsible for submitting financial information
A102: ID Number | C102: ID Number
A103: Title | C103: Title
A104: Name | C104: Name
A105: Telephone number | C105: Telephone number
A106: Cell number | C106: Cell number
A107: Fax number | C107: Fax number
A108: E-mail address | C108: E-mail address
A109: Official responsible for submitting financial information | C109: Official responsible for submitting financial information
A110: ID Number | C110: ID Number
A111: Title | C111: Title
A112: Name | C112: Name
A113: Telephone number | C113: Telephone number
A114: Cell number | C114: Cell number
A115: Fax number | C115: Fax number
A116: E-mail address | C116: E-mail address
A117: Official responsible for submitting financial information | C117: Official responsible for submitting financial information
A118: ID Number | C118: ID Number
A119: Title | C119: Title
A120: Name | C120: Name
A121: Telephone number | C121: Telephone number
A122: Cell number | C122: Cell number
A123: Fax number | C123: Fax number
A124: E-mail address | C124: E-mail address
A125: Official responsible for submitting financial information | C125: Official responsible for submitting financial information
A126: ID Number | C126: ID Number
A127: Title | C127: Title
A128: Name | C128: Name
A129: Telephone number | C129: Telephone number
A130: Cell number | C130: Cell number
A131: Fax number | C131: Fax number
A132: E-mail address | C132: E-mail address
A133: Official responsible for submitting financial information
A134: ID Number
A135: Title
A136: Name
A137: Telephone number
A138: Cell number
A139: Fax number
A140: E-mail address

Sheet A1-Sum
A1: =muni&" - "&Approve1 -> Choose name from list - Table A1 Budget Summary
A2: =desc -> Description | B2: =head1b -> 2017/18 | C2: =head1A -> 2018/19 | D2: =Head1 -> 2019/20 | E2: =Head2 -> Current Year 2020/21 | I2: =Head3 -> 2021/22 Medium Term Revenue & Expenditure Framework
A3: R thousands | B3: =Head5 -> Audited Outcome | C3: =Head5 -> Audited Outcome | D3: =Head5 -> Audited Outcome | E3: =Head6 -> Original Budget | F3: =Head7 -> Adjusted Budget | G3: =Head8 -> Full Year Forecast | H3: =Head5b -> Pre-audit outcome | I3: =Head9 -> Budget Year 2021/22 | J3: =Head10 -> Budget Year +1 2022/23 | K3: =Head11 -> Budget Year +2 2023/24
A4: Financial Performance
A5: Property rates | B5: ='A4-FinPerf RE'!C5 -> 70269431.25 | C5: ='A4-FinPerf RE'!D5 -> 77052804.35 | D5: ='A4-FinPerf RE'!E5 -> 93244056.05 | E5: ='A4-FinPerf RE'!F5 -> 92222127 | F5: ='A4-FinPerf RE'!G5 -> 98229297 | G5: ='A4-FinPerf RE'!H5 -> 98229297 | H5: ='A4-FinPerf RE'!I5 -> 67251910.96 | I5: ='A4-FinPerf RE'!J5 -> 103319998 | J5: ='A4-FinPerf RE'!K5 -> 107659435 | K5: ='A4-FinPerf RE'!L5 -> 112396452
A6: Service charges | B6: =SUM('A4-FinPerf RE'!C6:C9) -> 3150246.49 | C6: =SUM('A4-FinPerf RE'!D6:D9) -> 3497886.33 | D6: =SUM('A4-FinPerf RE'!E6:E9) -> 3738956.98 | E6: =SUM('A4-FinPerf RE'!F6:F9) -> 3916306 | F6: =SUM('A4-FinPerf RE'!G6:G9) -> 4047084 | G6: =SUM('A4-FinPerf RE'!H6:H9) -> 4047084 | H6: =SUM('A4-FinPerf RE'!I6:I9) -> 5594099.61 | I6: =SUM('A4-FinPerf RE'!J6:J9) -> 4450000 | J6: =SUM('A4-FinPerf RE'!K6:K9) -> 4636900 | K6: =SUM('A4-FinPerf RE'!L6:L9) -> 4840924
A7: Investment revenue | B7: ='A4-FinPerf RE'!C12 -> 6748683.76 | C7: ='A4-FinPerf RE'!D12 -> 8071510.04 | D7: ='A4-FinPerf RE'!E12 -> 7286507.12 | E7: ='A4-FinPerf RE'!F12 -> 8151000 | F7: ='A4-FinPerf RE'!G12 -> 8151000 | G7: ='A4-FinPerf RE'!H12 -> 8151000 | H7: ='A4-FinPerf RE'!I12 -> 2831047.5 | I7: ='A4-FinPerf RE'!J12 -> 5500000 | J7: ='A4-FinPerf RE'!K12 -> 5731000 | K7: ='A4-FinPerf RE'!L12 -> 5983164
A8: Transfers recognised - operational | B8: ='A4-FinPerf RE'!C18 -> 102321807.7 | C8: ='A4-FinPerf RE'!D18 -> 112485191.7 | D8: ='A4-FinPerf RE'!E18 -> 127654191.7 | E8: ='A4-FinPerf RE'!F18 -> 136484000 | F8: ='A4-FinPerf RE'!G18 -> 162391000 | G8: ='A4-FinPerf RE'!H18 -> 162391000 | H8: ='A4-FinPerf RE'!I18 -> 128736666.6 | I8: ='A4-FinPerf RE'!J18 -> 142768000 | J8: ='A4-FinPerf RE'!K18 -> 148764256 | K8: ='A4-FinPerf RE'!L18 -> 155309883
A9: Other own revenue | B9: ='A4-FinPerf RE'!C11+'A4-FinPerf RE'!C13+'A4-FinPerf RE'!C14+'A4-FinPerf RE'!C15+'A4-FinPerf RE'!C16+'A4-FinPerf RE'!C17+'A4-FinPerf RE'!C19+'A4-FinPerf RE'!C20 -> 11206561.8 | C9: ='A4-FinPerf RE'!D11+'A4-FinPerf RE'!D13+'A4-FinPerf RE'!D14+'A4-FinPerf RE'!D15+'A4-FinPerf RE'!D16+'A4-FinPerf RE'!D17+'A4-FinPerf RE'!D19+'A4-FinPerf RE'!D20 -> 15667414.29 | D9: ='A4-FinPerf RE'!E11+'A4-FinPerf RE'!E13+'A4-FinPerf RE'!E14+'A4-FinPerf RE'!E15+'A4-FinPerf RE'!E16+'A4-FinPerf RE'!E17+'A4-FinPerf RE'!E19+'A4-FinPerf RE'!E20 -> 15377167.75 | E9: ='A4-FinPerf RE'!F11+'A4-FinPerf RE'!F13+'A4-FinPerf RE'!F14+'A4-FinPerf RE'!F15+'A4-FinPerf RE'!F16+'A4-FinPerf RE'!F17+'A4-FinPerf RE'!F19+'A4-FinPerf RE'!F20 -> 33777470 | F9: ='A4-FinPerf RE'!G11+'A4-FinPerf RE'!G13+'A4-FinPerf RE'!G14+'A4-FinPerf RE'!G15+'A4-FinPerf RE'!G16+'A4-FinPerf RE'!G17+'A4-FinPerf RE'!G19+'A4-FinPerf RE'!G20 -> 36512883 | G9: ='A4-FinPerf RE'!H11+'A4-FinPerf RE'!H13+'A4-FinPerf RE'!H14+'A4-FinPerf RE'!H15+'A4-FinPerf RE'!H16+'A4-FinPerf RE'!H17+'A4-FinPerf RE'!H19+'A4-FinPerf RE'!H20 -> 36512883 | H9: ='A4-FinPerf RE'!I11+'A4-FinPerf RE'!I13+'A4-FinPerf RE'!I14+'A4-FinPerf RE'!I15+'A4-FinPerf RE'!I16+'A4-FinPerf RE'!I17+'A4-FinPerf RE'!I19+'A4-FinPerf RE'!I20 -> 41059161.5 | I9: ='A4-FinPerf RE'!J11+'A4-FinPerf RE'!J13+'A4-FinPerf RE'!J14+'A4-FinPerf RE'!J15+'A4-FinPerf RE'!J16+'A4-FinPerf RE'!J17+'A4-FinPerf RE'!J19+'A4-FinPerf RE'!J20 -> 37973652 | J9: ='A4-FinPerf RE'!K11+'A4-FinPerf RE'!K13+'A4-FinPerf RE'!K14+'A4-FinPerf RE'!K15+'A4-FinPerf RE'!K16+'A4-FinPerf RE'!K17+'A4-FinPerf RE'!K19+'A4-FinPerf RE'!K20 -> 39568542 | K9: ='A4-FinPerf RE'!L11+'A4-FinPerf RE'!L13+'A4-FinPerf RE'!L14+'A4-FinPerf RE'!L15+'A4-FinPerf RE'!L16+'A4-FinPerf RE'!L17+'A4-FinPerf RE'!L19+'A4-FinPerf RE'!L20 -> 41309558
A10: ='A4-FinPerf RE'!A21 -> Total Revenue (excluding capital transfers and contributions) | B10: =SUM(B5:B9) -> 193696731 | C10: 216774806.7 | D10: 247300879.6 | E10: 274550903 | F10: 309331264 | G10: 309331264 | H10: 245472886.2 | I10: 294011650 | J10: 306360133 | K10: 319839981
A11: Employee costs | B11: ='A4-FinPerf RE'!C24 -> 60809873.24 | C11: ='A4-FinPerf RE'!D24 -> 68731561.44 | D11: ='A4-FinPerf RE'!E24 -> 63221809.18 | E11: ='A4-FinPerf RE'!F24 -> 83438036 | F11: ='A4-FinPerf RE'!G24 -> 76999474 | G11: ='A4-FinPerf RE'!H24 -> 76999474 | H11: ='A4-FinPerf RE'!I24 -> 52780694.6 | I11: ='A4-FinPerf RE'!J24 -> 90988614 | J11: ='A4-FinPerf RE'!K24 -> 94932995 | K11: ='A4-FinPerf RE'!L24 -> 100534032
A12: Remuneration of councillors | B12: ='A4-FinPerf RE'!C25 -> 10367362.92 | C12: ='A4-FinPerf RE'!D25 -> 10572714.55 | D12: ='A4-FinPerf RE'!E25 -> 11101437.36 | E12: ='A4-FinPerf RE'!F25 -> 12062357 | F12: ='A4-FinPerf RE'!G25 -> 12305804 | G12: ='A4-FinPerf RE'!H25 -> 12305804 | H12: ='A4-FinPerf RE'!I25 -> 7413141.2 | I12: ='A4-FinPerf RE'!J25 -> 12289807 | J12: ='A4-FinPerf RE'!K25 -> 13027195 | K12: ='A4-FinPerf RE'!L25 -> 13808823
A13: Depreciation & asset impairment | B13: ='A4-FinPerf RE'!C27 -> 16798314.86 | C13: ='A4-FinPerf RE'!D27 -> 21275654.89 | D13: ='A4-FinPerf RE'!E27 -> 21342583.45 | E13: ='A4-FinPerf RE'!F27 -> 26740745 | F13: ='A4-FinPerf RE'!G27 -> 26740745 | G13: ='A4-FinPerf RE'!H27 -> 26740745 | H13: ='A4-FinPerf RE'!I27 -> 0 | I13: ='A4-FinPerf RE'!J27 -> 24342587 | J13: ='A4-FinPerf RE'!K27 -> 25364976 | K13: ='A4-FinPerf RE'!L27 -> 26481034
A14: Finance charges | B14: ='A4-FinPerf RE'!C28 -> 25164.52 | C14: ='A4-FinPerf RE'!D28 -> 374120.08 | D14: ='A4-FinPerf RE'!E28 -> 372038.52 | E14: ='A4-FinPerf RE'!F28 -> 800000 | F14: ='A4-FinPerf RE'!G28 -> 800000 | G14: ='A4-FinPerf RE'!H28 -> 800000 | H14: ='A4-FinPerf RE'!I28 -> 0 | I14: ='A4-FinPerf RE'!J28 -> 800000 | J14: ='A4-FinPerf RE'!K28 -> 833600 | K14: ='A4-FinPerf RE'!L28 -> 870278
A15: Inventory consumed and bulk purchases | B15: ='A4-FinPerf RE'!C29+'A4-FinPerf RE'!C30 -> 0 | C15: ='A4-FinPerf RE'!D29+'A4-FinPerf RE'!D30 -> 332118.31 | D15: ='A4-FinPerf RE'!E29+'A4-FinPerf RE'!E30 -> 608293.17 | E15: ='A4-FinPerf RE'!F29+'A4-FinPerf RE'!F30 -> 6800000 | F15: ='A4-FinPerf RE'!G29+'A4-FinPerf RE'!G30 -> 6830000 | G15: ='A4-FinPerf RE'!H29+'A4-FinPerf RE'!H30 -> 6830000 | H15: ='A4-FinPerf RE'!I29+'A4-FinPerf RE'!I30 -> 309318.9 | I15: ='A4-FinPerf RE'!J29+'A4-FinPerf RE'!J30 -> 5950000 | J15: ='A4-FinPerf RE'!K29+'A4-FinPerf RE'!K30 -> 6199900 | K15: ='A4-FinPerf RE'!L29+'A4-FinPerf RE'!L30 -> 6472695
A16: Transfers and grants | B16: ='A4-FinPerf RE'!C32 -> 0 | C16: ='A4-FinPerf RE'!D32 -> 0 | D16: ='A4-FinPerf RE'!E32 -> 0 | E16: ='A4-FinPerf RE'!F32 -> 0 | F16: ='A4-FinPerf RE'!G32 -> 0 | G16: ='A4-FinPerf RE'!H32 -> 0 | H16: ='A4-FinPerf RE'!I32 -> 0 | I16: ='A4-FinPerf RE'!J32 -> 0 | J16: ='A4-FinPerf RE'!K32 -> 0 | K16: ='A4-FinPerf RE'!L32 -> 0
A17: Other expenditure | B17: ='A4-FinPerf RE'!C26+'A4-FinPerf RE'!C31+'A4-FinPerf RE'!C33+'A4-FinPerf RE'!C34 -> 55879734.21 | C17: ='A4-FinPerf RE'!D26+'A4-FinPerf RE'!D31+'A4-FinPerf RE'!D33+'A4-FinPerf RE'!D34 -> 86831646.27 | D17: ='A4-FinPerf RE'!E26+'A4-FinPerf RE'!E31+'A4-FinPerf RE'!E33+'A4-FinPerf RE'!E34 -> 84341916.93 | E17: ='A4-FinPerf RE'!F26+'A4-FinPerf RE'!F31+'A4-FinPerf RE'!F33+'A4-FinPerf RE'!F34 -> 95811129 | F17: ='A4-FinPerf RE'!G26+'A4-FinPerf RE'!G31+'A4-FinPerf RE'!G33+'A4-FinPerf RE'!G34 -> 109661874 | G17: ='A4-FinPerf RE'!H26+'A4-FinPerf RE'!H31+'A4-FinPerf RE'!H33+'A4-FinPerf RE'!H34 -> 109661874 | H17: ='A4-FinPerf RE'!I26+'A4-FinPerf RE'!I31+'A4-FinPerf RE'!I33+'A4-FinPerf RE'!I34 -> 45980206.43 | I17: ='A4-FinPerf RE'!J26+'A4-FinPerf RE'!J31+'A4-FinPerf RE'!J33+'A4-FinPerf RE'!J34 -> 108224686 | J17: ='A4-FinPerf RE'!K26+'A4-FinPerf RE'!K31+'A4-FinPerf RE'!K33+'A4-FinPerf RE'!K34 -> 112770120 | K17: ='A4-FinPerf RE'!L26+'A4-FinPerf RE'!L31+'A4-FinPerf RE'!L33+'A4-FinPerf RE'!L34 -> 117732004
A18: ='A4-FinPerf RE'!A35 -> Total Expenditure | B18: =SUM(B11:B17) -> 143880449.8 | C18: =SUM(C11:C17) -> 188117815.5 | D18: 180988078.6 | E18: 225652267 | F18: 233337897 | G18: 233337897 | H18: 106483361.1 | I18: 242595694 | J18: 253128786 | K18: 265898866
A19: ='A4-FinPerf RE'!A37 -> Surplus/(Deficit) | B19: =B10-B18 -> 49816281.2 | C19: 28656991.17 | D19: 66312800.96 | E19: 48898636 | F19: 75993367 | G19: 75993367 | H19: 138989525 | I19: 51415956 | J19: 53231347 | K19: 53941115
A20: ='A4-FinPerf RE'!A38 -> Transfers and subsidies - capital (monetary allocations) (National / Provincial and District) | B20: ='A4-FinPerf RE'!C38 -> 27222902.34 | C20: ='A4-FinPerf RE'!D38 -> 41332178.83 | D20: ='A4-FinPerf RE'!E38 -> 26816919 | E20: ='A4-FinPerf RE'!F38 -> 26655000 | F20: ='A4-FinPerf RE'!G38 -> 26655000 | G20: ='A4-FinPerf RE'!H38 -> 26655000 | H20: ='A4-FinPerf RE'!I38 -> 22095215.17 | I20: ='A4-FinPerf RE'!J38 -> 28150000 | J20: ='A4-FinPerf RE'!K38 -> 29332300 | K20: ='A4-FinPerf RE'!L38 -> 30622921
A21: ='A4-FinPerf RE'!A39&" & "&'A4-FinPerf RE'!A40 -> Transfers and subsidies - capital (monetary allocations) (National / Provincial Departmental Agencies, Households, Non-profit Institutions, Private Enterprises, Public Corporatons, Higher Educational Institutions) & Transfers and subsidies - capital (in-kind - all) | B21: ='A4-FinPerf RE'!C39+'A4-FinPerf RE'!C40 -> 0 | C21: ='A4-FinPerf RE'!D39+'A4-FinPerf RE'!D40 -> 0 | D21: ='A4-FinPerf RE'!E39+'A4-FinPerf RE'!E40 -> 0 | E21: ='A4-FinPerf RE'!F39+'A4-FinPerf RE'!F40 -> 0 | F21: ='A4-FinPerf RE'!G39+'A4-FinPerf RE'!G40 -> 0 | G21: ='A4-FinPerf RE'!H39+'A4-FinPerf RE'!H40 -> 0 | H21: ='A4-FinPerf RE'!I39+'A4-FinPerf RE'!I40 -> 0 | I21: ='A4-FinPerf RE'!J39+'A4-FinPerf RE'!J40 -> 0 | J21: ='A4-FinPerf RE'!K39+'A4-FinPerf RE'!K40 -> 0 | K21: ='A4-FinPerf RE'!L39+'A4-FinPerf RE'!L40 -> 0
A22: ='A4-FinPerf RE'!A41 -> Surplus/(Deficit) after capital transfers & contributions | B22: =B19+SUM(B20:B21) -> 77039183.54 | C22: =C19+SUM(C20:C21) -> 69989170 | E22: 75553636 | F22: 102648367 | G22: 102648367 | H22: 161084740.2 | I22: 79565956 | J22: 82563647 | K22: 84564036
A23: ='A4-FinPerf RE'!A46 -> Share of surplus/ (deficit) of associate | B23: ='A4-FinPerf RE'!C46 -> 0 | C23: ='A4-FinPerf RE'!D46 -> 0 | D23: ='A4-FinPerf RE'!E46 -> 0 | E23: ='A4-FinPerf RE'!F46 -> 0 | F23: ='A4-FinPerf RE'!G46 -> 0 | G23: ='A4-FinPerf RE'!H46 -> 0 | H23: ='A4-FinPerf RE'!I46 -> 0 | I23: ='A4-FinPerf RE'!J46 -> 0 | J23: ='A4-FinPerf RE'!K46 -> 0 | K23: ='A4-FinPerf RE'!L46 -> 0
A24: ='A4-FinPerf RE'!A47 -> Surplus/(Deficit) for the year | B24: =B22+B23 -> 77039183.54 | C24: =C22+C23 -> 69989170 | D24: 0 | E24: 75553636 | F24: 102648367 | G24: 102648367 | H24: 161084740.2 | I24: 79565956 | J24: 82563647 | K24: 84564036
A26: Capital expenditure & funds sources
A27: Capital expenditure | B27: ='A5-Capex'!C63 -> -46037734.65 | C27: ='A5-Capex'!D63 -> -291414633.2 | D27: ='A5-Capex'!E63 -> -232430134.3 | E27: ='A5-Capex'!F63 -> 171219422 | F27: ='A5-Capex'!G63 -> 170757600 | G27: ='A5-Capex'!H63 -> 170757600 | H27: ='A5-Capex'!I63 -> 82626488.05 | I27: ='A5-Capex'!J63 -> 159530838 | J27: ='A5-Capex'!K63 -> 103463043 | K27: ='A5-Capex'!L63 -> 122789304
A28: Transfers recognised - capital | B28: ='A5-Capex'!C70 -> -22638146.52 | C28: ='A5-Capex'!D70 -> -22243488.78 | D28: ='A5-Capex'!E70 -> 29702238.14 | E28: ='A5-Capex'!F70 -> 30619346 | F28: ='A5-Capex'!G70 -> 26019346 | G28: ='A5-Capex'!H70 -> 26019346 | H28: ='A5-Capex'!I70 -> 16249284.87 | I28: ='A5-Capex'!J70 -> 23254348 | J28: ='A5-Capex'!K70 -> 25923043 | K28: ='A5-Capex'!L70 -> 32919304
A30: ='A5-Capex'!A72 -> Borrowing | B30: ='A5-Capex'!C72 -> 0 | C30: ='A5-Capex'!D72 -> 0 | D30: ='A5-Capex'!E72 -> 0 | E30: ='A5-Capex'!F72 -> 0 | F30: ='A5-Capex'!G72 -> 0 | G30: ='A5-Capex'!H72 -> 0 | H30: ='A5-Capex'!I72 -> 0 | I30: ='A5-Capex'!J72 -> 0 | J30: ='A5-Capex'!K72 -> 0 | K30: ='A5-Capex'!L72 -> 0
A31: ='A5-Capex'!A73 -> Internally generated funds | B31: ='A5-Capex'!C73 -> 0 | C31: ='A5-Capex'!D73 -> 0 | D31: ='A5-Capex'!E73 -> 0 | E31: ='A5-Capex'!F73 -> 140600076 | F31: ='A5-Capex'!G73 -> 144738254 | G31: ='A5-Capex'!H73 -> 144738254 | H31: ='A5-Capex'!I73 -> 62463266.28 | I31: ='A5-Capex'!J73 -> 136276494 | J31: ='A5-Capex'!K73 -> 77540008 | K31: ='A5-Capex'!L73 -> 80870008
A32: Total sources of capital funds | B32: =+B28+B30+B31 -> -22638146.52 | C32: =+C28+C30+C31 -> -22243488.78 | D32: 29702238.14 | E32: 171219422 | F32: 170757600 | G32: 170757600 | H32: 78712551.15 | I32: 159530842 | J32: 103463051 | K32: 113789312
A34: Financial position
A35: ='A6-FinPos'!A12 -> Total current assets | B35: ='A6-FinPos'!C12 -> 246872757.4 | C35: ='A6-FinPos'!D12 -> 275829611.4 | D35: ='A6-FinPos'!E12 -> 311409057.3 | E35: ='A6-FinPos'!F12 -> 156661549 | F35: ='A6-FinPos'!G12 -> 176365564 | G35: ='A6-FinPos'!H12 -> 176365564 | H35: ='A6-FinPos'!I12 -> 396824768.2 | I35: ='A6-FinPos'!J12 -> 120571646 | J35: ='A6-FinPos'!K12 -> 126652001 | K35: ='A6-FinPos'!L12 -> 110190806
A36: ='A6-FinPos'!A24 -> Total non current assets | B36: ='A6-FinPos'!C24 -> 404688008.9 | C36: ='A6-FinPos'!D24 -> 479229889.7 | D36: ='A6-FinPos'!E24 -> 550454405.2 | E36: ='A6-FinPos'!F24 -> 560217977 | F36: ='A6-FinPos'!G24 -> 559756155 | G36: ='A6-FinPos'!H24 -> 559756155 | H36: ='A6-FinPos'!I24 -> 633325329.4 | I36: ='A6-FinPos'!J24 -> 550927551 | J36: ='A6-FinPos'!K24 -> 493837367 | K36: ='A6-FinPos'!L24 -> 512047570
A37: ='A6-FinPos'!A34 -> Total current liabilities | B37: ='A6-FinPos'!C34 -> 122300386.8 | C37: ='A6-FinPos'!D34 -> 156846292.5 | D37: ='A6-FinPos'!E34 -> 178651706.3 | E37: ='A6-FinPos'!F34 -> 44115107 | F37: ='A6-FinPos'!G34 -> 38135782 | G37: ='A6-FinPos'!H34 -> 38135782 | H37: ='A6-FinPos'!I34 -> 189013989.7 | I37: ='A6-FinPos'!J34 -> 47488851 | J37: ='A6-FinPos'!K34 -> 46417231 | K37: ='A6-FinPos'!L34 -> 41265712
A38: ='A6-FinPos'!A39 -> Total non current liabilities | B38: ='A6-FinPos'!C39 -> 3698284.04 | C38: ='A6-FinPos'!D39 -> 7617278.83 | D38: ='A6-FinPos'!E39 -> 1958531.16 | E38: ='A6-FinPos'!F39 -> 13438785 | F38: ='A6-FinPos'!G39 -> 16510288 | G38: ='A6-FinPos'!H39 -> 16510288 | H38: ='A6-FinPos'!I39 -> 1958531.16 | I38: ='A6-FinPos'!J39 -> 16920496 | J38: ='A6-FinPos'!K39 -> 16110496 | K38: ='A6-FinPos'!L39 -> 15145996
A39: Community wealth/Equity | B39: ='A6-FinPos'!C48 -> 449800774.5 | C39: ='A6-FinPos'!D48 -> 522900584.1 | D39: ='A6-FinPos'!E48 -> 590545819.4 | E39: ='A6-FinPos'!F48 -> 657325635 | F39: ='A6-FinPos'!G48 -> 681475649 | G39: ='A6-FinPos'!H48 -> 681475649 | H39: ='A6-FinPos'!I48 -> 681377523 | I39: ='A6-FinPos'!J48 -> 607089850 | J39: ='A6-FinPos'!K48 -> 557961641 | K39: ='A6-FinPos'!L48 -> 565826668
A41: Cash flows
A42: Net cash from (used) operating | B42: ='A7-CFlow'!C17 -> 206315469.7 | C42: ='A7-CFlow'!D17 -> 388889874.8 | D42: ='A7-CFlow'!E17 -> 360844753.1 | E42: ='A7-CFlow'!F17 -> 212487230 | F42: ='A7-CFlow'!G17 -> -70737397 | G42: ='A7-CFlow'!H17 -> -70737397 | H42: ='A7-CFlow'!I17 -> 279261086.3 | I42: ='A7-CFlow'!J17 -> 91930836 | J42: ='A7-CFlow'!K17 -> 107732494 | K42: ='A7-CFlow'!L17 -> 96629737
A43: Net cash from (used) investing | B43: ='A7-CFlow'!C27 -> 0 | C43: ='A7-CFlow'!D27 -> 0 | D43: ='A7-CFlow'!E27 -> 0 | E43: ='A7-CFlow'!F27 -> 168536708 | F43: ='A7-CFlow'!G27 -> 149799040 | G43: ='A7-CFlow'!H27 -> 149799040 | H43: ='A7-CFlow'!I27 -> 59906114.98 | I43: ='A7-CFlow'!J27 -> -146110852 | J43: ='A7-CFlow'!K27 -> -103036156 | K43: ='A7-CFlow'!L27 -> -113387636
A44: Net cash from (used) financing | B44: ='A7-CFlow'!C36 -> 0 | C44: ='A7-CFlow'!D36 -> -214374.19 | D44: ='A7-CFlow'!E36 -> -84483.9 | E44: ='A7-CFlow'!F36 -> -57672 | F44: ='A7-CFlow'!G36 -> -1129176 | G44: ='A7-CFlow'!H36 -> -1129176 | H44: ='A7-CFlow'!I36 -> -25773.19 | I44: ='A7-CFlow'!J36 -> -570108 | J44: ='A7-CFlow'!K36 -> -761484 | K44: ='A7-CFlow'!L36 -> -947064
A45: =LEFT('A7-CFlow'!A40,37) -> Cash/cash equivalents at the year end | B45: ='A7-CFlow'!C40 -> 317760518.9 | C45: ='A7-CFlow'!D40 -> 556329937 | D45: ='A7-CFlow'!E40 -> 498652993.6 | E45: ='A7-CFlow'!F40 -> 576646372 | F45: ='A7-CFlow'!G40 -> 273612573 | G45: ='A7-CFlow'!H40 -> 273612573 | H45: ='A7-CFlow'!I40 -> 486163012.5 | I45: ='A7-CFlow'!J40 -> 87726586 | J45: ='A7-CFlow'!K40 -> 91661440 | K45: ='A7-CFlow'!L40 -> 73956477
A47: Cash backing/surplus reconciliation
A48: ='A8-ResRecon'!A4 -> Cash and investments available | B48: ='A8-ResRecon'!C8 -> 132654692.7 | C48: ='A8-ResRecon'!D8 -> 137892724.3 | D48: ='A8-ResRecon'!E8 -> 147021584.3 | E48: ='A8-ResRecon'!F8 -> 118352452 | F48: ='A8-ResRecon'!G8 -> 120813169 | G48: ='A8-ResRecon'!H8 -> 120813169 | H48: ='A8-ResRecon'!I8 -> 185973485.8 | I48: ='A8-ResRecon'!J8 -> 90350810 | J48: ='A8-ResRecon'!K8 -> 96215448 | K48: ='A8-ResRecon'!L8 -> 79596316
A49: ='A8-ResRecon'!A10 -> Application of cash and investments | B49: ='A8-ResRecon'!C18 -> -59612387.81 | C49: ='A8-ResRecon'!D18 -> -140146332.1 | D49: ='A8-ResRecon'!E18 -> -104211179.2 | E49: ='A8-ResRecon'!F18 -> -2261164 | F49: ='A8-ResRecon'!G18 -> -11099985 | G49: ='A8-ResRecon'!H18 -> -11099985 | H49: ='A8-ResRecon'!I18 -> -69834952.72 | I49: ='A8-ResRecon'!J18 -> 9253360 | J49: ='A8-ResRecon'!K18 -> 8291116 | K49: ='A8-ResRecon'!L18 -> 3200177
A50: Balance - surplus (shortfall) | B50: =B48-B49 -> 192267080.5 | C50: =C48-C49 -> 278039056.4 | D50: 251232763.6 | E50: 120613616 | F50: 131913154 | G50: 131913154 | H50: 255808438.6 | I50: 81097450 | J50: 87924332 | K50: 76396139
A52: Asset management
A53: Asset register summary (WDV) | B53: ='A9-Asset'!C165 -> 299191691.9 | C53: ='A9-Asset'!D165 -> 346109367.5 | D53: ='A9-Asset'!E165 -> 383083568.4 | E53: ='A9-Asset'!F165 -> 299834032 | F53: ='A9-Asset'!G165 -> 300098376 | G53: ='A9-Asset'!H165 -> 300098376 | H53: ='A9-Asset'!H165 -> 300098376 | I53: ='A9-Asset'!I165 -> 300343190 | J53: ='A9-Asset'!J165 -> 271249801 | K53: ='A9-Asset'!K165 -> 274963743
A54: ='A9-Asset'!A168 -> Depreciation | B54: ='A9-Asset'!C168 -> 0 | C54: ='A9-Asset'!D168 -> 19194388.48 | D54: ='A9-Asset'!E168 -> 20313047.72 | E54: ='A9-Asset'!F168 -> 26740745 | F54: ='A9-Asset'!G168 -> 26740745 | G54: ='A9-Asset'!H168 -> 26740745 | H54: ='A9-Asset'!H168 -> 26740745 | I54: ='A9-Asset'!I168 -> 24342587 | J54: ='A9-Asset'!J168 -> 25364976 | K54: ='A9-Asset'!K168 -> 26481034
A55: Renewal and Upgrading of Existing Assets | B55: ='A9-Asset'!C37+'A9-Asset'!C69 -> -22638146.52 | C55: ='A9-Asset'!D37+'A9-Asset'!D69 -> -22243488.78 | D55: ='A9-Asset'!E37+'A9-Asset'!E69 -> 29766039.7 | E55: ='A9-Asset'!F37+'A9-Asset'!F69 -> 25530000 | F55: ='A9-Asset'!G37+'A9-Asset'!G69 -> 26530000 | G55: ='A9-Asset'!H37+'A9-Asset'!H69 -> 26530000 | H55: ='A9-Asset'!H37+'A9-Asset'!H69 -> 26530000 | I55: ='A9-Asset'!I37+'A9-Asset'!I69 -> 44891000 | J55: ='A9-Asset'!J37+'A9-Asset'!J69 -> 10250000 | K55: ='A9-Asset'!K37+'A9-Asset'!K69 -> 7500000
A56: Repairs and Maintenance | B56: ='A9-Asset'!C169 -> 1026195.84 | C56: ='A9-Asset'!D169 -> 2511202.81 | D56: ='A9-Asset'!E169 -> 2346105.03 | E56: ='A9-Asset'!F169 -> 4330000 | F56: ='A9-Asset'!G169 -> 5410000 | G56: ='A9-Asset'!H169 -> 5410000 | H56: ='A9-Asset'!H169 -> 5410000 | I56: ='A9-Asset'!I169 -> 4430000 | J56: ='A9-Asset'!J169 -> 4616060 | K56: ='A9-Asset'!K169 -> 4819167
A58: Free services
A59: Cost of Free Basic Services provided | B59: ='A10-SerDel'!C60 -> 0 | C59: ='A10-SerDel'!D60 -> 0 | D59: ='A10-SerDel'!E60 -> 0 | E59: ='A10-SerDel'!F60 -> 0 | F59: ='A10-SerDel'!G60 -> 0 | G59: ='A10-SerDel'!H60 -> 0 | H59: ='A10-SerDel'!I60 -> 0 | I59: ='A10-SerDel'!I60 -> 0 | J59: ='A10-SerDel'!J60 -> 0 | K59: ='A10-SerDel'!K60 -> 0
A60: Revenue cost of free services provided | B60: ='A10-SerDel'!C79 -> 0 | C60: ='A10-SerDel'!D79 -> 0 | D60: ='A10-SerDel'!E79 -> 0 | E60: ='A10-SerDel'!F79 -> 0 | F60: ='A10-SerDel'!G79 -> 0 | G60: ='A10-SerDel'!H79 -> 0 | H60: ='A10-SerDel'!I79 -> 0 | I60: ='A10-SerDel'!I79 -> 0 | J60: ='A10-SerDel'!J79 -> 0 | K60: ='A10-SerDel'!K79 -> 0
A61: Households below minimum service level
A62: ='A10-SerDel'!A5 -> Water: | B62: ='A10-SerDel'!C14 -> 7805 | C62: ='A10-SerDel'!D14 -> 7805 | D62: ='A10-SerDel'!E14 -> 7805 | E62: ='A10-SerDel'!F14 -> 7805 | F62: ='A10-SerDel'!G14 -> 7805 | G62: ='A10-SerDel'!H14 -> 7805 | H62: ='A10-SerDel'!I14 -> 7805 | I62: ='A10-SerDel'!I14 -> 7805 | J62: ='A10-SerDel'!J14 -> 7805 | K62: ='A10-SerDel'!K14 -> 7805
A63: ='A10-SerDel'!A16 -> Sanitation/sewerage: | B63: ='A10-SerDel'!C26 -> 1487 | C63: ='A10-SerDel'!D26 -> 1487 | D63: ='A10-SerDel'!E26 -> 1487 | E63: ='A10-SerDel'!F26 -> 1487 | F63: ='A10-SerDel'!G26 -> 1487 | G63: ='A10-SerDel'!H26 -> 1487 | H63: ='A10-SerDel'!I26 -> 1487 | I63: ='A10-SerDel'!I26 -> 1487 | J63: ='A10-SerDel'!J26 -> 1487 | K63: ='A10-SerDel'!K26 -> 1487
A64: ='A10-SerDel'!A28 -> Energy: | B64: ='A10-SerDel'!C35 -> 0 | C64: ='A10-SerDel'!D35 -> 0 | D64: ='A10-SerDel'!E35 -> 0 | E64: ='A10-SerDel'!F35 -> 0 | F64: ='A10-SerDel'!G35 -> 0 | G64: ='A10-SerDel'!H35 -> 0 | H64: ='A10-SerDel'!I35 -> 0 | I64: ='A10-SerDel'!I35 -> 0 | J64: ='A10-SerDel'!J35 -> 0 | K64: ='A10-SerDel'!K35 -> 0
A65: ='A10-SerDel'!A37 -> Refuse: | B65: ='A10-SerDel'!C45 -> 23035 | C65: ='A10-SerDel'!D45 -> 23035 | D65: ='A10-SerDel'!E45 -> 23035 | E65: ='A10-SerDel'!F45 -> 23035 | F65: ='A10-SerDel'!G45 -> 23035 | G65: ='A10-SerDel'!H45 -> 23035 | H65: ='A10-SerDel'!I45 -> 23035 | I65: ='A10-SerDel'!I45 -> 23035 | J65: ='A10-SerDel'!J45 -> 23035 | K65: ='A10-SerDel'!K45 -> 23035

Sheet A2-FinPerf SC
A1: =muni&" - "&Approve3 -> Choose name from list - Table A2 Budgeted Financial Performance (revenue and expenditure by functional classification)
A2: ="Functional Classification "&desc -> Functional Classification Description | B2: =head27 -> Ref | C2: =head1b -> 2017/18 | D2: =head1A -> 2018/19 | E2: =Head1 -> 2019/20 | F2: =Head2 -> Current Year 2020/21 | I2: =Head3 -> 2021/22 Medium Term Revenue & Expenditure Framework
A3: R thousand | B3: 1 | C3: =Head5 -> Audited Outcome | D3: =Head5 -> Audited Outcome | E3: =Head5 -> Audited Outcome | F3: =Head6 -> Original Budget | G3: =Head7 -> Adjusted Budget | H3: =Head8 -> Full Year Forecast | I3: =Head9 -> Budget Year 2021/22 | J3: =Head10 -> Budget Year +1 2022/23 | K3: =Head11 -> Budget Year +2 2023/24
A4: Revenue - Functional
A5: Governance and administration | C5: =SUM(C6:C8) -> 209646544.2 | D5: =SUM(D6:D8) -> 248011820.1 | E5: 264503522.2 | F5: 279362881 | G5: 311661827 | H5: 311661827 | I5: 296653609 | J5: 309113058 | K5: 322714031
A6: Executive and council | C6: =A2A!C6 -> 0 | D6: =A2A!D6 -> 0 | E6: =A2A!E6 -> 0 | F6: =A2A!F6 -> 0 | G6: =A2A!G6 -> 0 | H6: =A2A!H6 -> 0 | I6: =A2A!I6 -> 0 | J6: =A2A!J6 -> 0 | K6: =A2A!K6 -> 0
A7: Finance and administration | C7: =A2A!C9 -> 209646544.2 | D7: =A2A!D9 -> 248011820.1 | E7: =A2A!E9 -> 264503522.2 | F7: =A2A!F9 -> 279362881 | G7: =A2A!G9 -> 311661827 | H7: =A2A!H9 -> 311661827 | I7: =A2A!I9 -> 296653609 | J7: =A2A!J9 -> 309113058 | K7: =A2A!K9 -> 322714031
A8: Internal audit | C8: =A2A!C23 -> 0 | D8: =A2A!D23 -> 0 | E8: =A2A!E23 -> 0 | F8: =A2A!F23 -> 0 | G8: =A2A!G23 -> 0 | H8: =A2A!H23 -> 0 | I8: =A2A!I23 -> 0 | J8: =A2A!J23 -> 0 | K8: =A2A!K23 -> 0
A9: Community and public safety | C9: =SUM(C10:C14) -> 459840.71 | D9: =SUM(D10:D14) -> 690259.35 | E9: 739571.25 | F9: 822563 | G9: 855124 | H9: 855124 | I9: 464262 | J9: 483760 | K9: 505046
A10: Community and social services | C10: =A2A!C26 -> 74611.71 | D10: =A2A!D26 -> 90059.35 | E10: =A2A!E26 -> 206271.25 | F10: =A2A!F26 -> 414274 | G10: =A2A!G26 -> 446835 | H10: =A2A!H26 -> 446835 | I10: =A2A!I26 -> 464262 | J10: =A2A!J26 -> 483760 | K10: =A2A!K26 -> 505046
A11: Sport and recreation | C11: =A2A!C48 -> 0 | D11: =A2A!D48 -> 0 | E11: =A2A!E48 -> 0 | F11: =A2A!F48 -> 0 | G11: =A2A!G48 -> 0 | H11: =A2A!H48 -> 0 | I11: =A2A!I48 -> 0 | J11: =A2A!J48 -> 0 | K11: =A2A!K48 -> 0
A12: Public safety | C12: =A2A!C54 -> 385229 | D12: =A2A!D54 -> 600200 | E12: =A2A!E54 -> 533300 | F12: =A2A!F54 -> 408289 | G12: =A2A!G54 -> 408289 | H12: =A2A!H54 -> 408289 | I12: =A2A!I54 -> 0 | J12: =A2A!J54 -> 0 | K12: =A2A!K54 -> 0
A13: Housing | C13: =A2A!C63 -> 0 | D13: =A2A!D63 -> 0 | E13: =A2A!E63 -> 0 | F13: =A2A!F63 -> 0 | G13: =A2A!G63 -> 0 | H13: =A2A!H63 -> 0 | I13: =A2A!I63 -> 0 | J13: =A2A!J63 -> 0 | K13: =A2A!K63 -> 0
A14: Health | C14: =A2A!C66 -> 0 | D14: =A2A!D66 -> 0 | E14: =A2A!E66 -> 0 | F14: =A2A!F66 -> 0 | G14: =A2A!G66 -> 0 | H14: =A2A!H66 -> 0 | I14: =A2A!I66 -> 0 | J14: =A2A!J66 -> 0 | K14: =A2A!K66 -> 0
A15: Economic and environmental services | C15: =SUM(C16:C18) -> 7641978.19 | D15: =SUM(D16:D18) -> 5907019.72 | E15: 5253539.56 | F15: 17104153 | G15: 19422229 | H15: 19422229 | I15: 20593779 | J15: 21458715 | K15: 22402901
A16: Planning and development | C16: =A2A!C75 -> 2947525.76 | D16: =A2A!D75 -> 1061973.18 | E16: =A2A!E75 -> 1548872.93 | F16: =A2A!F75 -> 2461123 | G16: =A2A!G75 -> 2289681 | H16: =A2A!H75 -> 2289681 | I16: =A2A!I75 -> 2368849 | J16: =A2A!J75 -> 2468340 | K16: =A2A!K75 -> 2576948
A17: Road transport | C17: =A2A!C86 -> 4694452.43 | D17: =A2A!D86 -> 4845046.54 | E17: =A2A!E86 -> 3704666.63 | F17: =A2A!F86 -> 14643030 | G17: =A2A!G86 -> 17132548 | H17: =A2A!H86 -> 17132548 | I17: =A2A!I86 -> 18224930 | J17: =A2A!J86 -> 18990375 | K17: =A2A!K86 -> 19825953
A18: Environmental protection | C18: =A2A!C91 -> 0 | D18: =A2A!D91 -> 0 | E18: =A2A!E91 -> 0 | F18: =A2A!F91 -> 0 | G18: =A2A!G91 -> 0 | H18: =A2A!H91 -> 0 | I18: =A2A!I91 -> 0 | J18: =A2A!J91 -> 0 | K18: =A2A!K91 -> 0
A19: Trading services | C19: =SUM(C20:C23) -> 3171270.21 | D19: =SUM(D20:D23) -> 3497886.33 | E19: 3621165.51 | F19: 3916306 | G19: 4047084 | H19: 4047084 | I19: 4450000 | J19: =SUM(J20:J23) -> 4636900 | K19: 4840924
A20: Energy sources | C20: =A2A!C99 -> 0 | D20: =A2A!D99 -> 0 | E20: =A2A!E99 -> 0 | F20: =A2A!F99 -> 0 | G20: =A2A!G99 -> 0 | H20: =A2A!H99 -> 0 | I20: =A2A!I99 -> 0 | J20: =A2A!J99 -> 0 | K20: =A2A!K99 -> 0
A21: Water management | C21: =A2A!C103 -> 7284.18 | D21: =A2A!D103 -> 0 | E21: =A2A!E103 -> -117791.47 | F21: =A2A!F103 -> 0 | G21: =A2A!G103 -> 0 | H21: =A2A!H103 -> 0 | I21: =A2A!I103 -> 0 | J21: =A2A!J103 -> 0 | K21: =A2A!K103 -> 0
A22: Waste water management | C22: =A2A!C107 -> 3833.49 | D22: =A2A!D107 -> 0 | E22: =A2A!E107 -> 0 | F22: =A2A!F107 -> 0 | G22: =A2A!G107 -> 0 | H22: =A2A!H107 -> 0 | I22: =A2A!I107 -> 0 | J22: =A2A!J107 -> 0 | K22: =A2A!K107 -> 0
A23: Waste management | C23: =A2A!C112 -> 3160152.54 | D23: =A2A!D112 -> 3497886.33 | E23: =A2A!E112 -> 3738956.98 | F23: =A2A!F112 -> 3916306 | G23: =A2A!G112 -> 4047084 | H23: =A2A!H112 -> 4047084 | I23: =A2A!I112 -> 4450000 | J23: =A2A!J112 -> 4636900 | K23: =A2A!K112 -> 4840924
A24: Other | B24: 4 | C24: =A2A!C117 -> 0 | D24: =A2A!D117 -> 0 | E24: =A2A!E117 -> 0 | F24: =A2A!F117 -> 0 | G24: =A2A!G117 -> 0 | H24: =A2A!H117 -> 0 | I24: =A2A!I117 -> 0 | J24: =A2A!J117 -> 0 | K24: =A2A!K117 -> 0
A25: ="Total "&A4 -> Total Revenue - Functional | B25: 2 | C25: =C5+C9+C15+C19+C24 -> 220919633.3 | D25: =D5+D9+D15+D19+D24 -> 258106985.5 | E25: =E5+E9+E15+E19+E24 -> 274117798.6 | F25: 301205903 | G25: 335986264 | H25: 335986264 | I25: =I5+I9+I15+I19+I24 -> 322161650 | J25: 335692433 | K25: 350462902
A27: Expenditure - Functional
A28: Governance and administration | C28: =SUM(C29:C31) -> 98182150.12 | D28: =SUM(D29:D31) -> 130142430.7 | E28: 126600466.8 | F28: 155348736 | G28: 163144694 | H28: 163144694 | I28: 163245832 | J28: 170979120 | K28: 179403753
A29: Executive and council | C29: =A2A!C128 -> 30871382.14 | D29: =A2A!D128 -> 31456578.89 | E29: =A2A!E128 -> 28993841.38 | F29: =A2A!F128 -> 39544638 | G29: =A2A!G128 -> 37249224 | H29: =A2A!H128 -> 37249224 | I29: =A2A!I128 -> 42870848 | J29: =A2A!J128 -> 45123395 | K29: =A2A!K128 -> 47561167
A30: Finance and administration | C30: =A2A!C131 -> 66613408.98 | D30: =A2A!D131 -> 98685851.83 | E30: =A2A!E131 -> 97606625.46 | F30: =A2A!F131 -> 115804098 | G30: =A2A!G131 -> 125895470 | H30: =A2A!H131 -> 125895470 | I30: =A2A!I131 -> 120374984 | J30: =A2A!J131 -> 125855725 | K30: =A2A!K131 -> 131842586
A31: Internal audit | C31: =A2A!C145 -> 697359 | D31: =A2A!D145 -> 0 | E31: =A2A!E145 -> 0 | F31: =A2A!F145 -> 0 | G31: =A2A!G145 -> 0 | H31: =A2A!H145 -> 0 | I31: =A2A!I145 -> 0 | J31: =A2A!J145 -> 0 | K31: =A2A!K145 -> 0
A32: Community and public safety | C32: =SUM(C33:C37) -> 20073581.79 | D32: =SUM(D33:D37) -> 37399853.85 | E32: 26699851.14 | F32: 32969048 | G32: 34956248 | H32: 34956248 | I32: 42863044 | J32: 45047336 | K32: 47435351
A33: Community and social services | C33: =A2A!C148 -> 20073581.79 | D33: =A2A!D148 -> 37399853.85 | E33: =A2A!E148 -> 26699851.14 | F33: =A2A!F148 -> 32969048 | G33: =A2A!G148 -> 34956248 | H33: =A2A!H148 -> 34956248 | I33: =A2A!I148 -> 42863044 | J33: =A2A!J148 -> 45047336 | K33: =A2A!K148 -> 47435351
A34: Sport and recreation | C34: =A2A!C170 -> 0 | D34: =A2A!D170 -> 0 | E34: =A2A!E170 -> 0 | F34: =A2A!F170 -> 0 | G34: =A2A!G170 -> 0 | H34: =A2A!H170 -> 0 | I34: =A2A!I170 -> 0 | J34: =A2A!J170 -> 0 | K34: =A2A!K170 -> 0
A35: Public safety | C35: =A2A!C176 -> 0 | D35: =A2A!D176 -> 0 | E35: =A2A!E176 -> 0 | F35: =A2A!F176 -> 0 | G35: =A2A!G176 -> 0 | H35: =A2A!H176 -> 0 | I35: =A2A!I176 -> 0 | J35: =A2A!J176 -> 0 | K35: =A2A!K176 -> 0
A36: Housing | C36: =A2A!C185 -> 0 | D36: =A2A!D185 -> 0 | E36: =A2A!E185 -> 0 | F36: =A2A!F185 -> 0 | G36: =A2A!G185 -> 0 | H36: =A2A!H185 -> 0 | I36: =A2A!I185 -> 0 | J36: =A2A!J185 -> 0 | K36: =A2A!K185 -> 0
A37: Health | C37: =A2A!C188 -> 0 | D37: =A2A!D188 -> 0 | E37: =A2A!E188 -> 0 | F37: =A2A!F188 -> 0 | G37: =A2A!G188 -> 0 | H37: =A2A!H188 -> 0 | I37: =A2A!I188 -> 0 | J37: =A2A!J188 -> 0 | K37: =A2A!K188 -> 0
A38: Economic and environmental services | C38: =SUM(C39:C41) -> 20866323.34 | D38: =SUM(D39:D41) -> 22397180.84 | E38: 21400786.03 | F38: 26634483 | G38: 26286955 | H38: 26286955 | I38: 28686818 | J38: 28974730 | K38: 30574548
A39: Planning and development | C39: =A2A!C197 -> 12243374.82 | D39: =A2A!D197 -> 13966663.47 | E39: =A2A!E197 -> 12941407.42 | F39: =A2A!F197 -> 16580352 | G39: =A2A!G197 -> 16370782 | H39: =A2A!H197 -> 16370782 | I39: =A2A!I197 -> 18102748 | J39: =A2A!J197 -> 17792072 | K39: =A2A!K197 -> 18737021
A40: Road transport | C40: =A2A!C208 -> 8622948.52 | D40: =A2A!D208 -> 8430517.37 | E40: =A2A!E208 -> 8459378.61 | F40: =A2A!F208 -> 10054131 | G40: =A2A!G208 -> 9916173 | H40: =A2A!H208 -> 9916173 | I40: =A2A!I208 -> 10584070 | J40: =A2A!J208 -> 11182658 | K40: =A2A!K208 -> 11837527
A41: Environmental protection | C41: =A2A!C213 -> 0 | D41: =A2A!D213 -> 0 | E41: =A2A!E213 -> 0 | F41: =A2A!F213 -> 0 | G41: =A2A!G213 -> 0 | H41: =A2A!H213 -> 0 | I41: =A2A!I213 -> 0 | J41: =A2A!J213 -> 0 | K41: =A2A!K213 -> 0
A42: Trading services | C42: =SUM(C43:C46) -> 5847923.57 | D42: =SUM(D43:D46) -> 472174.58 | E42: 8584990.93 | F42: =SUM(F43:F46) -> 10700000 | G42: 8950000 | H42: 8950000 | I42: 7800000 | J42: 8127600 | K42: =SUM(K43:K46) -> 8485214
A43: Energy sources | C43: =A2A!C221 -> 1135409.12 | D43: =A2A!D221 -> 332118.31 | E43: =A2A!E221 -> 608293.17 | F43: =A2A!F221 -> 1500000 | G43: =A2A!G221 -> 750000 | H43: =A2A!H221 -> 750000 | I43: =A2A!I221 -> 1000000 | J43: =A2A!J221 -> 1042000 | K43: =A2A!K221 -> 1087848
A44: Water management | C44: =A2A!C225 -> 0 | D44: =A2A!D225 -> 140056.27 | E44: =A2A!E225 -> 8740 | F44: =A2A!F225 -> 0 | G44: =A2A!G225 -> 0 | H44: =A2A!H225 -> 0 | I44: =A2A!I225 -> 0 | J44: =A2A!J225 -> 0 | K44: =A2A!K225 -> 0
A45: Waste water management | C45: =A2A!C229 -> 0 | D45: =A2A!D229 -> 0 | E45: =A2A!E229 -> 0 | F45: =A2A!F229 -> 0 | G45: =A2A!G229 -> 0 | H45: =A2A!H229 -> 0 | I45: =A2A!I229 -> 0 | J45: =A2A!J229 -> 0 | K45: =A2A!K229 -> 0
A46: Waste management | C46: =A2A!C234 -> 4712514.45 | D46: =A2A!D234 -> 0 | E46: =A2A!E234 -> 7967957.76 | F46: =A2A!F234 -> 9200000 | G46: =A2A!G234 -> 8200000 | H46: =A2A!H234 -> 8200000 | I46: =A2A!I234 -> 6800000 | J46: =A2A!J234 -> 7085600 | K46: =A2A!K234 -> 7397366
A47: Other | B47: 4 | C47: =A2A!C239 -> 26332 | D47: =A2A!D239 -> 0 | E47: =A2A!E239 -> 0 | F47: =A2A!F239 -> 0 | G47: =A2A!G239 -> 0 | H47: =A2A!H239 -> 0 | I47: =A2A!I239 -> 0 | J47: =A2A!J239 -> 0 | K47: =A2A!K239 -> 0
A48: ="Total "&A27 -> Total Expenditure - Functional | B48: 3 | C48: =C28+C32+C38+C42+C47 -> 144996310.8 | D48: =D28+D32+D38+D42+D47 -> 190411640 | E48: =E28+E32+E38+E42+E47 -> 183286094.9 | F48: =F28+F32+F38+F42+F47 -> 225652267 | G48: 233337897 | H48: 233337897 | I48: 242595694 | J48: 253128786 | K48: 265898866
A49: =result -> Surplus/(Deficit) for the year | C49: =C25-C48 -> 75923322.47 | D49: =D25-D48 -> 67695345.55 | E49: 90831703.63 | F49: 75553636 | G49: 102648367 | H49: 102648367 | I49: 79565956 | J49: 82563647 | K49: 84564036
A50: =head27a -> References
A51: 1. Government Finance Statistics Functions and Sub-functions are standardised to assist the compilation of national and international accounts for comparison purposes
A52: 2. Total Revenue by functional classification must reconcile to Total Operating Revenue shown in Budgeted Financial Performance (revenue and expenditure)
A53: 3. Total Expenditure by Functional Classification must reconcile to Total Operating Expenditure shown in Budgeted Financial Performance (revenue and expenditure)
A54: 4. All amounts must be classified under a functional classification . The GFS function 'Other' is only for Abbatoirs, Air Transport, Forestry, Licensing and Regulation, Markets and Tourism - and if used must be supported by footnotes. Nothing else may be placed under 'Other'. Assign associate share to relevant classification.
A57: check oprev balance | C57: =C25-'A4-FinPerf RE'!C59 -> 0 | D57: =D25-'A4-FinPerf RE'!D59 -> 0 | E57: =E25-'A4-FinPerf RE'!E59 -> 0 | F57: =F25-'A4-FinPerf RE'!F59 -> 0 | G57: =G25-'A4-FinPerf RE'!G59 -> 0 | H57: =H25-'A4-FinPerf RE'!H59 -> 0 | I57: =I25-'A4-FinPerf RE'!J59 -> 0 | J57: =J25-'A4-FinPerf RE'!K59 -> 0 | K57: =K25-'A4-FinPerf RE'!L59 -> 0
A58: check opexp balance | C58: =C48-'A4-FinPerf RE'!C35 -> 1115861.07 | D58: =D48-'A4-FinPerf RE'!D35 -> 2293824.45 | E58: =E48-'A4-FinPerf RE'!E35 -> 2298016.33 | F58: =F48-'A4-FinPerf RE'!F35 -> 0 | G58: =G48-'A4-FinPerf RE'!G35 -> 0 | H58: =H48-'A4-FinPerf RE'!H35 -> 0 | I58: =I48-'A4-FinPerf RE'!J35 -> 0 | J58: =J48-'A4-FinPerf RE'!K35 -> 0 | K58: =K48-'A4-FinPerf RE'!L35 -> 0

Sheet A2A
A1: =muni&" - "&Approve3 -> Choose name from list - Table A2 Budgeted Financial Performance (revenue and expenditure by functional classification)
A2: ="Functional Classification "&desc -> Functional Classification Description | B2: =head27 -> Ref | C2: =head1b -> 2017/18 | D2: =head1A -> 2018/19 | E2: =Head1 -> 2019/20 | F2: =Head2 -> Current Year 2020/21 | I2: =Head3 -> 2021/22 Medium Term Revenue & Expenditure Framework
A3: R thousand | B3: 1 | C3: =Head5 -> Audited Outcome | D3: =Head5 -> Audited Outcome | E3: =Head5 -> Audited Outcome | F3: =Head6 -> Original Budget | G3: =Head7 -> Adjusted Budget | H3: =Head8 -> Full Year Forecast | I3: =Head9 -> Budget Year 2021/22 | J3: =Head10 -> Budget Year +1 2022/23 | K3: =Head11 -> Budget Year +2 2023/24
A4: Revenue - Functional
A5: Municipal governance and administration | C5: =C6+C9+C23 -> 209646544.2 | D5: 248011820.1 | E5: 264503522.2 | F5: 279362881 | G5: 311661827 | H5: 311661827 | I5: 296653609 | J5: 309113058 | K5: 322714031
A6: Executive and council | C6: =SUM(C7:C8) -> 0 | D6: =SUM(D7:D8) -> 0 | E6: 0 | F6: 0 | G6: 0 | H6: 0 | I6: 0 | J6: 0 | K6: 0
A7: Mayor and Council | C7: 0 | D7: 0 | E7: 0 | F7: 0 | G7: 0 | H7: 0 | I7: 0 | J7: 0 | K7: 0
A8: Municipal Manager, Town Secretary and Chief Executive | C8: 0 | D8: 0 | E8: 0 | F8: 0 | G8: 0 | H8: 0 | I8: 0 | J8: 0 | K8: 0
A9: Finance and administration | C9: =SUM(C10:C22) -> 209646544.2 | D9: 248011820.1 | E9: 264503522.2 | F9: 279362881 | G9: 311661827 | H9: 311661827 | I9: 296653609 | J9: 309113058 | K9: 322714031
A10: Administrative and Corporate Support | C10: 0 | D10: 0 | E10: 0 | F10: 0 | G10: 0 | H10: 0 | I10: 0 | J10: 0 | K10: 0
A11: Asset Management | C11: 0 | D11: 2303664 | E11: 0 | F11: 0 | G11: 0 | H11: 0 | I11: 0 | J11: 0 | K11: 0
A12: Finance | C12: 209474134.2 | D12: 245588081.1 | E12: 264380591.6 | F12: 279297495 | G12: 311211665 | H12: 311211665 | I12: 296185891 | J12: 308625695 | K12: 322205225
A13: Fleet Management | C13: 0 | D13: 0 | E13: 0 | F13: 0 | G13: 0 | H13: 0 | I13: 0 | J13: 0 | K13: 0
A14: Human Resources | C14: 0 | D14: 0 | E14: 0 | F14: 65386 | G14: 65386 | H14: 65386 | I14: 67936 | J14: 70790 | K14: 73904
A15: Information Technology | C15: 0 | D15: 0 | E15: 0 | F15: 0 | G15: 0 | H15: 0 | I15: 0 | J15: 0 | K15: 0
A16: Legal Services | C16: 0 | D16: 0 | E16: 0 | F16: 0 | G16: 0 | H16: 0 | I16: 0 | J16: 0 | K16: 0
A17: Marketing, Customer Relations, Publicity and Media Co-ordination | C17: 0 | D17: 0 | E17: 0 | F17: 0 | G17: 0 | H17: 0 | I17: 0 | J17: 0 | K17: 0
A18: Property Services | C18: 172410 | D18: 120075 | E18: 122930.63 | F18: 0 | G18: 384776 | H18: 384776 | I18: 399782 | J18: 416573 | K18: 434902
A19: Risk Management | C19: 0 | D19: 0 | E19: 0 | F19: 0 | G19: 0 | H19: 0 | I19: 0 | J19: 0 | K19: 0
A20: Security Services | C20: 0 | D20: 0 | E20: 0 | F20: 0 | G20: 0 | H20: 0 | I20: 0 | J20: 0 | K20: 0
A21: Supply Chain Management | C21: 0 | D21: 0 | E21: 0 | F21: 0 | G21: 0 | H21: 0 | I21: 0 | J21: 0 | K21: 0
A22: Valuation Service | C22: 0 | D22: 0 | E22: 0 | F22: 0 | G22: 0 | H22: 0 | I22: 0 | J22: 0 | K22: 0
A23: Internal audit | C23: =SUM(C24:C24) -> 0 | D23: 0 | E23: 0 | F23: 0 | G23: 0 | H23: 0 | I23: 0 | J23: 0 | K23: 0
A24: Governance Function | C24: 0 | D24: 0 | E24: 0 | F24: 0 | G24: 0 | H24: 0 | I24: 0 | J24: 0 | K24: 0
A25: Community and public safety | C25: =C26+C48+C54+C63+C66 -> 459840.71 | D25: 690259.35 | E25: 739571.25 | F25: 822563 | G25: 855124 | H25: 855124 | I25: 464262 | J25: 483760 | K25: 505046
A26: Community and social services | C26: =SUM(C27:C47) -> 74611.71 | D26: =SUM(D27:D47) -> 90059.35 | E26: 206271.25 | F26: 414274 | G26: 446835 | H26: 446835 | I26: 464262 | J26: 483760 | K26: 505046
A27: Aged Care | C27: 0 | D27: 0 | E27: 0 | F27: 0 | G27: 0 | H27: 0 | I27: 0 | J27: 0 | K27: 0
A28: Agricultural | C28: 0 | D28: 0 | E28: 0 | F28: 0 | G28: 0 | H28: 0 | I28: 0 | J28: 0 | K28: 0
A29: Animal Care and Diseases | C29: 0 | D29: 0 | E29: 0 | F29: 0 | G29: 0 | H29: 0 | I29: 0 | J29: 0 | K29: 0
A30: Cemeteries, Funeral Parlours and Crematoriums | C30: 0 | D30: 0 | E30: 0 | F30: 0 | G30: 0 | H30: 0 | I30: 0 | J30: 0 | K30: 0
A31: Child Care Facilities | C31: 0 | D31: 0 | E31: 0 | F31: 0 | G31: 0 | H31: 0 | I31: 0 | J31: 0 | K31: 0
A32: Community Halls and Facilities | C32: 73422.15 | D32: 87784.14 | E32: 53906.34 | F32: 414274 | G32: 446835 | H32: 446835 | I32: 464262 | J32: 483760 | K32: 505046
A33: Consumer Protection | C33: 0 | D33: 0 | E33: 0 | F33: 0 | G33: 0 | H33: 0 | I33: 0 | J33: 0 | K33: 0
A34: Cultural Matters | C34: 0 | D34: 0 | E34: 0 | F34: 0 | G34: 0 | H34: 0 | I34: 0 | J34: 0 | K34: 0
A35: Disaster Management | C35: 0 | D35: 0 | E35: 149000 | F35: 0 | G35: 0 | H35: 0 | I35: 0 | J35: 0 | K35: 0
A36: Education | C36: 0 | D36: 0 | E36: 0 | F36: 0 | G36: 0 | H36: 0 | I36: 0 | J36: 0 | K36: 0
A37: Indigenous and Customary Law | C37: 0 | D37: 0 | E37: 0 | F37: 0 | G37: 0 | H37: 0 | I37: 0 | J37: 0 | K37: 0
A38: Industrial Promotion | C38: 0 | D38: 0 | E38: 0 | F38: 0 | G38: 0 | H38: 0 | I38: 0 | J38: 0 | K38: 0
A39: Language Policy | C39: 0 | D39: 0 | E39: 0 | F39: 0 | G39: 0 | H39: 0 | I39: 0 | J39: 0 | K39: 0
A40: Libraries and Archives | C40: 1189.56 | D40: 2275.21 | E40: 3364.91 | F40: 0 | G40: 0 | H40: 0 | I40: 0 | J40: 0 | K40: 0
A41: Literacy Programmes | C41: 0 | D41: 0 | E41: 0 | F41: 0 | G41: 0 | H41: 0 | I41: 0 | J41: 0 | K41: 0
A42: Media Services | C42: 0 | D42: 0 | E42: 0 | F42: 0 | G42: 0 | H42: 0 | I42: 0 | J42: 0 | K42: 0
A43: Museums and Art Galleries | C43: 0 | D43: 0 | E43: 0 | F43: 0 | G43: 0 | H43: 0 | I43: 0 | J43: 0 | K43: 0
A44: Population Development | C44: 0 | D44: 0 | E44: 0 | F44: 0 | G44: 0 | H44: 0 | I44: 0 | J44: 0 | K44: 0
A45: Provincial Cultural Matters | C45: 0 | D45: 0 | E45: 0 | F45: 0 | G45: 0 | H45: 0 | I45: 0 | J45: 0 | K45: 0
A46: Theatres | C46: 0 | D46: 0 | E46: 0 | F46: 0 | G46: 0 | H46: 0 | I46: 0 | J46: 0 | K46: 0
A47: Zoo's | C47: 0 | D47: 0 | E47: 0 | F47: 0 | G47: 0 | H47: 0 | I47: 0 | J47: 0 | K47: 0
A48: Sport and recreation | C48: =SUM(C49:C53) -> 0 | D48: =SUM(D49:D53) -> 0 | E48: 0 | F48: 0 | G48: 0 | H48: 0 | I48: 0 | J48: 0 | K48: 0
A49: Beaches and Jetties | C49: 0 | D49: 0 | E49: 0 | F49: 0 | G49: 0 | H49: 0 | I49: 0 | J49: 0 | K49: 0
A50: Casinos, Racing, Gambling, Wagering | C50: 0 | D50: 0 | E50: 0 | F50: 0 | G50: 0 | H50: 0 | I50: 0 | J50: 0 | K50: 0
A51: Community Parks (including Nurseries) | C51: 0 | D51: 0 | E51: 0 | F51: 0 | G51: 0 | H51: 0 | I51: 0 | J51: 0 | K51: 0
A52: Recreational Facilities | C52: 0 | D52: 0 | E52: 0 | F52: 0 | G52: 0 | H52: 0 | I52: 0 | J52: 0 | K52: 0
A53: Sports Grounds and Stadiums | C53: 0 | D53: 0 | E53: 0 | F53: 0 | G53: 0 | H53: 0 | I53: 0 | J53: 0 | K53: 0
A54: Public safety | C54: =SUM(C55:C62) -> 385229 | D54: 600200 | E54: 533300 | F54: 408289 | G54: 408289 | H54: 408289 | I54: 0 | J54: 0 | K54: 0
A55: Civil Defence | C55: 0 | D55: 0 | E55: 0 | F55: 0 | G55: 0 | H55: 0 | I55: 0 | J55: 0 | K55: 0
A56: Cleansing | C56: 0 | D56: 0 | E56: 0 | F56: 0 | G56: 0 | H56: 0 | I56: 0 | J56: 0 | K56: 0
A57: Control of Public Nuisances | C57: 0 | D57: 0 | E57: 0 | F57: 0 | G57: 0 | H57: 0 | I57: 0 | J57: 0 | K57: 0
A58: Fencing and Fences | C58: 0 | D58: 0 | E58: 0 | F58: 0 | G58: 0 | H58: 0 | I58: 0 | J58: 0 | K58: 0
A59: Fire Fighting and Protection | C59: 0 | D59: 0 | E59: 0 | F59: 0 | G59: 0 | H59: 0 | I59: 0 | J59: 0 | K59: 0
A60: Licensing and Control of Animals | C60: 0 | D60: 0 | E60: 0 | F60: 0 | G60: 0 | H60: 0 | I60: 0 | J60: 0 | K60: 0
A61: Police Forces, Traffic and Street Parking Control | C61: 385229 | D61: 600200 | E61: 533300 | F61: 408289 | G61: 408289 | H61: 408289 | I61: 0 | J61: 0 | K61: 0
A62: Pounds | C62: 0 | D62: 0 | E62: 0 | F62: 0 | G62: 0 | H62: 0 | I62: 0 | J62: 0 | K62: 0
A63: Housing | C63: =SUM(C64:C65) -> 0 | D63: =SUM(D64:D65) -> 0 | E63: 0 | F63: 0 | G63: 0 | H63: 0 | I63: 0 | J63: 0 | K63: 0
A64: Housing | C64: 0 | D64: 0 | E64: 0 | F64: 0 | G64: 0 | H64: 0 | I64: 0 | J64: 0 | K64: 0
A65: Informal Settlements | C65: 0 | D65: 0 | E65: 0 | F65: 0 | G65: 0 | H65: 0 | I65: 0 | J65: 0 | K65: 0
A66: Health | C66: =SUM(C67:C73) -> 0 | D66: =SUM(D67:D73) -> 0 | E66: 0 | F66: 0 | G66: 0 | H66: 0 | I66: 0 | J66: 0 | K66: 0
A67: Ambulance | C67: 0 | D67: 0 | E67: 0 | F67: 0 | G67: 0 | H67: 0 | I67: 0 | J67: 0 | K67: 0
A68: Health Services | C68: 0 | D68: 0 | E68: 0 | F68: 0 | G68: 0 | H68: 0 | I68: 0 | J68: 0 | K68: 0
A69: Laboratory Services | C69: 0 | D69: 0 | E69: 0 | F69: 0 | G69: 0 | H69: 0 | I69: 0 | J69: 0 | K69: 0
A70: Food Control | C70: 0 | D70: 0 | E70: 0 | F70: 0 | G70: 0 | H70: 0 | I70: 0 | J70: 0 | K70: 0
A71: Health Surveillance and Prevention of Communicable Diseases including immunizations | C71: 0 | D71: 0 | E71: 0 | F71: 0 | G71: 0 | H71: 0 | I71: 0 | J71: 0 | K71: 0
A72: Vector Control | C72: 0 | D72: 0 | E72: 0 | F72: 0 | G72: 0 | H72: 0 | I72: 0 | J72: 0 | K72: 0
A73: Chemical Safety | C73: 0 | D73: 0 | E73: 0 | F73: 0 | G73: 0 | H73: 0 | I73: 0 | J73: 0 | K73: 0
A74: Economic and environmental services | C74: =C75+C86+C91 -> 7641978.19 | D74: 5907019.72 | E74: 5253539.56 | F74: 17104153 | G74: 19422229 | H74: 19422229 | I74: 20593779 | J74: 21458715 | K74: 22402901
A75: Planning and development | C75: =SUM(C76:C85) -> 2947525.76 | D75: =SUM(D76:D85) -> 1061973.18 | E75: 1548872.93 | F75: 2461123 | G75: 2289681 | H75: 2289681 | I75: 2368849 | J75: 2468340 | K75: 2576948
A76: Billboards | C76: 0 | D76: 0 | E76: 0 | F76: 0 | G76: 0 | H76: 0 | I76: 0 | J76: 0 | K76: 0
A77: Corporate Wide Strategic Planning (IDPs, LEDs) | C77: 1123807.64 | D77: 0 | E77: 0 | F77: 0 | G77: 0 | H77: 0 | I77: 0 | J77: 0 | K77: 0
A78: Central City Improvement District | C78: 0 | D78: 0 | E78: 0 | F78: 0 | G78: 0 | H78: 0 | I78: 0 | J78: 0 | K78: 0
A79: Development Facilitation | C79: 0 | D79: 0 | E79: 0 | F79: 0 | G79: 0 | H79: 0 | I79: 0 | J79: 0 | K79: 0
A80: Economic Development/Planning | C80: 1823718.12 | D80: 1061973.18 | E80: 1548872.93 | F80: 2461123 | G80: 2289681 | H80: 2289681 | I80: 2368849 | J80: 2468340 | K80: 2576948
A81: Regional Planning and Development | C81: 0 | D81: 0 | E81: 0 | F81: 0 | G81: 0 | H81: 0 | I81: 0 | J81: 0 | K81: 0
A82: Town Planning, Building Regulations and Enforcement, and City Engineer | C82: 0 | D82: 0 | E82: 0 | F82: 0 | G82: 0 | H82: 0 | I82: 0 | J82: 0 | K82: 0
A83: Project Management Unit | C83: 0 | D83: 0 | E83: 0 | F83: 0 | G83: 0 | H83: 0 | I83: 0 | J83: 0 | K83: 0
A84: Provincial Planning | C84: 0 | D84: 0 | E84: 0 | F84: 0 | G84: 0 | H84: 0 | I84: 0 | J84: 0 | K84: 0
A85: Support to Local Municipalities | C85: 0 | D85: 0 | E85: 0 | F85: 0 | G85: 0 | H85: 0 | I85: 0 | J85: 0 | K85: 0
A86: Road transport | C86: =SUM(C87:C90) -> 4694452.43 | D86: 4845046.54 | E86: 3704666.63 | F86: 14643030 | G86: 17132548 | H86: 17132548 | I86: 18224930 | J86: 18990375 | K86: 19825953
A87: Public Transport | C87: 0 | D87: 0 | E87: 0 | F87: 0 | G87: 0 | H87: 0 | I87: 0 | J87: 0 | K87: 0
A88: Road and Traffic Regulation | C88: 4560052.43 | D88: 4496957.28 | E88: 3542320.09 | F88: 14098925 | G88: 16588443 | H88: 16588443 | I88: 17659605 | J88: 18401307 | K88: 19210966
A89: Roads | C89: 134400 | D89: 348089.26 | E89: 162346.54 | F89: 544105 | G89: 544105 | H89: 544105 | I89: 565325 | J89: 589068 | K89: 614987
A90: Taxi Ranks | C90: 0 | D90: 0 | E90: 0 | F90: 0 | G90: 0 | H90: 0 | I90: 0 | J90: 0 | K90: 0
A91: Environmental protection | C91: =SUM(C92:C97) -> 0 | D91: =SUM(D92:D97) -> 0 | E91: 0 | F91: 0 | G91: 0 | H91: 0 | I91: 0 | J91: 0 | K91: 0
A92: Biodiversity and Landscape | C92: 0 | D92: 0 | E92: 0 | F92: 0 | G92: 0 | H92: 0 | I92: 0 | J92: 0 | K92: 0
A93: Coastal Protection | C93: 0 | D93: 0 | E93: 0 | F93: 0 | G93: 0 | H93: 0 | I93: 0 | J93: 0 | K93: 0
A94: Indigenous Forests | C94: 0 | D94: 0 | E94: 0 | F94: 0 | G94: 0 | H94: 0 | I94: 0 | J94: 0 | K94: 0
A95: Nature Conservation | C95: 0 | D95: 0 | E95: 0 | F95: 0 | G95: 0 | H95: 0 | I95: 0 | J95: 0 | K95: 0
A96: Pollution Control | C96: 0 | D96: 0 | E96: 0 | F96: 0 | G96: 0 | H96: 0 | I96: 0 | J96: 0 | K96: 0
A97: Soil Conservation | C97: 0 | D97: 0 | E97: 0 | F97: 0 | G97: 0 | H97: 0 | I97: 0 | J97: 0 | K97: 0
A98: Trading services | C98: =C99+C103+C107+C112 -> 3171270.21 | D98: =D99+D103+D107+D112 -> 3497886.33 | E98: 3621165.51 | F98: 3916306 | G98: 4047084 | H98: 4047084 | I98: 4450000 | J98: 4636900 | K98: =K99+K103+K107+K112 -> 4840924
A99: Energy sources | C99: =SUM(C100:C102) -> 0 | D99: =SUM(D100:D102) -> 0 | E99: 0 | F99: 0 | G99: 0 | H99: 0 | I99: 0 | J99: 0 | K99: 0
A100: Electricity | C100: 0 | D100: 0 | E100: 0 | F100: 0 | G100: 0 | H100: 0 | I100: 0 | J100: 0 | K100: 0
A101: Street Lighting and Signal Systems | C101: 0 | D101: 0 | E101: 0 | F101: 0 | G101: 0 | H101: 0 | I101: 0 | J101: 0 | K101: 0
A102: Nonelectric Energy | C102: 0 | D102: 0 | E102: 0 | F102: 0 | G102: 0 | H102: 0 | I102: 0 | J102: 0 | K102: 0
A103: Water management | C103: =SUM(C104:C106) -> 7284.18 | D103: =SUM(D104:D106) -> 0 | E103: -117791.47 | F103: 0 | G103: 0 | H103: 0 | I103: 0 | J103: 0 | K103: 0
A104: Water Treatment | C104: 0 | D104: 0 | E104: 0 | F104: 0 | G104: 0 | H104: 0 | I104: 0 | J104: 0 | K104: 0
A105: Water Distribution | C105: 7284.18 | D105: 0 | E105: -117791.47 | F105: 0 | G105: 0 | H105: 0 | I105: 0 | J105: 0 | K105: 0
A106: Water Storage | C106: 0 | D106: 0 | E106: 0 | F106: 0 | G106: 0 | H106: 0 | I106: 0 | J106: 0 | K106: 0
A107: Waste water management | C107: =SUM(C108:C111) -> 3833.49 | D107: =SUM(D108:D111) -> 0 | E107: 0 | F107: 0 | G107: 0 | H107: 0 | I107: 0 | J107: 0 | K107: 0
A108: Public Toilets | C108: 0 | D108: 0 | E108: 0 | F108: 0 | G108: 0 | H108: 0 | I108: 0 | J108: 0 | K108: 0
A109: Sewerage | C109: 3833.49 | D109: 0 | E109: 0 | F109: 0 | G109: 0 | H109: 0 | I109: 0 | J109: 0 | K109: 0
A110: Storm Water Management | C110: 0 | D110: 0 | E110: 0 | F110: 0 | G110: 0 | H110: 0 | I110: 0 | J110: 0 | K110: 0
A111: Waste Water Treatment | C111: 0 | D111: 0 | E111: 0 | F111: 0 | G111: 0 | H111: 0 | I111: 0 | J111: 0 | K111: 0
A112: Waste management | C112: =SUM(C113:C116) -> 3160152.54 | D112: =SUM(D113:D116) -> 3497886.33 | E112: 3738956.98 | F112: 3916306 | G112: 4047084 | H112: 4047084 | I112: 4450000 | J112: 4636900 | K112: 4840924
A113: Recycling | C113: 0 | D113: 0 | E113: 0 | F113: 0 | G113: 0 | H113: 0 | I113: 0 | J113: 0 | K113: 0
A114: Solid Waste Disposal (Landfill Sites) | C114: 0 | D114: 0 | E114: 0 | F114: 0 | G114: 0 | H114: 0 | I114: 0 | J114: 0 | K114: 0
A115: Solid Waste Removal | C115: 0 | D115: 0 | E115: 0 | F115: 0 | G115: 0 | H115: 0 | I115: 0 | J115: 0 | K115: 0
A116: Street Cleaning | C116: 3160152.54 | D116: 3497886.33 | E116: 3738956.98 | F116: 3916306 | G116: 4047084 | H116: 4047084 | I116: 4450000 | J116: 4636900 | K116: 4840924
A117: Other | C117: =SUM(C118:C123) -> 0 | D117: =SUM(D118:D123) -> 0 | E117: 0 | F117: 0 | G117: 0 | H117: 0 | I117: 0 | J117: 0 | K117: 0
A118: Abattoirs | C118: 0 | D118: 0 | E118: 0 | F118: 0 | G118: 0 | H118: 0 | I118: 0 | J118: 0 | K118: 0
A119: Air Transport | C119: 0 | D119: 0 | E119: 0 | F119: 0 | G119: 0 | H119: 0 | I119: 0 | J119: 0 | K119: 0
A120: Forestry | C120: 0 | D120: 0 | E120: 0 | F120: 0 | G120: 0 | H120: 0 | I120: 0 | J120: 0 | K120: 0
A121: Licensing and Regulation | C121: 0 | D121: 0 | E121: 0 | F121: 0 | G121: 0 | H121: 0 | I121: 0 | J121: 0 | K121: 0
A122: Markets | C122: 0 | D122: 0 | E122: 0 | F122: 0 | G122: 0 | H122: 0 | I122: 0 | J122: 0 | K122: 0
A123: Tourism | C123: 0 | D123: 0 | E123: 0 | F123: 0 | G123: 0 | H123: 0 | I123: 0 | J123: 0 | K123: 0
A124: ="Total "&A4 -> Total Revenue - Functional | B124: 2 | C124: =C5+C25+C74+C98+C117 -> 220919633.3 | D124: 258106985.5 | E124: 274117798.6 | F124: 301205903 | G124: 335986264 | H124: 335986264 | I124: 322161650 | J124: 335692433 | K124: 350462902
A126: Expenditure - Functional
A127: =A5 -> Municipal governance and administration | C127: =C128+C131+C145 -> 98182150.12 | D127: 130142430.7 | E127: 126600466.8 | F127: 155348736 | G127: 163144694 | H127: 163144694 | I127: 163245832 | J127: 170979120 | K127: 179403753
A128: Executive and council | C128: =SUM(C129:C130) -> 30871382.14 | D128: 31456578.89 | E128: 28993841.38 | F128: 39544638 | G128: 37249224 | H128: 37249224 | I128: 42870848 | J128: 45123395 | K128: 47561167
A129: Mayor and Council | C129: 15286824.59 | D129: 16496313.41 | E129: 15117586.47 | F129: 17171640 | G129: 17026157 | H129: 17026157 | I129: 17942093 | J129: 18916876 | K129: 19957651
A130: Municipal Manager, Town Secretary and Chief Executive | C130: 15584557.55 | D130: 14960265.48 | E130: 13876254.91 | F130: 22372998 | G130: 20223067 | H130: 20223067 | I130: 24928755 | J130: 26206519 | K130: 27603516
A131: Finance and administration | C131: =SUM(C132:C144) -> 66613408.98 | D131: 98685851.83 | E131: 97606625.46 | F131: 115804098 | G131: 125895470 | H131: 125895470 | I131: 120374984 | J131: 125855725 | K131: 131842586
A132: Administrative and Corporate Support | C132: 560899.06 | D132: 125200.7 | E132: 0 | F132: 0 | G132: 0 | H132: 0 | I132: 0 | J132: 0 | K132: 0
A133: Asset Management | C133: 445265.7 | D133: 875669.24 | E133: 1659689.4 | F133: 25279973 | G133: 24659973 | H133: 24659973 | I133: 20815000 | J133: 21689230 | K133: 22643555
A134: Finance | C134: 51704460.58 | D134: 57868911.07 | E134: 58137956.78 | F134: 61643228 | G134: 70319030 | H134: 70319030 | I134: 69304940 | J134: 72411112 | K134: 75803699
A135: Fleet Management | C135: 805911.5 | D135: 740735.28 | E135: 795657.73 | F135: 1000000 | G135: 1200000 | H135: 1200000 | I135: 1200000 | J135: 1250400 | K135: 1305418
A136: Human Resources | C136: 12325044.34 | D136: 39299521.54 | E136: 36872138.18 | F136: 25630897 | G136: 26466467 | H136: 26466467 | I136: 26555044 | J136: 27899983 | K136: 29370294
A137: Information Technology | C137: 25950 | D137: -599486.34 | E137: 0 | F137: 0 | G137: 0 | H137: 0 | I137: 0 | J137: 0 | K137: 0
A138: Legal Services | C138: 445545.2 | D138: 0 | E138: 0 | F138: 1500000 | G138: 2500000 | H138: 2500000 | I138: 2000000 | J138: 2084000 | K138: 2175696
A139: Marketing, Customer Relations, Publicity and Media Co-ordination | C139: 211457.77 | D139: 0 | E139: 0 | F139: 0 | G139: 0 | H139: 0 | I139: 0 | J139: 0 | K139: 0
A140: Property Services | C140: 48314.83 | D140: 375300.34 | E140: 141183.37 | F140: 750000 | G140: 750000 | H140: 750000 | I140: 500000 | J140: 521000 | K140: 543924
A141: Risk Management | C141: 40560 | D141: 0 | E141: 0 | F141: 0 | G141: 0 | H141: 0 | I141: 0 | J141: 0 | K141: 0
A142: Security Services | C142: 0 | D142: 0 | E142: 0 | F142: 0 | G142: 0 | H142: 0 | I142: 0 | J142: 0 | K142: 0
A143: Supply Chain Management | C143: 0 | D143: 0 | E143: 0 | F143: 0 | G143: 0 | H143: 0 | I143: 0 | J143: 0 | K143: 0
A144: Valuation Service | C144: 0 | D144: 0 | E144: 0 | F144: 0 | G144: 0 | H144: 0 | I144: 0 | J144: 0 | K144: 0
A145: Internal audit | C145: =SUM(C146:C146) -> 697359 | D145: 0 | E145: 0 | F145: 0 | G145: 0 | H145: 0 | I145: 0 | J145: 0 | K145: 0
A146: Governance Function | C146: 697359 | D146: 0 | E146: 0 | F146: 0 | G146: 0 | H146: 0 | I146: 0 | J146: 0 | K146: 0
A147: Community and public safety | C147: =C148+C170+C176+C185+C188 -> 20073581.79 | D147: 37399853.85 | E147: 26699851.14 | F147: 32969048 | G147: 34956248 | H147: 34956248 | I147: 42863044 | J147: 45047336 | K147: 47435351
A148: Community and social services | C148: =SUM(C149:C169) -> 20073581.79 | D148: =SUM(D149:D169) -> 37399853.85 | E148: 26699851.14 | F148: 32969048 | G148: 34956248 | H148: 34956248 | I148: 42863044 | J148: 45047336 | K148: 47435351
A149: Aged Care | C149: 0 | D149: 0 | E149: 0 | F149: 0 | G149: 0 | H149: 0 | I149: 0 | J149: 0 | K149: 0
A150: Agricultural | C150: 0 | D150: 0 | E150: 0 | F150: 0 | G150: 0 | H150: 0 | I150: 0 | J150: 0 | K150: 0
A151: Animal Care and Diseases | C151: 0 | D151: 0 | E151: 0 | F151: 0 | G151: 0 | H151: 0 | I151: 0 | J151: 0 | K151: 0
A152: Cemeteries, Funeral Parlours and Crematoriums | C152: 0 | D152: 0 | E152: 0 | F152: 0 | G152: 0 | H152: 0 | I152: 0 | J152: 0 | K152: 0
A153: Child Care Facilities | C153: 0 | D153: 0 | E153: 0 | F153: 0 | G153: 0 | H153: 0 | I153: 0 | J153: 0 | K153: 0
A154: Community Halls and Facilities | C154: 19901125.79 | D154: 37399853.85 | E154: 26699851.14 | F154: 32969048 | G154: 34956248 | H154: 34956248 | I154: 42863044 | J154: 45047336 | K154: 47435351
A155: Consumer Protection | C155: 0 | D155: 0 | E155: 0 | F155: 0 | G155: 0 | H155: 0 | I155: 0 | J155: 0 | K155: 0
A156: Cultural Matters | C156: 0 | D156: 0 | E156: 0 | F156: 0 | G156: 0 | H156: 0 | I156: 0 | J156: 0 | K156: 0
A157: Disaster Management | C157: 172456 | D157: 0 | E157: 0 | F157: 0 | G157: 0 | H157: 0 | I157: 0 | J157: 0 | K157: 0
A158: Education | C158: 0 | D158: 0 | E158: 0 | F158: 0 | G158: 0 | H158: 0 | I158: 0 | J158: 0 | K158: 0
A159: =A37 -> Indigenous and Customary Law | C159: 0 | D159: 0 | E159: 0 | F159: 0 | G159: 0 | H159: 0 | I159: 0 | J159: 0 | K159: 0
A160: Industrial Promotion | C160: 0 | D160: 0 | E160: 0 | F160: 0 | G160: 0 | H160: 0 | I160: 0 | J160: 0 | K160: 0
A161: Language Policy | C161: 0 | D161: 0 | E161: 0 | F161: 0 | G161: 0 | H161: 0 | I161: 0 | J161: 0 | K161: 0
A162: Libraries and Archives | C162: 0 | D162: 0 | E162: 0 | F162: 0 | G162: 0 | H162: 0 | I162: 0 | J162: 0 | K162: 0
A163: Literacy Programmes | C163: 0 | D163: 0 | E163: 0 | F163: 0 | G163: 0 | H163: 0 | I163: 0 | J163: 0 | K163: 0
A164: Media Services | C164: 0 | D164: 0 | E164: 0 | F164: 0 | G164: 0 | H164: 0 | I164: 0 | J164: 0 | K164: 0
A165: Museums and Art Galleries | C165: 0 | D165: 0 | E165: 0 | F165: 0 | G165: 0 | H165: 0 | I165: 0 | J165: 0 | K165: 0
A166: Population Development | C166: 0 | D166: 0 | E166: 0 | F166: 0 | G166: 0 | H166: 0 | I166: 0 | J166: 0 | K166: 0
A167: Provincial Cultural Matters | C167: 0 | D167: 0 | E167: 0 | F167: 0 | G167: 0 | H167: 0 | I167: 0 | J167: 0 | K167: 0
A168: Theatres | C168: 0 | D168: 0 | E168: 0 | F168: 0 | G168: 0 | H168: 0 | I168: 0 | J168: 0 | K168: 0
A169: Zoo's | C169: 0 | D169: 0 | E169: 0 | F169: 0 | G169: 0 | H169: 0 | I169: 0 | J169: 0 | K169: 0
A170: Sport and recreation | C170: =SUM(C171:C175) -> 0 | D170: 0 | E170: 0 | F170: 0 | G170: 0 | H170: 0 | I170: 0 | J170: 0 | K170: 0
A171: Beaches and Jetties | C171: 0 | D171: 0 | E171: 0 | F171: 0 | G171: 0 | H171: 0 | I171: 0 | J171: 0 | K171: 0
A172: Casinos, Racing, Gambling, Wagering | C172: 0 | D172: 0 | E172: 0 | F172: 0 | G172: 0 | H172: 0 | I172: 0 | J172: 0 | K172: 0
A173: Community Parks (including Nurseries) | C173: 0 | D173: 0 | E173: 0 | F173: 0 | G173: 0 | H173: 0 | I173: 0 | J173: 0 | K173: 0
A174: Recreational Facilities | C174: 0 | D174: 0 | E174: 0 | F174: 0 | G174: 0 | H174: 0 | I174: 0 | J174: 0 | K174: 0
A175: Sports Grounds and Stadiums | C175: 0 | D175: 0 | E175: 0 | F175: 0 | G175: 0 | H175: 0 | I175: 0 | J175: 0 | K175: 0
A176: Public safety | C176: =SUM(C177:C184) -> 0 | D176: 0 | E176: 0 | F176: 0 | G176: 0 | H176: 0 | I176: 0 | J176: 0 | K176: 0
A177: Civil Defence | C177: 0 | D177: 0 | E177: 0 | F177: 0 | G177: 0 | H177: 0 | I177: 0 | J177: 0 | K177: 0
A178: Cleansing | C178: 0 | D178: 0 | E178: 0 | F178: 0 | G178: 0 | H178: 0 | I178: 0 | J178: 0 | K178: 0
A179: =A57 -> Control of Public Nuisances | C179: 0 | D179: 0 | E179: 0 | F179: 0 | G179: 0 | H179: 0 | I179: 0 | J179: 0 | K179: 0
A180: Fencing and Fences | C180: 0 | D180: 0 | E180: 0 | F180: 0 | G180: 0 | H180: 0 | I180: 0 | J180: 0 | K180: 0
A181: Fire Fighting and Protection | C181: 0 | D181: 0 | E181: 0 | F181: 0 | G181: 0 | H181: 0 | I181: 0 | J181: 0 | K181: 0
A182: Licensing and Control of Animals | C182: 0 | D182: 0 | E182: 0 | F182: 0 | G182: 0 | H182: 0 | I182: 0 | J182: 0 | K182: 0
A183: Police Forces, Traffic and Street Parking Control | C183: 0 | D183: 0 | E183: 0 | F183: 0 | G183: 0 | H183: 0 | I183: 0 | J183: 0 | K183: 0
A184: Pounds | C184: 0 | D184: 0 | E184: 0 | F184: 0 | G184: 0 | H184: 0 | I184: 0 | J184: 0 | K184: 0
A185: =A63 -> Housing | C185: =SUM(C186:C187) -> 0 | D185: 0 | E185: 0 | F185: 0 | G185: 0 | H185: 0 | I185: 0 | J185: 0 | K185: 0
A186: Housing | C186: 0 | D186: 0 | E186: 0 | F186: 0 | G186: 0 | H186: 0 | I186: 0 | J186: 0 | K186: 0
A187: Informal Settlements | C187: 0 | D187: 0 | E187: 0 | F187: 0 | G187: 0 | H187: 0 | I187: 0 | J187: 0 | K187: 0
A188: Health | C188: =SUM(C189:C195) -> 0 | D188: =SUM(D189:D195) -> 0 | E188: 0 | F188: 0 | G188: 0 | H188: 0 | I188: 0 | J188: 0 | K188: 0
A189: Ambulance | C189: 0 | D189: 0 | E189: 0 | F189: 0 | G189: 0 | H189: 0 | I189: 0 | J189: 0 | K189: 0
A190: Health Services | C190: 0 | D190: 0 | E190: 0 | F190: 0 | G190: 0 | H190: 0 | I190: 0 | J190: 0 | K190: 0
A191: Laboratory Services | C191: 0 | D191: 0 | E191: 0 | F191: 0 | G191: 0 | H191: 0 | I191: 0 | J191: 0 | K191: 0
A192: Food Control | C192: 0 | D192: 0 | E192: 0 | F192: 0 | G192: 0 | H192: 0 | I192: 0 | J192: 0 | K192: 0
A193: Health Surveillance and Prevention of Communicable Diseases including immunizations | C193: 0 | D193: 0 | E193: 0 | F193: 0 | G193: 0 | H193: 0 | I193: 0 | J193: 0 | K193: 0
A194: Vector Control | C194: 0 | D194: 0 | E194: 0 | F194: 0 | G194: 0 | H194: 0 | I194: 0 | J194: 0 | K194: 0
A195: Chemical Safety | C195: 0 | D195: 0 | E195: 0 | F195: 0 | G195: 0 | H195: 0 | I195: 0 | J195: 0 | K195: 0
A196: Economic and environmental services | C196: =C197+C208+C213 -> 20866323.34 | D196: 22397180.84 | E196: 21400786.03 | F196: 26634483 | G196: 26286955 | H196: 26286955 | I196: 28686818 | J196: 28974730 | K196: 30574548
A197: Planning and development | C197: =SUM(C198:C207) -> 12243374.82 | D197: =SUM(D198:D207) -> 13966663.47 | E197: 12941407.42 | F197: 16580352 | G197: 16370782 | H197: 16370782 | I197: 18102748 | J197: 17792072 | K197: 18737021
A198: Billboards | C198: 0 | D198: 0 | E198: 0 | F198: 0 | G198: 0 | H198: 0 | I198: 0 | J198: 0 | K198: 0
A199: Corporate Wide Strategic Planning (IDPs, LEDs) | C199: 0 | D199: 0 | E199: 0 | F199: 0 | G199: 0 | H199: 0 | I199: 0 | J199: 0 | K199: 0
A200: Central City Improvement District | C200: 0 | D200: 0 | E200: 0 | F200: 0 | G200: 0 | H200: 0 | I200: 0 | J200: 0 | K200: 0
A201: Development Facilitation | C201: 0 | D201: 0 | E201: 0 | F201: 0 | G201: 0 | H201: 0 | I201: 0 | J201: 0 | K201: 0
... 53 more rows

Sheet A3-FinPerf V
A1: =muni&" - "&Approve2 -> Choose name from list - Table A3 Budgeted Financial Performance (revenue and expenditure by municipal vote)
A2: =Vdesc -> Vote Description | B2: =head27 -> Ref | C2: =head1b -> 2017/18 | D2: =head1A -> 2018/19 | E2: =Head1 -> 2019/20 | F2: =Head2 -> Current Year 2020/21 | I2: =Head3 -> 2021/22 Medium Term Revenue & Expenditure Framework | L2: =Head4 -> LTFS
A3: R thousand | C3: =Head5 -> Audited Outcome | D3: =Head5 -> Audited Outcome | E3: =Head5 -> Audited Outcome | F3: =Head6 -> Original Budget | G3: =Head7 -> Adjusted Budget | H3: =Head8 -> Full Year Forecast | I3: =Head9 -> Budget Year 2021/22 | J3: =Head10 -> Budget Year +1 2022/23 | K3: =Head11 -> Budget Year +2 2023/24 | L3: =Head12 -> Forecast 2024/25 | M3: =Head13 -> Forecast 2025/26 | N3: =Head14 -> Forecast 2026/27 | O3: =Head15 -> Forecast 2027/28 | P3: =Head16 -> Forecast 2028/29 | Q3: =Head17 -> Forecast 2029/30 | R3: =Head18 -> Forecast 2030/31 | S3: =Head19 -> Forecast 2031/32 | T3: =Head20 -> Forecast 2032/33 | U3: =Head21 -> Forecast 2033/34 | V3: =Head22 -> Forecast 2034/35 | W3: =Head23 -> Forecast 2035/36
A4: Revenue by Vote | B4: 1
A5: =A3A!A5 -> Vote 1 - Executive and Council | C5: =A3A!C5 -> 0 | D5: =A3A!D5 -> 0 | E5: =A3A!E5 -> 0 | F5: =A3A!F5 -> 0 | G5: =A3A!G5 -> 0 | H5: =A3A!H5 -> 0 | I5: =A3A!I5 -> 0 | J5: =A3A!J5 -> 0 | K5: =A3A!K5 -> 0
A6: =A3A!A16 -> Vote 2 - Budget and treasury | C6: =A3A!C16 -> 209474134.2 | D6: =A3A!D16 -> 245588081.1 | E6: =A3A!E16 -> 264380591.6 | F6: =A3A!F16 -> 279297495 | G6: =A3A!G16 -> 311211665 | H6: =A3A!H16 -> 311211665 | I6: =A3A!I16 -> 296185891 | J6: =A3A!J16 -> 308625695 | K6: =A3A!K16 -> 322205225
A7: =A3A!A27 -> Vote 3 - Corporate Services | C7: =A3A!C27 -> 172410 | D7: =A3A!D27 -> 2423739 | E7: =A3A!E27 -> 122930.63 | F7: =A3A!F27 -> 65386 | G7: =A3A!G27 -> 450162 | H7: =A3A!H27 -> 450162 | I7: =A3A!I27 -> 467718 | J7: =A3A!J27 -> 487363 | K7: =A3A!K27 -> 508806
A8: =A3A!A38 -> Vote 4 - Planning and Development | C8: =A3A!C38 -> 2947525.76 | D8: =A3A!D38 -> 1061973.18 | E8: =A3A!E38 -> 1548872.93 | F8: =A3A!F38 -> 2461123 | G8: =A3A!G38 -> 2289681 | H8: =A3A!H38 -> 2289681 | I8: =A3A!I38 -> 2368849 | J8: =A3A!J38 -> 2468340 | K8: =A3A!K38 -> 2576948
A9: =A3A!A49 -> Vote 5 - Community and Social Services | C9: =A3A!C49 -> 74611.71 | D9: =A3A!D49 -> 90059.35 | E9: =A3A!E49 -> 206271.25 | F9: =A3A!F49 -> 414274 | G9: =A3A!G49 -> 446835 | H9: =A3A!H49 -> 446835 | I9: =A3A!I49 -> 464262 | J9: =A3A!J49 -> 483760 | K9: =A3A!K49 -> 505046
A10: =A3A!A60 -> Vote 6 - Sports and Recreation | C10: =A3A!C60 -> 0 | D10: =A3A!D60 -> 0 | E10: =A3A!E60 -> 0 | F10: =A3A!F60 -> 0 | G10: =A3A!G60 -> 0 | H10: =A3A!H60 -> 0 | I10: =A3A!I60 -> 0 | J10: =A3A!J60 -> 0 | K10: =A3A!K60 -> 0
A11: =A3A!A71 -> Vote 7 - Waste Management | C11: =A3A!C71 -> 3160152.54 | D11: =A3A!D71 -> 3497886.33 | E11: =A3A!E71 -> 3738956.98 | F11: =A3A!F71 -> 3916306 | G11: =A3A!G71 -> 4047084 | H11: =A3A!H71 -> 4047084 | I11: =A3A!I71 -> 4450000 | J11: =A3A!J71 -> 4636900 | K11: =A3A!K71 -> 4840924
A12: =A3A!A82 -> Vote 8 - Waste water Management | C12: =A3A!C82 -> 3833.49 | D12: =A3A!D82 -> 0 | E12: =A3A!E82 -> 0 | F12: =A3A!F82 -> 0 | G12: =A3A!G82 -> 0 | H12: =A3A!H82 -> 0 | I12: =A3A!I82 -> 0 | J12: =A3A!J82 -> 0 | K12: =A3A!K82 -> 0
A13: =A3A!A93 -> Vote 9 - Roads and Transport | C13: =A3A!C93 -> 5079681.43 | D13: =A3A!D93 -> 5445246.54 | E13: =A3A!E93 -> 4237966.63 | F13: =A3A!F93 -> 15051319 | G13: =A3A!G93 -> 17540837 | H13: =A3A!H93 -> 17540837 | I13: =A3A!I93 -> 18224930 | J13: =A3A!J93 -> 18990375 | K13: =A3A!K93 -> 19825953
A14: =A3A!A104 -> Vote 10 - Water | C14: =A3A!C104 -> 7284.18 | D14: =A3A!D104 -> 0 | E14: =A3A!E104 -> -117791.47 | F14: =A3A!F104 -> 0 | G14: =A3A!G104 -> 0 | H14: =A3A!H104 -> 0 | I14: =A3A!I104 -> 0 | J14: =A3A!J104 -> 0 | K14: =A3A!K104 -> 0
A15: =A3A!A115 -> Vote 11 - Public Safety | C15: =A3A!C115 -> 0 | D15: =A3A!D115 -> 0 | E15: =A3A!E115 -> 0 | F15: =A3A!F115 -> 0 | G15: =A3A!G115 -> 0 | H15: =A3A!H115 -> 0 | I15: =A3A!I115 -> 0 | J15: =A3A!J115 -> 0 | K15: =A3A!K115 -> 0 | L15: =A5A!L115 -> 0
A16: =A3A!A126 -> Vote 12 - Electricity Distribution | C16: =A3A!C126 -> 0 | D16: =A3A!D126 -> 0 | E16: =A3A!E126 -> 0 | F16: =A3A!F126 -> 0 | G16: =A3A!G126 -> 0 | H16: =A3A!H126 -> 0 | I16: =A3A!I126 -> 0 | J16: =A3A!J126 -> 0 | K16: =A3A!K126 -> 0 | L16: =A5A!L126 -> 0
A17: =A3A!A137 -> Vote 13 - | C17: =A3A!C137 -> 0 | D17: =A3A!D137 -> 0 | E17: =A3A!E137 -> 0 | F17: =A3A!F137 -> 0 | G17: =A3A!G137 -> 0 | H17: =A3A!H137 -> 0 | I17: =A3A!I137 -> 0 | J17: =A3A!J137 -> 0 | K17: =A3A!K137 -> 0 | L17: =A5A!L137 -> 0
A18: =A3A!A148 -> Vote 14 - | C18: =A3A!C148 -> 0 | D18: =A3A!D148 -> 0 | E18: =A3A!E148 -> 0 | F18: =A3A!F148 -> 0 | G18: =A3A!G148 -> 0 | H18: =A3A!H148 -> 0 | I18: =A3A!I148 -> 0 | J18: =A3A!J148 -> 0 | K18: =A3A!K148 -> 0 | L18: =A5A!L148 -> 0
A19: =A3A!A159 -> Vote 15 - | C19: =A3A!C159 -> 0 | D19: =A3A!D159 -> 0 | E19: =A3A!E159 -> 0 | F19: =A3A!F159 -> 0 | G19: =A3A!G159 -> 0 | H19: =A3A!H159 -> 0 | I19: =A3A!I159 -> 0 | J19: =A3A!J159 -> 0 | K19: =A3A!K159 -> 0 | L19: =A5A!L159 -> 0
A20: Total Revenue by Vote | B20: 2 | C20: =SUM(C5:C19) -> 220919633.3 | D20: =SUM(D5:D19) -> 258106985.5 | E20: 274117798.6 | F20: 301205903 | G20: 335986264 | H20: 335986264 | I20: 322161650 | J20: 335692433 | K20: 350462902
A22: Expenditure by Vote to be appropriated | B22: 1
A23: =A3A!A173 -> Vote 1 - Executive and Council | C23: =A3A!C173 -> 30871382.14 | D23: =A3A!D173 -> 31456578.89 | E23: =A3A!E173 -> 28993841.38 | F23: =A3A!F173 -> 39544638 | G23: =A3A!G173 -> 37249224 | H23: =A3A!H173 -> 37249224 | I23: =A3A!I173 -> 42870848 | J23: =A3A!J173 -> 45123395 | K23: =A3A!K173 -> 47561167
A24: =A3A!A184 -> Vote 2 - Budget and treasury | C24: =A3A!C184 -> 52887924.78 | D24: =A3A!D184 -> 57868911.07 | E24: =A3A!E184 -> 58137956.78 | F24: =A3A!F184 -> 63143228 | G24: =A3A!G184 -> 72819030 | H24: =A3A!H184 -> 72819030 | I24: =A3A!I184 -> 71304940 | J24: =A3A!J184 -> 74495112 | K24: =A3A!K184 -> 77979395
A25: =A3A!A195 -> Vote 3 - Corporate Services | C25: =A3A!C195 -> 14449175.2 | D25: =A3A!D195 -> 40816940.76 | E25: =A3A!E195 -> 39468668.68 | F25: =A3A!F195 -> 52660870 | G25: =A3A!G195 -> 53076440 | H25: =A3A!H195 -> 53076440 | I25: =A3A!I195 -> 49070044 | J25: =A3A!J195 -> 51360613 | K25: =A3A!K195 -> 53863191
A26: =A3A!A206 -> Vote 4 - Planning and Development | C26: =A3A!C206 -> 12243374.82 | D26: =A3A!D206 -> 13966663.47 | E26: =A3A!E206 -> 12941407.42 | F26: =A3A!F206 -> 16580352 | G26: =A3A!G206 -> 16370782 | H26: =A3A!H206 -> 16370782 | I26: =A3A!I206 -> 18102748 | J26: =A3A!J206 -> 17792072 | K26: =A3A!K206 -> 18737021
A27: =A3A!A217 -> Vote 5 - Community and Social Services | C27: =A3A!C217 -> 20073581.79 | D27: =A3A!D217 -> 37399853.85 | E27: =A3A!E217 -> 26699851.14 | F27: =A3A!F217 -> 32969048 | G27: =A3A!G217 -> 34956248 | H27: =A3A!H217 -> 34956248 | I27: =A3A!I217 -> 42863044 | J27: =A3A!J217 -> 45047336 | K27: =A3A!K217 -> 47435351
A28: =A3A!A228 -> Vote 6 - Sports and Recreation | C28: =A3A!C228 -> 0 | D28: =A3A!D228 -> 0 | E28: =A3A!E228 -> 0 | F28: =A3A!F228 -> 0 | G28: =A3A!G228 -> 0 | H28: =A3A!H228 -> 0 | I28: =A3A!I228 -> 0 | J28: =A3A!J228 -> 0 | K28: =A3A!K228 -> 0
A29: =A3A!A239 -> Vote 7 - Waste Management | C29: =A3A!C239 -> 4712514.45 | D29: =A3A!D239 -> 0 | E29: =A3A!E239 -> 7967957.76 | F29: =A3A!F239 -> 9200000 | G29: =A3A!G239 -> 8200000 | H29: =A3A!H239 -> 8200000 | I29: =A3A!I239 -> 6800000 | J29: =A3A!J239 -> 7085600 | K29: =A3A!K239 -> 7397366
A30: =A3A!A250 -> Vote 8 - Waste water Management | C30: =A3A!C250 -> 0 | D30: =A3A!D250 -> 0 | E30: =A3A!E250 -> 0 | F30: =A3A!F250 -> 0 | G30: =A3A!G250 -> 0 | H30: =A3A!H250 -> 0 | I30: =A3A!I250 -> 0 | J30: =A3A!J250 -> 0 | K30: =A3A!K250 -> 0
A31: =A3A!A261 -> Vote 9 - Roads and Transport | C31: =A3A!C261 -> 8622948.52 | D31: =A3A!D261 -> 8430517.37 | E31: =A3A!E261 -> 8459378.61 | F31: =A3A!F261 -> 10054131 | G31: =A3A!G261 -> 9916173 | H31: =A3A!H261 -> 9916173 | I31: =A3A!I261 -> 10584070 | J31: =A3A!J261 -> 11182658 | K31: =A3A!K261 -> 11837527
A32: =A3A!A272 -> Vote 10 - Water | C32: =A3A!C272 -> 0 | D32: =A3A!D272 -> 140056.27 | E32: =A3A!E272 -> 8740 | F32: =A3A!F272 -> 0 | G32: =A3A!G272 -> 0 | H32: =A3A!H272 -> 0 | I32: =A3A!I272 -> 0 | J32: =A3A!J272 -> 0 | K32: =A3A!K272 -> 0
A33: =A3A!A283 -> Vote 11 - Public Safety | C33: =A3A!C283 -> 0 | D33: =A3A!D283 -> 0 | E33: =A3A!E283 -> 0 | F33: =A3A!F283 -> 0 | G33: =A3A!G283 -> 0 | H33: =A3A!H283 -> 0 | I33: =A3A!I283 -> 0 | J33: =A3A!J283 -> 0 | K33: =A3A!K283 -> 0 | L33: =A3A!L284 -> 0
A34: =A3A!A294 -> Vote 12 - Electricity Distribution | C34: =A3A!C294 -> 1135409.12 | D34: =A3A!D294 -> 332118.31 | E34: =A3A!E294 -> 608293.17 | F34: =A3A!F294 -> 1500000 | G34: =A3A!G294 -> 750000 | H34: =A3A!H294 -> 750000 | I34: =A3A!I294 -> 1000000 | J34: =A3A!J294 -> 1042000 | K34: =A3A!K294 -> 1087848 | L34: =A3A!L295 -> 0
A35: =A3A!A305 -> Vote 13 - | C35: =A3A!C305 -> 0 | D35: =A3A!D305 -> 0 | E35: =A3A!E305 -> 0 | F35: =A3A!F305 -> 0 | G35: =A3A!G305 -> 0 | H35: =A3A!H305 -> 0 | I35: =A3A!I305 -> 0 | J35: =A3A!J305 -> 0 | K35: =A3A!K305 -> 0 | L35: =A3A!L306 -> 0
A36: =A3A!A316 -> Vote 14 - | C36: =A3A!C316 -> 0 | D36: =A3A!D316 -> 0 | E36: =A3A!E316 -> 0 | F36: =A3A!F316 -> 0 | G36: =A3A!G316 -> 0 | H36: =A3A!H316 -> 0 | I36: =A3A!I316 -> 0 | J36: =A3A!J316 -> 0 | K36: =A3A!K316 -> 0 | L36: =A3A!L317 -> 0
A37: =A3A!A327 -> Vote 15 - | C37: =A3A!C327 -> 0 | D37: =A3A!D327 -> 0 | E37: =A3A!E327 -> 0 | F37: =A3A!F327 -> 0 | G37: =A3A!G327 -> 0 | H37: =A3A!H327 -> 0 | I37: =A3A!I327 -> 0 | J37: =A3A!J327 -> 0 | K37: =A3A!K327 -> 0 | L37: =A3A!L328 -> 0
A38: Total Expenditure by Vote | B38: 2 | C38: =SUM(C23:C37) -> 144996310.8 | D38: =SUM(D23:D37) -> 190411640 | E38: 183286094.9 | F38: 225652267 | G38: 233337897 | H38: 233337897 | I38: 242595694 | J38: 253128786 | K38: 265898866 | L38: =SUM(L23:L29) -> 0 | M38: 0 | N38: 0 | O38: 0 | P38: 0 | Q38: 0 | R38: 0 | S38: 0 | T38: 0 | U38: 0 | V38: 0 | W38: 0
A39: =result -> Surplus/(Deficit) for the year | B39: 2 | C39: =C20-C38 -> 75923322.47 | D39: 67695345.55 | E39: 90831703.63 | F39: 75553636 | G39: 102648367 | H39: 102648367 | I39: 79565956 | J39: 82563647 | K39: 84564036 | L39: 0 | M39: 0 | N39: 0 | O39: 0 | P39: 0 | Q39: 0 | R39: 0 | S39: 0 | T39: 0 | U39: 0 | V39: 0 | W39: 0
A40: =head27a -> References
A41: 1. Insert 'Vote'; e.g. department, if different to functional classification structure
A42: 2. Must reconcile to Budgeted Financial Performance (revenue and expenditure)
A43: 3. Assign share in 'associate' to relevant Vote
A45: ="check "&A39 -> check Surplus/(Deficit) for the year | C45: =C39-A3A!C340 -> 0 | D45: =D39-A3A!D340 -> 0 | E45: =E39-A3A!E340 -> 0 | F45: =F39-A3A!F340 -> 0 | G45: =G39-A3A!G340 -> 0 | H45: =H39-A3A!H340 -> 0 | I45: =I39-A3A!I340 -> 0 | J45: =J39-A3A!J340 -> 0 | K45: =K39-A3A!K340 -> 0

Sheet A3A
A1: =muni&" - "&Approve2&"A" -> Choose name from list - Table A3 Budgeted Financial Performance (revenue and expenditure by municipal vote)A
A2: =Vdesc -> Vote Description | B2: =head27 -> Ref | C2: =head1b -> 2017/18 | D2: =head1A -> 2018/19 | E2: =Head1 -> 2019/20 | F2: =Head2 -> Current Year 2020/21 | I2: =Head3 -> 2021/22 Medium Term Revenue & Expenditure Framework | L2: =Head4 -> LTFS
A3: R thousand | C3: =Head5 -> Audited Outcome | D3: =Head5 -> Audited Outcome | E3: =Head5 -> Audited Outcome | F3: =Head6 -> Original Budget | G3: =Head7 -> Adjusted Budget | H3: =Head8 -> Full Year Forecast | I3: =Head9 -> Budget Year 2021/22 | J3: =Head10 -> Budget Year +1 2022/23 | K3: =Head11 -> Budget Year +2 2023/24 | L3: =Head12 -> Forecast 2024/25 | M3: =Head13 -> Forecast 2025/26 | N3: =Head14 -> Forecast 2026/27 | O3: =Head15 -> Forecast 2027/28 | P3: =Head16 -> Forecast 2028/29 | Q3: =Head17 -> Forecast 2029/30 | R3: =Head18 -> Forecast 2030/31 | S3: =Head19 -> Forecast 2031/32 | T3: =Head20 -> Forecast 2032/33 | U3: =Head21 -> Forecast 2033/34 | V3: =Head22 -> Forecast 2034/35 | W3: =Head23 -> Forecast 2035/36
A4: Revenue by Vote | B4: 1
A5: ='Org structure'!A2 -> Vote 1 - Executive and Council | C5: =SUM(C6:C15) -> 0 | D5: =SUM(D6:D15) -> 0 | E5: 0 | F5: 0 | G5: 0 | H5: 0 | I5: 0 | J5: 0 | K5: 0
A6: ='Org structure'!E3 -> 1.1 - [Name of sub-vote] | C6: 0 | D6: 0 | E6: 0 | F6: 0 | G6: 0 | H6: 0 | I6: 0 | J6: 0 | K6: 0
A7: ='Org structure'!E4 -> 0 | C7: 0 | D7: 0 | E7: 0 | F7: 0 | G7: 0 | H7: 0 | I7: 0 | J7: 0 | K7: 0
A8: ='Org structure'!E5 -> 0 | C8: 0 | D8: 0 | E8: 0 | F8: 0 | G8: 0 | H8: 0 | I8: 0 | J8: 0 | K8: 0
A9: ='Org structure'!E6 -> 0 | C9: 0 | D9: 0 | E9: 0 | F9: 0 | G9: 0 | H9: 0 | I9: 0 | J9: 0 | K9: 0
A10: ='Org structure'!E7 -> 0 | C10: 0 | D10: 0 | E10: 0 | F10: 0 | G10: 0 | H10: 0 | I10: 0 | J10: 0 | K10: 0
A11: ='Org structure'!E8 -> 0 | C11: 0 | D11: 0 | E11: 0 | F11: 0 | G11: 0 | H11: 0 | I11: 0 | J11: 0 | K11: 0
A12: ='Org structure'!E9 -> 0 | C12: 0 | D12: 0 | E12: 0 | F12: 0 | G12: 0 | H12: 0 | I12: 0 | J12: 0 | K12: 0
A13: ='Org structure'!E10 -> 0 | C13: 0 | D13: 0 | E13: 0 | F13: 0 | G13: 0 | H13: 0 | I13: 0 | J13: 0 | K13: 0
A14: ='Org structure'!E11 -> 0 | C14: 0 | D14: 0 | E14: 0 | F14: 0 | G14: 0 | H14: 0 | I14: 0 | J14: 0 | K14: 0
A15: ='Org structure'!E12 -> 0 | C15: 0 | D15: 0 | E15: 0 | F15: 0 | G15: 0 | H15: 0 | I15: 0 | J15: 0 | K15: 0
A16: ='Org structure'!A3 -> Vote 2 - Budget and treasury | C16: =SUM(C17:C26) -> 209474134.2 | D16: =SUM(D17:D26) -> 245588081.1 | E16: 264380591.6 | F16: 279297495 | G16: 311211665 | H16: 311211665 | I16: 296185891 | J16: 308625695 | K16: 322205225
A17: ='Org structure'!E14 -> 2.1 - [Name of sub-vote] | C17: 209474134.2 | D17: 245588081.1 | E17: 264380591.6 | F17: 279297495 | G17: 311211665 | H17: 311211665 | I17: 296185891 | J17: 308625695 | K17: 322205225
A18: ='Org structure'!E15 -> 0 | C18: 0 | D18: 0 | E18: 0 | F18: 0 | G18: 0 | H18: 0 | I18: 0 | J18: 0 | K18: 0
A19: ='Org structure'!E16 -> 0 | C19: 0 | D19: 0 | E19: 0 | F19: 0 | G19: 0 | H19: 0 | I19: 0 | J19: 0 | K19: 0
A20: ='Org structure'!E17 -> 0 | C20: 0 | D20: 0 | E20: 0 | F20: 0 | G20: 0 | H20: 0 | I20: 0 | J20: 0 | K20: 0
A21: ='Org structure'!E18 -> 0 | C21: 0 | D21: 0 | E21: 0 | F21: 0 | G21: 0 | H21: 0 | I21: 0 | J21: 0 | K21: 0
A22: ='Org structure'!E19 -> 0 | C22: 0 | D22: 0 | E22: 0 | F22: 0 | G22: 0 | H22: 0 | I22: 0 | J22: 0 | K22: 0
A23: ='Org structure'!E20 -> 0 | C23: 0 | D23: 0 | E23: 0 | F23: 0 | G23: 0 | H23: 0 | I23: 0 | J23: 0 | K23: 0
A24: ='Org structure'!E21 -> 0 | C24: 0 | D24: 0 | E24: 0 | F24: 0 | G24: 0 | H24: 0 | I24: 0 | J24: 0 | K24: 0
A25: ='Org structure'!E22 -> 0 | C25: 0 | D25: 0 | E25: 0 | F25: 0 | G25: 0 | H25: 0 | I25: 0 | J25: 0 | K25: 0
A26: ='Org structure'!E23 -> 0 | C26: 0 | D26: 0 | E26: 0 | F26: 0 | G26: 0 | H26: 0 | I26: 0 | J26: 0 | K26: 0
A27: ='Org structure'!A4 -> Vote 3 - Corporate Services | C27: =SUM(C28:C37) -> 172410 | D27: 2423739 | E27: 122930.63 | F27: 65386 | G27: 450162 | H27: 450162 | I27: 467718 | J27: 487363 | K27: 508806
A28: ='Org structure'!E25 -> 3.1 - [Name of sub-vote] | C28: 0 | D28: 0 | E28: 0 | F28: 65386 | G28: 65386 | H28: 65386 | I28: 67936 | J28: 70790 | K28: 73904
A29: ='Org structure'!E26 -> 0 | C29: 0 | D29: 0 | E29: 0 | F29: 0 | G29: 0 | H29: 0 | I29: 0 | J29: 0 | K29: 0
A30: ='Org structure'!E27 -> 0 | C30: 0 | D30: 0 | E30: 0 | F30: 0 | G30: 0 | H30: 0 | I30: 0 | J30: 0 | K30: 0
A31: ='Org structure'!E28 -> 0 | C31: 172410 | D31: 2423739 | E31: 122930.63 | F31: 0 | G31: 384776 | H31: 384776 | I31: 399782 | J31: 416573 | K31: 434902
A32: ='Org structure'!E29 -> 0 | C32: 0 | D32: 0 | E32: 0 | F32: 0 | G32: 0 | H32: 0 | I32: 0 | J32: 0 | K32: 0
A33: ='Org structure'!E30 -> 0 | C33: 0 | D33: 0 | E33: 0 | F33: 0 | G33: 0 | H33: 0 | I33: 0 | J33: 0 | K33: 0
A34: ='Org structure'!E31 -> 0 | C34: 0 | D34: 0 | E34: 0 | F34: 0 | G34: 0 | H34: 0 | I34: 0 | J34: 0 | K34: 0
A35: ='Org structure'!E32 -> 0 | C35: 0 | D35: 0 | E35: 0 | F35: 0 | G35: 0 | H35: 0 | I35: 0 | J35: 0 | K35: 0
A36: ='Org structure'!E33 -> 0 | C36: 0 | D36: 0 | E36: 0 | F36: 0 | G36: 0 | H36: 0 | I36: 0 | J36: 0 | K36: 0
A37: ='Org structure'!E34 -> 0 | C37: 0 | D37: 0 | E37: 0 | F37: 0 | G37: 0 | H37: 0 | I37: 0 | J37: 0 | K37: 0
A38: ='Org structure'!A5 -> Vote 4 - Planning and Development | C38: =SUM(C39:C48) -> 2947525.76 | D38: 1061973.18 | E38: 1548872.93 | F38: 2461123 | G38: 2289681 | H38: 2289681 | I38: 2368849 | J38: 2468340 | K38: 2576948
A39: ='Org structure'!E36 -> 4.1 - [Name of sub-vote] | C39: 0 | D39: 0 | E39: 0 | F39: 0 | G39: 0 | H39: 0 | I39: 0 | J39: 0 | K39: 0
A40: ='Org structure'!E37 -> 0 | C40: 2947525.76 | D40: 1061973.18 | E40: 1548872.93 | F40: 2461123 | G40: 2289681 | H40: 2289681 | I40: 2368849 | J40: 2468340 | K40: 2576948
A41: ='Org structure'!E38 -> 0 | C41: 0 | D41: 0 | E41: 0 | F41: 0 | G41: 0 | H41: 0 | I41: 0 | J41: 0 | K41: 0
A42: ='Org structure'!E39 -> 0 | C42: 0 | D42: 0 | E42: 0 | F42: 0 | G42: 0 | H42: 0 | I42: 0 | J42: 0 | K42: 0
A43: ='Org structure'!E40 -> 0 | C43: 0 | D43: 0 | E43: 0 | F43: 0 | G43: 0 | H43: 0 | I43: 0 | J43: 0 | K43: 0
A44: ='Org structure'!E41 -> 0 | C44: 0 | D44: 0 | E44: 0 | F44: 0 | G44: 0 | H44: 0 | I44: 0 | J44: 0 | K44: 0
A45: ='Org structure'!E42 -> 0 | C45: 0 | D45: 0 | E45: 0 | F45: 0 | G45: 0 | H45: 0 | I45: 0 | J45: 0 | K45: 0
A46: ='Org structure'!E43 -> 0 | C46: 0 | D46: 0 | E46: 0 | F46: 0 | G46: 0 | H46: 0 | I46: 0 | J46: 0 | K46: 0
A47: ='Org structure'!E44 -> 0 | C47: 0 | D47: 0 | E47: 0 | F47: 0 | G47: 0 | H47: 0 | I47: 0 | J47: 0 | K47: 0
A48: ='Org structure'!E45 -> 0 | C48: 0 | D48: 0 | E48: 0 | F48: 0 | G48: 0 | H48: 0 | I48: 0 | J48: 0 | K48: 0
A49: ='Org structure'!A6 -> Vote 5 - Community and Social Services | C49: =SUM(C50:C59) -> 74611.71 | D49: =SUM(D50:D59) -> 90059.35 | E49: 206271.25 | F49: 414274 | G49: 446835 | H49: 446835 | I49: 464262 | J49: 483760 | K49: 505046
A50: ='Org structure'!E47 -> 5.1 - [Name of sub-vote] | C50: 1189.56 | D50: 2275.21 | E50: 3364.91 | F50: 0 | G50: 0 | H50: 0 | I50: 0 | J50: 0 | K50: 0
A51: ='Org structure'!E48 -> 0 | C51: 0 | D51: 0 | E51: 0 | F51: 0 | G51: 0 | H51: 0 | I51: 0 | J51: 0 | K51: 0
A52: ='Org structure'!E49 -> 0 | C52: 73422.15 | D52: 87784.14 | E52: 53906.34 | F52: 414274 | G52: 446835 | H52: 446835 | I52: 464262 | J52: 483760 | K52: 505046
A53: ='Org structure'!E50 -> 0 | C53: 0 | D53: 0 | E53: 0 | F53: 0 | G53: 0 | H53: 0 | I53: 0 | J53: 0 | K53: 0
A54: ='Org structure'!E51 -> 0 | C54: 0 | D54: 0 | E54: 0 | F54: 0 | G54: 0 | H54: 0 | I54: 0 | J54: 0 | K54: 0
A55: ='Org structure'!E52 -> 0 | C55: 0 | D55: 0 | E55: 0 | F55: 0 | G55: 0 | H55: 0 | I55: 0 | J55: 0 | K55: 0
A56: ='Org structure'!E53 -> 0 | C56: 0 | D56: 0 | E56: 149000 | F56: 0 | G56: 0 | H56: 0 | I56: 0 | J56: 0 | K56: 0
A57: ='Org structure'!E54 -> 0 | C57: 0 | D57: 0 | E57: 0 | F57: 0 | G57: 0 | H57: 0 | I57: 0 | J57: 0 | K57: 0
A58: ='Org structure'!E55 -> 0 | C58: 0 | D58: 0 | E58: 0 | F58: 0 | G58: 0 | H58: 0 | I58: 0 | J58: 0 | K58: 0
A59: ='Org structure'!E56 -> 0 | C59: 0 | D59: 0 | E59: 0 | F59: 0 | G59: 0 | H59: 0 | I59: 0 | J59: 0 | K59: 0
A60: ='Org structure'!A7 -> Vote 6 - Sports and Recreation | C60: =SUM(C61:C70) -> 0 | D60: =SUM(D61:D70) -> 0 | E60: 0 | F60: 0 | G60: 0 | H60: 0 | I60: 0 | J60: 0 | K60: 0
A61: ='Org structure'!E58 -> 6.1 - [Name of sub-vote] | C61: 0 | D61: 0 | E61: 0 | F61: 0 | G61: 0 | H61: 0 | I61: 0 | J61: 0 | K61: 0
A62: ='Org structure'!E59 -> 0 | C62: 0 | D62: 0 | E62: 0 | F62: 0 | G62: 0 | H62: 0 | I62: 0 | J62: 0 | K62: 0
A63: ='Org structure'!E60 -> 0 | C63: 0 | D63: 0 | E63: 0 | F63: 0 | G63: 0 | H63: 0 | I63: 0 | J63: 0 | K63: 0
A64: ='Org structure'!E61 -> 0 | C64: 0 | D64: 0 | E64: 0 | F64: 0 | G64: 0 | H64: 0 | I64: 0 | J64: 0 | K64: 0
A65: ='Org structure'!E62 -> 0 | C65: 0 | D65: 0 | E65: 0 | F65: 0 | G65: 0 | H65: 0 | I65: 0 | J65: 0 | K65: 0
A66: ='Org structure'!E63 -> 0 | C66: 0 | D66: 0 | E66: 0 | F66: 0 | G66: 0 | H66: 0 | I66: 0 | J66: 0 | K66: 0
A67: ='Org structure'!E64 -> 0 | C67: 0 | D67: 0 | E67: 0 | F67: 0 | G67: 0 | H67: 0 | I67: 0 | J67: 0 | K67: 0
A68: ='Org structure'!E65 -> 0 | C68: 0 | D68: 0 | E68: 0 | F68: 0 | G68: 0 | H68: 0 | I68: 0 | J68: 0 | K68: 0
A69: ='Org structure'!E66 -> 0 | C69: 0 | D69: 0 | E69: 0 | F69: 0 | G69: 0 | H69: 0 | I69: 0 | J69: 0 | K69: 0
A70: ='Org structure'!E67 -> 0 | C70: 0 | D70: 0 | E70: 0 | F70: 0 | G70: 0 | H70: 0 | I70: 0 | J70: 0 | K70: 0
A71: ='Org structure'!A8 -> Vote 7 - Waste Management | C71: =SUM(C72:C81) -> 3160152.54 | D71: 3497886.33 | E71: 3738956.98 | F71: 3916306 | G71: 4047084 | H71: 4047084 | I71: 4450000 | J71: 4636900 | K71: 4840924
A72: ='Org structure'!E69 -> 7.1 - [Name of sub-vote] | C72: 3160152.54 | D72: 3497886.33 | E72: 3738956.98 | F72: 3916306 | G72: 4047084 | H72: 4047084 | I72: 4450000 | J72: 4636900 | K72: 4840924
A73: ='Org structure'!E70 -> 0 | C73: 0 | D73: 0 | E73: 0 | F73: 0 | G73: 0 | H73: 0 | I73: 0 | J73: 0 | K73: 0
A74: ='Org structure'!E71 -> 0 | C74: 0 | D74: 0 | E74: 0 | F74: 0 | G74: 0 | H74: 0 | I74: 0 | J74: 0 | K74: 0
A75: ='Org structure'!E72 -> 0 | C75: 0 | D75: 0 | E75: 0 | F75: 0 | G75: 0 | H75: 0 | I75: 0 | J75: 0 | K75: 0
A76: ='Org structure'!E73 -> 0 | C76: 0 | D76: 0 | E76: 0 | F76: 0 | G76: 0 | H76: 0 | I76: 0 | J76: 0 | K76: 0
A77: ='Org structure'!E74 -> 0 | C77: 0 | D77: 0 | E77: 0 | F77: 0 | G77: 0 | H77: 0 | I77: 0 | J77: 0 | K77: 0
A78: ='Org structure'!E75 -> 0 | C78: 0 | D78: 0 | E78: 0 | F78: 0 | G78: 0 | H78: 0 | I78: 0 | J78: 0 | K78: 0
A79: ='Org structure'!E76 -> 0 | C79: 0 | D79: 0 | E79: 0 | F79: 0 | G79: 0 | H79: 0 | I79: 0 | J79: 0 | K79: 0
A80: ='Org structure'!E77 -> 0 | C80: 0 | D80: 0 | E80: 0 | F80: 0 | G80: 0 | H80: 0 | I80: 0 | J80: 0 | K80: 0
A81: ='Org structure'!E78 -> 0 | C81: 0 | D81: 0 | E81: 0 | F81: 0 | G81: 0 | H81: 0 | I81: 0 | J81: 0 | K81: 0
A82: ='Org structure'!A9 -> Vote 8 - Waste water Management | C82: =SUM(C83:C92) -> 3833.49 | D82: =SUM(D83:D92) -> 0 | E82: 0 | F82: 0 | G82: 0 | H82: 0 | I82: 0 | J82: 0 | K82: 0
A83: ='Org structure'!E80 -> 8.1 - [Name of sub-vote] | C83: 3833.49 | D83: 0 | E83: 0 | F83: 0 | G83: 0 | H83: 0 | I83: 0 | J83: 0 | K83: 0
A84: ='Org structure'!E81 -> 0 | C84: 0 | D84: 0 | E84: 0 | F84: 0 | G84: 0 | H84: 0 | I84: 0 | J84: 0 | K84: 0
A85: ='Org structure'!E82 -> 0 | C85: 0 | D85: 0 | E85: 0 | F85: 0 | G85: 0 | H85: 0 | I85: 0 | J85: 0 | K85: 0
A86: ='Org structure'!E83 -> 0 | C86: 0 | D86: 0 | E86: 0 | F86: 0 | G86: 0 | H86: 0 | I86: 0 | J86: 0 | K86: 0
A87: ='Org structure'!E84 -> 0 | C87: 0 | D87: 0 | E87: 0 | F87: 0 | G87: 0 | H87: 0 | I87: 0 | J87: 0 | K87: 0
A88: ='Org structure'!E85 -> 0 | C88: 0 | D88: 0 | E88: 0 | F88: 0 | G88: 0 | H88: 0 | I88: 0 | J88: 0 | K88: 0
A89: ='Org structure'!E86 -> 0 | C89: 0 | D89: 0 | E89: 0 | F89: 0 | G89: 0 | H89: 0 | I89: 0 | J89: 0 | K89: 0
A90: ='Org structure'!E87 -> 0 | C90: 0 | D90: 0 | E90: 0 | F90: 0 | G90: 0 | H90: 0 | I90: 0 | J90: 0 | K90: 0
A91: ='Org structure'!E88 -> 0 | C91: 0 | D91: 0 | E91: 0 | F91: 0 | G91: 0 | H91: 0 | I91: 0 | J91: 0 | K91: 0
A92: ='Org structure'!E89 -> 0 | C92: 0 | D92: 0 | E92: 0 | F92: 0 | G92: 0 | H92: 0 | I92: 0 | J92: 0 | K92: 0
A93: ='Org structure'!A10 -> Vote 9 - Roads and Transport | C93: =SUM(C94:C103) -> 5079681.43 | D93: =SUM(D94:D103) -> 5445246.54 | E93: 4237966.63 | F93: 15051319 | G93: 17540837 | H93: 17540837 | I93: 18224930 | J93: 18990375 | K93: 19825953
A94: ='Org structure'!E91 -> 9.1 - [Name of sub-vote] | C94: 134400 | D94: 348089.26 | E94: 162346.54 | F94: 544105 | G94: 544105 | H94: 544105 | I94: 565325 | J94: 589068 | K94: 614987
A95: ='Org structure'!E92 -> 0 | C95: 0 | D95: 0 | E95: 0 | F95: 0 | G95: 0 | H95: 0 | I95: 0 | J95: 0 | K95: 0
A96: ='Org structure'!E93 -> 0 | C96: 0 | D96: 0 | E96: 0 | F96: 0 | G96: 0 | H96: 0 | I96: 0 | J96: 0 | K96: 0
A97: ='Org structure'!E94 -> 0 | C97: 4945281.43 | D97: 5097157.28 | E97: 4075620.09 | F97: 14507214 | G97: 16996732 | H97: 16996732 | I97: 17659605 | J97: 18401307 | K97: 19210966
A98: ='Org structure'!E95 -> 0 | C98: 0 | D98: 0 | E98: 0 | F98: 0 | G98: 0 | H98: 0 | I98: 0 | J98: 0 | K98: 0
A99: ='Org structure'!E96 -> 0 | C99: 0 | D99: 0 | E99: 0 | F99: 0 | G99: 0 | H99: 0 | I99: 0 | J99: 0 | K99: 0
A100: ='Org structure'!E97 -> 0 | C100: 0 | D100: 0 | E100: 0 | F100: 0 | G100: 0 | H100: 0 | I100: 0 | J100: 0 | K100: 0
A101: ='Org structure'!E98 -> 0 | C101: 0 | D101: 0 | E101: 0 | F101: 0 | G101: 0 | H101: 0 | I101: 0 | J101: 0 | K101: 0
A102: ='Org structure'!E99 -> 0 | C102: 0 | D102: 0 | E102: 0 | F102: 0 | G102: 0 | H102: 0 | I102: 0 | J102: 0 | K102: 0
A103: ='Org structure'!E100 -> 0 | C103: 0 | D103: 0 | E103: 0 | F103: 0 | G103: 0 | H103: 0 | I103: 0 | J103: 0 | K103: 0
A104: ='Org structure'!A11 -> Vote 10 - Water | C104: =SUM(C105:C114) -> 7284.18 | D104: =SUM(D105:D114) -> 0 | E104: -117791.47 | F104: 0 | G104: 0 | H104: 0 | I104: 0 | J104: 0 | K104: 0
A105: ='Org structure'!E102 -> 10.1 - [Name of sub-vote] | C105: 7284.18 | D105: 0 | E105: -117791.47 | F105: 0 | G105: 0 | H105: 0 | I105: 0 | J105: 0 | K105: 0
A106: ='Org structure'!E103 -> 0 | C106: 0 | D106: 0 | E106: 0 | F106: 0 | G106: 0 | H106: 0 | I106: 0 | J106: 0 | K106: 0
A107: ='Org structure'!E104 -> 0 | C107: 0 | D107: 0 | E107: 0 | F107: 0 | G107: 0 | H107: 0 | I107: 0 | J107: 0 | K107: 0
A108: ='Org structure'!E105 -> 0 | C108: 0 | D108: 0 | E108: 0 | F108: 0 | G108: 0 | H108: 0 | I108: 0 | J108: 0 | K108: 0
A109: ='Org structure'!E106 -> 0 | C109: 0 | D109: 0 | E109: 0 | F109: 0 | G109: 0 | H109: 0 | I109: 0 | J109: 0 | K109: 0
A110: ='Org structure'!E107 -> 0 | C110: 0 | D110: 0 | E110: 0 | F110: 0 | G110: 0 | H110: 0 | I110: 0 | J110: 0 | K110: 0
A111: ='Org structure'!E108 -> 0 | C111: 0 | D111: 0 | E111: 0 | F111: 0 | G111: 0 | H111: 0 | I111: 0 | J111: 0 | K111: 0
A112: ='Org structure'!E109 -> 0 | C112: 0 | D112: 0 | E112: 0 | F112: 0 | G112: 0 | H112: 0 | I112: 0 | J112: 0 | K112: 0
A113: ='Org structure'!E110 -> 0 | C113: 0 | D113: 0 | E113: 0 | F113: 0 | G113: 0 | H113: 0 | I113: 0 | J113: 0 | K113: 0
A114: ='Org structure'!E111 -> 0 | C114: 0 | D114: 0 | E114: 0 | F114: 0 | G114: 0 | H114: 0 | I114: 0 | J114: 0 | K114: 0
A115: ='Org structure'!A12 -> Vote 11 - Public Safety | C115: =SUM(C116:C125) -> 0 | D115: =SUM(D116:D125) -> 0 | E115: 0 | F115: 0 | G115: 0 | H115: 0 | I115: 0 | J115: 0 | K115: 0
A116: ='Org structure'!E113 -> 11.1 - [Name of sub-vote] | C116: 0 | D116: 0 | E116: 0 | F116: 0 | G116: 0 | H116: 0 | I116: 0 | J116: 0 | K116: 0
A117: ='Org structure'!E114 -> 0 | C117: 0 | D117: 0 | E117: 0 | F117: 0 | G117: 0 | H117: 0 | I117: 0 | J117: 0 | K117: 0
A118: ='Org structure'!E115 -> 0 | C118: 0 | D118: 0 | E118: 0 | F118: 0 | G118: 0 | H118: 0 | I118: 0 | J118: 0 | K118: 0
A119: ='Org structure'!E116 -> 0 | C119: 0 | D119: 0 | E119: 0 | F119: 0 | G119: 0 | H119: 0 | I119: 0 | J119: 0 | K119: 0
A120: ='Org structure'!E117 -> 0 | C120: 0 | D120: 0 | E120: 0 | F120: 0 | G120: 0 | H120: 0 | I120: 0 | J120: 0 | K120: 0
A121: ='Org structure'!E118 -> 0 | C121: 0 | D121: 0 | E121: 0 | F121: 0 | G121: 0 | H121: 0 | I121: 0 | J121: 0 | K121: 0
A122: ='Org structure'!E119 -> 0 | C122: 0 | D122: 0 | E122: 0 | F122: 0 | G122: 0 | H122: 0 | I122: 0 | J122: 0 | K122: 0
A123: ='Org structure'!E120 -> 0 | C123: 0 | D123: 0 | E123: 0 | F123: 0 | G123: 0 | H123: 0 | I123: 0 | J123: 0 | K123: 0
A124: ='Org structure'!E121 -> 0 | C124: 0 | D124: 0 | E124: 0 | F124: 0 | G124: 0 | H124: 0 | I124: 0 | J124: 0 | K124: 0
A125: ='Org structure'!E122 -> 0 | C125: 0 | D125: 0 | E125: 0 | F125: 0 | G125: 0 | H125: 0 | I125: 0 | J125: 0 | K125: 0
A126: ='Org structure'!A13 -> Vote 12 - Electricity Distribution | C126: =SUM(C127:C136) -> 0 | D126: =SUM(D127:D136) -> 0 | E126: 0 | F126: 0 | G126: 0 | H126: 0 | I126: 0 | J126: 0 | K126: 0
A127: ='Org structure'!E124 -> 12.1 - [Name of sub-vote] | C127: 0 | D127: 0 | E127: 0 | F127: 0 | G127: 0 | H127: 0 | I127: 0 | J127: 0 | K127: 0
A128: ='Org structure'!E125 -> 0 | C128: 0 | D128: 0 | E128: 0 | F128: 0 | G128: 0 | H128: 0 | I128: 0 | J128: 0 | K128: 0
A129: ='Org structure'!E126 -> 0 | C129: 0 | D129: 0 | E129: 0 | F129: 0 | G129: 0 | H129: 0 | I129: 0 | J129: 0 | K129: 0
A130: ='Org structure'!E127 -> 0 | C130: 0 | D130: 0 | E130: 0 | F130: 0 | G130: 0 | H130: 0 | I130: 0 | J130: 0 | K130: 0
A131: ='Org structure'!E128 -> 0 | C131: 0 | D131: 0 | E131: 0 | F131: 0 | G131: 0 | H131: 0 | I131: 0 | J131: 0 | K131: 0
A132: ='Org structure'!E129 -> 0 | C132: 0 | D132: 0 | E132: 0 | F132: 0 | G132: 0 | H132: 0 | I132: 0 | J132: 0 | K132: 0
A133: ='Org structure'!E130 -> 0 | C133: 0 | D133: 0 | E133: 0 | F133: 0 | G133: 0 | H133: 0 | I133: 0 | J133: 0 | K133: 0
A134: ='Org structure'!E131 -> 0 | C134: 0 | D134: 0 | E134: 0 | F134: 0 | G134: 0 | H134: 0 | I134: 0 | J134: 0 | K134: 0
A135: ='Org structure'!E132 -> 0 | C135: 0 | D135: 0 | E135: 0 | F135: 0 | G135: 0 | H135: 0 | I135: 0 | J135: 0 | K135: 0
A136: ='Org structure'!E133 -> 0 | C136: 0 | D136: 0 | E136: 0 | F136: 0 | G136: 0 | H136: 0 | I136: 0 | J136: 0 | K136: 0
A137: ='Org structure'!A14 -> Vote 13 - | C137: =SUM(C138:C147) -> 0 | D137: =SUM(D138:D147) -> 0 | E137: 0 | F137: 0 | G137: 0 | H137: 0 | I137: 0 | J137: 0 | K137: 0
A138: ='Org structure'!E135 -> 13.1 - [Name of sub-vote] | C138: 0 | D138: 0 | E138: 0 | F138: 0 | G138: 0 | H138: 0 | I138: 0 | J138: 0 | K138: 0
A139: ='Org structure'!E136 -> 0 | C139: 0 | D139: 0 | E139: 0 | F139: 0 | G139: 0 | H139: 0 | I139: 0 | J139: 0 | K139: 0
A140: ='Org structure'!E137 -> 0 | C140: 0 | D140: 0 | E140: 0 | F140: 0 | G140: 0 | H140: 0 | I140: 0 | J140: 0 | K140: 0
A141: ='Org structure'!E138 -> 0 | C141: 0 | D141: 0 | E141: 0 | F141: 0 | G141: 0 | H141: 0 | I141: 0 | J141: 0 | K141: 0
A142: ='Org structure'!E139 -> 0 | C142: 0 | D142: 0 | E142: 0 | F142: 0 | G142: 0 | H142: 0 | I142: 0 | J142: 0 | K142: 0
A143: ='Org structure'!E140 -> 0 | C143: 0 | D143: 0 | E143: 0 | F143: 0 | G143: 0 | H143: 0 | I143: 0 | J143: 0 | K143: 0
A144: ='Org structure'!E141 -> 0 | C144: 0 | D144: 0 | E144: 0 | F144: 0 | G144: 0 | H144: 0 | I144: 0 | J144: 0 | K144: 0
A145: ='Org structure'!E142 -> 0 | C145: 0 | D145: 0 | E145: 0 | F145: 0 | G145: 0 | H145: 0 | I145: 0 | J145: 0 | K145: 0
A146: ='Org structure'!E143 -> 0 | C146: 0 | D146: 0 | E146: 0 | F146: 0 | G146: 0 | H146: 0 | I146: 0 | J146: 0 | K146: 0
A147: ='Org structure'!E144 -> 0 | C147: 0 | D147: 0 | E147: 0 | F147: 0 | G147: 0 | H147: 0 | I147: 0 | J147: 0 | K147: 0
A148: ='Org structure'!A15 -> Vote 14 - | C148: =SUM(C149:C158) -> 0 | D148: =SUM(D149:D158) -> 0 | E148: 0 | F148: 0 | G148: 0 | H148: 0 | I148: 0 | J148: 0 | K148: 0
A149: ='Org structure'!E146 -> 14.1 - [Name of sub-vote] | C149: 0 | D149: 0 | E149: 0 | F149: 0 | G149: 0 | H149: 0 | I149: 0 | J149: 0 | K149: 0
A150: ='Org structure'!E147 -> 0 | C150: 0 | D150: 0 | E150: 0 | F150: 0 | G150: 0 | H150: 0 | I150: 0 | J150: 0 | K150: 0
A151: ='Org structure'!E148 -> 0 | C151: 0 | D151: 0 | E151: 0 | F151: 0 | G151: 0 | H151: 0 | I151: 0 | J151: 0 | K151: 0
A152: ='Org structure'!E149 -> 0 | C152: 0 | D152: 0 | E152: 0 | F152: 0 | G152: 0 | H152: 0 | I152: 0 | J152: 0 | K152: 0
A153: ='Org structure'!E150 -> 0 | C153: 0 | D153: 0 | E153: 0 | F153: 0 | G153: 0 | H153: 0 | I153: 0 | J153: 0 | K153: 0
A154: ='Org structure'!E151 -> 0 | C154: 0 | D154: 0 | E154: 0 | F154: 0 | G154: 0 | H154: 0 | I154: 0 | J154: 0 | K154: 0
A155: ='Org structure'!E152 -> 0 | C155: 0 | D155: 0 | E155: 0 | F155: 0 | G155: 0 | H155: 0 | I155: 0 | J155: 0 | K155: 0
A156: ='Org structure'!E153 -> 0 | C156: 0 | D156: 0 | E156: 0 | F156: 0 | G156: 0 | H156: 0 | I156: 0 | J156: 0 | K156: 0
A157: ='Org structure'!E154 -> 0 | C157: 0 | D157: 0 | E157: 0 | F157: 0 | G157: 0 | H157: 0 | I157: 0 | J157: 0 | K157: 0
A158: ='Org structure'!E155 -> 0 | C158: 0 | D158: 0 | E158: 0 | F158: 0 | G158: 0 | H158: 0 | I158: 0 | J158: 0 | K158: 0
A159: ='Org structure'!A16 -> Vote 15 - | C159: =SUM(C160:C169) -> 0 | D159: =SUM(D160:D169) -> 0 | E159: 0 | F159: 0 | G159: 0 | H159: 0 | I159: 0 | J159: 0 | K159: 0
A160: ='Org structure'!E157 -> 15.1 - [Name of sub-vote] | C160: 0 | D160: 0 | E160: 0 | F160: 0 | G160: 0 | H160: 0 | I160: 0 | J160: 0 | K160: 0
A161: ='Org structure'!E158 -> 0 | C161: 0 | D161: 0 | E161: 0 | F161: 0 | G161: 0 | H161: 0 | I161: 0 | J161: 0 | K161: 0
A162: ='Org structure'!E159 -> 0 | C162: 0 | D162: 0 | E162: 0 | F162: 0 | G162: 0 | H162: 0 | I162: 0 | J162: 0 | K162: 0
A163: ='Org structure'!E160 -> 0 | C163: 0 | D163: 0 | E163: 0 | F163: 0 | G163: 0 | H163: 0 | I163: 0 | J163: 0 | K163: 0
A164: ='Org structure'!E161 -> 0 | C164: 0 | D164: 0 | E164: 0 | F164: 0 | G164: 0 | H164: 0 | I164: 0 | J164: 0 | K164: 0
A165: ='Org structure'!E162 -> 0 | C165: 0 | D165: 0 | E165: 0 | F165: 0 | G165: 0 | H165: 0 | I165: 0 | J165: 0 | K165: 0
A166: ='Org structure'!E163 -> 0 | C166: 0 | D166: 0 | E166: 0 | F166: 0 | G166: 0 | H166: 0 | I166: 0 | J166: 0 | K166: 0
A167: ='Org structure'!E164 -> 0 | C167: 0 | D167: 0 | E167: 0 | F167: 0 | G167: 0 | H167: 0 | I167: 0 | J167: 0 | K167: 0
A168: ='Org structure'!E165 -> 0 | C168: 0 | D168: 0 | E168: 0 | F168: 0 | G168: 0 | H168: 0 | I168: 0 | J168: 0 | K168: 0
A169: ='Org structure'!E166 -> 0 | C169: 0 | D169: 0 | E169: 0 | F169: 0 | G169: 0 | H169: 0 | I169: 0 | J169: 0 | K169: 0
A170: Total Revenue by Vote | B170: 2 | C170: =C5+C16+C27+C38+C49+C60+C71+C82+C93+C104+C115+C126+C137+C148+C159 -> 220919633.3 | D170: =D5+D16+D27+D38+D49+D60+D71+D82+D93+D104+D115+D126+D137+D148+D159 -> 258106985.5 | E170: =E5+E16+E27+E38+E49+E60+E71+E82+E93+E104+E115+E126+E137+E148+E159 -> 274117798.6 | F170: 301205903 | G170: 335986264 | H170: 335986264 | I170: =I5+I16+I27+I38+I49+I60+I71+I82+I93+I104+I115+I126+I137+I148+I159 -> 322161650 | J170: 335692433 | K170: 350462902 | L170: =SUM(L78:L81) -> 0 | M170: 0 | N170: 0 | O170: 0 | P170: 0 | Q170: 0 | R170: 0 | S170: 0 | T170: 0 | U170: 0 | V170: 0 | W170: 0
A172: Expenditure by Vote | B172: 1
A173: =A5 -> Vote 1 - Executive and Council | C173: =SUM(C174:C183) -> 30871382.14 | D173: 31456578.89 | E173: 28993841.38 | F173: 39544638 | G173: 37249224 | H173: 37249224 | I173: 42870848 | J173: 45123395 | K173: 47561167
A174: =A6 -> 1.1 - [Name of sub-vote] | C174: 15286824.59 | D174: 16496313.41 | E174: 15117586.47 | F174: 17171640 | G174: 17026157 | H174: 17026157 | I174: 17942093 | J174: 18916876 | K174: 19957651
A175: 0 | C175: 15584557.55 | D175: 14960265.48 | E175: 13876254.91 | F175: 22372998 | G175: 20223067 | H175: 20223067 | I175: 24928755 | J175: 26206519 | K175: 27603516
A176: 0 | C176: 0 | D176: 0 | E176: 0 | F176: 0 | G176: 0 | H176: 0 | I176: 0 | J176: 0 | K176: 0
A177: 0 | C177: 0 | D177: 0 | E177: 0 | F177: 0 | G177: 0 | H177: 0 | I177: 0 | J177: 0 | K177: 0
A178: 0 | C178: 0 | D178: 0 | E178: 0 | F178: 0 | G178: 0 | H178: 0 | I178: 0 | J178: 0 | K178: 0
A179: 0 | C179: 0 | D179: 0 | E179: 0 | F179: 0 | G179: 0 | H179: 0 | I179: 0 | J179: 0 | K179: 0
A180: 0 | C180: 0 | D180: 0 | E180: 0 | F180: 0 | G180: 0 | H180: 0 | I180: 0 | J180: 0 | K180: 0
A181: 0 | C181: 0 | D181: 0 | E181: 0 | F181: 0 | G181: 0 | H181: 0 | I181: 0 | J181: 0 | K181: 0
A182: 0 | C182: 0 | D182: 0 | E182: 0 | F182: 0 | G182: 0 | H182: 0 | I182: 0 | J182: 0 | K182: 0
A183: 0 | C183: 0 | D183: 0 | E183: 0 | F183: 0 | G183: 0 | H183: 0 | I183: 0 | J183: 0 | K183: 0
A184: =A16 -> Vote 2 - Budget and treasury | C184: =SUM(C185:C194) -> 52887924.78 | D184: =SUM(D185:D194) -> 57868911.07 | E184: =SUM(E185:E194) -> 58137956.78 | F184: 63143228 | G184: 72819030 | H184: 72819030 | I184: 71304940 | J184: 74495112 | K184: 77979395
A185: =A17 -> 2.1 - [Name of sub-vote] | C185: 51704460.58 | D185: 57868911.07 | E185: 58137956.78 | F185: 61643228 | G185: 70319030 | H185: 70319030 | I185: 69304940 | J185: 72411112 | K185: 75803699
A186: 0 | C186: 1183464.2 | D186: 0 | E186: 0 | F186: 1500000 | G186: 2500000 | H186: 2500000 | I186: 2000000 | J186: 2084000 | K186: 2175696
A187: 0 | C187: 0 | D187: 0 | E187: 0 | F187: 0 | G187: 0 | H187: 0 | I187: 0 | J187: 0 | K187: 0
A188: 0 | C188: 0 | D188: 0 | E188: 0 | F188: 0 | G188: 0 | H188: 0 | I188: 0 | J188: 0 | K188: 0
A189: 0 | C189: 0 | D189: 0 | E189: 0 | F189: 0 | G189: 0 | H189: 0 | I189: 0 | J189: 0 | K189: 0
A190: 0 | C190: 0 | D190: 0 | E190: 0 | F190: 0 | G190: 0 | H190: 0 | I190: 0 | J190: 0 | K190: 0
A191: 0 | C191: 0 | D191: 0 | E191: 0 | F191: 0 | G191: 0 | H191: 0 | I191: 0 | J191: 0 | K191: 0
A192: 0 | C192: 0 | D192: 0 | E192: 0 | F192: 0 | G192: 0 | H192: 0 | I192: 0 | J192: 0 | K192: 0
A193: 0 | C193: 0 | D193: 0 | E193: 0 | F193: 0 | G193: 0 | H193: 0 | I193: 0 | J193: 0 | K193: 0
A194: 0 | C194: 0 | D194: 0 | E194: 0 | F194: 0 | G194: 0 | H194: 0 | I194: 0 | J194: 0 | K194: 0
A195: =A27 -> Vote 3 - Corporate Services | C195: =SUM(C196:C205) -> 14449175.2 | D195: 40816940.76 | E195: 39468668.68 | F195: 52660870 | G195: 53076440 | H195: 53076440 | I195: 49070044 | J195: 51360613 | K195: 53863191
A196: 3.1 - [Name of sub-vote] | C196: 12325044.34 | D196: 39299521.54 | E196: 36872138.18 | F196: 25630897 | G196: 26466467 | H196: 26466467 | I196: 26555044 | J196: 27899983 | K196: 29370294
A197: 0 | C197: 25950 | D197: -599486.34 | E197: 0 | F197: 0 | G197: 0 | H197: 0 | I197: 0 | J197: 0 | K197: 0
A198: 0 | C198: 0 | D198: 0 | E198: 0 | F198: 0 | G198: 0 | H198: 0 | I198: 0 | J198: 0 | K198: 0
A199: 0 | C199: 2098180.86 | D199: 2116905.56 | E199: 2596530.5 | F199: 27029973 | G199: 26609973 | H199: 26609973 | I199: 22515000 | J199: 23460630 | K199: 24492897
A200: 0 | C200: 0 | D200: 0 | E200: 0 | F200: 0 | G200: 0 | H200: 0 | I200: 0 | J200: 0 | K200: 0
A201: 0 | C201: 0 | D201: 0 | E201: 0 | F201: 0 | G201: 0 | H201: 0 | I201: 0 | J201: 0 | K201: 0
... 144 more rows

Sheet A4-FinPerf RE
A1: =muni&" - "&Approve4 -> Choose name from list - Table A4 Budgeted Financial Performance (revenue and expenditure)
A2: =desc -> Description | B2: =head27 -> Ref | C2: =head1b -> 2017/18 | D2: =head1A -> 2018/19 | E2: =Head1 -> 2019/20 | F2: =Head2 -> Current Year 2020/21 | J2: =Head3 -> 2021/22 Medium Term Revenue & Expenditure Framework | M2: =Head4 -> LTFS
A3: R thousand | B3: 1 | C3: =Head5 -> Audited Outcome | D3: =Head5 -> Audited Outcome | E3: =Head5 -> Audited Outcome | F3: =Head6 -> Original Budget | G3: =Head7 -> Adjusted Budget | H3: =Head8 -> Full Year Forecast | I3: =Head5b -> Pre-audit outcome | J3: =Head9 -> Budget Year 2021/22 | K3: =Head10 -> Budget Year +1 2022/23 | L3: =Head11 -> Budget Year +2 2023/24 | M3: =Head12 -> Forecast 2024/25 | N3: =Head13 -> Forecast 2025/26 | O3: =Head14 -> Forecast 2026/27 | P3: =Head15 -> Forecast 2027/28 | Q3: =Head16 -> Forecast 2028/29 | R3: =Head17 -> Forecast 2029/30 | S3: =Head18 -> Forecast 2030/31 | T3: =Head19 -> Forecast 2031/32 | U3: =Head20 -> Forecast 2032/33 | V3: =Head21 -> Forecast 2033/34 | W3: =Head22 -> Forecast 2034/35 | X3: =Head23 -> Forecast 2035/36
A4: Revenue By Source
A5: Property rates | B5: 2 | C5: ='SA1'!C9 -> 70269431.25 | D5: ='SA1'!D9 -> 77052804.35 | E5: ='SA1'!E9 -> 93244056.05 | F5: ='SA1'!F9 -> 92222127 | G5: ='SA1'!G9 -> 98229297 | H5: ='SA1'!H9 -> 98229297 | I5: ='SA1'!I9 -> 67251910.96 | J5: ='SA1'!J9 -> 103319998 | K5: ='SA1'!K9 -> 107659435 | L5: ='SA1'!L9 -> 112396452
A6: Service charges - electricity revenue | B6: 2 | C6: ='SA1'!C15 -> 0 | D6: ='SA1'!D15 -> 0 | E6: ='SA1'!E15 -> 0 | F6: ='SA1'!F15 -> 0 | G6: ='SA1'!G15 -> 0 | H6: ='SA1'!H15 -> 0 | I6: ='SA1'!I15 -> 0 | J6: ='SA1'!J15 -> 0 | K6: ='SA1'!K15 -> 0 | L6: ='SA1'!L15 -> 0
A7: Service charges - water revenue | B7: 2 | C7: ='SA1'!C21 -> 0 | D7: ='SA1'!D21 -> 0 | E7: ='SA1'!E21 -> 0 | F7: ='SA1'!F21 -> 0 | G7: ='SA1'!G21 -> 0 | H7: ='SA1'!H21 -> 0 | I7: ='SA1'!I21 -> 2633605.09 | J7: ='SA1'!J21 -> 0 | K7: ='SA1'!K21 -> 0 | L7: ='SA1'!L21 -> 0
A8: Service charges - sanitation revenue | B8: 2 | C8: ='SA1'!C27 -> 0 | D8: ='SA1'!D27 -> 0 | E8: ='SA1'!E27 -> 0 | F8: ='SA1'!F27 -> 0 | G8: ='SA1'!G27 -> 0 | H8: ='SA1'!H27 -> 0 | I8: ='SA1'!I27 -> 298146.98 | J8: ='SA1'!J27 -> 0 | K8: ='SA1'!K27 -> 0 | L8: ='SA1'!L27 -> 0
A9: Service charges - refuse revenue | B9: 2 | C9: ='SA1'!C34 -> 3150246.49 | D9: ='SA1'!D34 -> 3497886.33 | E9: ='SA1'!E34 -> 3738956.98 | F9: ='SA1'!F34 -> 3916306 | G9: ='SA1'!G34 -> 4047084 | H9: ='SA1'!H34 -> 4047084 | I9: ='SA1'!I34 -> 2662347.54 | J9: ='SA1'!J34 -> 4450000 | K9: ='SA1'!K34 -> 4636900 | L9: ='SA1'!L34 -> 4840924
A11: Rental of facilities and equipment | C11: 0 | D11: 0 | E11: 0 | F11: 408289 | G11: 408289 | H11: 408289 | I11: 0 | J11: 424213 | K11: 442029 | L11: 461479
A12: Interest earned - external investments | C12: 6748683.76 | D12: 8071510.04 | E12: 7286507.12 | F12: 8151000 | G12: 8151000 | H12: 8151000 | I12: 2831047.5 | J12: 5500000 | K12: 5731000 | L12: 5983164
A13: Interest earned - outstanding debtors | C13: 3761072.22 | D13: 6573108.29 | E13: 9305299.3 | F13: 15758255 | G13: 15758255 | H13: 15758255 | I13: 8530238.84 | J13: 16419723 | K13: 17109351 | L13: 17862162
A14: Dividends received | C14: 0 | D14: 0 | E14: 0 | F14: 0 | G14: 0 | H14: 0 | I14: 0 | J14: 0 | K14: 0 | L14: 0
A15: Fines, penalties and forfeits | C15: 398599.98 | D15: 610070.5 | E15: 533300 | F15: 415993 | G15: 415993 | H15: 415993 | I15: 497576.6 | J15: 432217 | K15: 450369 | L15: 470186
A16: Licences and permits | C16: 4423671.23 | D16: 1281812.36 | E16: 1786128.78 | F16: 2866779 | G16: 2866779 | H16: 2866779 | I16: 1985157.33 | J16: 2968454 | K16: 3093129 | L16: 3229227
A17: Agency services | C17: 0 | D17: 0 | E17: 0 | F17: 11241895 | G17: 0 | H17: 0 | I17: 0 | J17: 14266938 | K17: 14866149 | L17: 15520260
A18: Transfers and subsidies | C18: 102321807.7 | D18: 112485191.7 | E18: 127654191.7 | F18: 136484000 | G18: 162391000 | H18: 162391000 | I18: 128736666.6 | J18: 142768000 | K18: 148764256 | L18: 155309883
A19: Other revenue | B19: 2 | C19: ='SA1'!C49 -> 2623218.37 | D19: ='SA1'!D49 -> 4898759.14 | E19: ='SA1'!E49 -> 3752439.67 | F19: ='SA1'!F49 -> 3086259 | G19: ='SA1'!G49 -> 17063567 | H19: ='SA1'!H49 -> 17063567 | I19: ='SA1'!I49 -> 30046188.73 | J19: ='SA1'!J49 -> 3462107 | K19: ='SA1'!K49 -> 3607515 | L19: ='SA1'!L49 -> 3766244
A20: Gains | C20: 0 | D20: 2303664 | E20: 0 | F20: 0 | G20: 0 | H20: 0 | I20: 0 | J20: 0 | K20: 0 | L20: 0
A21: Total Revenue (excluding capital transfers and contributions) | C21: =SUM(C5:C9)+SUM(C11:C20) -> 193696731 | D21: =SUM(D5:D9)+SUM(D11:D20) -> 216774806.7 | E21: 247300879.6 | F21: 274550903 | G21: 309331264 | H21: 309331264 | I21: 245472886.2 | J21: 294011650 | K21: 306360133 | L21: 319839981 | M21: =SUM(M5:M20) -> 0 | N21: 0 | O21: 0 | P21: 0 | Q21: 0 | R21: 0 | S21: 0 | T21: 0 | U21: 0 | V21: 0 | W21: 0 | X21: 0
A23: Expenditure By Type
A24: Employee related costs | B24: 2 | C24: ='SA1'!C67 -> 60809873.24 | D24: ='SA1'!D67 -> 68731561.44 | E24: ='SA1'!E67 -> 63221809.18 | F24: ='SA1'!F67 -> 83438036 | G24: ='SA1'!G67 -> 76999474 | H24: ='SA1'!H67 -> 76999474 | I24: ='SA1'!I67 -> 52780694.6 | J24: ='SA1'!J67 -> 90988614 | K24: ='SA1'!K67 -> 94932995 | L24: ='SA1'!L67 -> 100534032
A25: Remuneration of councillors | C25: 10367362.92 | D25: 10572714.55 | E25: 11101437.36 | F25: 12062357 | G25: 12305804 | H25: 12305804 | I25: 7413141.2 | J25: 12289807 | K25: 13027195 | L25: 13808823
A26: Debt impairment | B26: 3 | C26: 9303320.54 | D26: 27865176.12 | E26: 29402172.7 | F26: 14000000 | G26: 18600000 | H26: 18600000 | I26: 0 | J26: 19200000 | K26: 20006400 | L26: 20886682
A27: Depreciation & asset impairment | B27: 2 | C27: ='SA1'!C83 -> 16798314.86 | D27: ='SA1'!D83 -> 21275654.89 | E27: ='SA1'!E83 -> 21342583.45 | F27: ='SA1'!F83 -> 26740745 | G27: ='SA1'!G83 -> 26740745 | H27: ='SA1'!H83 -> 26740745 | I27: ='SA1'!I83 -> 0 | J27: ='SA1'!J83 -> 24342587 | K27: ='SA1'!K83 -> 25364976 | L27: ='SA1'!L83 -> 26481034
A28: Finance charges | C28: 25164.52 | D28: 374120.08 | E28: 372038.52 | F28: 800000 | G28: 800000 | H28: 800000 | I28: 0 | J28: 800000 | K28: 833600 | L28: 870278
A29: Bulk purchases - electricity | B29: 2 | C29: ='SA1'!C88 -> 0 | D29: ='SA1'!D88 -> 332118.31 | E29: ='SA1'!E88 -> 608293.17 | F29: ='SA1'!F88 -> 1500000 | G29: ='SA1'!G88 -> 750000 | H29: ='SA1'!H88 -> 750000 | I29: ='SA1'!I88 -> 309318.9 | J29: ='SA1'!J88 -> 1000000 | K29: ='SA1'!K88 -> 1042000 | L29: ='SA1'!L88 -> 1087848
A30: Inventory consumed | B30: 8 | C30: ='SA1'!C169 -> 0 | D30: ='SA1'!D169 -> 0 | E30: ='SA1'!E169 -> 0 | F30: ='SA1'!F169 -> 5300000 | G30: ='SA1'!G169 -> 6080000 | H30: ='SA1'!H169 -> 6080000 | I30: ='SA1'!I169 -> 0 | J30: ='SA1'!J169 -> 4950000 | K30: ='SA1'!K169 -> 5157900 | L30: ='SA1'!L169 -> 5384847
A31: Contracted services | C31: ='SA1'!C127 -> 16202181.77 | D31: ='SA1'!D127 -> 23328509.24 | E31: ='SA1'!E127 -> 23682870.24 | F31: ='SA1'!F127 -> 27597500 | G31: ='SA1'!G127 -> 36540000 | H31: ='SA1'!H127 -> 36540000 | I31: ='SA1'!I127 -> 17655441.57 | J31: ='SA1'!J127 -> 37590000 | K31: ='SA1'!K127 -> 39168780 | L31: ='SA1'!L127 -> 40892207
A32: Transfers and subsidies | C32: ='SA1'!C93 -> 0 | D32: ='SA1'!D93 -> 0 | E32: ='SA1'!E93 -> 0 | F32: ='SA1'!F93 -> 0 | G32: ='SA1'!G93 -> 0 | H32: ='SA1'!H93 -> 0 | I32: ='SA1'!I93 -> 0 | J32: ='SA1'!J93 -> 0 | K32: ='SA1'!K93 -> 0 | L32: ='SA1'!L93 -> 0
A33: Other expenditure | B33: 4, 5 | C33: ='SA1'!C157 -> 30217429.9 | D33: ='SA1'!D157 -> 35637960.91 | E33: ='SA1'!E157 -> 30996117.05 | F33: ='SA1'!F157 -> 51530797 | G33: ='SA1'!G157 -> 51839042 | H33: ='SA1'!H157 -> 51839042 | I33: ='SA1'!I157 -> 28324764.86 | J33: ='SA1'!J157 -> 50884686 | K33: ='SA1'!K157 -> 53021840 | L33: ='SA1'!L157 -> 55354799
A34: Losses | C34: 156802 | D34: 0 | E34: 260756.94 | F34: 2682832 | G34: 2682832 | H34: 2682832 | I34: 0 | J34: 550000 | K34: 573100 | L34: 598316
A35: Total Expenditure | C35: =SUM(C24:C34) -> 143880449.8 | D35: =SUM(D24:D34) -> 188117815.5 | E35: 180988078.6 | F35: 225652267 | G35: 233337897 | H35: 233337897 | I35: 106483361.1 | J35: 242595694 | K35: 253128786 | L35: 265898866 | M35: =SUM(M24:M34) -> 0 | N35: 0 | O35: 0 | P35: 0 | Q35: 0 | R35: 0 | S35: 0 | T35: 0 | U35: 0 | V35: 0 | W35: 0 | X35: 0
A37: Surplus/(Deficit) | C37: =C21-C35 -> 49816281.2 | D37: 28656991.17 | E37: 66312800.96 | F37: 48898636 | G37: 75993367 | H37: 75993367 | I37: 138989525 | J37: 51415956 | K37: 53231347 | L37: 53941115 | M37: =M21+M35 -> 0 | N37: 0 | O37: 0 | P37: 0 | Q37: 0 | R37: 0 | S37: 0 | T37: 0 | U37: 0 | V37: 0 | W37: 0 | X37: 0
A38: Transfers and subsidies - capital (monetary allocations) (National / Provincial and District) | C38: 27222902.34 | D38: 41332178.83 | E38: 26816919 | F38: 26655000 | G38: 26655000 | H38: 26655000 | I38: 22095215.17 | J38: 28150000 | K38: 29332300 | L38: 30622921
A39: Transfers and subsidies - capital (monetary allocations) (National / Provincial Departmental Agencies, Households, Non-profit Institutions, Private Enterprises, Public Corporatons, Higher Educational Institutions) | B39: 6 | C39: 0 | D39: 0 | E39: 0 | F39: 0 | G39: 0 | H39: 0 | I39: 0 | J39: 0 | K39: 0 | L39: 0
A40: Transfers and subsidies - capital (in-kind - all) | C40: 0 | D40: 0 | E40: 0 | F40: 0 | G40: 0 | H40: 0 | I40: 0 | J40: 0 | K40: 0 | L40: 0
A41: Surplus/(Deficit) after capital transfers & contributions | C41: =SUM(C37:C40) -> 77039183.54 | D41: 69989170 | E41: 93129719.96 | F41: 75553636 | G41: 102648367 | H41: 102648367 | I41: 161084740.2 | J41: 79565956 | K41: 82563647 | L41: 84564036
A42: Taxation | C42: 0 | D42: 0 | E42: 0 | F42: 0 | G42: 0 | H42: 0 | I42: 0 | J42: 0 | K42: 0 | L42: 0
A43: Surplus/(Deficit) after taxation | C43: =C41-C42 -> 77039183.54 | D43: 69989170 | E43: 93129719.96 | F43: 75553636 | G43: 102648367 | H43: 102648367 | I43: 161084740.2 | J43: 79565956 | K43: 82563647 | L43: 84564036
A44: Attributable to minorities | C44: 0 | D44: 0 | E44: 0 | F44: 0 | G44: 0 | H44: 0 | I44: 0 | J44: 0 | K44: 0 | L44: 0
A45: Surplus/(Deficit) attributable to municipality | C45: =SUM(C43:C44) -> 77039183.54 | D45: 69989170 | E45: 93129719.96 | F45: 75553636 | G45: 102648367 | H45: 102648367 | I45: 161084740.2 | J45: 79565956 | K45: 82563647 | L45: 84564036
A46: Share of surplus/ (deficit) of associate | B46: 7 | C46: 0 | D46: 0 | E46: 0 | F46: 0 | G46: 0 | H46: 0 | I46: 0 | J46: 0 | K46: 0 | L46: 0
A47: =result -> Surplus/(Deficit) for the year | C47: =SUM(C45:C46) -> 77039183.54 | D47: 69989170 | E47: 93129719.96 | F47: 75553636 | G47: 102648367 | H47: 102648367 | I47: 161084740.2 | J47: 79565956 | K47: 82563647 | L47: 84564036 | M47: =M25+M46 -> 0 | N47: 0 | O47: 0 | P47: 0 | Q47: 0 | R47: 0 | S47: 0 | T47: 0 | U47: 0 | V47: 0 | W47: 0 | X47: 0
A48: =head27a -> References
A49: 1. Classifications are revenue sources and expenditure type
A50: 2. Detail to be provided in Table SA1
A51: 3. Previously described as 'bad or doubtful debts' - amounts shown should reflect the change in the provision for debt impairment
A52: 4. Expenditure type components previously shown under repairs and maintenance should be allocated back to the originating expenditure group/item; e.g. employee costs
A53: 5. Repairs & maintenance detailed in Table A9 and Table SA34c
A54: 6. Contributions are funds provided by external organisations to assist with infrastructure development; e.g. developer contributions (detail to be provided in Table SA1)
A55: 7. Equity method ( Includes Joint Ventures)
A56: 8. All materials not part of 'bulk' e.g road making materials, pipe, cable etc.
A57: check balance | C57: =C45-'A3-FinPerf V'!C39 -> 1115861.07 | D57: =D45-'A3-FinPerf V'!D39 -> 2293824.45 | E57: =E45-'A3-FinPerf V'!E39 -> 2298016.33 | F57: =F45-'A3-FinPerf V'!F39 -> 0 | G57: =G45-'A3-FinPerf V'!G39 -> 0 | H57: =H45-'A3-FinPerf V'!H39 -> 0 | J57: =J45-'A3-FinPerf V'!I39 -> 0 | K57: =K45-'A3-FinPerf V'!J39 -> 0 | L57: =L45-'A3-FinPerf V'!K39 -> 0
A59: Total revenue | C59: =C21+SUM(C38:C40) -> 220919633.3 | D59: 258106985.5 | E59: 274117798.6 | F59: 301205903 | G59: 335986264 | H59: 335986264 | I59: 267568101.3 | J59: 322161650 | K59: 335692433 | L59: 350462902

Sheet A5-Capex
A2: =Vdesc -> Vote Description | B2: =head27 -> Ref | C2: =head1b -> 2017/18 | D2: =head1A -> 2018/19 | E2: =Head1 -> 2019/20 | F2: =Head2 -> Current Year 2020/21 | J2: =Head3 -> 2021/22 Medium Term Revenue & Expenditure Framework
A3: R thousand | B3: 1 | C3: =Head5 -> Audited Outcome | D3: =Head5 -> Audited Outcome | E3: =Head5 -> Audited Outcome | F3: =Head6 -> Original Budget | G3: =Head7 -> Adjusted Budget | H3: =Head8 -> Full Year Forecast | I3: =Head5b -> Pre-audit outcome | J3: =Head9 -> Budget Year 2021/22 | K3: =Head10 -> Budget Year +1 2022/23 | L3: =Head11 -> Budget Year +2 2023/24
A4: Capital expenditure - Vote
A5: Multi-year expenditure to be appropriated | B5: 2
A6: =A5A!A6 -> Vote 1 - Executive and Council | C6: =A5A!C6 -> 0 | D6: =A5A!D6 -> 0 | E6: =A5A!E6 -> 0 | F6: =A5A!F6 -> 0 | G6: =A5A!G6 -> 0 | H6: =A5A!H6 -> 0 | I6: =A5A!I6 -> 0 | J6: =A5A!J6 -> 0 | K6: =A5A!K6 -> 0 | L6: =A5A!L6 -> 0
A7: =A5A!A17 -> Vote 2 - Budget and treasury | C7: =A5A!C17 -> 0 | D7: =A5A!D17 -> 0 | E7: =A5A!E17 -> 0 | F7: =A5A!F17 -> 0 | G7: =A5A!G17 -> 0 | H7: =A5A!H17 -> 0 | I7: =A5A!I17 -> 0 | J7: =A5A!J17 -> 0 | K7: =A5A!K17 -> 0 | L7: =A5A!L17 -> 0
A8: =A5A!A28 -> Vote 3 - Corporate Services | C8: =A5A!C28 -> 0 | D8: =A5A!D28 -> 0 | E8: =A5A!E28 -> 0 | F8: =A5A!F28 -> 0 | G8: =A5A!G28 -> 0 | H8: =A5A!H28 -> 0 | I8: =A5A!I28 -> 0 | J8: =A5A!J28 -> 0 | K8: =A5A!K28 -> 0 | L8: =A5A!L28 -> 0
A9: =A5A!A39 -> Vote 4 - Planning and Development | C9: =A5A!C39 -> 0 | D9: =A5A!D39 -> 0 | E9: =A5A!E39 -> 0 | F9: =A5A!F39 -> 0 | G9: =A5A!G39 -> 0 | H9: =A5A!H39 -> 0 | I9: =A5A!I39 -> 0 | J9: =A5A!J39 -> 0 | K9: =A5A!K39 -> 0 | L9: =A5A!L39 -> 0
A10: =A5A!A50 -> Vote 5 - Community and Social Services | C10: =A5A!C50 -> 0 | D10: =A5A!D50 -> 0 | E10: =A5A!E50 -> 0 | F10: =A5A!F50 -> 0 | G10: =A5A!G50 -> 0 | H10: =A5A!H50 -> 0 | I10: =A5A!I50 -> 0 | J10: =A5A!J50 -> 0 | K10: =A5A!K50 -> 0 | L10: =A5A!L50 -> 0
A11: =A5A!A61 -> Vote 6 - Sports and Recreation | C11: =A5A!C61 -> 0 | D11: =A5A!D61 -> 0 | E11: =A5A!E61 -> 0 | F11: =A5A!F61 -> 0 | G11: =A5A!G61 -> 0 | H11: =A5A!H61 -> 0 | I11: =A5A!I61 -> 0 | J11: =A5A!J61 -> 0 | K11: =A5A!K61 -> 0 | L11: =A5A!L61 -> 0
A12: =A5A!A72 -> Vote 7 - Waste Management | C12: =A5A!C72 -> 0 | D12: =A5A!D72 -> 0 | E12: =A5A!E72 -> 0 | F12: =A5A!F72 -> 0 | G12: =A5A!G72 -> 0 | H12: =A5A!H72 -> 0 | I12: =A5A!I72 -> 0 | J12: =A5A!J72 -> 0 | K12: =A5A!K72 -> 0 | L12: =A5A!L72 -> 0
A13: =A5A!A83 -> Vote 8 - Waste water Management | C13: =A5A!C83 -> 0 | D13: =A5A!D83 -> 0 | E13: =A5A!E83 -> 0 | F13: =A5A!F83 -> 0 | G13: =A5A!G83 -> 0 | H13: =A5A!H83 -> 0 | I13: =A5A!I83 -> 0 | J13: =A5A!J83 -> 0 | K13: =A5A!K83 -> 0 | L13: =A5A!L83 -> 0
A14: =A5A!A94 -> Vote 9 - Roads and Transport | C14: =A5A!C94 -> 0 | D14: =A5A!D94 -> 0 | E14: =A5A!E94 -> 0 | F14: =A5A!F94 -> 0 | G14: =A5A!G94 -> 0 | H14: =A5A!H94 -> 0 | I14: =A5A!I94 -> 0 | J14: =A5A!J94 -> 0 | K14: =A5A!K94 -> 0 | L14: =A5A!L94 -> 0
A15: =A5A!A105 -> Vote 10 - Water | C15: =A5A!C105 -> 0 | D15: =A5A!D105 -> 0 | E15: =A5A!E105 -> 0 | F15: =A5A!F105 -> 0 | G15: =A5A!G105 -> 0 | H15: =A5A!H105 -> 0 | I15: =A5A!I105 -> 0 | J15: =A5A!J105 -> 0 | K15: =A5A!K105 -> 0 | L15: =A5A!L105 -> 0
A16: =A5A!A116 -> Vote 11 - Public Safety | C16: =A5A!C116 -> 0 | D16: =A5A!D116 -> 0 | E16: =A5A!E116 -> 0 | F16: =A5A!F116 -> 0 | G16: =A5A!G116 -> 0 | H16: =A5A!H116 -> 0 | I16: =A5A!I116 -> 0 | J16: =A5A!J116 -> 0 | K16: =A5A!K116 -> 0 | L16: =A5A!L116 -> 0
A17: =A5A!A127 -> Vote 12 - Electricity Distribution | C17: =A5A!C127 -> 0 | D17: =A5A!D127 -> 0 | E17: =A5A!E127 -> 0 | F17: =A5A!F127 -> 0 | G17: =A5A!G127 -> 0 | H17: =A5A!H127 -> 0 | I17: =A5A!I127 -> 0 | J17: =A5A!J127 -> 0 | K17: =A5A!K127 -> 0 | L17: =A5A!L127 -> 0
A18: =A5A!A138 -> Vote 13 - | C18: =A5A!C138 -> 0 | D18: =A5A!D138 -> 0 | E18: =A5A!E138 -> 0 | F18: =A5A!F138 -> 0 | G18: =A5A!G138 -> 0 | H18: =A5A!H138 -> 0 | I18: =A5A!I138 -> 0 | J18: =A5A!J138 -> 0 | K18: =A5A!K138 -> 0 | L18: =A5A!L138 -> 0
A19: =A5A!A149 -> Vote 14 - | C19: =A5A!C149 -> 0 | D19: =A5A!D149 -> 0 | E19: =A5A!E149 -> 0 | F19: =A5A!F149 -> 0 | G19: =A5A!G149 -> 0 | H19: =A5A!H149 -> 0 | I19: =A5A!I149 -> 0 | J19: =A5A!J149 -> 0 | K19: =A5A!K149 -> 0 | L19: =A5A!L149 -> 0
A20: =A5A!A160 -> Vote 15 - | C20: =A5A!C160 -> 0 | D20: =A5A!D160 -> 0 | E20: =A5A!E160 -> 0 | F20: =A5A!F160 -> 0 | G20: =A5A!G160 -> 0 | H20: =A5A!H160 -> 0 | I20: =A5A!I160 -> 0 | J20: =A5A!J160 -> 0 | K20: =A5A!K160 -> 0 | L20: =A5A!L160 -> 0
A21: Capital multi-year expenditure sub-total | B21: 7 | C21: =SUM(C6:C20) -> 0 | D21: =SUM(D6:D20) -> 0 | E21: 0 | F21: 0 | G21: 0 | H21: =SUM(H6:H20) -> 0 | I21: 0 | J21: 0 | K21: 0 | L21: 0
A23: Single-year expenditure to be appropriated | B23: 2
A24: =A6 -> Vote 1 - Executive and Council | C24: =A5A!C175 -> 0 | D24: =A5A!D175 -> 150500 | E24: =A5A!E175 -> 150000 | F24: =A5A!F175 -> 0 | G24: =A5A!G175 -> 0 | H24: =A5A!H175 -> 0 | I24: =A5A!I175 -> 0 | J24: =A5A!J175 -> 0 | K24: =A5A!K175 -> 0 | L24: =A5A!L175 -> 0
A25: =A7 -> Vote 2 - Budget and treasury | C25: =A5A!C186 -> 186430297.4 | D25: =A5A!D186 -> -69331682.42 | E25: =A5A!E186 -> -68816704.81 | F25: =A5A!F186 -> 18000000 | G25: =A5A!G186 -> 18000000 | H25: =A5A!H186 -> 18000000 | I25: =A5A!I186 -> 0 | J25: =A5A!J186 -> 0 | K25: =A5A!K186 -> 0 | L25: =A5A!L186 -> 0
A26: Vote 3 - Corporate Services | C26: =A5A!C197 -> 65709.14 | D26: =A5A!D197 -> 8509739.35 | E26: =A5A!E197 -> 14318842.31 | F26: =A5A!F197 -> 13070000 | G26: =A5A!G197 -> 13334344 | H26: =A5A!H197 -> 13334344 | I26: =A5A!I197 -> 2771644.65 | J26: =A5A!J197 -> 5750000 | K26: =A5A!K197 -> 4690000 | L26: =A5A!L197 -> 9470000
A27: Vote 4 - Planning and Development | C27: =A5A!C208 -> -209696382.7 | D27: =A5A!D208 -> -209389803.4 | E27: =A5A!E208 -> -209199035.9 | F27: =A5A!F208 -> 16825575 | G27: =A5A!G208 -> 18099411 | H27: =A5A!H208 -> 18099411 | I27: =A5A!I208 -> 8911873.64 | J27: =A5A!J208 -> 2250000 | K27: =A5A!K208 -> 1700000 | L27: =A5A!L208 -> 1200000
A28: Vote 5 - Community and Social Services | C28: =A5A!C219 -> -199211.97 | D28: =A5A!D219 -> 1109395.43 | E28: =A5A!E219 -> 1633819.3 | F28: =A5A!F219 -> 10807478 | G28: =A5A!G219 -> 12323836 | H28: =A5A!H219 -> 12323836 | I28: =A5A!I219 -> 377809.25 | J28: =A5A!J219 -> 19180000 | K28: =A5A!K219 -> 5150000 | L28: =A5A!L219 -> 5200000
A29: Vote 6 - Sports and Recreation | C29: =A5A!C230 -> 0 | D29: =A5A!D230 -> 0 | E29: =A5A!E230 -> 0 | F29: =A5A!F230 -> 0 | G29: =A5A!G230 -> 0 | H29: =A5A!H230 -> 0 | I29: =A5A!I230 -> 0 | J29: =A5A!J230 -> 0 | K29: =A5A!K230 -> 0 | L29: =A5A!L230 -> 0
A30: Vote 7 - Waste Management | C30: =A5A!C241 -> 0 | D30: =A5A!D241 -> 0 | E30: =A5A!E241 -> 0 | F30: =A5A!F241 -> 0 | G30: =A5A!G241 -> 0 | H30: =A5A!H241 -> 0 | I30: =A5A!I241 -> 0 | J30: =A5A!J241 -> 0 | K30: =A5A!K241 -> 0 | L30: =A5A!L241 -> 0
A31: Vote 8 - Waste water Management | C31: =A5A!C252 -> 0 | D31: =A5A!D252 -> 0 | E31: =A5A!E252 -> 0 | F31: =A5A!F252 -> 0 | G31: =A5A!G252 -> 0 | H31: =A5A!H252 -> 0 | I31: =A5A!I252 -> 0 | J31: =A5A!J252 -> 0 | K31: =A5A!K252 -> 0 | L31: =A5A!L252 -> 0
A32: Vote 9 - Roads and Transport | C32: =A5A!C263 -> -22638146.52 | D32: =A5A!D263 -> -22462782.14 | E32: =A5A!E263 -> 29482944.78 | F32: =A5A!F263 -> 112516369 | G32: =A5A!G263 -> 109000009 | H32: =A5A!H263 -> 109000009 | I32: =A5A!I263 -> 70565160.51 | J32: =A5A!J263 -> 132350838 | K32: =A5A!K263 -> 91923043 | L32: =A5A!L263 -> 106919304
A33: Vote 10 - Water | C33: =A5A!C274 -> 0 | D33: =A5A!D274 -> 0 | E33: =A5A!E274 -> 0 | F33: =A5A!F274 -> 0 | G33: =A5A!G274 -> 0 | H33: =A5A!H274 -> 0 | I33: =A5A!I274 -> 0 | J33: =A5A!J274 -> 0 | K33: =A5A!K274 -> 0 | L33: =A5A!L274 -> 0
A34: Vote 11 - Public Safety | C34: =A5A!C285 -> 0 | D34: =A5A!D285 -> 0 | E34: =A5A!E285 -> 0 | F34: =A5A!F285 -> 0 | G34: =A5A!G285 -> 0 | H34: =A5A!H285 -> 0 | I34: =A5A!I285 -> 0 | J34: =A5A!J285 -> 0 | K34: =A5A!K285 -> 0 | L34: =A5A!L285 -> 0
A35: Vote 12 - Electricity Distribution | C35: =A5A!C296 -> 0 | D35: =A5A!D296 -> 0 | E35: =A5A!E296 -> 0 | F35: =A5A!F296 -> 0 | G35: =A5A!G296 -> 0 | H35: =A5A!H296 -> 0 | I35: =A5A!I296 -> 0 | J35: =A5A!J296 -> 0 | K35: =A5A!K296 -> 0 | L35: =A5A!L296 -> 0
A36: Vote 13 - | C36: =A5A!C307 -> 0 | D36: =A5A!D307 -> 0 | E36: =A5A!E307 -> 0 | F36: =A5A!F307 -> 0 | G36: =A5A!G307 -> 0 | H36: =A5A!H307 -> 0 | I36: =A5A!I307 -> 0 | J36: =A5A!J307 -> 0 | K36: =A5A!K307 -> 0 | L36: =A5A!L307 -> 0
A37: Vote 14 - | C37: =A5A!C318 -> 0 | D37: =A5A!D318 -> 0 | E37: =A5A!E318 -> 0 | F37: =A5A!F318 -> 0 | G37: =A5A!G318 -> 0 | H37: =A5A!H318 -> 0 | I37: =A5A!I318 -> 0 | J37: =A5A!J318 -> 0 | K37: =A5A!K318 -> 0 | L37: =A5A!L318 -> 0
A38: =A20 -> Vote 15 - | C38: =A5A!C329 -> 0 | D38: =A5A!D329 -> 0 | E38: =A5A!E329 -> 0 | F38: =A5A!F329 -> 0 | G38: =A5A!G329 -> 0 | H38: =A5A!H329 -> 0 | I38: =A5A!I329 -> 0 | J38: =A5A!J329 -> 0 | K38: =A5A!K329 -> 0 | L38: =A5A!L329 -> 0
A39: Capital single-year expenditure sub-total | C39: =SUM(C24:C38) -> -46037734.65 | D39: =SUM(D24:D38) -> -291414633.2 | E39: -232430134.3 | F39: 171219422 | G39: 170757600 | H39: 170757600 | I39: 82626488.05 | J39: 159530838 | K39: 103463043 | L39: 122789304
A40: Total Capital Expenditure - Vote | C40: =C39+C21 -> -46037734.65 | D40: =D39+D21 -> -291414633.2 | E40: -232430134.3 | F40: 171219422 | G40: 170757600 | H40: 170757600 | I40: 82626488.05 | J40: 159530838 | K40: 103463043 | L40: 122789304
A42: Capital Expenditure - Functional
A43: Governance and administration | C43: =SUM(C44:C46) -> 186496006.5 | D43: =SUM(D44:D46) -> -60671443.07 | E43: -54347862.5 | F43: 31070000 | G43: 31334344 | H43: 31334344 | I43: 2771644.65 | J43: 5750000 | K43: 4690000 | L43: 9470000
A44: Executive and council | C44: 0 | D44: 150500 | E44: 150000 | F44: 0 | G44: 0 | H44: 0 | I44: 0 | J44: 0 | K44: 0 | L44: 0
A45: Finance and administration | C45: 186496006.5 | D45: -60821943.07 | E45: -54497862.5 | F45: 31070000 | G45: 31334344 | H45: 31334344 | I45: 2771644.65 | J45: 5750000 | K45: 4690000 | L45: 9470000
A46: Internal audit | C46: 0 | D46: 0 | E46: 0 | F46: 0 | G46: 0 | H46: 0 | I46: 0 | J46: 0 | K46: 0 | L46: 0
A47: Community and public safety | C47: =SUM(C48:C52) -> -199211.97 | D47: =SUM(D48:D52) -> 1109395.43 | E47: 1633819.3 | F47: 10807478 | G47: 12323836 | H47: 12323836 | I47: 377809.25 | J47: 19180000 | K47: 5150000 | L47: 5200000
A48: Community and social services | C48: -199211.97 | D48: 1109395.43 | E48: 1633819.3 | F48: 10807478 | G48: 12323836 | H48: 12323836 | I48: 377809.25 | J48: 19180000 | K48: 5150000 | L48: 5200000
A49: Sport and recreation | C49: 0 | D49: 0 | E49: 0 | F49: 0 | G49: 0 | H49: 0 | I49: 0 | J49: 0 | K49: 0 | L49: 0
A50: Public safety | C50: 0 | D50: 0 | E50: 0 | F50: 0 | G50: 0 | H50: 0 | I50: 0 | J50: 0 | K50: 0 | L50: 0
A51: Housing | C51: 0 | D51: 0 | E51: 0 | F51: 0 | G51: 0 | H51: 0 | I51: 0 | J51: 0 | K51: 0 | L51: 0
A52: Health | C52: 0 | D52: 0 | E52: 0 | F52: 0 | G52: 0 | H52: 0 | I52: 0 | J52: 0 | K52: 0 | L52: 0
A53: Economic and environmental services | C53: =SUM(C54:C56) -> -232334529.2 | D53: =SUM(D54:D56) -> -231852585.6 | E53: -179716091.1 | F53: 129341944 | G53: 127099420 | H53: 127099420 | I53: 79477034.15 | J53: 134600838 | K53: 93623043 | L53: 108119304
A54: Planning and development | C54: -209696382.7 | D54: -209389803.4 | E54: -209199035.9 | F54: 16825575 | G54: 18099411 | H54: 18099411 | I54: 8911873.64 | J54: 2250000 | K54: 1700000 | L54: 1200000
A55: Road transport | C55: -22638146.52 | D55: -22462782.14 | E55: 29482944.78 | F55: 112516369 | G55: 109000009 | H55: 109000009 | I55: 70565160.51 | J55: 132350838 | K55: 91923043 | L55: 106919304
A56: Environmental protection | C56: 0 | D56: 0 | E56: 0 | F56: 0 | G56: 0 | H56: 0 | I56: 0 | J56: 0 | K56: 0 | L56: 0
A57: Trading services | C57: =SUM(C58:C61) -> 0 | D57: =SUM(D58:D61) -> 0 | E57: 0 | F57: 0 | G57: 0 | H57: 0 | I57: 0 | J57: 0 | K57: 0 | L57: 0
A58: Energy sources | C58: 0 | D58: 0 | E58: 0 | F58: 0 | G58: 0 | H58: 0 | I58: 0 | J58: 0 | K58: 0 | L58: 0
A59: Water management | C59: 0 | D59: 0 | E59: 0 | F59: 0 | G59: 0 | H59: 0 | I59: 0 | J59: 0 | K59: 0 | L59: 0
A60: Waste water management | C60: 0 | D60: 0 | E60: 0 | F60: 0 | G60: 0 | H60: 0 | I60: 0 | J60: 0 | K60: 0 | L60: 0
A61: Waste management | C61: 0 | D61: 0 | E61: 0 | F61: 0 | G61: 0 | H61: 0 | I61: 0 | J61: 0 | K61: 0 | L61: 0
A62: Other | C62: 0 | D62: 0 | E62: 0 | F62: 0 | G62: 0 | H62: 0 | I62: 0 | J62: 0 | K62: 0 | L62: 0
A63: Total Capital Expenditure - Functional | B63: 3 | C63: =C43+C47+C53+C57+C62 -> -46037734.65 | D63: =D43+D47+D53+D57+D62 -> -291414633.2 | E63: -232430134.3 | F63: 171219422 | G63: 170757600 | H63: 170757600 | I63: 82626488.05 | J63: 159530838 | K63: 103463043 | L63: =L43+L47+L53+L57+L62 -> 122789304
A65: Funded by:
A66: National Government | C66: -22638146.52 | D66: -22243488.78 | E66: 29702238.14 | F66: 30619346 | G66: 26019346 | H66: 26019346 | I66: 16249284.87 | J66: 23254348 | K66: 25923043 | L66: 32919304
A67: Provincial Government | C67: 0 | D67: 0 | E67: 0 | F67: 0 | G67: 0 | H67: 0 | I67: 0 | J67: 0 | K67: 0 | L67: 0
A68: District Municipality | C68: 0 | D68: 0 | E68: 0 | F68: 0 | G68: 0 | H68: 0 | I68: 0 | J68: 0 | K68: 0 | L68: 0
A69: ='A4-FinPerf RE'!A39 -> Transfers and subsidies - capital (monetary allocations) (National / Provincial Departmental Agencies, Households, Non-profit Institutions, Private Enterprises, Public Corporatons, Higher Educational Institutions) | C69: 0 | D69: 0 | E69: 0 | F69: 0 | G69: 0 | H69: 0 | I69: 0 | J69: 0 | K69: 0 | L69: 0
A70: Transfers recognised - capital | B70: 4 | C70: =SUM(C66:C69) -> -22638146.52 | D70: -22243488.78 | E70: 29702238.14 | F70: 30619346 | G70: 26019346 | H70: 26019346 | I70: 16249284.87 | J70: 23254348 | K70: 25923043 | L70: 32919304
A72: Borrowing | B72: 6 | C72: 0 | D72: 0 | E72: 0 | F72: 0 | G72: 0 | H72: 0 | I72: 0 | J72: 0 | K72: 0 | L72: 0
A73: Internally generated funds | C73: 0 | D73: 0 | E73: 0 | F73: 140600076 | G73: 144738254 | H73: 144738254 | I73: 62463266.28 | J73: 136276494 | K73: 77540008 | L73: 80870008
A74: Total Capital Funding | B74: 7 | C74: =+C70+C72+C73 -> -22638146.52 | D74: =+D70+D72+D73 -> -22243488.78 | E74: 29702238.14 | F74: 171219422 | G74: 170757600 | H74: 170757600 | I74: 78712551.15 | J74: 159530842 | K74: 103463051 | L74: 113789312
A75: =head27a -> References
A76: 1. Municipalities may choose to appropriate for capital expenditure for three years or for one year (if one year appropriation projected expenditure required for yr2 and yr3).
A77: 2. Include capital component of PPP unitary payment. Note that capital transfers are only appropriated to municipalities for the budget year
A78: 3. Capital expenditure by functional classification must reconcile to the appropriations by vote
A79: 4. Must reconcile to supporting table SA20 and to Budgeted Financial Performance (revenue and expenditure)
A81: 6. Include finance leases and PPP capital funding component of unitary payment - total borrowing/repayments to reconcile to changes in Table SA17
A82: 7. Total Capital Funding must balance with Total Capital Expenditure
A83: 8. Include any capitalised interest (MFMA section 46) as part of relevant capital budget
A85: check balance | C85: =IF((C63-C74)=0,0,"Unbalanced") -> Unbalanced | D85: =IF((D63-D74)=0,0,"Unbalanced") -> Unbalanced | E85: Unbalanced | F85: 0 | G85: 0 | H85: 0 | I85: Unbalanced | J85: Unbalanced | K85: Unbalanced | L85: Unbalanced

Sheet A5A
A1: =muni&" - "&Approve5 -> Choose name from list - Table A5 Budgeted Capital Expenditure by vote, functional classification and funding
A2: =Vdesc -> Vote Description | B2: =head27 -> Ref | C2: =head1b -> 2017/18 | D2: =head1A -> 2018/19 | E2: =Head1 -> 2019/20 | F2: =Head2 -> Current Year 2020/21 | J2: =Head3 -> 2021/22 Medium Term Revenue & Expenditure Framework | N2: ="Multi-year appropriation for "&Head9& " in the "&Head2A&" Annual Budget" -> Multi-year appropriation for Budget Year 2021/22 in the 2020/21 Annual Budget | R2: ="Multi-year appropriation for "&RIGHT(Head10,7)& " in the "&Head2A&" Annual Budget" -> Multi-year appropriation for 2022/23 in the 2020/21 Annual Budget | V2: New multi-year appropriations (funds for new and existing projects)
A3: R thousand | B3: 1 | C3: =Head5 -> Audited Outcome | D3: =Head5 -> Audited Outcome | E3: =Head5 -> Audited Outcome | F3: =Head6 -> Original Budget | G3: =Head7 -> Adjusted Budget | H3: =Head8 -> Full Year Forecast | I3: =Head5b -> Pre-audit outcome | J3: =Head9 -> Budget Year 2021/22 | K3: =Head10 -> Budget Year +1 2022/23 | L3: =Head11 -> Budget Year +2 2023/24 | N3: ="Appropriation for "&RIGHT(Head9,7) -> Appropriation for 2021/22 | O3: ="Adjustments in "&Head2A -> Adjustments in 2020/21 | P3: ="Downward adjustments for "&RIGHT(Head9,7) -> Downward adjustments for 2021/22 | Q3: Appropriation carried forward | R3: ="Appropriation for "&RIGHT(Head9,7) -> Appropriation for 2021/22 | S3: ="Adjustments in "&Head2A -> Adjustments in 2020/21 | T3: ="Downward adjustments for "&RIGHT(Head9,7) -> Downward adjustments for 2021/22 | U3: Appropriation carried forward | V3: =Head9 -> Budget Year 2021/22 | W3: =Head10 -> Budget Year +1 2022/23 | X3: =Head11 -> Budget Year +2 2023/24
A4: Capital expenditure - Municipal Vote
A5: Multi-year expenditure appropriation | B5: 2
A6: ='Org structure'!A2 -> Vote 1 - Executive and Council | C6: =SUM(C7:C16) -> 0 | D6: =SUM(D7:D16) -> 0 | E6: 0 | F6: 0 | G6: 0 | H6: 0 | I6: =SUM(I7:I16) -> 0 | J6: 0 | K6: 0 | L6: 0 | N6: =SUM(N7:N16) -> 0 | O6: 0 | P6: 0 | Q6: 0 | R6: 0 | S6: 0 | T6: 0 | U6: 0 | V6: =SUM(V7:V16) -> 0 | W6: =SUM(W7:W16) -> 0 | X6: =SUM(X7:X16) -> 0
A7: ='Org structure'!E3 -> 1.1 - [Name of sub-vote] | C7: 0 | D7: 0 | E7: 0 | F7: 0 | G7: 0 | H7: 0 | I7: 0 | J7: =Q7+V7 -> 0 | K7: =U7+W7 -> 0 | L7: =X7 -> 0 | Q7: =SUM(N7:P7) -> 0 | U7: =SUM(R7:T7) -> 0 | V7: 0 | W7: 0 | X7: 0
A8: ='Org structure'!E4 -> 0 | C8: 0 | D8: 0 | E8: 0 | F8: 0 | G8: 0 | H8: 0 | I8: 0 | J8: =Q8+V8 -> 0 | K8: =U8+W8 -> 0 | L8: =X8 -> 0 | Q8: =SUM(N8:P8) -> 0 | U8: =SUM(R8:T8) -> 0 | V8: 0 | W8: 0 | X8: 0
A9: ='Org structure'!E5 -> 0 | C9: 0 | D9: 0 | E9: 0 | F9: 0 | G9: 0 | H9: 0 | I9: 0 | J9: =Q9+V9 -> 0 | K9: =U9+W9 -> 0 | L9: 0 | Q9: 0 | U9: 0 | V9: 0 | W9: 0 | X9: 0
A10: ='Org structure'!E6 -> 0 | C10: 0 | D10: 0 | E10: 0 | F10: 0 | G10: 0 | H10: 0 | I10: 0 | J10: 0 | K10: 0 | L10: 0 | Q10: 0 | U10: 0 | V10: 0 | W10: 0 | X10: 0
A11: ='Org structure'!E7 -> 0 | C11: 0 | D11: 0 | E11: 0 | F11: 0 | G11: 0 | H11: 0 | I11: 0 | J11: 0 | K11: 0 | L11: =X11 -> 0 | Q11: 0 | U11: 0 | V11: 0 | W11: 0 | X11: 0
A12: ='Org structure'!E8 -> 0 | C12: 0 | D12: 0 | E12: 0 | F12: 0 | G12: 0 | H12: 0 | I12: 0 | J12: 0 | K12: 0 | L12: 0 | Q12: 0 | U12: 0 | V12: 0 | W12: 0 | X12: 0
A13: ='Org structure'!E9 -> 0 | C13: 0 | D13: 0 | E13: 0 | F13: 0 | G13: 0 | H13: 0 | I13: 0 | J13: 0 | K13: 0 | L13: 0 | Q13: 0 | U13: 0 | V13: 0 | W13: 0 | X13: 0
A14: ='Org structure'!E10 -> 0 | C14: 0 | D14: 0 | E14: 0 | F14: 0 | G14: 0 | H14: 0 | I14: 0 | J14: 0 | K14: 0 | L14: 0 | Q14: 0 | U14: 0 | V14: 0 | W14: 0 | X14: 0
A15: ='Org structure'!E11 -> 0 | C15: 0 | D15: 0 | E15: 0 | F15: 0 | G15: 0 | H15: 0 | I15: 0 | J15: 0 | K15: 0 | L15: 0 | Q15: 0 | U15: 0 | V15: 0 | W15: 0 | X15: 0
A16: ='Org structure'!E12 -> 0 | C16: 0 | D16: 0 | E16: 0 | F16: 0 | G16: 0 | H16: 0 | I16: 0 | J16: 0 | K16: 0 | L16: 0 | Q16: 0 | U16: 0 | V16: 0 | W16: 0 | X16: 0
A17: ='Org structure'!A3 -> Vote 2 - Budget and treasury | C17: =SUM(C18:C27) -> 0 | D17: =SUM(D18:D27) -> 0 | E17: 0 | F17: 0 | G17: 0 | H17: 0 | I17: =SUM(I18:I27) -> 0 | J17: 0 | K17: 0 | L17: 0 | N17: =SUM(N18:N27) -> 0 | O17: 0 | P17: 0 | Q17: 0 | R17: 0 | S17: 0 | T17: 0 | U17: 0 | V17: 0 | W17: 0 | X17: 0
A18: ='Org structure'!E14 -> 2.1 - [Name of sub-vote] | C18: 0 | D18: 0 | E18: 0 | F18: 0 | G18: 0 | H18: 0 | I18: 0 | J18: =Q18+V18 -> 0 | K18: =U18+W18 -> 0 | L18: =X18 -> 0 | Q18: =SUM(N18:P18) -> 0 | U18: 0 | V18: 0 | W18: 0 | X18: 0
A19: ='Org structure'!E15 -> 0 | C19: 0 | D19: 0 | E19: 0 | F19: 0 | G19: 0 | H19: 0 | I19: 0 | J19: =Q19+V19 -> 0 | K19: =U19+W19 -> 0 | L19: 0 | Q19: 0 | U19: 0 | V19: 0 | W19: 0 | X19: 0
A20: ='Org structure'!E16 -> 0 | C20: 0 | D20: 0 | E20: 0 | F20: 0 | G20: 0 | H20: 0 | I20: 0 | J20: 0 | K20: 0 | L20: 0 | Q20: 0 | U20: 0 | V20: 0 | W20: 0 | X20: 0
A21: ='Org structure'!E17 -> 0 | C21: 0 | D21: 0 | E21: 0 | F21: 0 | G21: 0 | H21: 0 | I21: 0 | J21: 0 | K21: =U21+W21 -> 0 | L21: 0 | Q21: 0 | U21: 0 | V21: 0 | W21: 0 | X21: 0
A22: ='Org structure'!E18 -> 0 | C22: 0 | D22: 0 | E22: 0 | F22: 0 | G22: 0 | H22: 0 | I22: 0 | J22: 0 | K22: 0 | L22: 0 | Q22: 0 | U22: 0 | V22: 0 | W22: 0 | X22: 0
A23: ='Org structure'!E19 -> 0 | C23: 0 | D23: 0 | E23: 0 | F23: 0 | G23: 0 | H23: 0 | I23: 0 | J23: 0 | K23: 0 | L23: 0 | Q23: 0 | U23: 0 | V23: 0 | W23: 0 | X23: 0
A24: ='Org structure'!E20 -> 0 | C24: 0 | D24: 0 | E24: 0 | F24: 0 | G24: 0 | H24: 0 | I24: 0 | J24: 0 | K24: 0 | L24: 0 | Q24: 0 | U24: 0 | V24: 0 | W24: 0 | X24: 0
A25: ='Org structure'!E21 -> 0 | C25: 0 | D25: 0 | E25: 0 | F25: 0 | G25: 0 | H25: 0 | I25: 0 | J25: 0 | K25: 0 | L25: 0 | Q25: 0 | U25: 0 | V25: 0 | W25: 0 | X25: 0
A26: ='Org structure'!E22 -> 0 | C26: 0 | D26: 0 | E26: 0 | F26: 0 | G26: 0 | H26: 0 | I26: 0 | J26: 0 | K26: 0 | L26: 0 | Q26: 0 | U26: 0 | V26: 0 | W26: 0 | X26: 0
A27: ='Org structure'!E23 -> 0 | C27: 0 | D27: 0 | E27: 0 | F27: 0 | G27: 0 | H27: 0 | I27: 0 | J27: 0 | K27: 0 | L27: 0 | Q27: 0 | U27: 0 | V27: 0 | W27: 0 | X27: 0
A28: ='Org structure'!A4 -> Vote 3 - Corporate Services | C28: =SUM(C29:C38) -> 0 | D28: =SUM(D29:D38) -> 0 | E28: 0 | F28: 0 | G28: 0 | H28: 0 | I28: =SUM(I29:I38) -> 0 | J28: 0 | K28: 0 | L28: 0 | N28: =SUM(N29:N38) -> 0 | O28: 0 | P28: 0 | Q28: 0 | R28: 0 | S28: 0 | T28: 0 | U28: 0 | V28: 0 | W28: 0 | X28: 0
A29: ='Org structure'!E25 -> 3.1 - [Name of sub-vote] | C29: 0 | D29: 0 | E29: 0 | F29: 0 | G29: 0 | H29: 0 | I29: 0 | J29: =Q29+V29 -> 0 | K29: =U29+W29 -> 0 | L29: =X29 -> 0 | Q29: =SUM(N29:P29) -> 0 | U29: 0 | V29: 0 | W29: 0 | X29: 0
A30: ='Org structure'!E26 -> 0 | C30: 0 | D30: 0 | E30: 0 | F30: 0 | G30: 0 | H30: 0 | I30: 0 | J30: 0 | K30: 0 | L30: 0 | Q30: 0 | U30: 0 | V30: 0 | W30: 0 | X30: 0
A31: ='Org structure'!E27 -> 0 | C31: 0 | D31: 0 | E31: 0 | F31: 0 | G31: 0 | H31: 0 | I31: 0 | J31: 0 | K31: 0 | L31: 0 | Q31: 0 | U31: =SUM(R31:T31) -> 0 | V31: 0 | W31: 0 | X31: 0
A32: ='Org structure'!E28 -> 0 | C32: 0 | D32: 0 | E32: 0 | F32: 0 | G32: 0 | H32: 0 | I32: 0 | J32: 0 | K32: =U32+W32 -> 0 | L32: 0 | Q32: 0 | U32: 0 | V32: 0 | W32: 0 | X32: 0
A33: ='Org structure'!E29 -> 0 | C33: 0 | D33: 0 | E33: 0 | F33: 0 | G33: 0 | H33: 0 | I33: 0 | J33: =Q33+V33 -> 0 | K33: 0 | L33: 0 | Q33: 0 | U33: 0 | V33: 0 | W33: 0 | X33: 0
A34: ='Org structure'!E30 -> 0 | C34: 0 | D34: 0 | E34: 0 | F34: 0 | G34: 0 | H34: 0 | I34: 0 | J34: 0 | K34: 0 | L34: 0 | Q34: 0 | U34: 0 | V34: 0 | W34: 0 | X34: 0
A35: ='Org structure'!E31 -> 0 | C35: 0 | D35: 0 | E35: 0 | F35: 0 | G35: 0 | H35: 0 | I35: 0 | J35: 0 | K35: 0 | L35: 0 | Q35: 0 | U35: 0 | V35: 0 | W35: 0 | X35: 0
A36: ='Org structure'!E32 -> 0 | C36: 0 | D36: 0 | E36: 0 | F36: 0 | G36: 0 | H36: 0 | I36: 0 | J36: 0 | K36: 0 | L36: 0 | Q36: 0 | U36: 0 | V36: 0 | W36: 0 | X36: 0
A37: ='Org structure'!E33 -> 0 | C37: 0 | D37: 0 | E37: 0 | F37: 0 | G37: 0 | H37: 0 | I37: 0 | J37: 0 | K37: 0 | L37: 0 | Q37: 0 | U37: 0 | V37: 0 | W37: 0 | X37: 0
A38: ='Org structure'!E34 -> 0 | C38: 0 | D38: 0 | E38: 0 | F38: 0 | G38: 0 | H38: 0 | I38: 0 | J38: 0 | K38: 0 | L38: 0 | Q38: 0 | U38: 0 | V38: 0 | W38: 0 | X38: 0
A39: ='Org structure'!A5 -> Vote 4 - Planning and Development | C39: =SUM(C40:C49) -> 0 | D39: =SUM(D40:D49) -> 0 | E39: 0 | F39: 0 | G39: 0 | H39: 0 | I39: =SUM(I40:I49) -> 0 | J39: 0 | K39: 0 | L39: 0 | N39: =SUM(N40:N49) -> 0 | O39: 0 | P39: 0 | Q39: 0 | R39: 0 | S39: 0 | T39: 0 | U39: 0 | V39: 0 | W39: 0 | X39: 0
A40: ='Org structure'!E36 -> 4.1 - [Name of sub-vote] | C40: 0 | D40: 0 | E40: 0 | F40: 0 | G40: 0 | H40: 0 | I40: 0 | J40: =Q40+V40 -> 0 | K40: =U40+W40 -> 0 | L40: =X40 -> 0 | Q40: =SUM(N40:P40) -> 0 | U40: 0 | V40: 0 | W40: 0 | X40: 0
A41: ='Org structure'!E37 -> 0 | C41: 0 | D41: 0 | E41: 0 | F41: 0 | G41: 0 | H41: 0 | I41: 0 | J41: 0 | K41: 0 | L41: 0 | Q41: 0 | U41: 0 | V41: 0 | W41: 0 | X41: 0
A42: ='Org structure'!E38 -> 0 | C42: 0 | D42: 0 | E42: 0 | F42: 0 | G42: 0 | H42: 0 | I42: 0 | J42: 0 | K42: 0 | L42: 0 | Q42: 0 | U42: 0 | V42: 0 | W42: 0 | X42: 0
A43: ='Org structure'!E39 -> 0 | C43: 0 | D43: 0 | E43: 0 | F43: 0 | G43: 0 | H43: 0 | I43: 0 | J43: 0 | K43: 0 | L43: 0 | Q43: 0 | U43: 0 | V43: 0 | W43: 0 | X43: 0
A44: ='Org structure'!E40 -> 0 | C44: 0 | D44: 0 | E44: 0 | F44: 0 | G44: 0 | H44: 0 | I44: 0 | J44: 0 | K44: 0 | L44: 0 | Q44: 0 | U44: 0 | V44: 0 | W44: 0 | X44: 0
A45: ='Org structure'!E41 -> 0 | C45: 0 | D45: 0 | E45: 0 | F45: 0 | G45: 0 | H45: 0 | I45: 0 | J45: 0 | K45: 0 | L45: 0 | Q45: 0 | U45: 0 | V45: 0 | W45: 0 | X45: 0
A46: ='Org structure'!E42 -> 0 | C46: 0 | D46: 0 | E46: 0 | F46: 0 | G46: 0 | H46: 0 | I46: 0 | J46: 0 | K46: 0 | L46: 0 | Q46: 0 | U46: 0 | V46: 0 | W46: 0 | X46: 0
A47: ='Org structure'!E43 -> 0 | C47: 0 | D47: 0 | E47: 0 | F47: 0 | G47: 0 | H47: 0 | I47: 0 | J47: 0 | K47: 0 | L47: 0 | Q47: 0 | U47: 0 | V47: 0 | W47: 0 | X47: 0
A48: ='Org structure'!E44 -> 0 | C48: 0 | D48: 0 | E48: 0 | F48: 0 | G48: 0 | H48: 0 | I48: 0 | J48: 0 | K48: 0 | L48: 0 | Q48: 0 | U48: 0 | V48: 0 | W48: 0 | X48: 0
A49: ='Org structure'!E45 -> 0 | C49: 0 | D49: 0 | E49: 0 | F49: 0 | G49: 0 | H49: 0 | I49: 0 | J49: 0 | K49: 0 | L49: 0 | Q49: 0 | U49: 0 | V49: 0 | W49: 0 | X49: 0
A50: ='Org structure'!A6 -> Vote 5 - Community and Social Services | C50: =SUM(C51:C60) -> 0 | D50: =SUM(D51:D60) -> 0 | E50: 0 | F50: 0 | G50: 0 | H50: 0 | I50: =SUM(I51:I60) -> 0 | J50: 0 | K50: 0 | L50: 0 | N50: =SUM(N51:N60) -> 0 | O50: 0 | P50: 0 | Q50: 0 | R50: 0 | S50: 0 | T50: 0 | U50: 0 | V50: 0 | W50: 0 | X50: 0
A51: ='Org structure'!E47 -> 5.1 - [Name of sub-vote] | C51: 0 | D51: 0 | E51: 0 | F51: 0 | G51: 0 | H51: 0 | I51: 0 | J51: =Q51+V51 -> 0 | K51: =U51+W51 -> 0 | L51: =X51 -> 0 | Q51: =SUM(N51:P51) -> 0 | U51: 0 | V51: 0 | W51: 0 | X51: 0
A52: ='Org structure'!E48 -> 0 | C52: 0 | D52: 0 | E52: 0 | F52: 0 | G52: 0 | H52: 0 | I52: 0 | J52: 0 | K52: 0 | L52: 0 | Q52: 0 | U52: 0 | V52: 0 | W52: 0 | X52: 0
A53: ='Org structure'!E49 -> 0 | C53: 0 | D53: 0 | E53: 0 | F53: 0 | G53: 0 | H53: 0 | I53: 0 | J53: 0 | K53: 0 | L53: 0 | Q53: 0 | U53: 0 | V53: 0 | W53: 0 | X53: 0
A54: ='Org structure'!E50 -> 0 | C54: 0 | D54: 0 | E54: 0 | F54: 0 | G54: 0 | H54: 0 | I54: 0 | J54: 0 | K54: 0 | L54: 0 | Q54: 0 | U54: 0 | V54: 0 | W54: 0 | X54: 0
A55: ='Org structure'!E51 -> 0 | C55: 0 | D55: 0 | E55: 0 | F55: 0 | G55: 0 | H55: 0 | I55: 0 | J55: 0 | K55: 0 | L55: 0 | Q55: 0 | U55: 0 | V55: 0 | W55: 0 | X55: 0
A56: ='Org structure'!E52 -> 0 | C56: 0 | D56: 0 | E56: 0 | F56: 0 | G56: 0 | H56: 0 | I56: 0 | J56: 0 | K56: 0 | L56: 0 | Q56: 0 | U56: 0 | V56: 0 | W56: 0 | X56: 0
A57: ='Org structure'!E53 -> 0 | C57: 0 | D57: 0 | E57: 0 | F57: 0 | G57: 0 | H57: 0 | I57: 0 | J57: 0 | K57: 0 | L57: 0 | Q57: 0 | U57: 0 | V57: 0 | W57: 0 | X57: 0
A58: ='Org structure'!E54 -> 0 | C58: 0 | D58: 0 | E58: 0 | F58: 0 | G58: 0 | H58: 0 | I58: 0 | J58: 0 | K58: 0 | L58: 0 | Q58: 0 | U58: 0 | V58: 0 | W58: 0 | X58: 0
A59: ='Org structure'!E55 -> 0 | C59: 0 | D59: 0 | E59: 0 | F59: 0 | G59: 0 | H59: 0 | I59: 0 | J59: 0 | K59: 0 | L59: 0 | Q59: 0 | U59: 0 | V59: 0 | W59: 0 | X59: 0
A60: ='Org structure'!E56 -> 0 | C60: 0 | D60: 0 | E60: 0 | F60: 0 | G60: 0 | H60: 0 | I60: 0 | J60: 0 | K60: 0 | L60: 0 | Q60: 0 | U60: 0 | V60: 0 | W60: 0 | X60: 0
A61: ='Org structure'!A7 -> Vote 6 - Sports and Recreation | C61: =SUM(C62:C71) -> 0 | D61: =SUM(D62:D71) -> 0 | E61: 0 | F61: 0 | G61: 0 | H61: 0 | I61: =SUM(I62:I71) -> 0 | J61: 0 | K61: 0 | L61: 0 | N61: =SUM(N62:N71) -> 0 | O61: 0 | P61: 0 | Q61: 0 | R61: 0 | S61: 0 | T61: 0 | U61: 0 | V61: 0 | W61: 0 | X61: 0
A62: ='Org structure'!E58 -> 6.1 - [Name of sub-vote] | C62: 0 | D62: 0 | E62: 0 | F62: 0 | G62: 0 | H62: 0 | I62: 0 | J62: =Q62+V62 -> 0 | K62: =U62+W62 -> 0 | L62: =X62 -> 0 | Q62: =SUM(N62:P62) -> 0 | U62: 0 | V62: 0 | W62: 0 | X62: 0
A63: ='Org structure'!E59 -> 0 | C63: 0 | D63: 0 | E63: 0 | F63: 0 | G63: 0 | H63: 0 | I63: 0 | J63: 0 | K63: 0 | L63: 0 | Q63: 0 | U63: 0 | V63: 0 | W63: 0 | X63: 0
A64: ='Org structure'!E60 -> 0 | C64: 0 | D64: 0 | E64: 0 | F64: 0 | G64: 0 | H64: 0 | I64: 0 | J64: 0 | K64: 0 | L64: 0 | Q64: 0 | U64: 0 | V64: 0 | W64: 0 | X64: 0
A65: ='Org structure'!E61 -> 0 | C65: 0 | D65: 0 | E65: 0 | F65: 0 | G65: 0 | H65: 0 | I65: 0 | J65: 0 | K65: 0 | L65: 0 | Q65: 0 | U65: 0 | V65: 0 | W65: 0 | X65: 0
A66: ='Org structure'!E62 -> 0 | C66: 0 | D66: 0 | E66: 0 | F66: 0 | G66: 0 | H66: 0 | I66: 0 | J66: 0 | K66: 0 | L66: 0 | Q66: 0 | U66: 0 | V66: 0 | W66: 0 | X66: 0
A67: ='Org structure'!E63 -> 0 | C67: 0 | D67: 0 | E67: 0 | F67: 0 | G67: 0 | H67: 0 | I67: 0 | J67: 0 | K67: 0 | L67: 0 | Q67: 0 | U67: 0 | V67: 0 | W67: 0 | X67: 0
A68: ='Org structure'!E64 -> 0 | C68: 0 | D68: 0 | E68: 0 | F68: 0 | G68: 0 | H68: 0 | I68: 0 | J68: 0 | K68: 0 | L68: 0 | Q68: 0 | U68: 0 | V68: 0 | W68: 0 | X68: 0
A69: ='Org structure'!E65 -> 0 | C69: 0 | D69: 0 | E69: 0 | F69: 0 | G69: 0 | H69: 0 | I69: 0 | J69: 0 | K69: 0 | L69: 0 | Q69: 0 | U69: 0 | V69: 0 | W69: 0 | X69: 0
A70: ='Org structure'!E66 -> 0 | C70: 0 | D70: 0 | E70: 0 | F70: 0 | G70: 0 | H70: 0 | I70: 0 | J70: 0 | K70: 0 | L70: 0 | Q70: 0 | U70: 0 | V70: 0 | W70: 0 | X70: 0
A71: ='Org structure'!E67 -> 0 | C71: 0 | D71: 0 | E71: 0 | F71: 0 | G71: 0 | H71: 0 | I71: 0 | J71: 0 | K71: 0 | L71: 0 | Q71: 0 | U71: 0 | V71: 0 | W71: 0 | X71: 0
A72: ='Org structure'!A8 -> Vote 7 - Waste Management | C72: =SUM(C73:C82) -> 0 | D72: 0 | E72: 0 | F72: 0 | G72: 0 | H72: 0 | I72: 0 | J72: 0 | K72: 0 | L72: 0 | N72: =SUM(N73:N82) -> 0 | O72: 0 | P72: 0 | Q72: 0 | R72: 0 | S72: 0 | T72: 0 | U72: 0 | V72: 0 | W72: 0 | X72: 0
A73: ='Org structure'!E69 -> 7.1 - [Name of sub-vote] | C73: 0 | D73: 0 | E73: 0 | F73: 0 | G73: 0 | H73: 0 | I73: 0 | J73: =Q73+V73 -> 0 | K73: =U73+W73 -> 0 | L73: =X73 -> 0 | Q73: =SUM(N73:P73) -> 0 | U73: =SUM(R73:T73) -> 0 | V73: 0 | W73: 0 | X73: 0
A74: ='Org structure'!E70 -> 0 | C74: 0 | D74: 0 | E74: 0 | F74: 0 | G74: 0 | H74: 0 | I74: 0 | J74: 0 | K74: 0 | L74: 0 | Q74: 0 | U74: 0 | V74: 0 | W74: 0 | X74: 0
A75: ='Org structure'!E71 -> 0 | C75: 0 | D75: 0 | E75: 0 | F75: 0 | G75: 0 | H75: 0 | I75: 0 | J75: 0 | K75: 0 | L75: 0 | Q75: 0 | U75: 0 | V75: 0 | W75: 0 | X75: 0
A76: ='Org structure'!E72 -> 0 | C76: 0 | D76: 0 | E76: 0 | F76: 0 | G76: 0 | H76: 0 | I76: 0 | J76: 0 | K76: 0 | L76: 0 | Q76: 0 | U76: 0 | V76: 0 | W76: 0 | X76: 0
A77: ='Org structure'!E73 -> 0 | C77: 0 | D77: 0 | E77: 0 | F77: 0 | G77: 0 | H77: 0 | I77: 0 | J77: 0 | K77: 0 | L77: 0 | Q77: 0 | U77: 0 | V77: 0 | W77: 0 | X77: 0
A78: ='Org structure'!E74 -> 0 | C78: 0 | D78: 0 | E78: 0 | F78: 0 | G78: 0 | H78: 0 | I78: 0 | J78: 0 | K78: 0 | L78: 0 | Q78: 0 | U78: 0 | V78: 0 | W78: 0 | X78: 0
A79: ='Org structure'!E75 -> 0 | C79: 0 | D79: 0 | E79: 0 | F79: 0 | G79: 0 | H79: 0 | I79: 0 | J79: 0 | K79: 0 | L79: 0 | Q79: 0 | U79: 0 | V79: 0 | W79: 0 | X79: 0
A80: ='Org structure'!E76 -> 0 | C80: 0 | D80: 0 | E80: 0 | F80: 0 | G80: 0 | H80: 0 | I80: 0 | J80: 0 | K80: 0 | L80: 0 | Q80: 0 | U80: 0 | V80: 0 | W80: 0 | X80: 0
A81: ='Org structure'!E77 -> 0 | C81: 0 | D81: 0 | E81: 0 | F81: 0 | G81: 0 | H81: 0 | I81: 0 | J81: 0 | K81: 0 | L81: 0 | Q81: 0 | U81: 0 | V81: 0 | W81: 0 | X81: 0
A82: ='Org structure'!E78 -> 0 | C82: 0 | D82: 0 | E82: 0 | F82: 0 | G82: 0 | H82: 0 | I82: 0 | J82: 0 | K82: 0 | L82: 0 | Q82: 0 | U82: 0 | V82: 0 | W82: 0 | X82: 0
A83: ='Org structure'!A9 -> Vote 8 - Waste water Management | C83: =SUM(C84:C93) -> 0 | D83: 0 | E83: 0 | F83: 0 | G83: 0 | H83: 0 | I83: 0 | J83: 0 | K83: 0 | L83: 0 | N83: =SUM(N84:N93) -> 0 | O83: 0 | P83: 0 | Q83: 0 | R83: 0 | S83: 0 | T83: 0 | U83: 0 | V83: 0 | W83: 0 | X83: 0
A84: ='Org structure'!E80 -> 8.1 - [Name of sub-vote] | C84: 0 | D84: 0 | E84: 0 | F84: 0 | G84: 0 | H84: 0 | I84: 0 | J84: =Q84+V84 -> 0 | K84: =U84+W84 -> 0 | L84: =X84 -> 0 | Q84: =SUM(N84:P84) -> 0 | U84: 0 | V84: 0 | W84: 0 | X84: 0
A85: ='Org structure'!E81 -> 0 | C85: 0 | D85: 0 | E85: 0 | F85: 0 | G85: 0 | H85: 0 | I85: 0 | J85: 0 | K85: 0 | L85: 0 | Q85: 0 | U85: 0 | V85: 0 | W85: 0 | X85: 0
A86: ='Org structure'!E82 -> 0 | C86: 0 | D86: 0 | E86: 0 | F86: 0 | G86: 0 | H86: 0 | I86: 0 | J86: 0 | K86: 0 | L86: 0 | Q86: 0 | U86: 0 | V86: 0 | W86: 0 | X86: 0
A87: ='Org structure'!E83 -> 0 | C87: 0 | D87: 0 | E87: 0 | F87: 0 | G87: 0 | H87: 0 | I87: 0 | J87: 0 | K87: 0 | L87: 0 | Q87: 0 | U87: 0 | V87: 0 | W87: 0 | X87: 0
A88: ='Org structure'!E84 -> 0 | C88: 0 | D88: 0 | E88: 0 | F88: 0 | G88: 0 | H88: 0 | I88: 0 | J88: 0 | K88: 0 | L88: 0 | Q88: 0 | U88: 0 | V88: 0 | W88: 0 | X88: 0
A89: ='Org structure'!E85 -> 0 | C89: 0 | D89: 0 | E89: 0 | F89: 0 | G89: 0 | H89: 0 | I89: 0 | J89: 0 | K89: 0 | L89: 0 | Q89: 0 | U89: 0 | V89: 0 | W89: 0 | X89: 0
A90: ='Org structure'!E86 -> 0 | C90: 0 | D90: 0 | E90: 0 | F90: 0 | G90: 0 | H90: 0 | I90: 0 | J90: 0 | K90: 0 | L90: 0 | Q90: 0 | U90: 0 | V90: 0 | W90: 0 | X90: 0
A91: ='Org structure'!E87 -> 0 | C91: 0 | D91: 0 | E91: 0 | F91: 0 | G91: 0 | H91: 0 | I91: 0 | J91: 0 | K91: 0 | L91: 0 | Q91: 0 | U91: 0 | V91: 0 | W91: 0 | X91: 0
A92: ='Org structure'!E88 -> 0 | C92: 0 | D92: 0 | E92: 0 | F92: 0 | G92: 0 | H92: 0 | I92: 0 | J92: 0 | K92: 0 | L92: 0 | Q92: 0 | U92: 0 | V92: 0 | W92: 0 | X92: 0
A93: ='Org structure'!E89 -> 0 | C93: 0 | D93: 0 | E93: 0 | F93: 0 | G93: 0 | H93: 0 | I93: 0 | J93: 0 | K93: 0 | L93: 0 | Q93: 0 | U93: 0 | V93: 0 | W93: 0 | X93: 0
A94: ='Org structure'!A10 -> Vote 9 - Roads and Transport | C94: =SUM(C95:C104) -> 0 | D94: =SUM(D95:D104) -> 0 | E94: 0 | F94: 0 | G94: 0 | H94: 0 | I94: 0 | J94: 0 | K94: 0 | L94: 0 | N94: =SUM(N95:N104) -> 0 | O94: 0 | P94: 0 | Q94: 0 | R94: 0 | S94: 0 | T94: 0 | U94: 0 | V94: 0 | W94: 0 | X94: 0
A95: ='Org structure'!E91 -> 9.1 - [Name of sub-vote] | C95: 0 | D95: 0 | E95: 0 | F95: 0 | G95: 0 | H95: 0 | I95: 0 | J95: =Q95+V95 -> 0 | K95: =U95+W95 -> 0 | L95: =X95 -> 0 | Q95: =SUM(N95:P95) -> 0 | U95: 0 | V95: 0 | W95: 0 | X95: 0
A96: ='Org structure'!E92 -> 0 | C96: 0 | D96: 0 | E96: 0 | F96: 0 | G96: 0 | H96: 0 | I96: 0 | J96: 0 | K96: 0 | L96: 0 | Q96: 0 | U96: 0 | V96: 0 | W96: 0 | X96: 0
A97: ='Org structure'!E93 -> 0 | C97: 0 | D97: 0 | E97: 0 | F97: 0 | G97: 0 | H97: 0 | I97: 0 | J97: 0 | K97: 0 | L97: 0 | Q97: 0 | U97: 0 | V97: 0 | W97: 0 | X97: 0
A98: ='Org structure'!E94 -> 0 | C98: 0 | D98: 0 | E98: 0 | F98: 0 | G98: 0 | H98: 0 | I98: 0 | J98: 0 | K98: 0 | L98: 0 | Q98: 0 | U98: 0 | V98: 0 | W98: 0 | X98: 0
A99: ='Org structure'!E95 -> 0 | C99: 0 | D99: 0 | E99: 0 | F99: 0 | G99: 0 | H99: 0 | I99: 0 | J99: 0 | K99: 0 | L99: 0 | Q99: 0 | U99: 0 | V99: 0 | W99: 0 | X99: 0
A100: ='Org structure'!E96 -> 0 | C100: 0 | D100: 0 | E100: 0 | F100: 0 | G100: 0 | H100: 0 | I100: 0 | J100: 0 | K100: 0 | L100: 0 | Q100: 0 | U100: 0 | V100: 0 | W100: 0 | X100: 0
A101: ='Org structure'!E97 -> 0 | C101: 0 | D101: 0 | E101: 0 | F101: 0 | G101: 0 | H101: 0 | I101: 0 | J101: 0 | K101: 0 | L101: 0 | Q101: 0 | U101: 0 | V101: 0 | W101: 0 | X101: 0
A102: ='Org structure'!E98 -> 0 | C102: 0 | D102: 0 | E102: 0 | F102: 0 | G102: 0 | H102: 0 | I102: 0 | J102: 0 | K102: 0 | L102: 0 | Q102: 0 | U102: 0 | V102: 0 | W102: 0 | X102: 0
A103: ='Org structure'!E99 -> 0 | C103: 0 | D103: 0 | E103: 0 | F103: 0 | G103: 0 | H103: 0 | I103: 0 | J103: 0 | K103: 0 | L103: 0 | Q103: 0 | U103: 0 | V103: 0 | W103: 0 | X103: 0
A104: ='Org structure'!E100 -> 0 | C104: 0 | D104: 0 | E104: 0 | F104: 0 | G104: 0 | H104: 0 | I104: 0 | J104: 0 | K104: 0 | L104: 0 | Q104: 0 | U104: 0 | V104: 0 | W104: 0 | X104: 0
A105: ='Org structure'!A11 -> Vote 10 - Water | C105: =SUM(C106:C115) -> 0 | D105: =SUM(D106:D115) -> 0 | E105: 0 | F105: 0 | G105: 0 | H105: 0 | I105: 0 | J105: 0 | K105: 0 | L105: 0 | N105: =SUM(N106:N115) -> 0 | O105: 0 | P105: 0 | Q105: 0 | R105: 0 | S105: 0 | T105: 0 | U105: 0 | V105: 0 | W105: 0 | X105: 0
A106: ='Org structure'!E102 -> 10.1 - [Name of sub-vote] | C106: 0 | D106: 0 | E106: 0 | F106: 0 | G106: 0 | H106: 0 | I106: 0 | J106: =Q106+V106 -> 0 | K106: =U106+W106 -> 0 | L106: =X106 -> 0 | Q106: =SUM(N106:P106) -> 0 | U106: 0 | V106: 0 | W106: 0 | X106: 0
A107: ='Org structure'!E103 -> 0 | C107: 0 | D107: 0 | E107: 0 | F107: 0 | G107: 0 | H107: 0 | I107: 0 | J107: 0 | K107: 0 | L107: 0 | Q107: 0 | U107: 0 | V107: 0 | W107: 0 | X107: 0
A108: ='Org structure'!E104 -> 0 | C108: 0 | D108: 0 | E108: 0 | F108: 0 | G108: 0 | H108: 0 | I108: 0 | J108: 0 | K108: 0 | L108: 0 | Q108: 0 | U108: 0 | V108: 0 | W108: 0 | X108: 0
A109: ='Org structure'!E105 -> 0 | C109: 0 | D109: 0 | E109: 0 | F109: 0 | G109: 0 | H109: 0 | I109: 0 | J109: 0 | K109: 0 | L109: 0 | Q109: 0 | U109: 0 | V109: 0 | W109: 0 | X109: 0
A110: ='Org structure'!E106 -> 0 | C110: 0 | D110: 0 | E110: 0 | F110: 0 | G110: 0 | H110: 0 | I110: 0 | J110: 0 | K110: 0 | L110: 0 | Q110: 0 | U110: 0 | V110: 0 | W110: 0 | X110: 0
A111: ='Org structure'!E107 -> 0 | C111: 0 | D111: 0 | E111: 0 | F111: 0 | G111: 0 | H111: 0 | I111: 0 | J111: 0 | K111: 0 | L111: 0 | Q111: 0 | U111: 0 | V111: 0 | W111: 0 | X111: 0
A112: ='Org structure'!E108 -> 0 | C112: 0 | D112: 0 | E112: 0 | F112: 0 | G112: 0 | H112: 0 | I112: 0 | J112: 0 | K112: 0 | L112: 0 | Q112: 0 | U112: 0 | V112: 0 | W112: 0 | X112: 0
A113: ='Org structure'!E109 -> 0 | C113: 0 | D113: 0 | E113: 0 | F113: 0 | G113: 0 | H113: 0 | I113: 0 | J113: 0 | K113: 0 | L113: 0 | Q113: 0 | U113: 0 | V113: 0 | W113: 0 | X113: 0
A114: ='Org structure'!E110 -> 0 | C114: 0 | D114: 0 | E114: 0 | F114: 0 | G114: 0 | H114: 0 | I114: 0 | J114: 0 | K114: 0 | L114: 0 | Q114: 0 | U114: 0 | V114: 0 | W114: 0 | X114: 0
A115: ='Org structure'!E111 -> 0 | C115: 0 | D115: 0 | E115: 0 | F115: 0 | G115: 0 | H115: 0 | I115: 0 | J115: 0 | K115: 0 | L115: 0 | Q115: 0 | U115: 0 | V115: 0 | W115: 0 | X115: 0
A116: ='Org structure'!A12 -> Vote 11 - Public Safety | C116: =SUM(C117:C126) -> 0 | D116: 0 | E116: 0 | F116: 0 | G116: 0 | H116: 0 | I116: 0 | J116: 0 | K116: 0 | L116: 0 | N116: =SUM(N117:N126) -> 0 | O116: 0 | P116: 0 | Q116: 0 | R116: 0 | S116: 0 | T116: 0 | U116: 0 | V116: 0 | W116: 0 | X116: 0
A117: ='Org structure'!E113 -> 11.1 - [Name of sub-vote] | C117: 0 | D117: 0 | E117: 0 | F117: 0 | G117: 0 | H117: 0 | I117: 0 | J117: =Q117+V117 -> 0 | K117: =U117+W117 -> 0 | L117: =X117 -> 0 | Q117: =SUM(N117:P117) -> 0 | U117: 0 | V117: 0 | W117: 0 | X117: 0
A118: ='Org structure'!E114 -> 0 | C118: 0 | D118: 0 | E118: 0 | F118: 0 | G118: 0 | H118: 0 | I118: 0 | J118: 0 | K118: 0 | L118: 0 | Q118: 0 | U118: 0 | V118: 0 | W118: 0 | X118: 0
A119: ='Org structure'!E115 -> 0 | C119: 0 | D119: 0 | E119: 0 | F119: 0 | G119: 0 | H119: 0 | I119: 0 | J119: 0 | K119: 0 | L119: 0 | Q119: 0 | U119: 0 | V119: 0 | W119: 0 | X119: 0
A120: ='Org structure'!E116 -> 0 | C120: 0 | D120: 0 | E120: 0 | F120: 0 | G120: 0 | H120: 0 | I120: 0 | J120: 0 | K120: 0 | L120: 0 | Q120: 0 | U120: 0 | V120: 0 | W120: 0 | X120: 0
A121: ='Org structure'!E117 -> 0 | C121: 0 | D121: 0 | E121: 0 | F121: 0 | G121: 0 | H121: 0 | I121: 0 | J121: 0 | K121: 0 | L121: 0 | Q121: 0 | U121: 0 | V121: 0 | W121: 0 | X121: 0
A122: ='Org structure'!E118 -> 0 | C122: 0 | D122: 0 | E122: 0 | F122: 0 | G122: 0 | H122: 0 | I122: 0 | J122: 0 | K122: 0 | L122: 0 | Q122: 0 | U122: 0 | V122: 0 | W122: 0 | X122: 0
A123: ='Org structure'!E119 -> 0 | C123: 0 | D123: 0 | E123: 0 | F123: 0 | G123: 0 | H123: 0 | I123: 0 | J123: 0 | K123: 0 | L123: 0 | Q123: 0 | U123: 0 | V123: 0 | W123: 0 | X123: 0
A124: ='Org structure'!E120 -> 0 | C124: 0 | D124: 0 | E124: 0 | F124: 0 | G124: 0 | H124: 0 | I124: 0 | J124: 0 | K124: 0 | L124: 0 | Q124: 0 | U124: 0 | V124: 0 | W124: 0 | X124: 0
A125: ='Org structure'!E121 -> 0 | C125: 0 | D125: 0 | E125: 0 | F125: 0 | G125: 0 | H125: 0 | I125: 0 | J125: 0 | K125: 0 | L125: 0 | Q125: 0 | U125: 0 | V125: 0 | W125: 0 | X125: 0
A126: ='Org structure'!E122 -> 0 | C126: 0 | D126: 0 | E126: 0 | F126: 0 | G126: 0 | H126: 0 | I126: 0 | J126: 0 | K126: 0 | L126: 0 | Q126: 0 | U126: 0 | V126: 0 | W126: 0 | X126: 0
A127: ='Org structure'!A13 -> Vote 12 - Electricity Distribution | C127: =SUM(C128:C137) -> 0 | D127: 0 | E127: 0 | F127: 0 | G127: 0 | H127: 0 | I127: 0 | J127: 0 | K127: 0 | L127: 0 | N127: =SUM(N128:N137) -> 0 | O127: 0 | P127: 0 | Q127: 0 | R127: 0 | S127: 0 | T127: 0 | U127: 0 | V127: 0 | W127: 0 | X127: 0
A128: ='Org structure'!E124 -> 12.1 - [Name of sub-vote] | C128: 0 | D128: 0 | E128: 0 | F128: 0 | G128: 0 | H128: 0 | I128: 0 | J128: =Q128+V128 -> 0 | K128: =U128+W128 -> 0 | L128: =X128 -> 0 | Q128: =SUM(N128:P128) -> 0 | U128: 0 | V128: 0 | W128: 0 | X128: 0
A129: ='Org structure'!E125 -> 0 | C129: 0 | D129: 0 | E129: 0 | F129: 0 | G129: 0 | H129: 0 | I129: 0 | J129: 0 | K129: 0 | L129: 0 | Q129: 0 | U129: 0 | V129: 0 | W129: 0 | X129: 0
A130: ='Org structure'!E126 -> 0 | C130: 0 | D130: 0 | E130: 0 | F130: 0 | G130: 0 | H130: 0 | I130: 0 | J130: 0 | K130: 0 | L130: 0 | Q130: 0 | U130: 0 | V130: 0 | W130: 0 | X130: 0
A131: ='Org structure'!E127 -> 0 | C131: 0 | D131: 0 | E131: 0 | F131: 0 | G131: 0 | H131: 0 | I131: 0 | J131: 0 | K131: 0 | L131: 0 | Q131: 0 | U131: 0 | V131: 0 | W131: 0 | X131: 0
A132: ='Org structure'!E128 -> 0 | C132: 0 | D132: 0 | E132: 0 | F132: 0 | G132: 0 | H132: 0 | I132: 0 | J132: 0 | K132: 0 | L132: 0 | Q132: 0 | U132: 0 | V132: 0 | W132: 0 | X132: 0
A133: ='Org structure'!E129 -> 0 | C133: 0 | D133: 0 | E133: 0 | F133: 0 | G133: 0 | H133: 0 | I133: 0 | J133: =Q133+V133 -> 0 | K133: 0 | L133: 0 | Q133: 0 | U133: 0 | V133: 0 | W133: 0 | X133: 0
A134: ='Org structure'!E130 -> 0 | C134: 0 | D134: 0 | E134: 0 | F134: 0 | G134: 0 | H134: 0 | I134: 0 | J134: 0 | K134: 0 | L134: 0 | Q134: 0 | U134: 0 | V134: 0 | W134: 0 | X134: 0
A135: ='Org structure'!E131 -> 0 | C135: 0 | D135: 0 | E135: 0 | F135: 0 | G135: 0 | H135: 0 | I135: 0 | J135: 0 | K135: 0 | L135: 0 | Q135: 0 | U135: 0 | V135: 0 | W135: 0 | X135: 0
A136: ='Org structure'!E132 -> 0 | C136: 0 | D136: 0 | E136: 0 | F136: 0 | G136: 0 | H136: 0 | I136: 0 | J136: 0 | K136: 0 | L136: 0 | Q136: 0 | U136: =SUM(R136:T136) -> 0 | V136: 0 | W136: 0 | X136: 0
A137: ='Org structure'!E133 -> 0 | C137: 0 | D137: 0 | E137: 0 | F137: 0 | G137: 0 | H137: 0 | I137: 0 | J137: 0 | K137: 0 | L137: 0 | Q137: 0 | U137: 0 | V137: 0 | W137: 0 | X137: 0
A138: ='Org structure'!A14 -> Vote 13 - | C138: =SUM(C139:C148) -> 0 | D138: 0 | E138: 0 | F138: 0 | G138: 0 | H138: 0 | I138: 0 | J138: 0 | K138: 0 | L138: 0 | N138: =SUM(N139:N148) -> 0 | O138: 0 | P138: 0 | Q138: 0 | R138: 0 | S138: 0 | T138: 0 | U138: 0 | V138: 0 | W138: 0 | X138: 0
A139: ='Org structure'!E135 -> 13.1 - [Name of sub-vote] | C139: 0 | D139: 0 | E139: 0 | F139: 0 | G139: 0 | H139: 0 | I139: 0 | J139: =Q139+V139 -> 0 | K139: =U139+W139 -> 0 | L139: =X139 -> 0 | Q139: =SUM(N139:P139) -> 0 | U139: 0 | V139: 0 | W139: 0 | X139: 0
A140: ='Org structure'!E136 -> 0 | C140: 0 | D140: 0 | E140: 0 | F140: 0 | G140: 0 | H140: 0 | I140: 0 | J140: 0 | K140: 0 | L140: 0 | Q140: 0 | U140: 0 | V140: 0 | W140: 0 | X140: 0
A141: ='Org structure'!E137 -> 0 | C141: 0 | D141: 0 | E141: 0 | F141: 0 | G141: 0 | H141: 0 | I141: 0 | J141: 0 | K141: 0 | L141: 0 | Q141: 0 | U141: 0 | V141: 0 | W141: 0 | X141: 0
A142: ='Org structure'!E138 -> 0 | C142: 0 | D142: 0 | E142: 0 | F142: 0 | G142: 0 | H142: 0 | I142: 0 | J142: 0 | K142: 0 | L142: 0 | Q142: 0 | U142: 0 | V142: 0 | W142: 0 | X142: 0
A143: ='Org structure'!E139 -> 0 | C143: 0 | D143: 0 | E143: 0 | F143: 0 | G143: 0 | H143: 0 | I143: 0 | J143: 0 | K143: 0 | L143: 0 | Q143: 0 | U143: 0 | V143: 0 | W143: 0 | X143: 0
A144: ='Org structure'!E140 -> 0 | C144: 0 | D144: 0 | E144: 0 | F144: 0 | G144: 0 | H144: 0 | I144: 0 | J144: 0 | K144: 0 | L144: 0 | Q144: 0 | U144: 0 | V144: 0 | W144: 0 | X144: 0
A145: ='Org structure'!E141 -> 0 | C145: 0 | D145: 0 | E145: 0 | F145: 0 | G145: 0 | H145: 0 | I145: 0 | J145: 0 | K145: 0 | L145: 0 | Q145: 0 | U145: 0 | V145: 0 | W145: 0 | X145: 0
A146: ='Org structure'!E142 -> 0 | C146: 0 | D146: 0 | E146: 0 | F146: 0 | G146: 0 | H146: 0 | I146: 0 | J146: 0 | K146: 0 | L146: 0 | Q146: 0 | U146: 0 | V146: 0 | W146: 0 | X146: 0
A147: ='Org structure'!E143 -> 0 | C147: 0 | D147: 0 | E147: 0 | F147: 0 | G147: 0 | H147: 0 | I147: 0 | J147: 0 | K147: 0 | L147: 0 | Q147: 0 | U147: 0 | V147: 0 | W147: 0 | X147: 0
A148: ='Org structure'!E144 -> 0 | C148: 0 | D148: 0 | E148: 0 | F148: 0 | G148: 0 | H148: 0 | I148: 0 | J148: 0 | K148: 0 | L148: 0 | Q148: 0 | U148: 0 | V148: 0 | W148: 0 | X148: 0
A149: ='Org structure'!A15 -> Vote 14 - | C149: =SUM(C150:C159) -> 0 | D149: 0 | E149: 0 | F149: 0 | G149: 0 | H149: 0 | I149: 0 | J149: 0 | K149: 0 | L149: 0 | N149: =SUM(N150:N159) -> 0 | O149: 0 | P149: 0 | Q149: 0 | R149: 0 | S149: 0 | T149: 0 | U149: 0 | V149: 0 | W149: 0 | X149: 0
A150: ='Org structure'!E146 -> 14.1 - [Name of sub-vote] | C150: 0 | D150: 0 | E150: 0 | F150: 0 | G150: 0 | H150: 0 | I150: 0 | J150: =Q150+V150 -> 0 | K150: =U150+W150 -> 0 | L150: =X150 -> 0 | Q150: =SUM(N150:P150) -> 0 | U150: 0 | V150: 0 | W150: 0 | X150: 0
A151: ='Org structure'!E147 -> 0 | C151: 0 | D151: 0 | E151: 0 | F151: 0 | G151: 0 | H151: 0 | I151: 0 | J151: 0 | K151: 0 | L151: 0 | Q151: 0 | U151: 0 | V151: 0 | W151: 0 | X151: 0
A152: ='Org structure'!E148 -> 0 | C152: 0 | D152: 0 | E152: 0 | F152: 0 | G152: 0 | H152: 0 | I152: 0 | J152: 0 | K152: 0 | L152: 0 | Q152: 0 | U152: 0 | V152: 0 | W152: 0 | X152: 0
A153: ='Org structure'!E149 -> 0 | C153: 0 | D153: 0 | E153: 0 | F153: 0 | G153: 0 | H153: 0 | I153: 0 | J153: 0 | K153: 0 | L153: 0 | Q153: 0 | U153: 0 | V153: 0 | W153: 0 | X153: 0
A154: ='Org structure'!E150 -> 0 | C154: 0 | D154: 0 | E154: 0 | F154: 0 | G154: 0 | H154: 0 | I154: 0 | J154: 0 | K154: 0 | L154: 0 | Q154: 0 | U154: 0 | V154: 0 | W154: 0 | X154: 0
A155: ='Org structure'!E151 -> 0 | C155: 0 | D155: 0 | E155: 0 | F155: 0 | G155: 0 | H155: 0 | I155: 0 | J155: 0 | K155: 0 | L155: 0 | Q155: 0 | U155: 0 | V155: 0 | W155: 0 | X155: 0
A156: ='Org structure'!E152 -> 0 | C156: 0 | D156: 0 | E156: 0 | F156: 0 | G156: 0 | H156: 0 | I156: 0 | J156: 0 | K156: 0 | L156: 0 | Q156: 0 | U156: 0 | V156: 0 | W156: 0 | X156: 0
A157: ='Org structure'!E153 -> 0 | C157: 0 | D157: 0 | E157: 0 | F157: 0 | G157: 0 | H157: 0 | I157: 0 | J157: 0 | K157: 0 | L157: 0 | Q157: 0 | U157: 0 | V157: 0 | W157: 0 | X157: 0
A158: ='Org structure'!E154 -> 0 | C158: 0 | D158: 0 | E158: 0 | F158: 0 | G158: 0 | H158: 0 | I158: 0 | J158: 0 | K158: 0 | L158: 0 | Q158: 0 | U158: 0 | V158: 0 | W158: 0 | X158: 0
A159: ='Org structure'!E155 -> 0 | C159: 0 | D159: 0 | E159: 0 | F159: 0 | G159: 0 | H159: 0 | I159: 0 | J159: 0 | K159: 0 | L159: 0 | Q159: 0 | U159: 0 | V159: 0 | W159: 0 | X159: 0
A160: ='Org structure'!A16 -> Vote 15 - | C160: =SUM(C161:C170) -> 0 | D160: 0 | E160: 0 | F160: 0 | G160: 0 | H160: 0 | I160: 0 | J160: 0 | K160: 0 | L160: 0 | N160: =SUM(N161:N170) -> 0 | O160: 0 | P160: 0 | Q160: 0 | R160: 0 | S160: 0 | T160: 0 | U160: 0 | V160: 0 | W160: 0 | X160: 0
A161: ='Org structure'!E157 -> 15.1 - [Name of sub-vote] | C161: 0 | D161: 0 | E161: 0 | F161: 0 | G161: 0 | H161: 0 | I161: 0 | J161: =Q161+V161 -> 0 | K161: =U161+W161 -> 0 | L161: =X161 -> 0 | Q161: =SUM(N161:P161) -> 0 | U161: 0 | V161: 0 | W161: 0 | X161: 0
A162: ='Org structure'!E158 -> 0 | C162: 0 | D162: 0 | E162: 0 | F162: 0 | G162: 0 | H162: 0 | I162: 0 | J162: 0 | K162: 0 | L162: 0 | Q162: 0 | U162: 0 | V162: 0 | W162: 0 | X162: 0
A163: ='Org structure'!E159 -> 0 | C163: 0 | D163: 0 | E163: 0 | F163: 0 | G163: 0 | H163: 0 | I163: 0 | J163: 0 | K163: 0 | L163: 0 | Q163: 0 | U163: 0 | V163: 0 | W163: 0 | X163: 0
A164: ='Org structure'!E160 -> 0 | C164: 0 | D164: 0 | E164: 0 | F164: 0 | G164: 0 | H164: 0 | I164: 0 | J164: 0 | K164: 0 | L164: 0 | Q164: 0 | U164: 0 | V164: 0 | W164: 0 | X164: 0
A165: ='Org structure'!E161 -> 0 | C165: 0 | D165: 0 | E165: 0 | F165: 0 | G165: 0 | H165: 0 | I165: 0 | J165: 0 | K165: 0 | L165: 0 | Q165: 0 | U165: 0 | V165: 0 | W165: 0 | X165: 0
A166: ='Org structure'!E162 -> 0 | C166: 0 | D166: 0 | E166: 0 | F166: 0 | G166: 0 | H166: 0 | I166: 0 | J166: 0 | K166: 0 | L166: 0 | Q166: 0 | U166: 0 | V166: 0 | W166: 0 | X166: 0
A167: ='Org structure'!E163 -> 0 | C167: 0 | D167: 0 | E167: 0 | F167: 0 | G167: 0 | H167: 0 | I167: 0 | J167: 0 | K167: 0 | L167: 0 | Q167: 0 | U167: 0 | V167: 0 | W167: 0 | X167: 0
A168: ='Org structure'!E164 -> 0 | C168: 0 | D168: 0 | E168: 0 | F168: 0 | G168: 0 | H168: 0 | I168: 0 | J168: 0 | K168: 0 | L168: 0 | Q168: 0 | U168: 0 | V168: 0 | W168: 0 | X168: 0
A169: ='Org structure'!E165 -> 0 | C169: 0 | D169: 0 | E169: 0 | F169: 0 | G169: 0 | H169: 0 | I169: 0 | J169: 0 | K169: 0 | L169: 0 | Q169: 0 | U169: 0 | V169: 0 | W169: 0 | X169: 0
A170: ='Org structure'!E166 -> 0 | C170: 0 | D170: 0 | E170: 0 | F170: 0 | G170: 0 | H170: 0 | I170: 0 | J170: 0 | K170: 0 | L170: 0 | Q170: 0 | U170: 0 | V170: 0 | W170: 0 | X170: 0
A171: Capital multi-year expenditure sub-total | C171: =C6+C17+C28+C39+C50+C61+C72+C83+C94+C105+C116+C127+C138+C149+C160 -> 0 | D171: =D6+D17+D28+D39+D50+D61+D72+D83+D94+D105+D116+D127+D138+D149+D160 -> 0 | E171: 0 | F171: 0 | G171: 0 | H171: 0 | I171: 0 | J171: 0 | K171: 0 | L171: 0 | N171: =N6+N17+N28+N39+N50+N61+N72+N83+N94+N105+N116+N127+N138+N149+N160 -> 0 | O171: 0 | P171: 0 | Q171: 0 | R171: 0 | S171: 0 | U171: 0 | V171: =V6+V17+V28+V39+V50+V61+V72+V83+V94+V105+V116+V127+V138+V149+V160 -> 0 | W171: =W6+W17+W28+W39+W50+W61+W72+W83+W94+W105+W116+W127+W138+W149+W160 -> 0
A173: Capital expenditure - Municipal Vote
A174: Single-year expenditure appropriation | B174: 2
A175: =A6 -> Vote 1 - Executive and Council | C175: =SUM(C176:C185) -> 0 | D175: 150500 | E175: 150000 | F175: 0 | G175: 0 | H175: 0 | I175: 0 | J175: 0 | K175: 0 | L175: 0
A176: =A7 -> 1.1 - [Name of sub-vote] | C176: 0 | D176: 150500 | E176: 150000 | F176: 0 | G176: 0 | H176: 0 | I176: 0 | J176: 0 | K176: 0 | L176: 0
A177: 0 | C177: 0 | D177: 0 | E177: 0 | F177: 0 | G177: 0 | H177: 0 | I177: 0 | J177: 0 | K177: 0 | L177: 0
A178: 0 | C178: 0 | D178: 0 | E178: 0 | F178: 0 | G178: 0 | H178: 0 | I178: 0 | J178: 0 | K178: 0 | L178: 0
A179: 0 | C179: 0 | D179: 0 | E179: 0 | F179: 0 | G179: 0 | H179: 0 | I179: 0 | J179: 0 | K179: 0 | L179: 0
A180: 0 | C180: 0 | D180: 0 | E180: 0 | F180: 0 | G180: 0 | H180: 0 | I180: 0 | J180: 0 | K180: 0 | L180: 0
A181: 0 | C181: 0 | D181: 0 | E181: 0 | F181: 0 | G181: 0 | H181: 0 | I181: 0 | J181: 0 | K181: 0 | L181: 0
A182: 0 | C182: 0 | D182: 0 | E182: 0 | F182: 0 | G182: 0 | H182: 0 | I182: 0 | J182: 0 | K182: 0 | L182: 0
A183: 0 | C183: 0 | D183: 0 | E183: 0 | F183: 0 | G183: 0 | H183: 0 | I183: 0 | J183: 0 | K183: 0 | L183: 0
A184: 0 | C184: 0 | D184: 0 | E184: 0 | F184: 0 | G184: 0 | H184: 0 | I184: 0 | J184: 0 | K184: 0 | L184: 0
A185: 0 | C185: 0 | D185: 0 | E185: 0 | F185: 0 | G185: 0 | H185: 0 | I185: 0 | J185: 0 | K185: 0 | L185: 0
A186: Vote 2 - Budget and treasury | C186: =SUM(C187:C196) -> 186430297.4 | D186: -69331682.42 | E186: -68816704.81 | F186: 18000000 | G186: 18000000 | H186: 18000000 | I186: 0 | J186: 0 | K186: 0 | L186: 0
A187: 2.1 - [Name of sub-vote] | C187: 186430297.4 | D187: -69331682.42 | E187: -68816704.81 | F187: 18000000 | G187: 18000000 | H187: 18000000 | I187: 0 | J187: 0 | K187: 0 | L187: 0
A188: 0 | C188: 0 | D188: 0 | E188: 0 | F188: 0 | G188: 0 | H188: 0 | I188: 0 | J188: 0 | K188: 0 | L188: 0
A189: 0 | C189: 0 | D189: 0 | E189: 0 | F189: 0 | G189: 0 | H189: 0 | I189: 0 | J189: 0 | K189: 0 | L189: 0
A190: 0 | C190: 0 | D190: 0 | E190: 0 | F190: 0 | G190: 0 | H190: 0 | I190: 0 | J190: 0 | K190: 0 | L190: 0
A191: 0 | C191: 0 | D191: 0 | E191: 0 | F191: 0 | G191: 0 | H191: 0 | I191: 0 | J191: 0 | K191: 0 | L191: 0
A192: 0 | C192: 0 | D192: 0 | E192: 0 | F192: 0 | G192: 0 | H192: 0 | I192: 0 | J192: 0 | K192: 0 | L192: 0
A193: 0 | C193: 0 | D193: 0 | E193: 0 | F193: 0 | G193: 0 | H193: 0 | I193: 0 | J193: 0 | K193: 0 | L193: 0
A194: 0 | C194: 0 | D194: 0 | E194: 0 | F194: 0 | G194: 0 | H194: 0 | I194: 0 | J194: 0 | K194: 0 | L194: 0
A195: 0 | C195: 0 | D195: 0 | E195: 0 | F195: 0 | G195: 0 | H195: 0 | I195: 0 | J195: 0 | K195: 0 | L195: 0
A196: 0 | C196: 0 | D196: 0 | E196: 0 | F196: 0 | G196: 0 | H196: 0 | I196: 0 | J196: 0 | K196: 0 | L196: 0
A197: Vote 3 - Corporate Services | C197: =SUM(C198:C207) -> 65709.14 | D197: 8509739.35 | E197: 14318842.31 | F197: 13070000 | G197: 13334344 | H197: 13334344 | I197: 2771644.65 | J197: 5750000 | K197: 4690000 | L197: 9470000
A198: 3.1 - [Name of sub-vote] | C198: 0 | D198: 0 | E198: 131737.44 | F198: 1520000 | G198: 1500000 | H198: 1500000 | I198: 0 | J198: 0 | K198: 0 | L198: 0
A199: 0 | C199: 145044.52 | D199: -173291.25 | E199: 387579.86 | F199: 1400000 | G199: 1734348 | H199: 1734348 | I199: 748890.44 | J199: 1100000 | K199: 970000 | L199: 3250000
A200: 0 | C200: 0 | D200: 0 | E200: 0 | F200: 0 | G200: 0 | H200: 0 | I200: 0 | J200: 0 | K200: 0 | L200: 0
A201: 0 | C201: -79335.38 | D201: 8683030.6 | E201: 13799525.01 | F201: 10150000 | G201: 10099996 | H201: 10099996 | I201: 2022754.21 | J201: 4650000 | K201: 3720000 | L201: 6220000
... 140 more rows

Sheet A6-FinPos
A1: =muni&" - "&Approve6 -> Choose name from list - Table A6 Budgeted Financial Position
A2: =desc -> Description | B2: =head27 -> Ref | C2: =head1b -> 2017/18 | D2: =head1A -> 2018/19 | E2: =Head1 -> 2019/20 | F2: =Head2 -> Current Year 2020/21 | J2: =Head3 -> 2021/22 Medium Term Revenue & Expenditure Framework
A3: R thousand | C3: =Head5 -> Audited Outcome | D3: =Head5 -> Audited Outcome | E3: =Head5 -> Audited Outcome | F3: =Head6 -> Original Budget | G3: =Head7 -> Adjusted Budget | H3: =Head8 -> Full Year Forecast | I3: =Head5b -> Pre-audit outcome | J3: =Head9 -> Budget Year 2021/22 | K3: =Head10 -> Budget Year +1 2022/23 | L3: =Head11 -> Budget Year +2 2023/24
A4: ASSETS
A5: Current assets
A6: Cash | C6: 24254553.82 | D6: 16421075.4 | E6: 8263428.29 | F6: 20201452 | G6: 22662169 | H6: 22662169 | I6: 44384282.28 | J6: 29250810 | K6: 59884348 | L6: 23438152
A7: Call investment deposits | B7: 1 | C7: 108400138.9 | D7: 121471648.9 | E7: 138758156.1 | F7: 98151000 | G7: 98151000 | H7: 98151000 | I7: 141589203.6 | J7: 61100000 | K7: 36331100 | L7: 56158164
A8: Consumer debtors | B8: 1 | C8: ='SA3'!C14 -> 19739425.16 | D8: ='SA3'!D14 -> 22482417.81 | E8: ='SA3'!E14 -> 26800058.52 | F8: ='SA3'!F14 -> 21187364 | G8: ='SA3'!G14 -> 31818142 | H8: ='SA3'!H14 -> 31818142 | I8: ='SA3'!I14 -> 56796732.45 | J8: ='SA3'!J14 -> 12160367 | K8: ='SA3'!K14 -> 12384176 | L8: ='SA3'!L14 -> 13048583
A9: Other debtors | C9: 94478639.48 | D9: 115406695.8 | E9: 137524784.1 | F9: 17068928 | G9: 21968928 | H9: 21968928 | I9: 153991919.5 | J9: 17957688 | K9: 17857496 | L9: 17377981
A10: Current portion of long-term receivables | C10: 0 | D10: 0 | E10: 0 | F10: 0 | G10: 0 | H10: 0 | I10: 0 | J10: 0 | K10: 0 | L10: 0
A11: Inventory | B11: 2 | C11: ='SA3'!C115 -> 0 | D11: ='SA3'!D115 -> 47773.46 | E11: ='SA3'!E115 -> 62630.37 | F11: ='SA3'!F115 -> 52805 | G11: ='SA3'!G115 -> 1765325 | H11: ='SA3'!H115 -> 1765325 | I11: ='SA3'!I115 -> 62630.37 | J11: ='SA3'!J115 -> 102781 | K11: ='SA3'!K115 -> 194881 | L11: ='SA3'!L115 -> 167926
A12: Total current assets | C12: =SUM(C6:C11) -> 246872757.4 | D12: 275829611.4 | E12: 311409057.3 | F12: 156661549 | G12: 176365564 | H12: 176365564 | I12: 396824768.2 | J12: 120571646 | K12: 126652001 | L12: 110190806
A14: Non current assets
A15: Long-term receivables | C15: 0 | D15: 0 | E15: 0 | F15: 0 | G15: 0 | H15: 0 | I15: 0 | J15: 0 | K15: 0 | L15: 0
A16: Investments | C16: 0 | D16: 0 | E16: 0 | F16: 0 | G16: 0 | H16: 0 | I16: 0 | J16: 0 | K16: 0 | L16: 0
A17: Investment property | C17: 6796836 | D17: 8950000 | E17: 8950000 | F17: 8950000 | G17: 8950000 | H17: 8950000 | I17: 8950000 | J17: 8950000 | K17: 8950000 | L17: 8950000
A18: Investment in Associate | C18: 0 | D18: 0 | E18: 0 | F18: 0 | G18: 0 | H18: 0 | I18: 0 | J18: 0 | K18: 0 | L18: 0
A19: Property, plant and equipment | B19: 3 | C19: ='SA3'!C121 -> 397221706.7 | D19: ='SA3'!D121 -> 469609096.7 | E19: ='SA3'!E121 -> 540981902.2 | F19: ='SA3'!F121 -> 549958765 | G19: ='SA3'!G121 -> 549096943 | H19: ='SA3'!H121 -> 549096943 | I19: ='SA3'!I121 -> 623538283.8 | J19: ='SA3'!J121 -> 541071432 | K19: ='SA3'!K121 -> 483541538 | L19: ='SA3'!L121 -> 501712974
A21: Biological | C21: 0 | D21: 0 | E21: 0 | F21: 0 | G21: 0 | H21: 0 | I21: 0 | J21: 0 | K21: 0 | L21: 0
A22: Intangible | C22: 447466.26 | D22: 298292.93 | E22: 150002.96 | F22: 936712 | G22: 1336712 | H22: 1336712 | I22: 464545.57 | J22: 533619 | K22: 973329 | L22: 1012096
A23: Other non-current assets | C23: 222000 | D23: 372500 | E23: 372500 | F23: 372500 | G23: 372500 | H23: 372500 | I23: 372500 | J23: 372500 | K23: 372500 | L23: 372500
A24: Total non current assets | C24: =SUM(C15:C19)+SUM(C21:C23) -> 404688008.9 | D24: =SUM(D15:D19)+SUM(D21:D23) -> 479229889.7 | E24: 550454405.2 | F24: 560217977 | G24: 559756155 | H24: 559756155 | I24: 633325329.4 | J24: 550927551 | K24: 493837367 | L24: 512047570
A25: TOTAL ASSETS | C25: =C12+C24 -> 651560766.3 | D25: =D12+D24 -> 755059501 | E25: =E12+E24 -> 861863462.5 | F25: =F12+F24 -> 716879526 | G25: 736121719 | H25: 736121719 | I25: 1030150098 | J25: 671499197 | K25: 620489368 | L25: 622238376
A27: LIABILITIES
A28: Current liabilities
A29: Bank overdraft | B29: 1 | C29: 0 | D29: 0 | E29: 0 | F29: 0 | G29: 0 | H29: 0 | I29: 0 | J29: 0 | K29: 0 | L29: 0
A30: Borrowing | B30: 4 | C30: ='SA3'!C127 -> 0 | D30: ='SA3'!D127 -> 0 | E30: ='SA3'!E127 -> 0 | F30: ='SA3'!F127 -> 1933708 | G30: ='SA3'!G127 -> 862204 | H30: ='SA3'!H127 -> 862204 | I30: ='SA3'!I127 -> 0 | J30: ='SA3'!J127 -> 1353592 | K30: ='SA3'!K127 -> 1160224 | L30: ='SA3'!L127 -> 966844
A31: Consumer deposits | C31: 971077.55 | D31: 1185451.74 | E31: 1269935.64 | F31: 1015333 | G31: 1015333 | H31: 1015333 | I31: 1295708.83 | J31: 967669 | K31: 969661 | L31: 977461
A32: Trade and other payables | B32: 4 | C32: ='SA3'!C134 -> 107815527.5 | D32: ='SA3'!D134 -> 139536372.8 | E32: ='SA3'!E134 -> 160530140.9 | F32: ='SA3'!F134 -> 31343836 | G32: ='SA3'!G134 -> 26436015 | H32: ='SA3'!H134 -> 26436015 | I32: ='SA3'!I134 -> 170866651 | J32: ='SA3'!J134 -> 35345360 | K32: ='SA3'!K134 -> 34465116 | L32: ='SA3'!L134 -> 29499177
A33: Provisions | C33: 13513781.75 | D33: 16124467.95 | E33: 16851629.83 | F33: 9822230 | G33: 9822230 | H33: 9822230 | I33: 16851629.83 | J33: 9822230 | K33: 9822230 | L33: 9822230
A34: Total current liabilities | C34: =SUM(C29:C33) -> 122300386.8 | D34: 156846292.5 | E34: 178651706.3 | F34: 44115107 | G34: 38135782 | H34: 38135782 | I34: 189013989.7 | J34: 47488851 | K34: 46417231 | L34: 41265712
A36: Non current liabilities
A37: Borrowing | C37: ='SA3'!C139 -> 0.26 | D37: ='SA3'!D139 -> 3940491.19 | E37: ='SA3'!E139 -> 2453528.52 | F37: ='SA3'!F139 -> 0 | G37: ='SA3'!G139 -> 3071503 | H37: ='SA3'!H139 -> 3071503 | I37: ='SA3'!I139 -> 2453528.52 | J37: ='SA3'!J139 -> 2906503 | K37: ='SA3'!K139 -> 2096503 | L37: ='SA3'!L139 -> 1132003
A38: Provisions | C38: ='SA3'!C146 -> 3698283.78 | D38: ='SA3'!D146 -> 3676787.64 | E38: ='SA3'!E146 -> -494997.36 | F38: ='SA3'!F146 -> 13438785 | G38: ='SA3'!G146 -> 13438785 | H38: ='SA3'!H146 -> 13438785 | I38: ='SA3'!I146 -> -494997.36 | J38: ='SA3'!J146 -> 14013993 | K38: ='SA3'!K146 -> 14013993 | L38: ='SA3'!L146 -> 14013993
A39: Total non current liabilities | C39: =SUM(C37:C38) -> 3698284.04 | D39: =SUM(D37:D38) -> 7617278.83 | E39: =SUM(E37:E38) -> 1958531.16 | F39: =SUM(F37:F38) -> 13438785 | G39: 16510288 | H39: 16510288 | I39: 1958531.16 | J39: 16920496 | K39: =SUM(K37:K38) -> 16110496 | L39: 15145996
A40: TOTAL LIABILITIES | C40: =C34+C39 -> 125998670.8 | D40: =D34+D39 -> 164463571.4 | E40: =E34+E39 -> 180610237.5 | F40: =F34+F39 -> 57553892 | G40: 54646070 | H40: 54646070 | I40: 190972520.8 | J40: 64409347 | K40: =K34+K39 -> 62527727 | L40: 56411708
A42: NET ASSETS | B42: 5 | C42: =C25-C40 -> 525562095.4 | D42: 590595929.7 | E42: 681253225 | F42: 659325634 | G42: 681475649 | H42: 681475649 | I42: 839177576.8 | J42: 607089850 | K42: 557961641 | L42: 565826668
A44: COMMUNITY WEALTH/EQUITY
A45: Accumulated Surplus/(Deficit) | C45: 449800774.5 | D45: 522900584.1 | E45: 590545819.4 | F45: 657325635 | G45: 681475649 | H45: 681475649 | I45: 681377523 | J45: 607089850 | K45: 557961641 | L45: 565826668
A46: Reserves | B46: 4 | C46: ='SA3'!C165 -> 0 | D46: ='SA3'!D165 -> 0 | E46: ='SA3'!E165 -> 0 | F46: ='SA3'!F165 -> 0 | G46: ='SA3'!G165 -> 0 | H46: ='SA3'!H165 -> 0 | I46: ='SA3'!I165 -> 0 | J46: ='SA3'!J165 -> 0 | K46: ='SA3'!K165 -> 0 | L46: ='SA3'!L165 -> 0
A48: TOTAL COMMUNITY WEALTH/EQUITY | B48: 5 | C48: =SUM(C45:C46) -> 449800774.5 | D48: =SUM(D45:D46) -> 522900584.1 | E48: 590545819.4 | F48: 657325635 | G48: 681475649 | H48: 681475649 | I48: 681377523 | J48: 607089850 | K48: 557961641 | L48: 565826668
A49: =head27a -> References
A50: 1. Detail to be provided in Table SA3
A51: 2. Include completed low cost housing to be transferred to beneficiaries within 12 months
A52: 3. Include 'Construction-work-in-progress' (disclosed separately in annual financial statements)
A53: 4. Detail to be provided in Table SA3. Includes reserves to be funded by statute.
A54: 5. Net assets must balance with Total Community Wealth/Equity
A55: check balance | C55: =IF((C42-C48)=0,0,"Unbalanced") -> Unbalanced | D55: =IF((D42-D48)=0,0,"Unbalanced") -> Unbalanced | E55: Unbalanced | F55: Unbalanced | G55: 0 | H55: 0 | I55: Unbalanced | J55: 0 | K55: 0 | L55: 0

Sheet A7-CFlow
A1: =muni&" - "&Approve7 -> Choose name from list - Table A7 Budgeted Cash Flows
A2: =desc -> Description | B2: =head27 -> Ref | C2: =head1b -> 2017/18 | D2: =head1A -> 2018/19 | E2: =Head1 -> 2019/20 | F2: =Head2 -> Current Year 2020/21 | J2: =Head3 -> 2021/22 Medium Term Revenue & Expenditure Framework
A3: R thousand | C3: =Head5 -> Audited Outcome | D3: =Head5 -> Audited Outcome | E3: =Head5 -> Audited Outcome | F3: =Head6 -> Original Budget | G3: =Head7 -> Adjusted Budget | H3: =Head8 -> Full Year Forecast | I3: =Head5b -> Pre-audit outcome | J3: =Head9 -> Budget Year 2021/22 | K3: =Head10 -> Budget Year +1 2022/23 | L3: =Head11 -> Budget Year +2 2023/24
A4: CASH FLOW FROM OPERATING ACTIVITIES
A5: Receipts
A6: Property rates | C6: 0 | D6: 0 | E6: 0 | F6: 87118716 | G6: 72118716 | H6: 72118716 | I6: 0 | J6: ='SA30'!N5 -> 96320448 | K6: ='SA30'!O5 -> 100234500 | L6: ='SA30'!P5 -> 104507148
A7: Service charges | C7: 0 | D7: 140 | E7: 0 | F7: 3328872 | G7: 3328872 | H7: 3328872 | I7: 0 | J7: ='SA30'!N6+'SA30'!N7+'SA30'!N8+'SA30'!N9 -> 4440000 | K7: ='SA30'!O6+'SA30'!O7+'SA30'!O8+'SA30'!O9 -> 4736904 | L7: ='SA30'!P6+'SA30'!P7+'SA30'!P8+'SA30'!P9 -> 4640928
A8: Other revenue | C8: 79793034.49 | D8: 135417439.8 | E8: 112849276.9 | F8: 23672510 | G8: 21407923 | H8: 21407923 | I8: 71373125.41 | J8: ='SA30'!N11+'SA30'!N15+'SA30'!N16+'SA30'!N17+'SA30'!N19 -> 25500224 | K8: ='SA30'!O11+'SA30'!O15+'SA30'!O16+'SA30'!O17+'SA30'!O19 -> 26464662 | L8: ='SA30'!P11+'SA30'!P15+'SA30'!P16+'SA30'!P17+'SA30'!P19 -> 27893221
A9: Transfers and Subsidies - Operational | B9: 1 | C9: 121453435 | D9: 112849811.8 | E9: 127930065.1 | F9: 134584008 | G9: 162391000 | H9: 162391000 | I9: 129657803.9 | J9: ='SA30'!N18 -> 139743000 | K9: ='SA30'!O18 -> 145612212 | L9: ='SA30'!P18 -> 152019144
A10: Transfers and Subsidies - Capital | B10: 1 | C10: 5069000.22 | D10: 41337001.14 | E10: 26812000 | F10: 26655000 | G10: 26655000 | H10: 26655000 | I10: 25210000 | J10: ='SA30'!N23 -> 28150008 | K10: ='SA30'!O23 -> 29332308 | L10: ='SA30'!P23 -> 30622932
A11: Interest | C11: 0 | D11: 0 | E11: 0 | F11: 0 | G11: 8151000 | H11: 8151000 | I11: 0 | J11: ='SA30'!N12+'SA30'!N13 -> 5500000 | K11: ='SA30'!O12+'SA30'!O13 -> 5731000 | L11: ='SA30'!P12+'SA30'!P13 -> 5983164
A12: Dividends | C12: 0 | D12: 0 | E12: 0 | F12: 0 | G12: 0 | H12: 0 | I12: 0 | J12: ='SA30'!N14 -> 0 | K12: ='SA30'!O14 -> 0 | L12: ='SA30'!P14 -> 0
A13: Payments
A14: Suppliers and employees | C14: 0 | D14: 99285482.08 | E14: 93253411.11 | F14: -62871876 | G14: -363989908 | H14: -363989908 | I14: 53020157.01 | J14: =-('SA30'!N35+'SA30'!N36+'SA30'!N38+'SA30'!N39+'SA30'!N40+'SA30'!N41+'SA30'!N44+'SA30'!N50) -> -206922840 | K14: =-('SA30'!O35+'SA30'!O36+'SA30'!O38+'SA30'!O39+'SA30'!O40+'SA30'!O41+'SA30'!O44+'SA30'!O50) -> -203545488 | L14: =-('SA30'!P35+'SA30'!P36+'SA30'!P38+'SA30'!P39+'SA30'!P40+'SA30'!P41+'SA30'!P44+'SA30'!P50) -> -228166512
A15: Finance charges | C15: 0 | D15: 0 | E15: 0 | F15: 0 | G15: -800000 | H15: -800000 | I15: 0 | J15: =-('SA30'!N37) -> -800004 | K15: =-('SA30'!O37) -> -833604 | L15: =-('SA30'!P37) -> -870288
A16: Transfers and Grants | B16: 1 | C16: 0 | D16: 0 | E16: 0 | F16: 0 | G16: 0 | H16: 0 | I16: 0 | J16: =-('SA30'!N42+'SA30'!N43) -> 0 | K16: =-('SA30'!O42+'SA30'!O43) -> 0 | L16: =-('SA30'!P42+'SA30'!P43) -> 0
A17: NET CASH FROM/(USED) OPERATING ACTIVITIES | C17: =SUM(C6:C12)+SUM(C14:C16) -> 206315469.7 | D17: 388889874.8 | E17: 360844753.1 | F17: 212487230 | G17: -70737397 | H17: -70737397 | I17: 279261086.3 | J17: 91930836 | K17: 107732494 | L17: 96629737
A19: CASH FLOWS FROM INVESTING ACTIVITIES
A20: Receipts
A21: Proceeds on disposal of PPE | C21: 0 | D21: 0 | E21: 0 | F21: -2682832 | G21: -2682832 | H21: -2682832 | I21: 0 | J21: ='SA30'!N24+'SA30'!N25 -> -550000 | K21: ='SA30'!O24+'SA30'!O25 -> -573100 | L21: ='SA30'!P24+'SA30'!P25 -> -598316
A23: Decrease (increase) in non-current receivables | C23: 0 | D23: 0 | E23: 0 | F23: 0 | G23: 0 | H23: 0 | I23: 0 | J23: ='SA30'!N30 -> 0 | K23: ='SA30'!O30 -> 0 | L23: ='SA30'!P30 -> 0
A24: Decrease (increase) in non-current investments | C24: 0 | D24: 0 | E24: 0 | F24: 0 | G24: 0 | H24: 0 | I24: 0 | J24: ='SA30'!N31 -> 0 | K24: ='SA30'!O31 -> 0 | L24: ='SA30'!P31 -> 0
A25: Payments
A26: Capital assets | C26: 0 | D26: 0 | E26: 0 | F26: 171219540 | G26: 152481872 | H26: 152481872 | I26: 59906114.98 | J26: =-('SA30'!N48) -> -145560852 | K26: =-('SA30'!O48) -> -102463056 | L26: =-('SA30'!P48) -> -112789320
A27: NET CASH FROM/(USED) INVESTING ACTIVITIES | C27: =+C21+C23+C24+C26 -> 0 | D27: =+D21+D23+D24+D26 -> 0 | E27: 0 | F27: 168536708 | G27: 149799040 | H27: 149799040 | I27: 59906114.98 | J27: -146110852 | K27: -103036156 | L27: -113387636
A29: CASH FLOWS FROM FINANCING ACTIVITIES
A30: Receipts
A31: Short term loans | C31: 0 | D31: 0 | E31: 0 | F31: 0 | G31: 0 | H31: 0 | I31: 0 | J31: ='SA30'!N26 -> 0 | K31: ='SA30'!O26 -> 0 | L31: ='SA30'!P26 -> 0
A32: Borrowing long term/refinancing | C32: 0 | D32: 0 | E32: 0 | F32: 0 | G32: 0 | H32: 0 | I32: 0 | J32: ='SA30'!N27 -> 0 | K32: ='SA30'!O27 -> 0 | L32: ='SA30'!P27 -> 0
A33: Increase (decrease) in consumer deposits | C33: 0 | D33: -214374.19 | E33: -84483.9 | F33: -57672 | G33: -57672 | H33: -57672 | I33: -25773.19 | J33: ='SA30'!N28 -> 10008 | K33: ='SA30'!O28 -> 12000 | L33: ='SA30'!P28 -> 19800
A34: Payments
A35: Repayment of borrowing | C35: 0 | D35: 0 | E35: 0 | F35: 0 | G35: -1071504 | H35: -1071504 | I35: 0 | J35: =-('SA30'!N49) -> -580116 | K35: =-('SA30'!O49) -> -773484 | L35: =-('SA30'!P49) -> -966864
A36: NET CASH FROM/(USED) FINANCING ACTIVITIES | C36: =SUM(C31:C33)+C35 -> 0 | D36: =SUM(D31:D33)+D35 -> -214374.19 | E36: -84483.9 | F36: -57672 | G36: -1129176 | H36: -1129176 | I36: -25773.19 | J36: -570108 | K36: -761484 | L36: -947064
A38: NET INCREASE/ (DECREASE) IN CASH HELD | C38: =C17+C27+C36 -> 206315469.7 | D38: =D17+D27+D36 -> 388675500.6 | E38: 360760269.2 | F38: 380966266 | G38: 77932467 | H38: 77932467 | I38: 339141428.1 | J38: -54750124 | K38: 3934854 | L38: -17704963
A39: Cash/cash equivalents at the year begin: | B39: 2 | C39: 111445049.3 | D39: 167654436.5 | E39: 137892724.3 | F39: 195680106 | G39: 195680106 | H39: 195680106 | I39: 147021584.3 | J39: ='SA30'!N54 -> 142476710 | K39: =J40 -> 87726586 | L39: =K40 -> 91661440
A40: Cash/cash equivalents at the year end: | B40: 2 | C40: =C38+C39 -> 317760518.9 | D40: =D38+D39 -> 556329937 | E40: =E38+E39 -> 498652993.6 | F40: =F38+F39 -> 576646372 | G40: 273612573 | H40: 273612573 | I40: 486163012.5 | J40: 87726586 | K40: 91661440 | L40: 73956477
A41: =head27a -> References
A42: 1. Local/District municipalities to include transfers from/to District/Local Municipalities
A43: 2. Cash equivalents includes investments with maturities of 3 months or less
A44: 3. The MTREF is populated directly from SA30.
A45: Total receipts | C45: =SUM(C6:C12)+SUM(C21:C23) -> 206315469.7 | D45: 289604392.7 | E45: 267591342 | F45: 272676274 | G45: 291369679 | H45: 291369679 | I45: 226240929.3 | J45: 299103680 | K45: 311538486 | L45: 325068221
A46: Total payments | C46: =SUM(C14:C16)+C26 -> 0 | D46: =SUM(D14:D16)+D26 -> 99285482.08 | E46: 93253411.11 | F46: 108347664 | G46: -212308036 | H46: -212308036 | I46: 112926272 | J46: -353283696 | K46: -306842148 | L46: -341826120
C47: =C45+C46 -> 206315469.7 | D47: =D45+D46 -> 388889874.8 | E47: 360844753.1 | F47: 381023938 | G47: 79061643 | H47: 79061643 | I47: 339167201.3 | J47: -54180016 | K47: 4696338 | L47: -16757899
A48: Borrowings & investments & c.deposits | C48: =C24+C32+C33 -> 0 | D48: =D24+D32+D33 -> -214374.19 | E48: -84483.9 | F48: -57672 | G48: -57672 | H48: -57672 | I48: -25773.19 | J48: 10008 | K48: 12000 | L48: 19800
A49: =A35 -> Repayment of borrowing | C49: =C35 -> 0 | D49: =D35 -> 0 | E49: 0 | F49: 0 | G49: -1071504 | H49: -1071504 | I49: =I35 -> 0 | J49: -580116 | K49: -773484 | L49: -966864
C50: =C47+C48+C49 -> 206315469.7 | D50: =D47+D48+D49 -> 388675500.6 | E50: 360760269.2 | F50: 380966266 | G50: 77932467 | H50: 77932467 | I50: 339141428.1 | J50: -54750124 | K50: 3934854 | L50: -17704963
C51: =C38-C50 -> 0 | D51: 0 | E51: 0 | F51: 0 | G51: 0 | H51: 0 | I51: 0 | J51: 0 | K51: 0 | L51: 0

Sheet A8-ResRecon
A1: =muni&" - "&Approve8 -> Choose name from list - Table A8 Cash backed reserves/accumulated surplus reconciliation
A2: =desc -> Description | B2: =head27 -> Ref | C2: =head1b -> 2017/18 | D2: =head1A -> 2018/19 | E2: =Head1 -> 2019/20 | F2: =Head2 -> Current Year 2020/21 | J2: =Head3 -> 2021/22 Medium Term Revenue & Expenditure Framework
A3: R thousand | C3: =Head5 -> Audited Outcome | D3: =Head5 -> Audited Outcome | E3: =Head5 -> Audited Outcome | F3: =Head6 -> Original Budget | G3: =Head7 -> Adjusted Budget | H3: =Head8 -> Full Year Forecast | I3: =Head5b -> Pre-audit outcome | J3: =Head9 -> Budget Year 2021/22 | K3: =Head10 -> Budget Year +1 2022/23 | L3: =Head11 -> Budget Year +2 2023/24
A4: Cash and investments available
A5: =LEFT('A7-CFlow'!A40,37) -> Cash/cash equivalents at the year end | B5: 1 | C5: ='A7-CFlow'!C40 -> 317760518.9 | D5: ='A7-CFlow'!D40 -> 556329937 | E5: ='A7-CFlow'!E40 -> 498652993.6 | F5: ='A7-CFlow'!F40 -> 576646372 | G5: ='A7-CFlow'!G40 -> 273612573 | H5: ='A7-CFlow'!H40 -> 273612573 | I5: ='A7-CFlow'!I40 -> 486163012.5 | J5: ='A7-CFlow'!J40 -> 87726586 | K5: ='A7-CFlow'!K40 -> 91661440 | L5: ='A7-CFlow'!L40 -> 73956477
A6: Other current investments > 90 days | C6: ='A6-FinPos'!C6+'A6-FinPos'!C7-'A6-FinPos'!C29-'A8-ResRecon'!C5 -> -185105826.2 | D6: ='A6-FinPos'!D6+'A6-FinPos'!D7-'A6-FinPos'!D29-'A8-ResRecon'!D5 -> -418437212.7 | E6: ='A6-FinPos'!E6+'A6-FinPos'!E7-'A6-FinPos'!E29-'A8-ResRecon'!E5 -> -351631409.2 | F6: ='A6-FinPos'!F6+'A6-FinPos'!F7-'A6-FinPos'!F29-'A8-ResRecon'!F5 -> -458293920 | G6: ='A6-FinPos'!G6+'A6-FinPos'!G7-'A6-FinPos'!G29-'A8-ResRecon'!G5 -> -152799404 | H6: ='A6-FinPos'!H6+'A6-FinPos'!H7-'A6-FinPos'!H29-'A8-ResRecon'!H5 -> -152799404 | I6: ='A6-FinPos'!I6+'A6-FinPos'!I7-'A6-FinPos'!I29-'A8-ResRecon'!I5 -> -300189526.6 | J6: ='A6-FinPos'!J6+'A6-FinPos'!J7-'A6-FinPos'!J29-'A8-ResRecon'!J5 -> 2624224 | K6: ='A6-FinPos'!K6+'A6-FinPos'!K7-'A6-FinPos'!K29-'A8-ResRecon'!K5 -> 4554008 | L6: ='A6-FinPos'!L6+'A6-FinPos'!L7-'A6-FinPos'!L29-'A8-ResRecon'!L5 -> 5639839
A7: ='A6-FinPos'!A14&" - "&'A6-FinPos'!A16 -> Non current assets - Investments | B7: 1 | C7: ='A6-FinPos'!C16 -> 0 | D7: ='A6-FinPos'!D16 -> 0 | E7: ='A6-FinPos'!E16 -> 0 | F7: ='A6-FinPos'!F16 -> 0 | G7: ='A6-FinPos'!G16 -> 0 | H7: ='A6-FinPos'!H16 -> 0 | I7: ='A6-FinPos'!I16 -> 0 | J7: ='A6-FinPos'!J16 -> 0 | K7: ='A6-FinPos'!K16 -> 0 | L7: ='A6-FinPos'!L16 -> 0
A8: Cash and investments available: | C8: =SUM(C5:C7) -> 132654692.7 | D8: =SUM(D5:D7) -> 137892724.3 | E8: 147021584.3 | F8: 118352452 | G8: 120813169 | H8: 120813169 | I8: 185973485.8 | J8: 90350810 | K8: 96215448 | L8: 79596316
A10: Application of cash and investments
A11: ='SA3'!A132 -> Unspent conditional transfers | C11: ='SA3'!C132 -> 290.02 | D11: ='SA3'!D132 -> 5111.48 | E11: ='SA3'!E132 -> 0.8100000024 | F11: ='SA3'!F132 -> 16 | G11: ='SA3'!G132 -> 1900008 | H11: ='SA3'!H132 -> 1900008 | I11: ='SA3'!I132 -> 3373119.05 | J11: ='SA3'!J132 -> 16 | K11: ='SA3'!K132 -> 16 | L11: ='SA3'!L132 -> 20
A12: Unspent borrowing | C12: ='SA17'!C67 -> 0 | D12: ='SA17'!D67 -> 0 | E12: ='SA17'!E67 -> 0 | F12: ='SA17'!F67 -> 0 | G12: ='SA17'!G67 -> 0 | H12: ='SA17'!H67 -> 0 | J12: ='SA17'!I67 -> 0 | K12: ='SA17'!J67 -> 0 | L12: ='SA17'!K67 -> 0
A13: Statutory requirements | B13: 2
A14: Other working capital requirements | B14: 3 | C14: =-C32 -> -59612677.83 | D14: =-D32 -> -140151443.6 | E14: -104211180.1 | F14: =-F32 -> -2261180 | G14: -12999993 | H14: -12999993 | I14: -73208071.77 | J14: 9253344 | K14: 8291100 | L14: 3200157
A15: Other provisions
A16: Long term investments committed | B16: 4 | C16: =C52 -> 0 | D16: =D52 -> 0 | E16: 0 | F16: 0 | G16: 0 | H16: 0 | I16: 0 | J16: 0 | K16: 0 | L16: 0
A17: Reserves to be backed by cash/investments | B17: 5
A18: ="Total "&A10&":" -> Total Application of cash and investments: | C18: =SUM(C11:C17) -> -59612387.81 | D18: =SUM(D11:D17) -> -140146332.1 | E18: -104211179.2 | F18: -2261164 | G18: -11099985 | H18: -11099985 | I18: -69834952.72 | J18: 9253360 | K18: 8291116 | L18: 3200177
A19: Surplus(shortfall) | C19: =C8-C18 -> 192267080.5 | D19: =D8-D18 -> 278039056.4 | E19: 251232763.6 | F19: 120613616 | G19: 131913154 | H19: 131913154 | I19: 255808438.6 | J19: 81097450 | K19: 87924332 | L19: 76396139
A20: =head27a -> References
A21: 1. Must reconcile with Budgeted Cash Flows
A22: 2. For example: VAT, taxation
A23: 3. Council approval for policy required - include sufficient working capital (e.g. allowing for a % of current debtors > 90 days as uncollectable)
A24: 4. For example: sinking fund requirements for borrowing
A25: 5. Council approval required for each reserve created and basis of cash backing of reserves
A28: Other working capital requirements
A29: Debtors | C29: =IF(ISERROR(ROUND(C35*C36,-3)),0,(ROUND(C35*C36,-3))) -> 107695000 | D29: =IF(ISERROR(ROUND(D35*D36,-3)),0,(ROUND(D35*D36,-3))) -> 198826000 | E29: 165040000 | F29: 33605000 | G29: 37536000 | H29: 37536000 | I29: 132080000 | J29: 26092000 | K29: 26174000 | L29: 26299000
A31: Creditors due | C31: ='SA3'!C130+'SA3'!C131 -> 48082322.17 | D31: ='SA3'!D130+'SA3'!D131 -> 58674556.43 | E31: ='SA3'!E130+'SA3'!E131 -> 60828819.95 | F31: ='SA3'!F130+'SA3'!F131 -> 31343820 | G31: ='SA3'!G130+'SA3'!G131 -> 24536007 | H31: ='SA3'!H130+'SA3'!H131 -> 24536007 | I31: ='SA3'!I130+'SA3'!I131 -> 58871928.23 | J31: ='SA3'!J130+'SA3'!J131 -> 35345344 | K31: ='SA3'!K130+'SA3'!K131 -> 34465100 | L31: ='SA3'!L130+'SA3'!L131 -> 29499157
A32: Total | C32: =C29-C31 -> 59612677.83 | D32: =D29-D31 -> 140151443.6 | E32: 104211180.1 | F32: 2261180 | G32: 12999993 | H32: 12999993 | I32: 73208071.77 | J32: -9253344 | K32: -8291100 | L32: -3200157
A34: Debtors collection assumptions
A35: Balance outstanding - debtors | C35: ='A6-FinPos'!C8+'A6-FinPos'!C9+'A6-FinPos'!C15 -> 114218064.6 | D35: ='A6-FinPos'!D8+'A6-FinPos'!D9+'A6-FinPos'!D15 -> 137889113.6 | E35: ='A6-FinPos'!E8+'A6-FinPos'!E9+'A6-FinPos'!E15 -> 164324842.6 | F35: ='A6-FinPos'!F8+'A6-FinPos'!F9+'A6-FinPos'!F15 -> 38256292 | G35: ='A6-FinPos'!G8+'A6-FinPos'!G9+'A6-FinPos'!G15 -> 53787070 | H35: ='A6-FinPos'!H8+'A6-FinPos'!H9+'A6-FinPos'!H15 -> 53787070 | I35: ='A6-FinPos'!I8+'A6-FinPos'!I9+'A6-FinPos'!I15 -> 210788652 | J35: ='A6-FinPos'!J8+'A6-FinPos'!J9+'A6-FinPos'!J15 -> 30118055 | K35: ='A6-FinPos'!K8+'A6-FinPos'!K9+'A6-FinPos'!K15 -> 30241672 | L35: ='A6-FinPos'!L8+'A6-FinPos'!L9+'A6-FinPos'!L15 -> 30426564
A36: Estimate of debtors collection rate | C36: =IF(ISERROR('SA10'!D10),0,('SA10'!D10)) -> 0.9428876306 | D36: =IF(ISERROR('SA10'!E10),0,('SA10'!E10)) -> 1.441924994 | E36: =IF(ISERROR('SA10'!F10),0,('SA10'!F10)) -> 1.004352931 | F36: =IF(ISERROR('SA10'!G10),0,('SA10'!G10)) -> 0.8784151545 | G36: =IF(ISERROR('SA10'!H10),0,('SA10'!H10)) -> 0.6978602538 | H36: =IF(ISERROR('SA10'!I10),0,('SA10'!I10)) -> 0.6978602538 | I36: =IF(ISERROR('SA10'!J10),0,('SA10'!J10)) -> 0.6266012694 | J36: =IF(ISERROR('SA10'!K10),0,('SA10'!K10)) -> 0.8663202273 | K36: =IF(ISERROR('SA10'!L10),0,('SA10'!L10)) -> 0.8654803441 | L36: =IF(ISERROR('SA10'!M10),0,('SA10'!M10)) -> 0.8643579131
K39: `
A40: =A16 -> Long term investments committed
A41: Balance (Insert description; eg sinking fund)
C52: =SUM(C41:C51) -> 0 | D52: =SUM(D41:D51) -> 0 | E52: 0 | F52: 0 | G52: 0 | H52: 0 | I52: 0 | J52: 0 | K52: 0 | L52: 0
A53: =A17 -> Reserves to be backed by cash/investments
A54: ='SA3'!A160 -> Housing Development Fund | C54: ='SA3'!C160 -> 0 | D54: ='SA3'!D160 -> 0 | E54: ='SA3'!E160 -> 0 | F54: ='SA3'!F160 -> 0 | G54: ='SA3'!G160 -> 0 | H54: ='SA3'!H160 -> 0 | I54: ='SA3'!I160 -> 0 | J54: ='SA3'!J160 -> 0 | K54: ='SA3'!K160 -> 0 | L54: ='SA3'!L160 -> 0
A55: ='SA3'!A161 -> Capital replacement
A56: ='SA3'!A162 -> Self-insurance
A57: Other (list)
C67: =SUM(C54:C65) -> 0 | D67: 0 | E67: 0 | F67: 0 | G67: 0 | H67: 0 | I67: 0 | J67: 0 | K67: 0 | L67: 0

Sheet A9-Asset
A1: =muni&" - "&Approve9 -> Choose name from list - Table A9 Asset Management
A2: =desc -> Description | B2: =head27 -> Ref | C2: =head1b -> 2017/18 | D2: =head1A -> 2018/19 | E2: =Head1 -> 2019/20 | F2: =Head2 -> Current Year 2020/21 | I2: =Head3 -> 2021/22 Medium Term Revenue & Expenditure Framework
A3: R thousand | C3: =Head5 -> Audited Outcome | D3: =Head5 -> Audited Outcome | E3: =Head5 -> Audited Outcome | F3: =Head6 -> Original Budget | G3: =Head7 -> Adjusted Budget | H3: =Head8 -> Full Year Forecast | I3: =Head9 -> Budget Year 2021/22 | J3: =Head10 -> Budget Year +1 2022/23 | K3: =Head11 -> Budget Year +2 2023/24
A4: CAPITAL EXPENDITURE
A5: Total New Assets | B5: 1 | C5: =C15+C18+C19+C22+C25+C26+SUM(C29:C35) -> -23399588.13 | D5: =D15+D18+D19+D22+D25+D26+SUM(D29:D35) -> -269171144.4 | E5: -262196174 | F5: 145689422 | G5: 144227600 | H5: 144227600 | I5: 114639838 | J5: 93213043 | K5: 115289304
A6: Roads Infrastructure | C6: =SA34a!C7 -> 0 | D6: =SA34a!D7 -> -219293.36 | E6: =SA34a!E7 -> -219293.36 | F6: =SA34a!F7 -> 90016369 | G6: =SA34a!G7 -> 85500009 | H6: =SA34a!H7 -> 85500009 | I6: =SA34a!I7 -> 97989838 | J6: =SA34a!J7 -> 86923043 | K6: =SA34a!K7 -> 106919304
A7: Storm water Infrastructure | C7: =SA34a!C12 -> 0 | D7: =SA34a!D12 -> 0 | E7: =SA34a!E12 -> 0 | F7: =SA34a!F12 -> 0 | G7: =SA34a!G12 -> 0 | H7: =SA34a!H12 -> 0 | I7: =SA34a!I12 -> 0 | J7: =SA34a!J12 -> 0 | K7: =SA34a!K12 -> 0
A8: Electrical Infrastructure | C8: =SA34a!C16 -> 0 | D8: =SA34a!D16 -> 0 | E8: =SA34a!E16 -> 0 | F8: =SA34a!F16 -> 0 | G8: =SA34a!G16 -> 0 | H8: =SA34a!H16 -> 0 | I8: =SA34a!I16 -> 0 | J8: =SA34a!J16 -> 0 | K8: =SA34a!K16 -> 0
A9: Water Supply Infrastructure | C9: =SA34a!C26 -> 0 | D9: =SA34a!D26 -> 0 | E9: =SA34a!E26 -> 0 | F9: =SA34a!F26 -> 0 | G9: =SA34a!G26 -> 0 | H9: =SA34a!H26 -> 0 | I9: =SA34a!I26 -> 0 | J9: =SA34a!J26 -> 0 | K9: =SA34a!K26 -> 0
A10: Sanitation Infrastructure | C10: =SA34a!C37 -> 0 | D10: =SA34a!D37 -> 0 | E10: =SA34a!E37 -> 0 | F10: =SA34a!F37 -> 0 | G10: =SA34a!G37 -> 0 | H10: =SA34a!H37 -> 0 | I10: =SA34a!I37 -> 0 | J10: =SA34a!J37 -> 0 | K10: =SA34a!K37 -> 0
A11: Solid Waste Infrastructure | C11: =SA34a!C44 -> 0 | D11: =SA34a!D44 -> 0 | E11: =SA34a!E44 -> 0 | F11: =SA34a!F44 -> 0 | G11: =SA34a!G44 -> 0 | H11: =SA34a!H44 -> 0 | I11: =SA34a!I44 -> 0 | J11: =SA34a!J44 -> 0 | K11: =SA34a!K44 -> 0
A12: Rail Infrastructure | C12: =SA34a!C52 -> 0 | D12: =SA34a!D52 -> 0 | E12: =SA34a!E52 -> 0 | F12: =SA34a!F52 -> 0 | G12: =SA34a!G52 -> 0 | H12: =SA34a!H52 -> 0 | I12: =SA34a!I52 -> 0 | J12: =SA34a!J52 -> 0 | K12: =SA34a!K52 -> 0
A13: Coastal Infrastructure | C13: =SA34a!C62 -> 0 | D13: =SA34a!D62 -> 0 | E13: =SA34a!E62 -> 0 | F13: =SA34a!F62 -> 0 | G13: =SA34a!G62 -> 0 | H13: =SA34a!H62 -> 0 | I13: =SA34a!I62 -> 0 | J13: =SA34a!J62 -> 0 | K13: =SA34a!K62 -> 0
A14: Information and Communication Infrastructure | C14: =SA34a!C68 -> 0 | D14: =SA34a!D68 -> 0 | E14: =SA34a!E68 -> 0 | F14: =SA34a!F68 -> 0 | G14: =SA34a!G68 -> 0 | H14: =SA34a!H68 -> 0 | I14: =SA34a!I68 -> 0 | J14: =SA34a!J68 -> 0 | K14: =SA34a!K68 -> 0
A15: Infrastructure | C15: =SUM(C6:C14) -> 0 | D15: =SUM(D6:D14) -> -219293.36 | E15: -219293.36 | F15: 90016369 | G15: 85500009 | H15: 85500009 | I15: 97989838 | J15: 86923043 | K15: 106919304
A16: Community Facilities | C16: =SA34a!C75 -> 0 | D16: =SA34a!D75 -> 1069146.98 | E16: =SA34a!E75 -> 1229146.98 | F16: =SA34a!F75 -> 8400000 | G16: =SA34a!G75 -> 5400000 | H16: =SA34a!H75 -> 5400000 | I16: =SA34a!I75 -> 10300000 | J16: =SA34a!J75 -> 1500000 | K16: =SA34a!K75 -> 1000000
A17: Sport and Recreation Facilities | C17: =SA34a!C98 -> 0 | D17: =SA34a!D98 -> 223805.41 | E17: =SA34a!E98 -> 569042.21 | F17: =SA34a!F98 -> 16303053 | G17: =SA34a!G98 -> 22093247 | H17: =SA34a!H98 -> 22093247 | I17: =SA34a!I98 -> 0 | J17: =SA34a!J98 -> 0 | K17: =SA34a!K98 -> 0
A18: Community Assets | C18: =SUM(C16:C17) -> 0 | D18: =SUM(D16:D17) -> 1292952.39 | E18: 1798189.19 | F18: 24703053 | G18: 27493247 | H18: 27493247 | I18: 10300000 | J18: 1500000 | K18: 1000000
A19: Heritage Assets | C19: =SA34a!C103 -> 0 | D19: =SA34a!D103 -> 150500 | E19: =SA34a!E103 -> 150000 | F19: =SA34a!F103 -> 0 | G19: =SA34a!G103 -> 0 | H19: =SA34a!H103 -> 0 | I19: =SA34a!I103 -> 0 | J19: =SA34a!J103 -> 0 | K19: =SA34a!K103 -> 0
A20: Revenue Generating | C20: =SA34a!C111 -> 0 | D20: =SA34a!D111 -> 0 | E20: =SA34a!E111 -> 0 | F20: =SA34a!F111 -> 0 | G20: =SA34a!G111 -> 0 | H20: =SA34a!H111 -> 0 | I20: =SA34a!I111 -> 0 | J20: =SA34a!J111 -> 0 | K20: =SA34a!K111 -> 0
A21: Non-revenue Generating | C21: =SA34a!C114 -> 0 | D21: =SA34a!D114 -> -67069736.91 | E21: =SA34a!E114 -> -67069736.91 | F21: =SA34a!F114 -> 0 | G21: =SA34a!G114 -> 0 | H21: =SA34a!H114 -> 0 | I21: =SA34a!I114 -> 0 | J21: =SA34a!J114 -> 0 | K21: =SA34a!K114 -> 0
A22: Investment properties | C22: =SUM(C20:C21) -> 0 | D22: =SUM(D20:D21) -> -67069736.91 | E22: -67069736.91 | F22: 0 | G22: 0 | H22: 0 | I22: 0 | J22: 0 | K22: 0
A23: Operational Buildings | C23: =SA34a!C119 -> -209920187.2 | D23: =SA34a!D119 -> -209920187.2 | E23: =SA34a!E119 -> -209920187.2 | F23: =SA34a!F119 -> 0 | G23: =SA34a!G119 -> 0 | H23: =SA34a!H119 -> 0 | I23: =SA34a!I119 -> 0 | J23: =SA34a!J119 -> 0 | K23: =SA34a!K119 -> 0
A24: Housing | C24: =SA34a!C131 -> 186430297.4 | D24: =SA34a!D131 -> -539591.12 | E24: =SA34a!E131 -> -813103.12 | F24: =SA34a!F131 -> 18000000 | G24: =SA34a!G131 -> 18000000 | H24: =SA34a!H131 -> 18000000 | I24: =SA34a!I131 -> 0 | J24: =SA34a!J131 -> 0 | K24: =SA34a!K131 -> 0
A25: Other Assets | C25: =SUM(C23:C24) -> -23489889.87 | D25: =SUM(D23:D24) -> -210459778.3 | E25: -210733290.3 | F25: 18000000 | G25: 18000000 | H25: 18000000 | I25: 0 | J25: 0 | K25: 0
A26: Biological or Cultivated Assets | C26: =SA34a!C136 -> 0 | D26: =SA34a!D136 -> 0 | E26: =SA34a!E136 -> 0 | F26: =SA34a!F136 -> 0 | G26: =SA34a!G136 -> 0 | H26: =SA34a!H136 -> 0 | I26: =SA34a!I136 -> 0 | J26: =SA34a!J136 -> 0 | K26: =SA34a!K136 -> 0
A27: Servitudes | C27: =SA34a!C140 -> 0 | D27: =SA34a!D140 -> 0 | E27: =SA34a!E140 -> 0 | F27: =SA34a!F140 -> 0 | G27: =SA34a!G140 -> 0 | H27: =SA34a!H140 -> 0 | I27: =SA34a!I140 -> 0 | J27: =SA34a!J140 -> 0 | K27: =SA34a!K140 -> 0
A28: Licences and Rights | C28: =SA34a!C141 -> 0 | D28: =SA34a!D141 -> 0 | E28: =SA34a!E141 -> 0 | F28: =SA34a!F141 -> 0 | G28: =SA34a!G141 -> 0 | H28: =SA34a!H141 -> 0 | I28: =SA34a!I141 -> 0 | J28: =SA34a!J141 -> 0 | K28: =SA34a!K141 -> 0
A29: Intangible Assets | C29: =SUM(C27:C28) -> 0 | D29: =SUM(D27:D28) -> 0 | E29: 0 | F29: 0 | G29: 0 | H29: 0 | I29: 0 | J29: 0 | K29: 0
A30: Computer Equipment | C30: =SA34a!C149 -> 626574.13 | D30: =SA34a!D149 -> -242838.6 | E30: =SA34a!E149 -> 1103919.85 | F30: =SA34a!F149 -> 2420000 | G30: =SA34a!G149 -> 2734348 | H30: =SA34a!H149 -> 2734348 | I30: =SA34a!I149 -> 600000 | J30: =SA34a!J149 -> 720000 | K30: =SA34a!K149 -> 750000
A31: Furniture and Office Equipment | C31: =SA34a!C152 -> -568750.96 | D31: =SA34a!D152 -> 1034914.73 | E31: =SA34a!E152 -> 1229869.38 | F31: =SA34a!F152 -> 1400000 | G31: =SA34a!G152 -> 749996 | H31: =SA34a!H152 -> 749996 | I31: =SA34a!I152 -> 1900000 | J31: =SA34a!J152 -> 1420000 | K31: =SA34a!K152 -> 1420000
A32: Machinery and Equipment | C32: =SA34a!C155 -> 32478.57 | D32: =SA34a!D155 -> -31414.34 | E32: =SA34a!E155 -> -49441.39 | F32: =SA34a!F155 -> 150000 | G32: =SA34a!G155 -> 150000 | H32: =SA34a!H155 -> 150000 | I32: =SA34a!I155 -> 850000 | J32: =SA34a!J155 -> 150000 | K32: =SA34a!K155 -> 200000
A33: Transport Assets | C33: =SA34a!C158 -> 0 | D33: =SA34a!D158 -> 6373550 | E33: =SA34a!E158 -> 11593609.61 | F33: =SA34a!F158 -> 9000000 | G33: =SA34a!G158 -> 9600000 | H33: =SA34a!H158 -> 9600000 | I33: =SA34a!I158 -> 3000000 | J33: =SA34a!J158 -> 2500000 | K33: =SA34a!K158 -> 5000000
A34: Land | C34: =SA34a!C161 -> 0 | D34: =SA34a!D161 -> 0 | E34: =SA34a!E161 -> 0 | F34: =SA34a!F161 -> 0 | G34: =SA34a!G161 -> 0 | H34: =SA34a!H161 -> 0 | I34: =SA34a!I161 -> 0 | J34: =SA34a!J161 -> 0 | K34: =SA34a!K161 -> 0
A35: Zoo's, Marine and Non-biological Animals | C35: =SA34a!C164 -> 0 | D35: =SA34a!D164 -> 0 | E35: =SA34a!E164 -> 0 | F35: =SA34a!F164 -> 0 | G35: =SA34a!G164 -> 0 | H35: =SA34a!H164 -> 0 | I35: =SA34a!I164 -> 0 | J35: =SA34a!J164 -> 0 | K35: =SA34a!K164 -> 0
A37: Total Renewal of Existing Assets | B37: 2 | C37: =C47+C50+C51+C54+C57+C58+SUM(C61:C67) -> 0 | D37: =D47+D50+D51+D54+D57+D58+SUM(D61:D67) -> 0 | E37: 0 | F37: 18500000 | G37: 19500000 | H37: 19500000 | I37: 29600000 | J37: 10000000 | K37: 5000000
A38: Roads Infrastructure | C38: =SA34b!C7 -> 0 | D38: =SA34b!D7 -> 0 | E38: =SA34b!E7 -> 0 | F38: =SA34b!F7 -> 18500000 | G38: =SA34b!G7 -> 19500000 | H38: =SA34b!H7 -> 19500000 | I38: =SA34b!I7 -> 29600000 | J38: =SA34b!J7 -> 10000000 | K38: =SA34b!K7 -> 5000000
A39: Storm water Infrastructure | C39: =SA34b!C12 -> 0 | D39: =SA34b!D12 -> 0 | E39: =SA34b!E12 -> 0 | F39: =SA34b!F12 -> 0 | G39: =SA34b!G12 -> 0 | H39: =SA34b!H12 -> 0 | I39: =SA34b!I12 -> 0 | J39: =SA34b!J12 -> 0 | K39: =SA34b!K12 -> 0
A40: Electrical Infrastructure | C40: =SA34b!C16 -> 0 | D40: =SA34b!D16 -> 0 | E40: =SA34b!E16 -> 0 | F40: =SA34b!F16 -> 0 | G40: =SA34b!G16 -> 0 | H40: =SA34b!H16 -> 0 | I40: =SA34b!I16 -> 0 | J40: =SA34b!J16 -> 0 | K40: =SA34b!K16 -> 0
A41: Water Supply Infrastructure | C41: =SA34b!C26 -> 0 | D41: =SA34b!D26 -> 0 | E41: =SA34b!E26 -> 0 | F41: =SA34b!F26 -> 0 | G41: =SA34b!G26 -> 0 | H41: =SA34b!H26 -> 0 | I41: =SA34b!I26 -> 0 | J41: =SA34b!J26 -> 0 | K41: =SA34b!K26 -> 0
A42: Sanitation Infrastructure | C42: =SA34b!C37 -> 0 | D42: =SA34b!D37 -> 0 | E42: =SA34b!E37 -> 0 | F42: =SA34b!F37 -> 0 | G42: =SA34b!G37 -> 0 | H42: =SA34b!H37 -> 0 | I42: =SA34b!I37 -> 0 | J42: =SA34b!J37 -> 0 | K42: =SA34b!K37 -> 0
A43: Solid Waste Infrastructure | C43: =SA34b!C44 -> 0 | D43: =SA34b!D44 -> 0 | E43: =SA34b!E44 -> 0 | F43: =SA34b!F44 -> 0 | G43: =SA34b!G44 -> 0 | H43: =SA34b!H44 -> 0 | I43: =SA34b!I44 -> 0 | J43: =SA34b!J44 -> 0 | K43: =SA34b!K44 -> 0
A44: Rail Infrastructure | C44: =SA34b!C52 -> 0 | D44: =SA34b!D52 -> 0 | E44: =SA34b!E52 -> 0 | F44: =SA34b!F52 -> 0 | G44: =SA34b!G52 -> 0 | H44: =SA34b!H52 -> 0 | I44: =SA34b!I52 -> 0 | J44: =SA34b!J52 -> 0 | K44: =SA34b!K52 -> 0
A45: Coastal Infrastructure | C45: =SA34b!C62 -> 0 | D45: =SA34b!D62 -> 0 | E45: =SA34b!E62 -> 0 | F45: =SA34b!F62 -> 0 | G45: =SA34b!G62 -> 0 | H45: =SA34b!H62 -> 0 | I45: =SA34b!I62 -> 0 | J45: =SA34b!J62 -> 0 | K45: =SA34b!K62 -> 0
A46: Information and Communication Infrastructure | C46: =SA34b!C68 -> 0 | D46: =SA34b!D68 -> 0 | E46: =SA34b!E68 -> 0 | F46: =SA34b!F68 -> 0 | G46: =SA34b!G68 -> 0 | H46: =SA34b!H68 -> 0 | I46: =SA34b!I68 -> 0 | J46: =SA34b!J68 -> 0 | K46: =SA34b!K68 -> 0
A47: Infrastructure | C47: =SUM(C38:C46) -> 0 | D47: =SUM(D38:D46) -> 0 | E47: 0 | F47: 18500000 | G47: 19500000 | H47: 19500000 | I47: 29600000 | J47: 10000000 | K47: 5000000
A48: Community Facilities | C48: =SA34b!C75 -> 0 | D48: =SA34b!D75 -> 0 | E48: =SA34b!E75 -> 0 | F48: =SA34b!F75 -> 0 | G48: =SA34b!G75 -> 0 | H48: =SA34b!H75 -> 0 | I48: =SA34b!I75 -> 0 | J48: =SA34b!J75 -> 0 | K48: =SA34b!K75 -> 0
A49: Sport and Recreation Facilities | C49: =SA34b!C98 -> 0 | D49: =SA34b!D98 -> 0 | E49: =SA34b!E98 -> 0 | F49: =SA34b!F98 -> 0 | G49: =SA34b!G98 -> 0 | H49: =SA34b!H98 -> 0 | I49: =SA34b!I98 -> 0 | J49: =SA34b!J98 -> 0 | K49: =SA34b!K98 -> 0
A50: Community Assets | C50: =SUM(C48:C49) -> 0 | D50: =SUM(D48:D49) -> 0 | E50: 0 | F50: 0 | G50: 0 | H50: 0 | I50: 0 | J50: 0 | K50: 0
A51: Heritage Assets | C51: =SA34b!C103 -> 0 | D51: =SA34b!D103 -> 0 | E51: =SA34b!E103 -> 0 | F51: =SA34b!F103 -> 0 | G51: =SA34b!G103 -> 0 | H51: =SA34b!H103 -> 0 | I51: =SA34b!I103 -> 0 | J51: =SA34b!J103 -> 0 | K51: =SA34b!K103 -> 0
A52: Revenue Generating | C52: =SA34b!C111 -> 0 | D52: =SA34b!D111 -> 0 | E52: =SA34b!E111 -> 0 | F52: =SA34b!F111 -> 0 | G52: =SA34b!G111 -> 0 | H52: =SA34b!H111 -> 0 | I52: =SA34b!I111 -> 0 | J52: =SA34b!J111 -> 0 | K52: =SA34b!K111 -> 0
A53: Non-revenue Generating | C53: =SA34b!C114 -> 0 | D53: =SA34b!D114 -> 0 | E53: =SA34b!E114 -> 0 | F53: =SA34b!F114 -> 0 | G53: =SA34b!G114 -> 0 | H53: =SA34b!H114 -> 0 | I53: =SA34b!I114 -> 0 | J53: =SA34b!J114 -> 0 | K53: =SA34b!K114 -> 0
A54: Investment properties | C54: =SUM(C52:C53) -> 0 | D54: =SUM(D52:D53) -> 0 | E54: 0 | F54: 0 | G54: 0 | H54: 0 | I54: 0 | J54: 0 | K54: 0
A55: Operational Buildings | C55: =SA34b!C119 -> 0 | D55: =SA34b!D119 -> 0 | E55: =SA34b!E119 -> 0 | F55: =SA34b!F119 -> 0 | G55: =SA34b!G119 -> 0 | H55: =SA34b!H119 -> 0 | I55: =SA34b!I119 -> 0 | J55: =SA34b!J119 -> 0 | K55: =SA34b!K119 -> 0
A56: Housing | C56: =SA34b!C131 -> 0 | D56: =SA34b!D131 -> 0 | E56: =SA34b!E131 -> 0 | F56: =SA34b!F131 -> 0 | G56: =SA34b!G131 -> 0 | H56: =SA34b!H131 -> 0 | I56: =SA34b!I131 -> 0 | J56: =SA34b!J131 -> 0 | K56: =SA34b!K131 -> 0
A57: Other Assets | C57: =SUM(C55:C56) -> 0 | D57: =SUM(D55:D56) -> 0 | E57: 0 | F57: 0 | G57: 0 | H57: 0 | I57: 0 | J57: 0 | K57: 0
A58: Biological or Cultivated Assets | C58: =SA34b!C136 -> 0 | D58: =SA34b!D136 -> 0 | E58: =SA34b!E136 -> 0 | F58: =SA34b!F136 -> 0 | G58: =SA34b!G136 -> 0 | H58: =SA34b!H136 -> 0 | I58: =SA34b!I136 -> 0 | J58: =SA34b!J136 -> 0 | K58: =SA34b!K136 -> 0
A59: Servitudes | C59: =SA34b!C140 -> 0 | D59: =SA34b!D140 -> 0 | E59: =SA34b!E140 -> 0 | F59: =SA34b!F140 -> 0 | G59: =SA34b!G140 -> 0 | H59: =SA34b!H140 -> 0 | I59: =SA34b!I140 -> 0 | J59: =SA34b!J140 -> 0 | K59: =SA34b!K140 -> 0
A60: Licences and Rights | C60: =SA34b!C141 -> 0 | D60: =SA34b!D141 -> 0 | E60: =SA34b!E141 -> 0 | F60: =SA34b!F141 -> 0 | G60: =SA34b!G141 -> 0 | H60: =SA34b!H141 -> 0 | I60: =SA34b!I141 -> 0 | J60: =SA34b!J141 -> 0 | K60: =SA34b!K141 -> 0
A61: Intangible Assets | C61: =SUM(C59:C60) -> 0 | D61: =SUM(D59:D60) -> 0 | E61: 0 | F61: 0 | G61: 0 | H61: 0 | I61: 0 | J61: 0 | K61: 0
A62: Computer Equipment | C62: =SA34b!C149 -> 0 | D62: =SA34b!D149 -> 0 | E62: =SA34b!E149 -> 0 | F62: =SA34b!F149 -> 0 | G62: =SA34b!G149 -> 0 | H62: =SA34b!H149 -> 0 | I62: =SA34b!I149 -> 0 | J62: =SA34b!J149 -> 0 | K62: =SA34b!K149 -> 0
A63: Furniture and Office Equipment | C63: =SA34b!C152 -> 0 | D63: =SA34b!D152 -> 0 | E63: =SA34b!E152 -> 0 | F63: =SA34b!F152 -> 0 | G63: =SA34b!G152 -> 0 | H63: =SA34b!H152 -> 0 | I63: =SA34b!I152 -> 0 | J63: =SA34b!J152 -> 0 | K63: =SA34b!K152 -> 0
A64: Machinery and Equipment | C64: =SA34b!C155 -> 0 | D64: =SA34b!D155 -> 0 | E64: =SA34b!E155 -> 0 | F64: =SA34b!F155 -> 0 | G64: =SA34b!G155 -> 0 | H64: =SA34b!H155 -> 0 | I64: =SA34b!I155 -> 0 | J64: =SA34b!J155 -> 0 | K64: =SA34b!K155 -> 0
A65: Transport Assets | C65: =SA34b!C158 -> 0 | D65: =SA34b!D158 -> 0 | E65: =SA34b!E158 -> 0 | F65: =SA34b!F158 -> 0 | G65: =SA34b!G158 -> 0 | H65: =SA34b!H158 -> 0 | I65: =SA34b!I158 -> 0 | J65: =SA34b!J158 -> 0 | K65: =SA34b!K158 -> 0
A66: Land | C66: =SA34b!C161 -> 0 | D66: =SA34b!D161 -> 0 | E66: =SA34b!E161 -> 0 | F66: =SA34b!F161 -> 0 | G66: =SA34b!G161 -> 0 | H66: =SA34b!H161 -> 0 | I66: =SA34b!I161 -> 0 | J66: =SA34b!J161 -> 0 | K66: =SA34b!K161 -> 0
A67: Zoo's, Marine and Non-biological Animals | C67: =SA34b!C164 -> 0 | D67: =SA34b!D164 -> 0 | E67: =SA34b!E164 -> 0 | F67: =SA34b!F164 -> 0 | G67: =SA34b!G164 -> 0 | H67: =SA34b!H164 -> 0 | I67: =SA34b!I164 -> 0 | J67: =SA34b!J164 -> 0 | K67: =SA34b!K164 -> 0
A69: Total Upgrading of Existing Assets | B69: 6 | C69: =C79+C82+C83+C86+C89+C90+SUM(C93:C99) -> -22638146.52 | D69: =D79+D82+D83+D86+D89+D90+SUM(D93:D99) -> -22243488.78 | E69: 29766039.7 | F69: 7030000 | G69: 7030000 | H69: 7030000 | I69: 15291000 | J69: 250000 | K69: 2500000
A70: Roads Infrastructure | C70: =SA34e!C7 -> -22638146.52 | D70: =SA34e!D7 -> -22243488.78 | E70: =SA34e!E7 -> 29702238.14 | F70: =SA34e!F7 -> 6000000 | G70: =SA34e!G7 -> 6000000 | H70: =SA34e!H7 -> 6000000 | I70: =SA34e!I7 -> 12761000 | J70: =SA34e!J7 -> 0 | K70: =SA34e!K7 -> 0
A71: Storm water Infrastructure | C71: =SA34e!C12 -> 0 | D71: =SA34e!D12 -> 0 | E71: =SA34e!E12 -> 0 | F71: =SA34e!F12 -> 0 | G71: =SA34e!G12 -> 0 | H71: =SA34e!H12 -> 0 | I71: =SA34e!I12 -> 0 | J71: =SA34e!J12 -> 0 | K71: =SA34e!K12 -> 0
A72: Electrical Infrastructure | C72: =SA34e!C16 -> 0 | D72: =SA34e!D16 -> 0 | E72: =SA34e!E16 -> 0 | F72: =SA34e!F16 -> 0 | G72: =SA34e!G16 -> 0 | H72: =SA34e!H16 -> 0 | I72: =SA34e!I16 -> 0 | J72: =SA34e!J16 -> 0 | K72: =SA34e!K16 -> 0
A73: Water Supply Infrastructure | C73: =SA34e!C26 -> 0 | D73: =SA34e!D26 -> 0 | E73: =SA34e!E26 -> 0 | F73: =SA34e!F26 -> 0 | G73: =SA34e!G26 -> 0 | H73: =SA34e!H26 -> 0 | I73: =SA34e!I26 -> 0 | J73: =SA34e!J26 -> 0 | K73: =SA34e!K26 -> 0
A74: Sanitation Infrastructure | C74: =SA34e!C37 -> 0 | D74: =SA34e!D37 -> 0 | E74: =SA34e!E37 -> 0 | F74: =SA34e!F37 -> 0 | G74: =SA34e!G37 -> 0 | H74: =SA34e!H37 -> 0 | I74: =SA34e!I37 -> 0 | J74: =SA34e!J37 -> 0 | K74: =SA34e!K37 -> 0
A75: Solid Waste Infrastructure | C75: =SA34e!C44 -> 0 | D75: =SA34e!D44 -> 0 | E75: =SA34e!E44 -> 0 | F75: =SA34e!F44 -> 0 | G75: =SA34e!G44 -> 0 | H75: =SA34e!H44 -> 0 | I75: =SA34e!I44 -> 0 | J75: =SA34e!J44 -> 0 | K75: =SA34e!K44 -> 0
A76: Rail Infrastructure | C76: =SA34e!C52 -> 0 | D76: =SA34e!D52 -> 0 | E76: =SA34e!E52 -> 0 | F76: =SA34e!F52 -> 0 | G76: =SA34e!G52 -> 0 | H76: =SA34e!H52 -> 0 | I76: =SA34e!I52 -> 0 | J76: =SA34e!J52 -> 0 | K76: =SA34e!K52 -> 0
A77: Coastal Infrastructure | C77: =SA34e!C62 -> 0 | D77: =SA34e!D62 -> 0 | E77: =SA34e!E62 -> 0 | F77: =SA34e!F62 -> 0 | G77: =SA34e!G62 -> 0 | H77: =SA34e!H62 -> 0 | I77: =SA34e!I62 -> 0 | J77: =SA34e!J62 -> 0 | K77: =SA34e!K62 -> 0
A78: Information and Communication Infrastructure | C78: =SA34e!C68 -> 0 | D78: =SA34e!D68 -> 0 | E78: =SA34e!E68 -> 0 | F78: =SA34e!F68 -> 0 | G78: =SA34e!G68 -> 0 | H78: =SA34e!H68 -> 0 | I78: =SA34e!I68 -> 0 | J78: =SA34e!J68 -> 0 | K78: =SA34e!K68 -> 0
A79: Infrastructure | C79: =SUM(C70:C78) -> -22638146.52 | D79: -22243488.78 | E79: 29702238.14 | F79: 6000000 | G79: 6000000 | H79: 6000000 | I79: 12761000 | J79: 0 | K79: 0
A80: Community Facilities | C80: =SA34e!C75 -> 0 | D80: =SA34e!D75 -> 0 | E80: =SA34e!E75 -> 0 | F80: =SA34e!F75 -> 0 | G80: =SA34e!G75 -> 0 | H80: =SA34e!H75 -> 0 | I80: =SA34e!I75 -> 0 | J80: =SA34e!J75 -> 0 | K80: =SA34e!K75 -> 0
A81: Sport and Recreation Facilities | C81: =SA34e!C98 -> 0 | D81: =SA34e!D98 -> 0 | E81: =SA34e!E98 -> 0 | F81: =SA34e!F98 -> 0 | G81: =SA34e!G98 -> 0 | H81: =SA34e!H98 -> 0 | I81: =SA34e!I98 -> 0 | J81: =SA34e!J98 -> 0 | K81: =SA34e!K98 -> 0
A82: Community Assets | C82: =SUM(C80:C81) -> 0 | D82: 0 | E82: 0 | F82: 0 | G82: 0 | H82: 0 | I82: 0 | J82: 0 | K82: 0
A83: Heritage Assets | C83: =SA34e!C103 -> 0 | D83: =SA34e!D103 -> 0 | E83: =SA34e!E103 -> 0 | F83: =SA34e!F103 -> 0 | G83: =SA34e!G103 -> 0 | H83: =SA34e!H103 -> 0 | I83: =SA34e!I103 -> 0 | J83: =SA34e!J103 -> 0 | K83: =SA34e!K103 -> 0
A84: Revenue Generating | C84: =SA34e!C111 -> 0 | D84: =SA34e!D111 -> 0 | E84: =SA34e!E111 -> 0 | F84: =SA34e!F111 -> 0 | G84: =SA34e!G111 -> 0 | H84: =SA34e!H111 -> 0 | I84: =SA34e!I111 -> 0 | J84: =SA34e!J111 -> 0 | K84: =SA34e!K111 -> 0
A85: Non-revenue Generating | C85: =SA34e!C114 -> 0 | D85: =SA34e!D114 -> 0 | E85: =SA34e!E114 -> 0 | F85: =SA34e!F114 -> 0 | G85: =SA34e!G114 -> 0 | H85: =SA34e!H114 -> 0 | I85: =SA34e!I114 -> 0 | J85: =SA34e!J114 -> 0 | K85: =SA34e!K114 -> 0
A86: Investment properties | C86: =SUM(C84:C85) -> 0 | D86: 0 | E86: 0 | F86: 0 | G86: 0 | H86: 0 | I86: 0 | J86: 0 | K86: 0
A87: Operational Buildings | C87: =SA34e!C119 -> 0 | D87: =SA34e!D119 -> 0 | E87: =SA34e!E119 -> 15000 | F87: =SA34e!F119 -> 530000 | G87: =SA34e!G119 -> 530000 | H87: =SA34e!H119 -> 530000 | I87: =SA34e!I119 -> 2030000 | J87: =SA34e!J119 -> 0 | K87: =SA34e!K119 -> 0
A88: Housing | C88: =SA34e!C131 -> 0 | D88: =SA34e!D131 -> 0 | E88: =SA34e!E131 -> 0 | F88: =SA34e!F131 -> 0 | G88: =SA34e!G131 -> 0 | H88: =SA34e!H131 -> 0 | I88: =SA34e!I131 -> 0 | J88: =SA34e!J131 -> 0 | K88: =SA34e!K131 -> 0
A89: Other Assets | C89: =SUM(C87:C88) -> 0 | D89: 0 | E89: 15000 | F89: 530000 | G89: 530000 | H89: 530000 | I89: 2030000 | J89: 0 | K89: 0
A90: Biological or Cultivated Assets | C90: =SA34e!C136 -> 0 | D90: =SA34e!D136 -> 0 | E90: =SA34e!E136 -> 0 | F90: =SA34e!F136 -> 0 | G90: =SA34e!G136 -> 0 | H90: =SA34e!H136 -> 0 | I90: =SA34e!I136 -> 0 | J90: =SA34e!J136 -> 0 | K90: =SA34e!K136 -> 0
A91: Servitudes | C91: =SA34e!C140 -> 0 | D91: =SA34e!D140 -> 0 | E91: =SA34e!E140 -> 0 | F91: =SA34e!F140 -> 0 | G91: =SA34e!G140 -> 0 | H91: =SA34e!H140 -> 0 | I91: =SA34e!I140 -> 0 | J91: =SA34e!J140 -> 0 | K91: =SA34e!K140 -> 0
A92: Licences and Rights | C92: =SA34e!C141 -> 0 | D92: =SA34e!D141 -> 0 | E92: =SA34e!E141 -> 0 | F92: =SA34e!F141 -> 0 | G92: =SA34e!G141 -> 0 | H92: =SA34e!H141 -> 0 | I92: =SA34e!I141 -> 0 | J92: =SA34e!J141 -> 0 | K92: =SA34e!K141 -> 0
A93: Intangible Assets | C93: =SUM(C91:C92) -> 0 | D93: 0 | E93: 0 | F93: 0 | G93: 0 | H93: 0 | I93: 0 | J93: 0 | K93: 0
A94: Computer Equipment | C94: =SA34e!C149 -> 0 | D94: =SA34e!D149 -> 0 | E94: =SA34e!E149 -> 48801.56 | F94: =SA34e!F149 -> 500000 | G94: =SA34e!G149 -> 500000 | H94: =SA34e!H149 -> 500000 | I94: =SA34e!I149 -> 500000 | J94: =SA34e!J149 -> 250000 | K94: =SA34e!K149 -> 2500000
A95: Furniture and Office Equipment | C95: =SA34e!C152 -> 0 | D95: =SA34e!D152 -> 0 | E95: =SA34e!E152 -> 0 | F95: =SA34e!F152 -> 0 | G95: =SA34e!G152 -> 0 | H95: =SA34e!H152 -> 0 | I95: =SA34e!I152 -> 0 | J95: =SA34e!J152 -> 0 | K95: =SA34e!K152 -> 0
A96: Machinery and Equipment | C96: =SA34e!C155 -> 0 | D96: =SA34e!D155 -> 0 | E96: =SA34e!E155 -> 0 | F96: =SA34e!F155 -> 0 | G96: =SA34e!G155 -> 0 | H96: =SA34e!H155 -> 0 | I96: =SA34e!I155 -> 0 | J96: =SA34e!J155 -> 0 | K96: =SA34e!K155 -> 0
A97: Transport Assets | C97: =SA34e!C158 -> 0 | D97: =SA34e!D158 -> 0 | E97: =SA34e!E158 -> 0 | F97: =SA34e!F158 -> 0 | G97: =SA34e!G158 -> 0 | H97: =SA34e!H158 -> 0 | I97: =SA34e!I158 -> 0 | J97: =SA34e!J158 -> 0 | K97: =SA34e!K158 -> 0
A98: Land | C98: =SA34e!C161 -> 0 | D98: =SA34e!D161 -> 0 | E98: =SA34e!E161 -> 0 | F98: =SA34e!F161 -> 0 | G98: =SA34e!G161 -> 0 | H98: =SA34e!H161 -> 0 | I98: =SA34e!I161 -> 0 | J98: =SA34e!J161 -> 0 | K98: =SA34e!K161 -> 0
A99: Zoo's, Marine and Non-biological Animals | C99: =SA34e!C164 -> 0 | D99: =SA34e!D164 -> 0 | E99: =SA34e!E164 -> 0 | F99: =SA34e!F164 -> 0 | G99: =SA34e!G164 -> 0 | H99: =SA34e!H164 -> 0 | I99: =SA34e!I164 -> 0 | J99: =SA34e!J164 -> 0 | K99: =SA34e!K164 -> 0
A101: Total Capital Expenditure | B101: 4 | C101: =+C5+C37+C69 -> -46037734.65 | D101: =+D5+D37+D69 -> -291414633.2 | E101: -232430134.3 | F101: 171219422 | G101: 170757600 | H101: 170757600 | I101: 159530838 | J101: 103463043 | K101: 122789304
A102: Roads Infrastructure | C102: =+C6+C38+C70 -> -22638146.52 | D102: =+D6+D38+D70 -> -22462782.14 | E102: 29482944.78 | F102: 114516369 | G102: 111000009 | H102: 111000009 | I102: 140350838 | J102: 96923043 | K102: 111919304
A103: Storm water Infrastructure | C103: =+C7+C39+C71 -> 0 | D103: 0 | E103: 0 | F103: 0 | G103: 0 | H103: 0 | I103: 0 | J103: 0 | K103: 0
A104: Electrical Infrastructure | C104: 0 | D104: 0 | E104: 0 | F104: 0 | G104: 0 | H104: 0 | I104: 0 | J104: 0 | K104: 0
A105: Water Supply Infrastructure | C105: 0 | D105: 0 | E105: 0 | F105: 0 | G105: 0 | H105: 0 | I105: 0 | J105: 0 | K105: 0
A106: Sanitation Infrastructure | C106: 0 | D106: 0 | E106: 0 | F106: 0 | G106: 0 | H106: 0 | I106: 0 | J106: 0 | K106: 0
A107: Solid Waste Infrastructure | C107: 0 | D107: 0 | E107: 0 | F107: 0 | G107: 0 | H107: 0 | I107: 0 | J107: 0 | K107: 0
A108: Rail Infrastructure | C108: 0 | D108: 0 | E108: 0 | F108: 0 | G108: 0 | H108: 0 | I108: 0 | J108: 0 | K108: 0
A109: Coastal Infrastructure | C109: 0 | D109: 0 | E109: 0 | F109: 0 | G109: 0 | H109: 0 | I109: 0 | J109: 0 | K109: 0
A110: Information and Communication Infrastructure | C110: 0 | D110: 0 | E110: 0 | F110: 0 | G110: 0 | H110: 0 | I110: 0 | J110: 0 | K110: 0
A111: Infrastructure | C111: =SUM(C102:C110) -> -22638146.52 | D111: =SUM(D102:D110) -> -22462782.14 | E111: 29482944.78 | F111: 114516369 | G111: 111000009 | H111: 111000009 | I111: 140350838 | J111: 96923043 | K111: 111919304
A112: Community Facilities | C112: =+C16+C48+C80 -> 0 | D112: =+D16+D48+D80 -> 1069146.98 | E112: 1229146.98 | F112: 8400000 | G112: 5400000 | H112: 5400000 | I112: 10300000 | J112: 1500000 | K112: 1000000
A113: Sport and Recreation Facilities | C113: =+C17+C49+C81 -> 0 | D113: =+D17+D49+D81 -> 223805.41 | E113: 569042.21 | F113: 16303053 | G113: 22093247 | H113: 22093247 | I113: 0 | J113: 0 | K113: 0
A114: Community Assets | C114: =SUM(C112:C113) -> 0 | D114: =SUM(D112:D113) -> 1292952.39 | E114: 1798189.19 | F114: 24703053 | G114: 27493247 | H114: 27493247 | I114: 10300000 | J114: 1500000 | K114: 1000000
A115: Heritage Assets | C115: =+C19+C51+C83 -> 0 | D115: =+D19+D51+D83 -> 150500 | E115: 150000 | F115: 0 | G115: 0 | H115: 0 | I115: 0 | J115: 0 | K115: 0
A116: Revenue Generating | C116: =+C20+C52+C84 -> 0 | D116: =+D20+D52+D84 -> 0 | E116: 0 | F116: 0 | G116: 0 | H116: 0 | I116: 0 | J116: 0 | K116: 0
A117: Non-revenue Generating | C117: =+C21+C53+C85 -> 0 | D117: =+D21+D53+D85 -> -67069736.91 | E117: -67069736.91 | F117: 0 | G117: 0 | H117: 0 | I117: 0 | J117: 0 | K117: 0
A118: Investment properties | C118: =SUM(C116:C117) -> 0 | D118: =SUM(D116:D117) -> -67069736.91 | E118: -67069736.91 | F118: 0 | G118: 0 | H118: 0 | I118: 0 | J118: 0 | K118: 0
A119: Operational Buildings | C119: =+C23+C55+C87 -> -209920187.2 | D119: =+D23+D55+D87 -> -209920187.2 | E119: -209905187.2 | F119: 530000 | G119: 530000 | H119: 530000 | I119: 2030000 | J119: 0 | K119: 0
A120: Housing | C120: =+C24+C56+C88 -> 186430297.4 | D120: =+D24+D56+D88 -> -539591.12 | E120: -813103.12 | F120: 18000000 | G120: 18000000 | H120: 18000000 | I120: 0 | J120: 0 | K120: 0
A121: Other Assets | C121: =SUM(C119:C120) -> -23489889.87 | D121: -210459778.3 | E121: -210718290.3 | F121: 18530000 | G121: 18530000 | H121: 18530000 | I121: 2030000 | J121: 0 | K121: 0
A122: Biological or Cultivated Assets | C122: =+C26+C58+C90 -> 0 | D122: =+D26+D58+D90 -> 0 | E122: 0 | F122: 0 | G122: 0 | H122: 0 | I122: 0 | J122: 0 | K122: 0
A123: Servitudes | C123: =+C27+C59+C91 -> 0 | D123: =+D27+D59+D91 -> 0 | E123: 0 | F123: 0 | G123: 0 | H123: 0 | I123: 0 | J123: 0 | K123: 0
A124: Licences and Rights | C124: =+C28+C60+C92 -> 0 | D124: =+D28+D60+D92 -> 0 | E124: 0 | F124: 0 | G124: 0 | H124: 0 | I124: 0 | J124: 0 | K124: 0
A125: Intangible Assets | C125: =SUM(C123:C124) -> 0 | D125: =SUM(D123:D124) -> 0 | E125: 0 | F125: 0 | G125: 0 | H125: 0 | I125: 0 | J125: 0 | K125: 0
A126: Computer Equipment | C126: =+C30+C62+C94 -> 626574.13 | D126: =+D30+D62+D94 -> -242838.6 | E126: 1152721.41 | F126: 2920000 | G126: 3234348 | H126: 3234348 | I126: 1100000 | J126: 970000 | K126: 3250000
A127: Furniture and Office Equipment | C127: =+C31+C63+C95 -> -568750.96 | D127: 1034914.73 | E127: 1229869.38 | F127: 1400000 | G127: 749996 | H127: 749996 | I127: 1900000 | J127: 1420000 | K127: 1420000
A128: Machinery and Equipment | C128: 32478.57 | D128: -31414.34 | E128: -49441.39 | F128: 150000 | G128: 150000 | H128: 150000 | I128: 850000 | J128: 150000 | K128: 200000
A129: Transport Assets | C129: 0 | D129: 6373550 | E129: 11593609.61 | F129: 9000000 | G129: 9600000 | H129: 9600000 | I129: 3000000 | J129: 2500000 | K129: 5000000
A130: Land | C130: 0 | D130: 0 | E130: 0 | F130: 0 | G130: 0 | H130: 0 | I130: 0 | J130: 0 | K130: 0
A131: Zoo's, Marine and Non-biological Animals | C131: 0 | D131: 0 | E131: 0 | F131: 0 | G131: 0 | H131: 0 | I131: 0 | J131: 0 | K131: 0
A132: TOTAL CAPITAL EXPENDITURE - Asset class | C132: =+C5+C37+C69 -> -46037734.65 | D132: =+D5+D37+D69 -> -291414633.2 | E132: -232430134.3 | F132: 171219422 | G132: 170757600 | H132: 170757600 | I132: 159530838 | J132: 103463043 | K132: 122789304
A134: ASSET REGISTER SUMMARY - PPE (WDV) | B134: 5 | C134: =C144+C147+C148+C151+C154+C155+C158+C159+C160+C161+C162+C163+C164 -> 299191691.9 | D134: =D144+D147+D148+D151+D154+D155+D158+D159+D160+D161+D162+D163+D164 -> 346109367.5 | E134: 383083568.4 | F134: 299834032 | G134: 300098376 | H134: 300098376 | I134: 300343190 | J134: 271249801 | K134: 274963743
A135: Roads Infrastructure | C135: 104366318.9 | D135: 154914917 | E135: 201034609.2 | F135: 96049494 | G135: 96049494 | H135: 96049494 | I135: 118495776 | J135: 94115676 | K135: 93952916
A136: Storm water Infrastructure | C136: 15510834.07 | D136: 15223521.11 | E136: 14920293.6 | F136: 14950809 | G136: 14950809 | H136: 14950809 | I136: 14950809 | J136: 14950809 | K136: 14950809
A137: Electrical Infrastructure | C137: 1398106.11 | D137: 1167156 | E137: 1010051.32 | F137: 1142034 | G137: 1142034 | H137: 1142034 | I137: 1142034 | J137: 1142034 | K137: 1142034
A138: Water Supply Infrastructure | C138: 0 | D138: 0 | E138: 0 | F138: 0 | G138: 0 | H138: 0 | I138: 0 | J138: 0 | K138: 0
A139: Sanitation Infrastructure | C139: 0 | D139: 0 | E139: 0 | F139: 0 | G139: 0 | H139: 0 | I139: 0 | J139: 0 | K139: 0
A140: Solid Waste Infrastructure | C140: 95977.42 | D140: 74649.37 | E140: 52846.64 | F140: 74989 | G140: 74989 | H140: 74989 | I140: 74989 | J140: 74989 | K140: 74989
A141: Rail Infrastructure | C141: 0 | D141: 0 | E141: 0 | F141: 0 | G141: 0 | H141: 0 | I141: 0 | J141: 0 | K141: 0
A142: Coastal Infrastructure | C142: 0 | D142: 0 | E142: 0 | F142: 0 | G142: 0 | H142: 0 | I142: 0 | J142: 0 | K142: 0
A143: Information and Communication Infrastructure | C143: 0 | D143: 0 | E143: 0 | F143: 0 | G143: 0 | H143: 0 | I143: 0 | J143: 0 | K143: 0
A144: Infrastructure | C144: =SUM(C135:C143) -> 121371236.5 | D144: =SUM(D135:D143) -> 171380243.5 | E144: 217017800.7 | F144: 112217326 | G144: 112217326 | H144: 112217326 | I144: 134663608 | J144: 110283508 | K144: 110120748
A147: Community Assets | C147: 136870375.9 | D147: 127385931 | E147: 116774901 | F147: 96875385 | G147: 96875385 | H147: 96875385 | I147: 97517442 | J147: 97034442 | K147: 96507190
A148: Heritage Assets | C148: 222000 | D148: 372500 | E148: 372500 | F148: 372500 | G148: 372500 | H148: 372500 | I148: 372500 | J148: 372500 | K148: 372500
A151: Investment properties | C151: 6796836 | D151: 8950000 | E151: 8950000 | F151: 8950000 | G151: 8950000 | H151: 8950000 | I151: 8950000 | J151: 8950000 | K151: 8950000
A154: Other Assets | C154: 19338 | D154: 9029 | E154: 15283.21 | F154: -2420802 | G154: -2420802 | H154: -2420802 | I154: -946000 | J154: -3101370 | K154: -3238226
A155: Biological or Cultivated Assets | C155: 0 | D155: 0 | E155: 0 | F155: 0 | G155: 0 | H155: 0 | I155: 0 | J155: 0 | K155: 0
A158: Intangible Assets | C158: 447466.26 | D158: 298292.93 | E158: 150002.96 | F158: 936712 | G158: 1336712 | H158: 1336712 | I158: 533619 | J158: 973329 | K158: 1012096
A159: Computer Equipment | C159: 5701922.56 | D159: 4617636.81 | E159: 3427873.9 | F159: 5217972 | G159: 5132320 | H159: 5132320 | I159: 4232937 | J159: 3567358 | K159: 5703939
A160: Furniture and Office Equipment | C160: 1291785.93 | D160: 1956821.83 | E160: 1737207.97 | F160: 2020096 | G160: 1370092 | H160: 1370092 | I160: 2654988 | J160: 2117868 | K160: 2055515
A161: Machinery and Equipment | C161: 633698.15 | D161: 3388355.47 | E161: 3002087.76 | F161: 3420568 | G161: 3420568 | H161: 3420568 | I161: 4120368 | J161: 3413732 | K161: 3456488
A162: Transport Assets | C162: 4965032.63 | D162: 6878557 | E162: 10763910.88 | F162: 13372275 | G162: 13972275 | H162: 13972275 | I162: 7371728 | J162: 6766434 | K162: 9151493
A163: Land | C163: 20872000 | D163: 20872000 | E163: 20872000 | F163: 58872000 | G163: 58872000 | H163: 58872000 | I163: 40872000 | J163: 40872000 | K163: 40872000
A164: Zoo's, Marine and Non-biological Animals | C164: 0 | D164: 0 | E164: 0 | F164: 0 | G164: 0 | H164: 0 | I164: 0 | J164: 0 | K164: 0
A165: TOTAL ASSET REGISTER SUMMARY - PPE (WDV) | B165: 5 | C165: =C144+C147+C148+C151+C154+C155+C158+C159+C160+C161+C162+C163+C164 -> 299191691.9 | D165: =D144+D147+D148+D151+D154+D155+D158+D159+D160+D161+D162+D163+D164 -> 346109367.5 | E165: 383083568.4 | F165: 299834032 | G165: 300098376 | H165: 300098376 | I165: 300343190 | J165: 271249801 | K165: 274963743
A167: EXPENDITURE OTHER ITEMS | C167: =SUM(C168:C169) -> 1026195.84 | D167: =SUM(D168:D169) -> 21705591.29 | E167: 22659152.75 | F167: 31070745 | G167: 32150745 | H167: 32150745 | I167: 28772587 | J167: 29981036 | K167: 31300201
A168: Depreciation | B168: 7 | C168: =SA34d!C167 -> 0 | D168: =SA34d!D167 -> 19194388.48 | E168: =SA34d!E167 -> 20313047.72 | F168: =SA34d!F167 -> 26740745 | G168: =SA34d!G167 -> 26740745 | H168: =SA34d!H167 -> 26740745 | I168: =SA34d!I167 -> 24342587 | J168: =SA34d!J167 -> 25364976 | K168: =SA34d!K167 -> 26481034
A169: Repairs and Maintenance by Asset Class | B169: 3 | C169: =C179+C182+C183+C186+C189+C190+SUM(C193:C199) -> 1026195.84 | D169: =D179+D182+D183+D186+D189+D190+SUM(D193:D199) -> 2511202.81 | E169: 2346105.03 | F169: 4330000 | G169: 5410000 | H169: 5410000 | I169: 4430000 | J169: 4616060 | K169: 4819167
A170: Roads Infrastructure | C170: =SA34c!C7 -> 12204.28 | D170: =SA34c!D7 -> 125963.35 | E170: =SA34c!E7 -> 127501.66 | F170: =SA34c!F7 -> 350000 | G170: =SA34c!G7 -> 1850000 | H170: =SA34c!H7 -> 1850000 | I170: =SA34c!I7 -> 1000000 | J170: =SA34c!J7 -> 1042000 | K170: =SA34c!K7 -> 1087848
A171: Storm water Infrastructure | C171: =SA34c!C12 -> 0 | D171: =SA34c!D12 -> 0 | E171: =SA34c!E12 -> 0 | F171: =SA34c!F12 -> 0 | G171: =SA34c!G12 -> 0 | H171: =SA34c!H12 -> 0 | I171: =SA34c!I12 -> 0 | J171: =SA34c!J12 -> 0 | K171: =SA34c!K12 -> 0
A172: Electrical Infrastructure | C172: =SA34c!C16 -> 33213.99 | D172: =SA34c!D16 -> 27485.01 | E172: =SA34c!E16 -> 109834.06 | F172: =SA34c!F16 -> 700000 | G172: =SA34c!G16 -> 380000 | H172: =SA34c!H16 -> 380000 | I172: =SA34c!I16 -> 500000 | J172: =SA34c!J16 -> 521000 | K172: =SA34c!K16 -> 543924
A173: Water Supply Infrastructure | C173: =SA34c!C26 -> 0 | D173: =SA34c!D26 -> 0 | E173: =SA34c!E26 -> 0 | F173: =SA34c!F26 -> 0 | G173: =SA34c!G26 -> 0 | H173: =SA34c!H26 -> 0 | I173: =SA34c!I26 -> 0 | J173: =SA34c!J26 -> 0 | K173: =SA34c!K26 -> 0
A174: Sanitation Infrastructure | C174: =SA34c!C37 -> 0 | D174: =SA34c!D37 -> 0 | E174: =SA34c!E37 -> 0 | F174: =SA34c!F37 -> 0 | G174: =SA34c!G37 -> 0 | H174: =SA34c!H37 -> 0 | I174: =SA34c!I37 -> 0 | J174: =SA34c!J37 -> 0 | K174: =SA34c!K37 -> 0
A175: Solid Waste Infrastructure | C175: =SA34c!C44 -> 0 | D175: =SA34c!D44 -> 0 | E175: =SA34c!E44 -> 0 | F175: =SA34c!F44 -> 0 | G175: =SA34c!G44 -> 0 | H175: =SA34c!H44 -> 0 | I175: =SA34c!I44 -> 0 | J175: =SA34c!J44 -> 0 | K175: =SA34c!K44 -> 0
A176: Rail Infrastructure | C176: =SA34c!C52 -> 0 | D176: =SA34c!D52 -> 0 | E176: =SA34c!E52 -> 0 | F176: =SA34c!F52 -> 0 | G176: =SA34c!G52 -> 0 | H176: =SA34c!H52 -> 0 | I176: =SA34c!I52 -> 0 | J176: =SA34c!J52 -> 0 | K176: =SA34c!K52 -> 0
A177: Coastal Infrastructure | C177: =SA34c!C62 -> 0 | D177: =SA34c!D62 -> 0 | E177: =SA34c!E62 -> 0 | F177: =SA34c!F62 -> 0 | G177: =SA34c!G62 -> 0 | H177: =SA34c!H62 -> 0 | I177: =SA34c!I62 -> 0 | J177: =SA34c!J62 -> 0 | K177: =SA34c!K62 -> 0
A178: Information and Communication Infrastructure | C178: =SA34c!C68 -> 0 | D178: =SA34c!D68 -> 0 | E178: =SA34c!E68 -> 0 | F178: =SA34c!F68 -> 0 | G178: =SA34c!G68 -> 0 | H178: =SA34c!H68 -> 0 | I178: =SA34c!I68 -> 0 | J178: =SA34c!J68 -> 0 | K178: =SA34c!K68 -> 0
A179: Infrastructure | C179: =SUM(C170:C178) -> 45418.27 | D179: =SUM(D170:D178) -> 153448.36 | E179: 237335.72 | F179: 1050000 | G179: 2230000 | H179: 2230000 | I179: 1500000 | J179: 1563000 | K179: 1631772
A180: Community Facilities | C180: =SA34c!C75 -> 89580 | D180: =SA34c!D75 -> 139006.16 | E180: =SA34c!E75 -> 119989.9 | F180: =SA34c!F75 -> 150000 | G180: =SA34c!G75 -> 150000 | H180: =SA34c!H75 -> 150000 | I180: =SA34c!I75 -> 150000 | J180: =SA34c!J75 -> 156300 | K180: =SA34c!K75 -> 163177
A181: Sport and Recreation Facilities | C181: =SA34c!C98 -> 0 | D181: =SA34c!D98 -> 0 | E181: =SA34c!E98 -> 0 | F181: =SA34c!F98 -> 0 | G181: =SA34c!G98 -> 0 | H181: =SA34c!H98 -> 0 | I181: =SA34c!I98 -> 0 | J181: =SA34c!J98 -> 0 | K181: =SA34c!K98 -> 0
A182: Community Assets | C182: =SUM(C180:C181) -> 89580 | D182: 139006.16 | E182: 119989.9 | F182: 150000 | G182: 150000 | H182: 150000 | I182: 150000 | J182: 156300 | K182: 163177
A183: Heritage Assets | C183: =SA34c!C103 -> 0 | D183: =SA34c!D103 -> 0 | E183: =SA34c!E103 -> 0 | F183: =SA34c!F103 -> 0 | G183: =SA34c!G103 -> 0 | H183: =SA34c!H103 -> 0 | I183: =SA34c!I103 -> 0 | J183: =SA34c!J103 -> 0 | K183: =SA34c!K103 -> 0
A184: Revenue Generating | C184: =SA34c!C111 -> 0 | D184: =SA34c!D111 -> 0 | E184: =SA34c!E111 -> 0 | F184: =SA34c!F111 -> 0 | G184: =SA34c!G111 -> 0 | H184: =SA34c!H111 -> 0 | I184: =SA34c!I111 -> 0 | J184: =SA34c!J111 -> 0 | K184: =SA34c!K111 -> 0
A185: Non-revenue Generating | C185: =SA34c!C114 -> 54057.01 | D185: =SA34c!D114 -> 0 | E185: =SA34c!E114 -> 0 | F185: =SA34c!F114 -> 0 | G185: =SA34c!G114 -> 0 | H185: =SA34c!H114 -> 0 | I185: =SA34c!I114 -> 0 | J185: =SA34c!J114 -> 0 | K185: =SA34c!K114 -> 0
A186: Investment properties | C186: =SUM(C184:C185) -> 54057.01 | D186: 0 | E186: 0 | F186: 0 | G186: 0 | H186: 0 | I186: 0 | J186: 0 | K186: 0
A187: Operational Buildings | C187: =SA34c!C119 -> 48314.83 | D187: =SA34c!D119 -> 375300.34 | E187: =SA34c!E119 -> 141183.37 | F187: =SA34c!F119 -> 750000 | G187: =SA34c!G119 -> 750000 | H187: =SA34c!H119 -> 750000 | I187: =SA34c!I119 -> 500000 | J187: =SA34c!J119 -> 521000 | K187: =SA34c!K119 -> 543924
A188: Housing | C188: =SA34c!C131 -> 0 | D188: =SA34c!D131 -> 0 | E188: =SA34c!E131 -> 0 | F188: =SA34c!F131 -> 0 | G188: =SA34c!G131 -> 0 | H188: =SA34c!H131 -> 0 | I188: =SA34c!I131 -> 0 | J188: =SA34c!J131 -> 0 | K188: =SA34c!K131 -> 0
A189: Other Assets | C189: =SUM(C187:C188) -> 48314.83 | D189: 375300.34 | E189: 141183.37 | F189: 750000 | G189: 750000 | H189: 750000 | I189: 500000 | J189: 521000 | K189: 543924
A190: Biological or Cultivated Assets | C190: =SA34c!C136 -> 0 | D190: =SA34c!D136 -> 0 | E190: =SA34c!E136 -> 0 | F190: =SA34c!F136 -> 0 | G190: =SA34c!G136 -> 0 | H190: =SA34c!H136 -> 0 | I190: =SA34c!I136 -> 0 | J190: =SA34c!J136 -> 0 | K190: =SA34c!K136 -> 0
A191: Servitudes | C191: =SA34c!C140 -> 0 | D191: =SA34c!D140 -> 0 | E191: =SA34c!E140 -> 0 | F191: =SA34c!F140 -> 0 | G191: =SA34c!G140 -> 0 | H191: =SA34c!H140 -> 0 | I191: =SA34c!I140 -> 0 | J191: =SA34c!J140 -> 0 | K191: =SA34c!K140 -> 0
A192: Licences and Rights | C192: =SA34c!C141 -> 0 | D192: =SA34c!D141 -> 0 | E192: =SA34c!E141 -> 0 | F192: =SA34c!F141 -> 0 | G192: =SA34c!G141 -> 0 | H192: =SA34c!H141 -> 0 | I192: =SA34c!I141 -> 0 | J192: =SA34c!J141 -> 0 | K192: =SA34c!K141 -> 0
A193: Intangible Assets | C193: =SUM(C191:C192) -> 0 | D193: 0 | E193: 0 | F193: 0 | G193: 0 | H193: 0 | I193: 0 | J193: 0 | K193: 0
A194: Computer Equipment | C194: =SA34c!C149 -> 0 | D194: =SA34c!D149 -> 0 | E194: =SA34c!E149 -> 0 | F194: =SA34c!F149 -> 0 | G194: =SA34c!G149 -> 0 | H194: =SA34c!H149 -> 0 | I194: =SA34c!I149 -> 0 | J194: =SA34c!J149 -> 0 | K194: =SA34c!K149 -> 0
A195: Furniture and Office Equipment | C195: =SA34c!C152 -> 0 | D195: =SA34c!D152 -> 0 | E195: =SA34c!E152 -> 0 | F195: =SA34c!F152 -> 0 | G195: =SA34c!G152 -> 0 | H195: =SA34c!H152 -> 0 | I195: =SA34c!I152 -> 0 | J195: =SA34c!J152 -> 0 | K195: =SA34c!K152 -> 0
A196: Machinery and Equipment | C196: =SA34c!C155 -> 197433.55 | D196: =SA34c!D155 -> 1102712.67 | E196: =SA34c!E155 -> 1051938.31 | F196: =SA34c!F155 -> 1380000 | G196: =SA34c!G155 -> 1080000 | H196: =SA34c!H155 -> 1080000 | I196: =SA34c!I155 -> 1080000 | J196: =SA34c!J155 -> 1125360 | K196: =SA34c!K155 -> 1174876
A197: Transport Assets | C197: =SA34c!C158 -> 591392.18 | D197: =SA34c!D158 -> 740735.28 | E197: =SA34c!E158 -> 795657.73 | F197: =SA34c!F158 -> 1000000 | G197: =SA34c!G158 -> 1200000 | H197: =SA34c!H158 -> 1200000 | I197: =SA34c!I158 -> 1200000 | J197: =SA34c!J158 -> 1250400 | K197: =SA34c!K158 -> 1305418
A198: Land | C198: =SA34c!C161 -> 0 | D198: =SA34c!D161 -> 0 | E198: =SA34c!E161 -> 0 | F198: =SA34c!F161 -> 0 | G198: =SA34c!G161 -> 0 | H198: =SA34c!H161 -> 0 | I198: =SA34c!I161 -> 0 | J198: =SA34c!J161 -> 0 | K198: =SA34c!K161 -> 0
A199: Zoo's, Marine and Non-biological Animals | C199: =SA34c!C164 -> 0 | D199: =SA34c!D164 -> 0 | E199: =SA34c!E164 -> 0 | F199: =SA34c!F164 -> 0 | G199: =SA34c!G164 -> 0 | H199: =SA34c!H164 -> 0 | I199: =SA34c!I164 -> 0 | J199: =SA34c!J164 -> 0 | K199: =SA34c!K164 -> 0
A201: TOTAL EXPENDITURE OTHER ITEMS | C201: =SUM(C168:C169) -> 1026195.84 | D201: 21705591.29 | E201: 22659152.75 | F201: 31070745 | G201: 32150745 | H201: 32150745 | I201: 28772587 | J201: 29981036 | K201: 31300201
A203: Renewal and upgrading of Existing Assets as % of total capex | C203: =IF(ISERROR((C37+C69)/C132),0,((C37+C69)/C132)) -> 0.4917302446 | D203: =IF(ISERROR((D37+D69)/D132),0,((D37+D69)/D132)) -> 0.07632934741 | E203: -0.1280644603 | F203: 0.1491069162 | G203: 0.1553664376 | H203: 0.1553664376 | I203: 0.2813938707 | J203: 0.09906919131 | K203: 0.06108023872
A204: Renewal and upgrading of Existing Assets as % of deprecn | C204: =IF(ISERROR((C37+C69)/C168),0,((C37+C69)/C168)) -> 0 | D204: =IF(ISERROR((D37+D69)/D168),0,((D37+D69)/D168)) -> -1.158853735 | E204: 1.465365518 | F204: 0.9547228396 | G204: 0.9921189555 | H204: 0.9921189555 | I204: 1.844134315 | J204: 0.4041005203 | K204: 0.2832215691
A205: R&M as a % of PPE | C205: =IF(ISERROR(ROUND(C169/'A6-FinPos'!C19,3)),0,(ROUND(C169/'A6-FinPos'!C19,3))) -> 0.003 | D205: =IF(ISERROR(ROUND(D169/'A6-FinPos'!D19,3)),0,(ROUND(D169/'A6-FinPos'!D19,3))) -> 0.005 | E205: =IF(ISERROR(ROUND(E169/'A6-FinPos'!E19,3)),0,(ROUND(E169/'A6-FinPos'!E19,3))) -> 0.004 | F205: =IF(ISERROR(ROUND(F169/'A6-FinPos'!F19,3)),0,(ROUND(F169/'A6-FinPos'!F19,3))) -> 0.008 | G205: =IF(ISERROR(ROUND(G169/'A6-FinPos'!G19,3)),0,(ROUND(G169/'A6-FinPos'!G19,3))) -> 0.01 | H205: =IF(ISERROR(ROUND(H169/'A6-FinPos'!H19,3)),0,(ROUND(H169/'A6-FinPos'!H19,3))) -> 0.01 | I205: =IF(ISERROR(ROUND(I169/'A6-FinPos'!J19,3)),0,(ROUND(I169/'A6-FinPos'!J19,3))) -> 0.008 | J205: =IF(ISERROR(ROUND(J169/'A6-FinPos'!K19,3)),0,(ROUND(J169/'A6-FinPos'!K19,3))) -> 0.01 | K205: =IF(ISERROR(ROUND(K169/'A6-FinPos'!L19,3)),0,(ROUND(K169/'A6-FinPos'!L19,3))) -> 0.01
A206: Renewal and upgrading and R&M as a % of PPE | C206: =IF(ISERROR(ROUND((C37+C69+C169)/C165,2)),0,(ROUND((C37+C69+C169)/C165,2))) -> -0.07 | D206: =IF(ISERROR(ROUND((D37+D69+D169)/D165,2)),0,(ROUND((D37+D69+D169)/D165,2))) -> -0.06 | E206: 0.08 | F206: 0.1 | G206: 0.11 | H206: 0.11 | I206: 0.16 | J206: 0.05 | K206: 0.04
A208: =head27a -> References
A209: 1. Detail of new assets provided in Table SA34a
A210: 2. Detail of renewal of existing assets provided in Table SA34b
A211: 3. Detail of Repairs and Maintenance by Asset Class provided in Table SA34c
A212: 4. Must reconcile to total capital expenditure on Budgeted Capital Expenditure
A213: 5. Must reconcile to 'Budgeted Financial Position' (written down value)
A214: 6. Detail of upgrading of existing assets provided in Table SA34e
A215: 7. Detail of depreciation provided in Table SA34d
A217: Check balance to A6 | C217: =C165-'A6-FinPos'!D17-'A6-FinPos'!D19-'A6-FinPos'!D20-'A6-FinPos'!D21-'A6-FinPos'!D22-C148 -> -179887697.7 | D217: =D165-'A6-FinPos'!E17-'A6-FinPos'!E19-'A6-FinPos'!E20-'A6-FinPos'!E21-'A6-FinPos'!E22-D148 -> -204345037.7 | E217: =E165-'A6-FinPos'!F17-'A6-FinPos'!F19-'A6-FinPos'!F20-'A6-FinPos'!F21-'A6-FinPos'!F22-E148 -> -177134408.6 | F217: =F165-'A6-FinPos'!G17-'A6-FinPos'!G19-'A6-FinPos'!G20-'A6-FinPos'!G21-'A6-FinPos'!G22-F148 -> -259922123 | G217: =G165-'A6-FinPos'!H17-'A6-FinPos'!H19-'A6-FinPos'!H20-'A6-FinPos'!H21-'A6-FinPos'!H22-G148 -> -259657779 | H217: =H165-'A6-FinPos'!I17-'A6-FinPos'!I19-'A6-FinPos'!I20-'A6-FinPos'!I21-'A6-FinPos'!I22-H148 -> -333226953.4 | I217: =I165-'A6-FinPos'!J17-'A6-FinPos'!J19-'A6-FinPos'!J20-'A6-FinPos'!J21-'A6-FinPos'!J22-I148 -> -250584361 | J217: =J165-'A6-FinPos'!K17-'A6-FinPos'!K19-'A6-FinPos'!K20-'A6-FinPos'!K21-'A6-FinPos'!K22-J148 -> -222587566 | K217: =K165-'A6-FinPos'!L17-'A6-FinPos'!L19-'A6-FinPos'!L20-'A6-FinPos'!L21-'A6-FinPos'!L22-K148 -> -237083827

Sheet A10-SerDel
A1: =muni&" - "&Approve10 -> Choose name from list - Table A10 Basic service delivery measurement
A2: =desc -> Description | B2: =head27 -> Ref | C2: =head1b -> 2017/18 | D2: =head1A -> 2018/19 | E2: =Head1 -> 2019/20 | F2: =Head2 -> Current Year 2020/21 | I2: =Head3 -> 2021/22 Medium Term Revenue & Expenditure Framework
C3: =Head5A -> Outcome | D3: =Head5A -> Outcome | E3: =Head5A -> Outcome | F3: =Head6 -> Original Budget | G3: =Head7 -> Adjusted Budget | H3: =Head8 -> Full Year Forecast | I3: =Head9 -> Budget Year 2021/22 | J3: =Head10 -> Budget Year +1 2022/23 | K3: =Head11 -> Budget Year +2 2023/24
A4: Household service targets | B4: 1
A5: Water:
A6: Piped water inside dwelling | C6: ='SA9'!E67 -> 2669 | D6: ='SA9'!F67 -> 2669 | E6: ='SA9'!G67 -> 2669 | F6: ='SA9'!H67 -> 2669 | G6: ='SA9'!I67 -> 2669 | H6: ='SA9'!J67 -> 2669 | I6: ='SA9'!K67 -> 2669 | J6: ='SA9'!L67 -> 2669 | K6: ='SA9'!M67 -> 2669
A7: Piped water inside yard (but not in dwelling) | C7: ='SA9'!E68 -> 9006 | D7: ='SA9'!F68 -> 9006 | E7: ='SA9'!G68 -> 9006 | F7: ='SA9'!H68 -> 9006 | G7: ='SA9'!I68 -> 9006 | H7: ='SA9'!J68 -> 9006 | I7: ='SA9'!K68 -> 9006 | J7: ='SA9'!L68 -> 9006 | K7: ='SA9'!M68 -> 9006
A8: Using public tap (at least min.service level) | B8: 2 | C8: ='SA9'!E69 -> 5987 | D8: ='SA9'!F69 -> 5987 | E8: ='SA9'!G69 -> 5987 | F8: ='SA9'!H69 -> 5987 | G8: ='SA9'!I69 -> 5987 | H8: ='SA9'!J69 -> 5987 | I8: ='SA9'!K69 -> 5987 | J8: ='SA9'!L69 -> 5987 | K8: ='SA9'!M69 -> 5987
A9: Other water supply (at least min.service level) | B9: 4 | C9: ='SA9'!E70 -> 0 | D9: ='SA9'!F70 -> 0 | E9: ='SA9'!G70 -> 0 | F9: ='SA9'!H70 -> 0 | G9: ='SA9'!I70 -> 0 | H9: ='SA9'!J70 -> 0 | I9: ='SA9'!K70 -> 0 | J9: ='SA9'!L70 -> 0 | K9: ='SA9'!M70 -> 0
A10: Minimum Service Level and Above sub-total | C10: =SUM(C6:C9) -> 17662 | D10: =SUM(D6:D9) -> 17662 | E10: 17662 | F10: 17662 | G10: 17662 | H10: 17662 | I10: 17662 | J10: 17662 | K10: 17662
A11: Using public tap (< min.service level) | B11: 3 | C11: ='SA9'!E72 -> 285 | D11: ='SA9'!F72 -> 285 | E11: ='SA9'!G72 -> 285 | F11: ='SA9'!H72 -> 285 | G11: ='SA9'!I72 -> 285 | H11: ='SA9'!J72 -> 285 | I11: ='SA9'!K72 -> 285 | J11: ='SA9'!L72 -> 285 | K11: ='SA9'!M72 -> 285
A12: Other water supply (< min.service level) | B12: =B9 -> 4 | C12: ='SA9'!E73 -> 3155 | D12: ='SA9'!F73 -> 3155 | E12: ='SA9'!G73 -> 3155 | F12: ='SA9'!H73 -> 3155 | G12: ='SA9'!I73 -> 3155 | H12: ='SA9'!J73 -> 3155 | I12: ='SA9'!K73 -> 3155 | J12: ='SA9'!L73 -> 3155 | K12: ='SA9'!M73 -> 3155
